Workbook

Sheet Cash Flow Proof
A2: Computation of All-Equity or Unlevered Beta
C4: EMRP | D4: =E4/100 -> 0.03 | E4: 3
C5: Rf | D5: =E5/100 -> 0.04 | E5: 4
E7: Percent | G7: Percent
D8: Be | E8: Net Debt | F8: Tax Rate | G8: Equity | H8: Bd | I8: Bu | K8: A =[CF/(Ku-g) - Debt * (1-t)]/ [CF/([(Ku - Kd * ND/NCAP)/(NE/NCAP)] * GE/GCAP + Kd * GD/GCAP-g) - Debt]
C9: Disney | D9: 1.1 | E9: 0.3 | F9: 0.35 | G9: =1-E9 -> 0.7 | H9: 0.2 | I9: =D9*G9+H9*(1-F9)*E9 -> 0.809 | K9: A =Factor 1/ [CF/(factor 2] * GE/GCAP + Kd * GD/GCAP-g) - Debt]
C10: McDonalds | D10: 0.52 | E10: 0.4 | F10: 0.26 | G10: =1-E10 -> 0.6 | H10: 0.3 | I10: =D10*G10+H10*(1-F10)*E10 -> 0.4008 | K10: NCAP =CF/(Ku-g) | O10: =c_f/(ku-gr) -> 2184.653124
C11: Starbucks | D11: 0.6 | E11: 0.3 | F11: 0.2 | G11: 0.7 | H11: 0.4 | I11: 0.516 | K11: GCAP =CF/(Ku-g) + Debt * t | O11: =O10+D87*t -> 2577.890686
C12: Apple | D12: 1.15 | E12: -0.3 | F12: 0.15 | G12: 1.3 | H12: 0.1 | I12: 1.4695 | K12: NE =NCAP - Debt * t | O12: =O10-D87*(1-t) -> 1267.098812
C13: Amazon | D13: 0.87 | E13: 0.6 | F13: 0.24 | G13: 0.4 | H13: 0.2 | I13: 0.4392 | K13: GE =NE + Debt * t | O13: =O12+D87*t -> 1660.336374
C14: Google | D14: 1.3 | E14: -0.2 | F14: 0.3 | G14: 1.2 | H14: 0.1 | I14: 1.546
C15: Microsoft | D15: 0.99 | E15: 0.2 | F15: 0.31 | G15: 0.8 | H15: 0.3 | I15: 0.8334 | K15: Factor 1 =CF/(Ku-g) - Debt * (1-t) | O15: =c_f/(ku-gr)-D87*(1-t) -> 1267.098812
K16: Factor 2 =(Ku-Kd * ND/NCAP)/(NE/NCAP) | O16: =(ku-k_d*D88/O10)/(O12/O10) -> 0.07574802956
C17: Average Bu | I17: =AVERAGE(I9:I15) -> 0.8591285714
C18: All Equity Cost of Capital | I18: =D5+I17*D4 -> 0.06577385714 | K18: Denom = [CF/(factor 2] * GE/GCAP + Kd * GD/GCAP-g) - Debt]
A21: Capital Structure and Reconciled Value
E22: 1 | F22: 2 | G22: 3 | H22: 4 | I22: 5 | J22: 6 | K22: 7 | L22: 8 | M22: 9 | N22: 10 | O22: 11 | P22: 12 | Q22: 13 | R22: 14 | S22: 15 | T22: 16 | U22: 17 | V22: 18 | W22: 19 | X22: 20 | Y22: 21 | Z22: 22 | AA22: 23 | AB22: 24 | AC22: 25 | AD22: 26 | AE22: 27 | AF22: 28 | AG22: 29 | AH22: 30 | AI22: 31 | AJ22: 32 | AK22: 33 | AL22: 34 | AM22: 35 | AN22: 36 | AO22: 37 | AP22: 38 | AQ22: 39 | AR22: 40 | AS22: 41 | AT22: 42 | AU22: 43 | AV22: 44 | AW22: 45 | AX22: 46 | AY22: 47 | AZ22: 48 | BA22: 49 | BB22: 50 | BC22: 51 | BD22: 52 | BE22: 53 | BF22: 54 | BG22: 55 | BH22: 56 | BI22: 57 | BJ22: 58 | BK22: 59 | BL22: 60 | BM22: 61 | BN22: 62 | BO22: 63 | BP22: 64 | BQ22: 65 | BR22: 66 | BS22: 67 | BT22: 68 | BU22: 69 | BV22: 70 | BW22: 71 | BX22: 72 | BY22: 73 | BZ22: 74 | CA22: 75 | CB22: 76 | CC22: 77 | CD22: 78 | CE22: 79 | CF22: 80 | CG22: 81 | CH22: 82 | CI22: 83 | CJ22: 84 | CK22: 85 | CL22: 86 | CM22: 87 | CN22: 88 | CO22: 89 | CP22: 90 | CQ22: 91 | CR22: 92 | CS22: 93 | CT22: 94 | CU22: 95 | CV22: 96 | CW22: 97 | CX22: 98 | CY22: 99 | CZ22: 100 | DA22: 101 | DB22: 102 | DC22: 103 | DD22: 104 | DE22: 105 | DF22: 106 | DG22: 107 | DH22: 108 | DI22: 109 | DJ22: 110 | DK22: 111 | DL22: 112 | DM22: 113 | DN22: 114 | DO22: 115 | DP22: 116 | DQ22: 117 | DR22: 118 | DS22: 119 | DT22: 120 | DU22: 121 | DV22: 122 | DW22: 123 | DX22: 124 | DY22: 125 | DZ22: 126 | EA22: 127 | EB22: 128 | EC22: 129 | ED22: 130 | EE22: 131 | EF22: 132 | EG22: 133 | EH22: 134 | EI22: 135 | EJ22: 136 | EK22: 137 | EL22: 138 | EM22: 139 | EN22: 140 | EO22: 141 | EP22: 142 | EQ22: 143 | ER22: 144 | ES22: 145 | ET22: 146 | EU22: 147 | EV22: 148 | EW22: 149 | EX22: 150 | EY22: 151 | EZ22: 152 | FA22: 153 | FB22: 154 | FC22: 155 | FD22: 156 | FE22: 157 | FF22: 158 | FG22: 159 | FH22: 160 | FI22: 161 | FJ22: 162 | FK22: 163 | FL22: 164 | FM22: 165 | FN22: 166 | FO22: 167 | FP22: 168 | FQ22: 169 | FR22: 170 | FS22: 171 | FT22: 172 | FU22: 173 | FV22: 174 | FW22: 175 | FX22: 176 | FY22: 177 | FZ22: 178 | GA22: 179 | GB22: 180 | GC22: 181 | GD22: 182 | GE22: 183 | GF22: 184 | GG22: 185 | GH22: 186 | GI22: 187 | GJ22: 188 | GK22: 189 | GL22: 190 | GM22: 191 | GN22: 192 | GO22: 193 | GP22: 194 | GQ22: 195 | GR22: 196 | GS22: 197 | GT22: 198 | GU22: 199 | GV22: 200 | GW22: 201 | GX22: 202 | GY22: 203 | GZ22: 204 | HA22: 205 | HB22: 206 | HC22: 207 | HD22: 208 | HE22: 209 | HF22: 210 | HG22: 211 | HH22: 212 | HI22: 213 | HJ22: 214 | HK22: 215 | HL22: 216 | HM22: 217 | HN22: 218 | HO22: 219 | HP22: 220 | HQ22: 221 | HR22: 222 | HS22: 223 | HT22: 224 | HU22: 225 | HV22: 226 | HW22: 227 | HX22: 228 | HY22: 229 | HZ22: 230 | IA22: 231 | IB22: 232 | IC22: 233 | ID22: 234 | IE22: 235 | IF22: 236 | IG22: 237 | IH22: 238 | II22: 239 | IJ22: 240 | IK22: 241 | IL22: 242 | IM22: 243 | IN22: 244 | IO22: 245 | IP22: 246 | IQ22: 247 | IR22: 248 | IS22: 249 | IT22: 250 | IU22: 251 | IV22: 252 | IW22: 253 | IX22: 254 | IY22: 255 | IZ22: 256 | JA22: 257 | JB22: 258 | JC22: 259 | JD22: 260 | JE22: 261 | JF22: 262 | JG22: 263 | JH22: 264 | JI22: 265 | JJ22: 266 | JK22: 267 | JL22: 268 | JM22: 269 | JN22: 270 | JO22: 271 | JP22: 272 | JQ22: 273 | JR22: 274 | JS22: 275 | JT22: 276 | JU22: 277 | JV22: 278 | JW22: 279 | JX22: 280 | JY22: 281 | JZ22: 282 | KA22: 283 | KB22: 284 | KC22: 285 | KD22: 286 | KE22: 287 | KF22: 288 | KG22: 289 | KH22: 290 | KI22: 291 | KJ22: 292 | KK22: 293 | KL22: 294 | KM22: 295 | KN22: 296 | KO22: 297 | KP22: 298 | KQ22: 299 | KR22: 300 | KS22: 301 | KT22: 302 | KU22: 303 | KV22: 304 | KW22: 305 | KX22: 306 | KY22: 307 | KZ22: 308 | LA22: 309 | LB22: 310 | LC22: 311 | LD22: 312 | LE22: 313 | LF22: 314 | LG22: 315 | LH22: 316 | LI22: 317 | LJ22: 318 | LK22: 319 | LL22: 320 | LM22: 321 | LN22: 322 | LO22: 323 | LP22: 324 | LQ22: 325 | LR22: 326 | LS22: 327 | LT22: 328 | LU22: 329 | LV22: 330 | LW22: 331 | LX22: 332 | LY22: 333 | LZ22: 334 | MA22: 335 | MB22: 336 | MC22: 337 | MD22: 338 | ME22: 339 | MF22: 340 | MG22: 341 | MH22: 342 | MI22: 343 | MJ22: 344 | MK22: 345 | ML22: 346 | MM22: 347 | MN22: 348 | MO22: 349 | MP22: 350 | MQ22: 351 | MR22: 352 | MS22: 353 | MT22: 354 | MU22: 355 | MV22: 356 | MW22: 357 | MX22: 358 | MY22: 359 | MZ22: 360 | NA22: 361 | NB22: 362 | NC22: 363 | ND22: 364 | NE22: 365 | NF22: 366 | NG22: 367 | NH22: 368 | NI22: 369 | NJ22: 370 | NK22: 371 | NL22: 372 | NM22: 373 | NN22: 374 | NO22: 375 | NP22: 376 | NQ22: 377 | NR22: 378 | NS22: 379 | NT22: 380 | NU22: 381 | NV22: 382 | NW22: 383 | NX22: 384 | NY22: 385 | NZ22: 386 | OA22: 387 | OB22: 388 | OC22: 389 | OD22: 390 | OE22: 391 | OF22: 392 | OG22: 393 | OH22: 394 | OI22: 395 | OJ22: 396 | OK22: 397 | OL22: 398 | OM22: 399 | ON22: 400 | OO22: 401 | OP22: 402 | OQ22: 403 | OR22: 404 | OS22: 405 | OT22: 406 | OU22: 407 | OV22: 408 | OW22: 409 | OX22: 410 | OY22: 411 | OZ22: 412 | PA22: 413 | PB22: 414 | PC22: 415 | PD22: 416 | PE22: 417 | PF22: 418 | PG22: 419 | PH22: 420 | PI22: 421 | PJ22: 422 | PK22: 423 | PL22: 424 | PM22: 425 | PN22: 426 | PO22: 427 | PP22: 428 | PQ22: 429 | PR22: 430 | PS22: 431 | PT22: 432 | PU22: 433 | PV22: 434 | PW22: 435 | PX22: 436 | PY22: 437 | PZ22: 438 | QA22: 439 | QB22: 440 | QC22: 441 | QD22: 442 | QE22: 443 | QF22: 444 | QG22: 445 | QH22: 446 | QI22: 447 | QJ22: 448 | QK22: 449 | QL22: 450 | QM22: 451 | QN22: 452 | QO22: 453 | QP22: 454 | QQ22: 455 | QR22: 456 | QS22: 457 | QT22: 458 | QU22: 459 | QV22: 460 | QW22: 461 | QX22: 462 | QY22: 463 | QZ22: 464 | RA22: 465 | RB22: 466 | RC22: 467 | RD22: 468 | RE22: 469 | RF22: 470 | RG22: 471 | RH22: 472 | RI22: 473 | RJ22: 474 | RK22: 475 | RL22: 476 | RM22: 477 | RN22: 478 | RO22: 479 | RP22: 480 | RQ22: 481 | RR22: 482 | RS22: 483 | RT22: 484 | RU22: 485 | RV22: 486 | RW22: 487 | RX22: 488 | RY22: 489 | RZ22: 490 | SA22: 491 | SB22: 492 | SC22: 493 | SD22: 494 | SE22: 495 | SF22: 496 | SG22: 497 | SH22: 498 | SI22: 499 | SJ22: 500 | SK22: 501 | SL22: 502 | SM22: 503 | SN22: 504 | SO22: 505 | SP22: 506 | SQ22: 507 | SR22: 508 | SS22: 509 | ST22: 510 | SU22: 511 | SV22: 512 | SW22: 513 | SX22: 514 | SY22: 515 | SZ22: 516 | TA22: 517 | TB22: 518 | TC22: 519 | TD22: 520 | TE22: 521 | TF22: 522 | TG22: 523 | TH22: 524 | TI22: 525 | TJ22: 526 | TK22: 527 | TL22: 528 | TM22: 529 | TN22: 530 | TO22: 531 | TP22: 532 | TQ22: 533 | TR22: 534 | TS22: 535 | TT22: 536 | TU22: 537 | TV22: 538 | TW22: 539 | TX22: 540 | TY22: 541 | TZ22: 542 | UA22: 543 | UB22: 544 | UC22: 545 | UD22: 546 | UE22: 547 | UF22: 548 | UG22: 549 | UH22: 550 | UI22: 551 | UJ22: 552 | UK22: 553 | UL22: 554 | UM22: 555 | UN22: 556 | UO22: 557 | UP22: 558 | UQ22: 559 | UR22: 560 | US22: 561 | UT22: 562 | UU22: 563 | UV22: 564 | UW22: 565 | UX22: 566 | UY22: 567 | UZ22: 568 | VA22: 569 | VB22: 570 | VC22: 571 | VD22: 572 | VE22: 573 | VF22: 574 | VG22: 575 | VH22: 576 | VI22: 577 | VJ22: 578 | VK22: 579 | VL22: 580 | VM22: 581 | VN22: 582 | VO22: 583 | VP22: 584 | VQ22: 585 | VR22: 586 | VS22: 587 | VT22: 588 | VU22: 589 | VV22: 590 | VW22: 591 | VX22: 592 | VY22: 593 | VZ22: 594 | WA22: 595 | WB22: 596 | WC22: 597 | WD22: 598 | WE22: 599 | WF22: 600 | WG22: 601 | WH22: 602 | WI22: 603 | WJ22: 604 | WK22: 605 | WL22: 606 | WM22: 607 | WN22: 608 | WO22: 609 | WP22: 610 | WQ22: 611 | WR22: 612 | WS22: 613 | WT22: 614 | WU22: 615 | WV22: 616 | WW22: 617 | WX22: 618 | WY22: 619 | WZ22: 620 | XA22: 621 | XB22: 622 | XC22: 623 | XD22: 624 | XE22: 625 | XF22: 626 | XG22: 627 | XH22: 628 | XI22: 629 | XJ22: 630 | XK22: 631 | XL22: 632 | XM22: 633 | XN22: 634 | XO22: 635 | XP22: 636 | XQ22: 637 | XR22: 638 | XS22: 639 | XT22: 640 | XU22: 641 | XV22: 642 | XW22: 643 | XX22: 644 | XY22: 645 | XZ22: 646 | YA22: 647 | YB22: 648 | YC22: 649 | YD22: 650 | YE22: 651 | YF22: 652 | YG22: 653 | YH22: 654 | YI22: 655 | YJ22: 656 | YK22: 657 | YL22: 658 | YM22: 659 | YN22: 660 | YO22: 661 | YP22: 662 | YQ22: 663 | YR22: 664 | YS22: 665 | YT22: 666 | YU22: 667 | YV22: 668 | YW22: 669 | YX22: 670 | YY22: 671 | YZ22: 672 | ZA22: 673 | ZB22: 674 | ZC22: 675 | ZD22: 676 | ZE22: 677 | ZF22: 678 | ZG22: 679 | ZH22: 680 | ZI22: 681 | ZJ22: 682 | ZK22: 683 | ZL22: 684 | ZM22: 685 | ZN22: 686 | ZO22: 687 | ZP22: 688 | ZQ22: 689 | ZR22: 690 | ZS22: 691 | ZT22: 692 | ZU22: 693 | ZV22: 694 | ZW22: 695 | ZX22: 696 | ZY22: 697 | ZZ22: 698 | AAA22: 699 | AAB22: 700
C23: FCF | E23: 100 | F23: =E23*(1+$D$52) -> 102 | G23: 104.04 | H23: 106.1208 | I23: 108.243216 | J23: 110.4080803 | K23: 112.6162419 | L23: 114.8685668 | M23: 117.1659381 | N23: 119.5092569 | O23: 121.899442 | P23: 124.3374308 | Q23: 126.8241795 | R23: 129.360663 | S23: 131.9478763 | T23: 134.5868338 | U23: 137.2785705 | V23: 140.0241419 | W23: 142.8246248 | X23: 145.6811173 | Y23: 148.5947396 | Z23: 151.5666344 | AA23: 154.5979671 | AB23: 157.6899264 | AC23: 160.8437249 | AD23: 164.0605994 | AE23: 167.3418114 | AF23: 170.6886477 | AG23: 174.1024206 | AH23: 177.584469 | AI23: 181.1361584 | AJ23: 184.7588816 | AK23: 188.4540592 | AL23: 192.2231404 | AM23: 196.0676032 | AN23: 199.9889553 | AO23: 203.9887344 | AP23: 208.0685091 | AQ23: 212.2298792 | AR23: 216.4744768 | AS23: 220.8039664 | AT23: 225.2200457 | AU23: 229.7244466 | AV23: 234.3189355 | AW23: 239.0053142 | AX23: 243.7854205 | AY23: 248.6611289 | AZ23: 253.6343515 | BA23: 258.7070385 | BB23: 263.8811793 | BC23: 269.1588029 | BD23: 274.541979 | BE23: 280.0328185 | BF23: 285.6334749 | BG23: 291.3461444 | BH23: 297.1730673 | BI23: 303.1165286 | BJ23: 309.1788592 | BK23: 315.3624364 | BL23: 321.6696851 | BM23: 328.1030788 | BN23: 334.6651404 | BO23: 341.3584432 | BP23: 348.1856121 | BQ23: 355.1493243 | BR23: =BQ23*(1+$D$52) -> 362.2523108 | BS23: 369.497357 | BT23: 376.8873042 | BU23: 384.4250503 | BV23: 392.1135513 | BW23: 399.9558223 | BX23: 407.9549387 | BY23: 416.1140375 | BZ23: 424.4363183 | CA23: 432.9250446 | CB23: 441.5835455 | CC23: 450.4152164 | CD23: 459.4235208 | CE23: 468.6119912 | CF23: 477.984231 | CG23: 487.5439156 | CH23: 497.2947939 | CI23: 507.2406898 | CJ23: 517.3855036 | CK23: 527.7332137 | CL23: 538.2878779 | CM23: 549.0536355 | CN23: 560.0347082 | CO23: 571.2354024 | CP23: 582.6601104 | CQ23: 594.3133126 | CR23: 606.1995789 | CS23: 618.3235705 | CT23: 630.6900419 | CU23: 643.3038427 | CV23: 656.1699196 | CW23: 669.293318 | CX23: 682.6791843 | CY23: 696.332768 | CZ23: 710.2594234 | DA23: 724.4646118 | DB23: 738.9539041 | DC23: 753.7329821 | DD23: 768.8076418 | DE23: 784.1837946 | DF23: 799.8674705 | DG23: 815.8648199 | DH23: 832.1821163 | DI23: 848.8257586 | DJ23: 865.8022738 | DK23: 883.1183193 | DL23: 900.7806857 | DM23: 918.7962994 | DN23: 937.1722254 | DO23: 955.9156699 | DP23: 975.0339833 | DQ23: 994.534663 | DR23: 1014.425356 | DS23: 1034.713863 | DT23: 1055.408141 | DU23: 1076.516303 | DV23: 1098.046629 | DW23: 1120.007562 | DX23: 1142.407713 | DY23: 1165.255868 | DZ23: 1188.560985 | EA23: 1212.332205 | EB23: 1236.578849 | EC23: 1261.310426 | ED23: =EC23*(1+$D$52) -> 1286.536634 | EE23: 1312.267367 | EF23: 1338.512714 | EG23: 1365.282969 | EH23: 1392.588628 | EI23: 1420.4404 | EJ23: 1448.849208 | EK23: 1477.826193 | EL23: 1507.382716 | EM23: 1537.530371 | EN23: 1568.280978 | EO23: 1599.646598 | EP23: 1631.63953 | EQ23: 1664.27232 | ER23: 1697.557767 | ES23: 1731.508922 | ET23: 1766.139101 | EU23: 1801.461883 | EV23: 1837.49112 | EW23: 1874.240943 | EX23: 1911.725761 | EY23: 1949.960277 | EZ23: 1988.959482 | FA23: 2028.738672 | FB23: 2069.313445 | FC23: 2110.699714 | FD23: 2152.913708 | FE23: 2195.971983 | FF23: 2239.891422 | FG23: 2284.689251 | FH23: 2330.383036 | FI23: 2376.990696 | FJ23: 2424.53051 | FK23: 2473.021121 | FL23: 2522.481543 | FM23: 2572.931174 | FN23: 2624.389797 | FO23: 2676.877593 | FP23: 2730.415145 | FQ23: 2785.023448 | FR23: 2840.723917 | FS23: 2897.538395 | FT23: 2955.489163 | FU23: 3014.598947 | FV23: 3074.890925 | FW23: 3136.388744 | FX23: 3199.116519 | FY23: 3263.098849 | FZ23: 3328.360826 | GA23: 3394.928043 | GB23: 3462.826604 | GC23: 3532.083136 | GD23: 3602.724798 | GE23: 3674.779294 | GF23: 3748.27488 | GG23: 3823.240378 | GH23: 3899.705185 | GI23: 3977.699289 | GJ23: 4057.253275 | GK23: 4138.39834 | GL23: 4221.166307 | GM23: 4305.589633 | GN23: 4391.701426 | GO23: 4479.535455 | GP23: =GO23*(1+$D$52) -> 4569.126164 | GQ23: 4660.508687 | GR23: 4753.718861 | GS23: 4848.793238 | GT23: 4945.769103 | GU23: 5044.684485 | GV23: 5145.578174 | GW23: 5248.489738 | GX23: 5353.459533 | GY23: 5460.528723 | GZ23: 5569.739298 | HA23: 5681.134084 | HB23: 5794.756765 | HC23: 5910.651901 | HD23: 6028.864939 | HE23: 6149.442237 | HF23: 6272.431082 | HG23: 6397.879704 | HH23: 6525.837298 | HI23: 6656.354044 | HJ23: 6789.481125 | HK23: 6925.270747 | HL23: 7063.776162 | HM23: 7205.051685 | HN23: 7349.152719 | HO23: 7496.135774 | HP23: 7646.058489 | HQ23: 7798.979659 | HR23: 7954.959252 | HS23: 8114.058437 | HT23: 8276.339606 | HU23: 8441.866398 | HV23: 8610.703726 | HW23: 8782.9178 | HX23: 8958.576156 | HY23: 9137.747679 | HZ23: 9320.502633 | IA23: 9506.912686 | IB23: 9697.050939 | IC23: 9890.991958 | ID23: 10088.8118 | IE23: 10290.58803 | IF23: 10496.39979 | IG23: 10706.32779 | IH23: 10920.45435 | II23: 11138.86343 | IJ23: 11361.6407 | IK23: 11588.87352 | IL23: 11820.65099 | IM23: 12057.06401 | IN23: 12298.20529 | IO23: 12544.16939 | IP23: 12795.05278 | IQ23: 13050.95383 | IR23: 13311.97291 | IS23: 13578.21237 | IT23: 13849.77662 | IU23: 14126.77215 | IV23: 14409.30759 | IW23: 14697.49374 | IX23: 14991.44362 | IY23: 15291.27249 | IZ23: 15597.09794 | JA23: 15909.0399 | JB23: =JA23*(1+$D$52) -> 16227.2207 | JC23: 16551.76511 | JD23: 16882.80041 | JE23: 17220.45642 | JF23: 17564.86555 | JG23: 17916.16286 | JH23: 18274.48612 | JI23: 18639.97584 | JJ23: 19012.77536 | JK23: 19393.03087 | JL23: 19780.89148 | JM23: 20176.50931 | JN23: 20580.0395 | JO23: 20991.64029 | JP23: 21411.47309 | JQ23: 21839.70256 | JR23: 22276.49661 | JS23: 22722.02654 | JT23: 23176.46707 | JU23: 23639.99641 | JV23: 24112.79634 | JW23: 24595.05227 | JX23: 25086.95331 | JY23: 25588.69238 | JZ23: 26100.46623 | KA23: 26622.47555 | KB23: 27154.92506 | KC23: 27698.02356 | KD23: 28251.98403 | KE23: 28817.02371 | KF23: 29393.36419 | KG23: 29981.23147 | KH23: 30580.8561 | KI23: 31192.47322 | KJ23: 31816.32269 | KK23: 32452.64914 | KL23: 33101.70213 | KM23: 33763.73617 | KN23: 34439.01089 | KO23: 35127.79111 | KP23: 35830.34693 | KQ23: 36546.95387 | KR23: 37277.89295 | KS23: 38023.45081 | KT23: 38783.91982 | KU23: 39559.59822 | KV23: 40350.79018 | KW23: 41157.80599 | KX23: 41980.96211 | KY23: 42820.58135 | KZ23: 43676.99298 | LA23: 44550.53284 | LB23: 45441.54349 | LC23: 46350.37436 | LD23: 47277.38185 | LE23: 48222.92949 | LF23: 49187.38808 | LG23: 50171.13584 | LH23: 51174.55855 | LI23: 52198.04972 | LJ23: 53242.01072 | LK23: 54306.85093 | LL23: 55392.98795 | LM23: 56500.84771 | LN23: =LM23*(1+$D$52) -> 57630.86467 | LO23: 58783.48196 | LP23: 59959.1516 | LQ23: 61158.33463 | LR23: 62381.50132 | LS23: 63629.13135 | LT23: 64901.71398 | LU23: 66199.74826 | LV23: 67523.74322 | LW23: 68874.21809 | LX23: 70251.70245 | LY23: 71656.7365 | LZ23: 73089.87123 | MA23: 74551.66865 | MB23: 76042.70202 | MC23: 77563.55606 | MD23: 79114.82719 | ME23: 80697.12373 | MF23: 82311.0662 | MG23: 83957.28753 | MH23: 85636.43328 | MI23: 87349.16194 | MJ23: 89096.14518 | MK23: 90878.06809 | ML23: 92695.62945 | MM23: 94549.54204 | MN23: 96440.53288 | MO23: 98369.34354 | MP23: 100336.7304 | MQ23: 102343.465 | MR23: 104390.3343 | MS23: 106478.141 | MT23: 108607.7038 | MU23: 110779.8579 | MV23: 112995.4551 | MW23: 115255.3642 | MX23: 117560.4714 | MY23: 119911.6809 | MZ23: 122309.9145 | NA23: 124756.1128 | NB23: 127251.235 | NC23: 129796.2597 | ND23: 132392.1849 | NE23: 135040.0286 | NF23: 137740.8292 | NG23: 140495.6458 | NH23: 143305.5587 | NI23: 146171.6699 | NJ23: 149095.1033 | NK23: 152077.0053 | NL23: 155118.5454 | NM23: 158220.9163 | NN23: 161385.3347 | NO23: 164613.0414 | NP23: 167905.3022 | NQ23: 171263.4082 | NR23: 174688.6764 | NS23: 178182.4499 | NT23: 181746.0989 | NU23: 185381.0209 | NV23: 189088.6413 | NW23: 192870.4142 | NX23: 196727.8224 | NY23: 200662.3789 | NZ23: =NY23*(1+$D$52) -> 204675.6265 | OA23: 208769.139 | OB23: 212944.5218 | OC23: 217203.4122 | OD23: 221547.4805 | OE23: 225978.4301 | OF23: 230497.9987 | OG23: 235107.9586 | OH23: 239810.1178 | OI23: 244606.3202 | OJ23: 249498.4466 | OK23: 254488.4155 | OL23: 259578.1838 | OM23: 264769.7475 | ON23: 270065.1424 | OO23: 275466.4453 | OP23: 280975.7742 | OQ23: 286595.2897 | OR23: 292327.1955 | OS23: 298173.7394 | OT23: 304137.2142 | OU23: 310219.9584 | OV23: 316424.3576 | OW23: 322752.8448 | OX23: 329207.9017 | OY23: 335792.0597 | OZ23: 342507.9009 | PA23: 349358.0589 | PB23: 356345.2201 | PC23: 363472.1245 | PD23: 370741.567 | PE23: 378156.3983 | PF23: 385719.5263 | PG23: 393433.9168 | PH23: 401302.5951 | PI23: 409328.6471 | PJ23: 417515.22 | PK23: 425865.5244 | PL23: 434382.8349 | PM23: 443070.4916 | PN23: 451931.9014 | PO23: 460970.5394 | PP23: 470189.9502 | PQ23: 479593.7492 | PR23: 489185.6242 | PS23: 498969.3367 | PT23: 508948.7234 | PU23: 519127.6979 | PV23: 529510.2519 | PW23: 540100.4569 | PX23: 550902.466 | PY23: 561920.5154 | PZ23: 573158.9257 | QA23: 584622.1042 | QB23: 596314.5463 | QC23: 608240.8372 | QD23: 620405.6539 | QE23: 632813.767 | QF23: 645470.0423 | QG23: 658379.4432 | QH23: 671547.0321 | QI23: 684977.9727 | QJ23: 698677.5322 | QK23: 712651.0828 | QL23: =QK23*(1+$D$52) -> 726904.1045 | QM23: 741442.1865 | QN23: 756271.0303 | QO23: 771396.4509 | QP23: 786824.3799 | QQ23: 802560.8675 | QR23: 818612.0848 | QS23: 834984.3265 | QT23: 851684.0131 | QU23: 868717.6933 | QV23: 886092.0472 | QW23: 903813.8881 | QX23: 921890.1659 | QY23: 940327.9692 | QZ23: 959134.5286 | RA23: 978317.2192 | RB23: 997883.5636 | RC23: 1017841.235 | RD23: 1038198.06 | RE23: 1058962.021 | RF23: 1080141.261 | RG23: 1101744.086 | RH23: 1123778.968 | RI23: 1146254.547 | RJ23: 1169179.638 | RK23: 1192563.231 | RL23: 1216414.496 | RM23: 1240742.786 | RN23: 1265557.641 | RO23: 1290868.794 | RP23: 1316686.17 | RQ23: 1343019.894 | RR23: 1369880.291 | RS23: 1397277.897 | RT23: 1425223.455 | RU23: 1453727.924 | RV23: 1482802.483 | RW23: 1512458.532 | RX23: 1542707.703 | RY23: 1573561.857 | RZ23: 1605033.094 | SA23: 1637133.756 | SB23: 1669876.431 | SC23: 1703273.96 | SD23: 1737339.439 | SE23: 1772086.228 | SF23: 1807527.952 | SG23: 1843678.511 | SH23: 1880552.082 | SI23: 1918163.123 | SJ23: 1956526.386 | SK23: 1995656.914 | SL23: 2035570.052 | SM23: 2076281.453 | SN23: 2117807.082 | SO23: 2160163.224 | SP23: 2203366.488 | SQ23: 2247433.818 | SR23: 2292382.494 | SS23: 2338230.144 | ST23: 2384994.747 | SU23: 2432694.642 | SV23: 2481348.535 | SW23: 2530975.505 | SX23: =SW23*(1+$D$52) -> 2581595.015 | SY23: 2633226.916 | SZ23: 2685891.454 | TA23: 2739609.283 | TB23: 2794401.469 | TC23: 2850289.498 | TD23: 2907295.288 | TE23: 2965441.194 | TF23: 3024750.018 | TG23: 3085245.018 | TH23: 3146949.919 | TI23: 3209888.917 | TJ23: 3274086.695 | TK23: 3339568.429 | TL23: 3406359.798 | TM23: 3474486.994 | TN23: 3543976.734 | TO23: 3614856.268 | TP23: 3687153.394 | TQ23: 3760896.461 | TR23: 3836114.391 | TS23: 3912836.679 | TT23: 3991093.412 | TU23: 4070915.28 | TV23: 4152333.586 | TW23: 4235380.258 | TX23: 4320087.863 | TY23: 4406489.62 | TZ23: 4494619.412 | UA23: 4584511.801 | UB23: 4676202.037 | UC23: 4769726.077 | UD23: 4865120.599 | UE23: 4962423.011 | UF23: 5061671.471 | UG23: 5162904.901 | UH23: 5266162.999 | UI23: 5371486.259 | UJ23: 5478915.984 | UK23: 5588494.303 | UL23: 5700264.19 | UM23: 5814269.473 | UN23: 5930554.863 | UO23: 6049165.96 | UP23: 6170149.279 | UQ23: 6293552.265 | UR23: 6419423.31 | US23: 6547811.776 | UT23: 6678768.012 | UU23: 6812343.372 | UV23: 6948590.24 | UW23: 7087562.044 | UX23: 7229313.285 | UY23: 7373899.551 | UZ23: 7521377.542 | VA23: 7671805.093 | VB23: 7825241.195 | VC23: 7981746.019 | VD23: 8141380.939 | VE23: 8304208.558 | VF23: 8470292.729 | VG23: 8639698.583 | VH23: 8812492.555 | VI23: 8988742.406 | VJ23: =VI23*(1+$D$52) -> 9168517.254 | VK23: 9351887.599 | VL23: 9538925.351 | VM23: 9729703.858 | VN23: 9924297.936 | VO23: 10122783.89 | VP23: 10325239.57 | VQ23: 10531744.36 | VR23: 10742379.25 | VS23: 10957226.84 | VT23: 11176371.37 | VU23: 11399898.8 | VV23: 11627896.78 | VW23: 11860454.71 | VX23: 12097663.81 | VY23: 12339617.08 | VZ23: 12586409.42 | WA23: 12838137.61 | WB23: 13094900.36 | WC23: 13356798.37 | WD23: 13623934.34 | WE23: 13896413.03 | WF23: 14174341.29 | WG23: 14457828.11 | WH23: 14746984.67 | WI23: 15041924.37 | WJ23: 15342762.86 | WK23: 15649618.11 | WL23: 15962610.47 | WM23: 16281862.68 | WN23: 16607499.94 | WO23: 16939649.94 | WP23: 17278442.94 | WQ23: 17624011.79 | WR23: 17976492.03 | WS23: 18336021.87 | WT23: 18702742.31 | WU23: 19076797.15 | WV23: 19458333.1 | WW23: 19847499.76 | WX23: 20244449.75 | WY23: 20649338.75 | WZ23: 21062325.52 | XA23: 21483572.03 | XB23: 21913243.48 | XC23: 22351508.34 | XD23: 22798538.51 | XE23: 23254509.28 | XF23: 23719599.47 | XG23: 24193991.46 | XH23: 24677871.29 | XI23: 25171428.71 | XJ23: 25674857.29 | XK23: 26188354.43 | XL23: 26712121.52 | XM23: 27246363.95 | XN23: 27791291.23 | XO23: 28347117.05 | XP23: 28914059.4 | XQ23: 29492340.58 | XR23: 30082187.4 | XS23: 30683831.14 | XT23: 31297507.77 | XU23: 31923457.92 | XV23: =XU23*(1+$D$52) -> 32561927.08 | XW23: 33213165.62 | XX23: 33877428.93 | XY23: 34554977.51 | XZ23: 35246077.06 | YA23: 35950998.6 | YB23: 36670018.58 | YC23: 37403418.95 | YD23: 38151487.33 | YE23: 38914517.07 | YF23: 39692807.41 | YG23: 40486663.56 | YH23: 41296396.83 | YI23: 42122324.77 | YJ23: 42964771.27 | YK23: 43824066.69 | YL23: 44700548.03 | YM23: 45594558.99 | YN23: 46506450.17 | YO23: 47436579.17 | YP23: 48385310.75 | YQ23: 49353016.97 | YR23: 50340077.31 | YS23: 51346878.85 | YT23: 52373816.43 | YU23: 53421292.76 | YV23: 54489718.61 | YW23: 55579512.99 | YX23: 56691103.25 | YY23: 57824925.31 | YZ23: 58981423.82 | ZA23: 60161052.29 | ZB23: 61364273.34 | ZC23: 62591558.81 | ZD23: 63843389.98 | ZE23: 65120257.78 | ZF23: 66422662.94 | ZG23: 67751116.2 | ZH23: 69106138.52 | ZI23: 70488261.29 | ZJ23: 71898026.52 | ZK23: 73335987.05 | ZL23: 74802706.79 | ZM23: 76298760.92 | ZN23: 77824736.14 | ZO23: 79381230.86 | ZP23: 80968855.48 | ZQ23: 82588232.59 | ZR23: 84239997.24 | ZS23: 85924797.19 | ZT23: 87643293.13 | ZU23: 89396158.99 | ZV23: 91184082.17 | ZW23: 93007763.82 | ZX23: 94867919.09 | ZY23: 96765277.48 | ZZ23: 98700583.02 | AAA23: 100674594.7 | AAB23: 102688086.6
C25: Enterprise Value at Ku | D25: =H38 -> 0.06577385714 | E25: =NPV(D25,54:54) -> 2184.653124 | F25: =_xlfn.FORMULATEXT(E25) -> =NPV(D25,54:54)
C26: Enteprise Value from Continuing CF | D26: =D25 -> 0.06577385714 | E26: =(c_f/(D25-D29)) -> 2184.653124 | F26: =_xlfn.FORMULATEXT(E26) -> =(c_f/(D25-D29))
C28: Tax Rate | D28: =D86 -> 0.3 | G28: Gross Debt | I28: =D31*E26 -> 1310.791874 | M28: Bu= Be * Equity/Net Cap + Bd * Net Debt/Net Cap
C29: Growth | D29: =D52 -> 0.02 | G29: Net Debt | I29: =I28*(1-D28) -> 917.554312 | M29: Cost of Equity No Tax | O29: =(I18-D31*F36)/(1-D31) -> 0.08643464286
C30: EMRP | D30: =D4 -> 0.03 | G30: Tax Shield | I30: =I28-I29 -> 393.2375623
C31: Nominal Debt Percent | D31: =D85 -> 0.6
C32: Debt Beta | D32: =K86/100 -> 0.4 | M32: gross | N32: =I28 -> 1310.791874
C33: Rf | D33: =D5 -> 0.04
G34: =D28 -> 0.3 | M34: EV incl tax | N34: =E38+I30 -> 2577.890686
B35: Basic WACC at with Nominal Debt | D35: Percent | E35: Amount | F35: Cost | G35: AT Cost | H35: WACC
C36: Debt | D36: =E36/E38 -> 0.42 | E36: =I29 -> 917.554312 | F36: =D30*D32+D33 -> 0.052 | G36: =F36 -> 0.052 | H36: =D36*G36 -> 0.02184 | J36: Kd | K36: =F36 -> 0.052
C37: Equity | D37: =1-D36 -> 0.58 | E37: =E38-E36 -> 1267.098812 | F37: =H37/D37 -> 0.07574802956 | G37: =H37/D37 -> 0.07574802956 | H37: =H38-H36 -> 0.04393385714 | J37: Ku | K37: =H38 -> 0.06577385714
C38: Overall | D38: =SUM(D36:D37) -> 1 | E38: =E26 -> 2184.653124 | H38: =I18 -> 0.06577385714
C39: Total Capital Including Tax Shield | E39: =E38+I30 -> 2577.890686
B41: Basic from Capital Structure | F41: From NPV of Cash Flow | K41: Reconciled Value from Cash Flow
C42: Enterprise Value | D42: =E26 -> 2184.653124 | F42: Enterprise Value | I42: =E56 -> 2184.653124 | K42: Total Enterprise Value From Adding Components | Q42: =E26 -> 2184.653124
C44: Less: Net Debt | D44: =E36 -> 917.554312 | F44: Less: Nominal Interest | I44: =E68 -> 2130.036793 | K44: Value of Interest Payments on Debt | P44: =F36 -> 0.052 | Q44: =E68 -> 2130.036793
F45: Add: Debt Financing | I45: =E72 -> 573.471443 | K45: Less: Value of Cash Flow for Issuing New Debt | P45: =F36 -> 0.052 | Q45: =-E72 -> -573.471443
C46: Equity Value | D46: =D42-D44 -> 1267.098812 | F46: Add: Tax Shield from Debt | I46: =E69 -> 639.0110379 | K46: Less: Value of the Tax Shield | P46: =K36 -> 0.052 | Q46: =-E69 -> -639.0110379
K47: Net Value of Debt Cash Flow at Interest Rate | P47: =P45 -> 0.052 | Q47: =SUM(Q44:Q46) -> 917.554312
D48: =I48-D46 -> -5.297806638e-11 | F48: Equity Value from NPV | I48: =E79 -> 1267.098812
I49: =I48-D46 -> -5.297806638e-11 | K49: Value of Equity from Future Cash Flow | P49: =F37 -> 0.07574802956 | Q49: =Q42-Q47 -> 1267.098812 | R49: =Q49-I48 -> 9.799805412e-11
A51: Cash Flow and DCF Valation
C52: Explicit Growth | D52: =E52/100 -> 0.02 | E52: 2
C54: Free Cash Flow | E54: =E23 -> 100 | F54: =F23 -> 102 | G54: 104.04 | H54: 106.1208 | I54: 108.243216 | J54: 110.4080803 | K54: 112.6162419 | L54: 114.8685668 | M54: 117.1659381 | N54: 119.5092569 | O54: 121.899442 | P54: 124.3374308 | Q54: 126.8241795 | R54: 129.360663 | S54: 131.9478763 | T54: 134.5868338 | U54: 137.2785705 | V54: 140.0241419 | W54: 142.8246248 | X54: 145.6811173 | Y54: 148.5947396 | Z54: 151.5666344 | AA54: 154.5979671 | AB54: 157.6899264 | AC54: 160.8437249 | AD54: 164.0605994 | AE54: 167.3418114 | AF54: 170.6886477 | AG54: 174.1024206 | AH54: 177.584469 | AI54: 181.1361584 | AJ54: 184.7588816 | AK54: 188.4540592 | AL54: 192.2231404 | AM54: 196.0676032 | AN54: 199.9889553 | AO54: 203.9887344 | AP54: 208.0685091 | AQ54: 212.2298792 | AR54: 216.4744768 | AS54: 220.8039664 | AT54: 225.2200457 | AU54: 229.7244466 | AV54: 234.3189355 | AW54: 239.0053142 | AX54: 243.7854205 | AY54: 248.6611289 | AZ54: 253.6343515 | BA54: 258.7070385 | BB54: 263.8811793 | BC54: 269.1588029 | BD54: 274.541979 | BE54: 280.0328185 | BF54: 285.6334749 | BG54: 291.3461444 | BH54: 297.1730673 | BI54: 303.1165286 | BJ54: 309.1788592 | BK54: 315.3624364 | BL54: 321.6696851 | BM54: 328.1030788 | BN54: 334.6651404 | BO54: 341.3584432 | BP54: 348.1856121 | BQ54: 355.1493243 | BR54: =BR23 -> 362.2523108 | BS54: 369.497357 | BT54: 376.8873042 | BU54: 384.4250503 | BV54: 392.1135513 | BW54: 399.9558223 | BX54: 407.9549387 | BY54: 416.1140375 | BZ54: 424.4363183 | CA54: 432.9250446 | CB54: 441.5835455 | CC54: 450.4152164 | CD54: 459.4235208 | CE54: 468.6119912 | CF54: 477.984231 | CG54: 487.5439156 | CH54: 497.2947939 | CI54: 507.2406898 | CJ54: 517.3855036 | CK54: 527.7332137 | CL54: 538.2878779 | CM54: 549.0536355 | CN54: 560.0347082 | CO54: 571.2354024 | CP54: 582.6601104 | CQ54: 594.3133126 | CR54: 606.1995789 | CS54: 618.3235705 | CT54: 630.6900419 | CU54: 643.3038427 | CV54: 656.1699196 | CW54: 669.293318 | CX54: 682.6791843 | CY54: 696.332768 | CZ54: 710.2594234 | DA54: 724.4646118 | DB54: 738.9539041 | DC54: 753.7329821 | DD54: 768.8076418 | DE54: 784.1837946 | DF54: 799.8674705 | DG54: 815.8648199 | DH54: 832.1821163 | DI54: 848.8257586 | DJ54: 865.8022738 | DK54: 883.1183193 | DL54: 900.7806857 | DM54: 918.7962994 | DN54: 937.1722254 | DO54: 955.9156699 | DP54: 975.0339833 | DQ54: 994.534663 | DR54: 1014.425356 | DS54: 1034.713863 | DT54: 1055.408141 | DU54: 1076.516303 | DV54: 1098.046629 | DW54: 1120.007562 | DX54: 1142.407713 | DY54: 1165.255868 | DZ54: 1188.560985 | EA54: 1212.332205 | EB54: 1236.578849 | EC54: 1261.310426 | ED54: =ED23 -> 1286.536634 | EE54: 1312.267367 | EF54: 1338.512714 | EG54: 1365.282969 | EH54: 1392.588628 | EI54: 1420.4404 | EJ54: 1448.849208 | EK54: 1477.826193 | EL54: 1507.382716 | EM54: 1537.530371 | EN54: 1568.280978 | EO54: 1599.646598 | EP54: 1631.63953 | EQ54: 1664.27232 | ER54: 1697.557767 | ES54: 1731.508922 | ET54: 1766.139101 | EU54: 1801.461883 | EV54: 1837.49112 | EW54: 1874.240943 | EX54: 1911.725761 | EY54: 1949.960277 | EZ54: 1988.959482 | FA54: 2028.738672 | FB54: 2069.313445 | FC54: 2110.699714 | FD54: 2152.913708 | FE54: 2195.971983 | FF54: 2239.891422 | FG54: 2284.689251 | FH54: 2330.383036 | FI54: 2376.990696 | FJ54: 2424.53051 | FK54: 2473.021121 | FL54: 2522.481543 | FM54: 2572.931174 | FN54: 2624.389797 | FO54: 2676.877593 | FP54: 2730.415145 | FQ54: 2785.023448 | FR54: 2840.723917 | FS54: 2897.538395 | FT54: 2955.489163 | FU54: 3014.598947 | FV54: 3074.890925 | FW54: 3136.388744 | FX54: 3199.116519 | FY54: 3263.098849 | FZ54: 3328.360826 | GA54: 3394.928043 | GB54: 3462.826604 | GC54: 3532.083136 | GD54: 3602.724798 | GE54: 3674.779294 | GF54: 3748.27488 | GG54: 3823.240378 | GH54: 3899.705185 | GI54: 3977.699289 | GJ54: 4057.253275 | GK54: 4138.39834 | GL54: 4221.166307 | GM54: 4305.589633 | GN54: 4391.701426 | GO54: 4479.535455 | GP54: =GP23 -> 4569.126164 | GQ54: 4660.508687 | GR54: 4753.718861 | GS54: 4848.793238 | GT54: 4945.769103 | GU54: 5044.684485 | GV54: 5145.578174 | GW54: 5248.489738 | GX54: 5353.459533 | GY54: 5460.528723 | GZ54: 5569.739298 | HA54: 5681.134084 | HB54: 5794.756765 | HC54: 5910.651901 | HD54: 6028.864939 | HE54: 6149.442237 | HF54: 6272.431082 | HG54: 6397.879704 | HH54: 6525.837298 | HI54: 6656.354044 | HJ54: 6789.481125 | HK54: 6925.270747 | HL54: 7063.776162 | HM54: 7205.051685 | HN54: 7349.152719 | HO54: 7496.135774 | HP54: 7646.058489 | HQ54: 7798.979659 | HR54: 7954.959252 | HS54: 8114.058437 | HT54: 8276.339606 | HU54: 8441.866398 | HV54: 8610.703726 | HW54: 8782.9178 | HX54: 8958.576156 | HY54: 9137.747679 | HZ54: 9320.502633 | IA54: 9506.912686 | IB54: 9697.050939 | IC54: 9890.991958 | ID54: 10088.8118 | IE54: 10290.58803 | IF54: 10496.39979 | IG54: 10706.32779 | IH54: 10920.45435 | II54: 11138.86343 | IJ54: 11361.6407 | IK54: 11588.87352 | IL54: 11820.65099 | IM54: 12057.06401 | IN54: 12298.20529 | IO54: 12544.16939 | IP54: 12795.05278 | IQ54: 13050.95383 | IR54: 13311.97291 | IS54: 13578.21237 | IT54: 13849.77662 | IU54: 14126.77215 | IV54: 14409.30759 | IW54: 14697.49374 | IX54: 14991.44362 | IY54: 15291.27249 | IZ54: 15597.09794 | JA54: 15909.0399 | JB54: =JB23 -> 16227.2207 | JC54: 16551.76511 | JD54: 16882.80041 | JE54: 17220.45642 | JF54: 17564.86555 | JG54: 17916.16286 | JH54: 18274.48612 | JI54: 18639.97584 | JJ54: 19012.77536 | JK54: 19393.03087 | JL54: 19780.89148 | JM54: 20176.50931 | JN54: 20580.0395 | JO54: 20991.64029 | JP54: 21411.47309 | JQ54: 21839.70256 | JR54: 22276.49661 | JS54: 22722.02654 | JT54: 23176.46707 | JU54: 23639.99641 | JV54: 24112.79634 | JW54: 24595.05227 | JX54: 25086.95331 | JY54: 25588.69238 | JZ54: 26100.46623 | KA54: 26622.47555 | KB54: 27154.92506 | KC54: 27698.02356 | KD54: 28251.98403 | KE54: 28817.02371 | KF54: 29393.36419 | KG54: 29981.23147 | KH54: 30580.8561 | KI54: 31192.47322 | KJ54: 31816.32269 | KK54: 32452.64914 | KL54: 33101.70213 | KM54: 33763.73617 | KN54: 34439.01089 | KO54: 35127.79111 | KP54: 35830.34693 | KQ54: 36546.95387 | KR54: 37277.89295 | KS54: 38023.45081 | KT54: 38783.91982 | KU54: 39559.59822 | KV54: 40350.79018 | KW54: 41157.80599 | KX54: 41980.96211 | KY54: 42820.58135 | KZ54: 43676.99298 | LA54: 44550.53284 | LB54: 45441.54349 | LC54: 46350.37436 | LD54: 47277.38185 | LE54: 48222.92949 | LF54: 49187.38808 | LG54: 50171.13584 | LH54: 51174.55855 | LI54: 52198.04972 | LJ54: 53242.01072 | LK54: 54306.85093 | LL54: 55392.98795 | LM54: 56500.84771 | LN54: =LN23 -> 57630.86467 | LO54: 58783.48196 | LP54: 59959.1516 | LQ54: 61158.33463 | LR54: 62381.50132 | LS54: 63629.13135 | LT54: 64901.71398 | LU54: 66199.74826 | LV54: 67523.74322 | LW54: 68874.21809 | LX54: 70251.70245 | LY54: 71656.7365 | LZ54: 73089.87123 | MA54: 74551.66865 | MB54: 76042.70202 | MC54: 77563.55606 | MD54: 79114.82719 | ME54: 80697.12373 | MF54: 82311.0662 | MG54: 83957.28753 | MH54: 85636.43328 | MI54: 87349.16194 | MJ54: 89096.14518 | MK54: 90878.06809 | ML54: 92695.62945 | MM54: 94549.54204 | MN54: 96440.53288 | MO54: 98369.34354 | MP54: 100336.7304 | MQ54: 102343.465 | MR54: 104390.3343 | MS54: 106478.141 | MT54: 108607.7038 | MU54: 110779.8579 | MV54: 112995.4551 | MW54: 115255.3642 | MX54: 117560.4714 | MY54: 119911.6809 | MZ54: 122309.9145 | NA54: 124756.1128 | NB54: 127251.235 | NC54: 129796.2597 | ND54: 132392.1849 | NE54: 135040.0286 | NF54: 137740.8292 | NG54: 140495.6458 | NH54: 143305.5587 | NI54: 146171.6699 | NJ54: 149095.1033 | NK54: 152077.0053 | NL54: 155118.5454 | NM54: 158220.9163 | NN54: 161385.3347 | NO54: 164613.0414 | NP54: 167905.3022 | NQ54: 171263.4082 | NR54: 174688.6764 | NS54: 178182.4499 | NT54: 181746.0989 | NU54: 185381.0209 | NV54: 189088.6413 | NW54: 192870.4142 | NX54: 196727.8224 | NY54: 200662.3789 | NZ54: =NZ23 -> 204675.6265 | OA54: 208769.139 | OB54: 212944.5218 | OC54: 217203.4122 | OD54: 221547.4805 | OE54: 225978.4301 | OF54: 230497.9987 | OG54: 235107.9586 | OH54: 239810.1178 | OI54: 244606.3202 | OJ54: 249498.4466 | OK54: 254488.4155 | OL54: 259578.1838 | OM54: 264769.7475 | ON54: 270065.1424 | OO54: 275466.4453 | OP54: 280975.7742 | OQ54: 286595.2897 | OR54: 292327.1955 | OS54: 298173.7394 | OT54: 304137.2142 | OU54: 310219.9584 | OV54: 316424.3576 | OW54: 322752.8448 | OX54: 329207.9017 | OY54: 335792.0597 | OZ54: 342507.9009 | PA54: 349358.0589 | PB54: 356345.2201 | PC54: 363472.1245 | PD54: 370741.567 | PE54: 378156.3983 | PF54: 385719.5263 | PG54: 393433.9168 | PH54: 401302.5951 | PI54: 409328.6471 | PJ54: 417515.22 | PK54: 425865.5244 | PL54: 434382.8349 | PM54: 443070.4916 | PN54: 451931.9014 | PO54: 460970.5394 | PP54: 470189.9502 | PQ54: 479593.7492 | PR54: 489185.6242 | PS54: 498969.3367 | PT54: 508948.7234 | PU54: 519127.6979 | PV54: 529510.2519 | PW54: 540100.4569 | PX54: 550902.466 | PY54: 561920.5154 | PZ54: 573158.9257 | QA54: 584622.1042 | QB54: 596314.5463 | QC54: 608240.8372 | QD54: 620405.6539 | QE54: 632813.767 | QF54: 645470.0423 | QG54: 658379.4432 | QH54: 671547.0321 | QI54: 684977.9727 | QJ54: 698677.5322 | QK54: 712651.0828 | QL54: =QL23 -> 726904.1045 | QM54: 741442.1865 | QN54: 756271.0303 | QO54: 771396.4509 | QP54: 786824.3799 | QQ54: 802560.8675 | QR54: 818612.0848 | QS54: 834984.3265 | QT54: 851684.0131 | QU54: 868717.6933 | QV54: 886092.0472 | QW54: 903813.8881 | QX54: 921890.1659 | QY54: 940327.9692 | QZ54: 959134.5286 | RA54: 978317.2192 | RB54: 997883.5636 | RC54: 1017841.235 | RD54: 1038198.06 | RE54: 1058962.021 | RF54: 1080141.261 | RG54: 1101744.086 | RH54: 1123778.968 | RI54: 1146254.547 | RJ54: 1169179.638 | RK54: 1192563.231 | RL54: 1216414.496 | RM54: 1240742.786 | RN54: 1265557.641 | RO54: 1290868.794 | RP54: 1316686.17 | RQ54: 1343019.894 | RR54: 1369880.291 | RS54: 1397277.897 | RT54: 1425223.455 | RU54: 1453727.924 | RV54: 1482802.483 | RW54: 1512458.532 | RX54: 1542707.703 | RY54: 1573561.857 | RZ54: 1605033.094 | SA54: 1637133.756 | SB54: 1669876.431 | SC54: 1703273.96 | SD54: 1737339.439 | SE54: 1772086.228 | SF54: 1807527.952 | SG54: 1843678.511 | SH54: 1880552.082 | SI54: 1918163.123 | SJ54: 1956526.386 | SK54: 1995656.914 | SL54: 2035570.052 | SM54: 2076281.453 | SN54: 2117807.082 | SO54: 2160163.224 | SP54: 2203366.488 | SQ54: 2247433.818 | SR54: 2292382.494 | SS54: 2338230.144 | ST54: 2384994.747 | SU54: 2432694.642 | SV54: 2481348.535 | SW54: 2530975.505 | SX54: =SX23 -> 2581595.015 | SY54: 2633226.916 | SZ54: 2685891.454 | TA54: 2739609.283 | TB54: 2794401.469 | TC54: 2850289.498 | TD54: 2907295.288 | TE54: 2965441.194 | TF54: 3024750.018 | TG54: 3085245.018 | TH54: 3146949.919 | TI54: 3209888.917 | TJ54: 3274086.695 | TK54: 3339568.429 | TL54: 3406359.798 | TM54: 3474486.994 | TN54: 3543976.734 | TO54: 3614856.268 | TP54: 3687153.394 | TQ54: 3760896.461 | TR54: 3836114.391 | TS54: 3912836.679 | TT54: 3991093.412 | TU54: 4070915.28 | TV54: 4152333.586 | TW54: 4235380.258 | TX54: 4320087.863 | TY54: 4406489.62 | TZ54: 4494619.412 | UA54: 4584511.801 | UB54: 4676202.037 | UC54: 4769726.077 | UD54: 4865120.599 | UE54: 4962423.011 | UF54: 5061671.471 | UG54: 5162904.901 | UH54: 5266162.999 | UI54: 5371486.259 | UJ54: 5478915.984 | UK54: 5588494.303 | UL54: 5700264.19 | UM54: 5814269.473 | UN54: 5930554.863 | UO54: 6049165.96 | UP54: 6170149.279 | UQ54: 6293552.265 | UR54: 6419423.31 | US54: 6547811.776 | UT54: 6678768.012 | UU54: 6812343.372 | UV54: 6948590.24 | UW54: 7087562.044 | UX54: 7229313.285 | UY54: 7373899.551 | UZ54: 7521377.542 | VA54: 7671805.093 | VB54: 7825241.195 | VC54: 7981746.019 | VD54: 8141380.939 | VE54: 8304208.558 | VF54: 8470292.729 | VG54: 8639698.583 | VH54: 8812492.555 | VI54: 8988742.406 | VJ54: =VJ23 -> 9168517.254 | VK54: 9351887.599 | VL54: 9538925.351 | VM54: 9729703.858 | VN54: 9924297.936 | VO54: 10122783.89 | VP54: 10325239.57 | VQ54: 10531744.36 | VR54: 10742379.25 | VS54: 10957226.84 | VT54: 11176371.37 | VU54: 11399898.8 | VV54: 11627896.78 | VW54: 11860454.71 | VX54: 12097663.81 | VY54: 12339617.08 | VZ54: 12586409.42 | WA54: 12838137.61 | WB54: 13094900.36 | WC54: 13356798.37 | WD54: 13623934.34 | WE54: 13896413.03 | WF54: 14174341.29 | WG54: 14457828.11 | WH54: 14746984.67 | WI54: 15041924.37 | WJ54: 15342762.86 | WK54: 15649618.11 | WL54: 15962610.47 | WM54: 16281862.68 | WN54: 16607499.94 | WO54: 16939649.94 | WP54: 17278442.94 | WQ54: 17624011.79 | WR54: 17976492.03 | WS54: 18336021.87 | WT54: 18702742.31 | WU54: 19076797.15 | WV54: 19458333.1 | WW54: 19847499.76 | WX54: 20244449.75 | WY54: 20649338.75 | WZ54: 21062325.52 | XA54: 21483572.03 | XB54: 21913243.48 | XC54: 22351508.34 | XD54: 22798538.51 | XE54: 23254509.28 | XF54: 23719599.47 | XG54: 24193991.46 | XH54: 24677871.29 | XI54: 25171428.71 | XJ54: 25674857.29 | XK54: 26188354.43 | XL54: 26712121.52 | XM54: 27246363.95 | XN54: 27791291.23 | XO54: 28347117.05 | XP54: 28914059.4 | XQ54: 29492340.58 | XR54: 30082187.4 | XS54: 30683831.14 | XT54: 31297507.77 | XU54: 31923457.92 | XV54: =XV23 -> 32561927.08 | XW54: 33213165.62 | XX54: 33877428.93 | XY54: 34554977.51 | XZ54: 35246077.06 | YA54: 35950998.6 | YB54: 36670018.58 | YC54: 37403418.95 | YD54: 38151487.33 | YE54: 38914517.07 | YF54: 39692807.41 | YG54: 40486663.56 | YH54: 41296396.83 | YI54: 42122324.77 | YJ54: 42964771.27 | YK54: 43824066.69 | YL54: 44700548.03 | YM54: 45594558.99 | YN54: 46506450.17 | YO54: 47436579.17 | YP54: 48385310.75 | YQ54: 49353016.97 | YR54: 50340077.31 | YS54: 51346878.85 | YT54: 52373816.43 | YU54: 53421292.76 | YV54: 54489718.61 | YW54: 55579512.99 | YX54: 56691103.25 | YY54: 57824925.31 | YZ54: 58981423.82 | ZA54: 60161052.29 | ZB54: 61364273.34 | ZC54: 62591558.81 | ZD54: 63843389.98 | ZE54: 65120257.78 | ZF54: 66422662.94 | ZG54: 67751116.2 | ZH54: 69106138.52 | ZI54: 70488261.29 | ZJ54: 71898026.52 | ZK54: 73335987.05 | ZL54: 74802706.79 | ZM54: 76298760.92 | ZN54: 77824736.14 | ZO54: 79381230.86 | ZP54: 80968855.48 | ZQ54: 82588232.59 | ZR54: 84239997.24 | ZS54: 85924797.19 | ZT54: 87643293.13 | ZU54: 89396158.99 | ZV54: 91184082.17 | ZW54: 93007763.82 | ZX54: 94867919.09 | ZY54: 96765277.48 | ZZ54: 98700583.02 | AAA54: 100674594.7 | AAB54: 102688086.6
C56: Value of Company at All Equity Cost of Capital | D56: =I18 -> 0.06577385714 | E56: =NPV($D$56,E54:AAB54) -> 2184.653124 | F56: 2228.346186 | G56: 2272.91311 | H56: 2318.371372 | I56: 2364.7388 | J56: 2412.033576 | K56: 2460.274247 | L56: 2509.479732 | M56: 2559.669327 | N56: 2610.862713 | O56: 2663.079968 | P56: 2716.341567 | Q56: 2770.668398 | R56: 2826.081766 | S56: 2882.603402 | T56: 2940.25547 | U56: 2999.060579 | V56: 3059.041791 | W56: 3120.222626 | X56: 3182.627079 | Y56: 3246.279621 | Z56: 3311.205213 | AA56: 3377.429317 | AB56: 3444.977904 | AC56: 3513.877462 | AD56: 3584.155011 | AE56: 3655.838111 | AF56: 3728.954873 | AG56: 3803.533971 | AH56: 3879.60465 | AI56: 3957.196743 | AJ56: 4036.340678 | AK56: 4117.067492 | AL56: 4199.408841 | AM56: 4283.397018 | AN56: 4369.064959 | AO56: 4456.446258 | AP56: 4545.575183 | AQ56: 4636.486687 | AR56: 4729.21642 | AS56: 4823.800749 | AT56: 4920.276764 | AU56: 5018.682299 | AV56: 5119.055945 | AW56: 5221.437064 | AX56: 5325.865805 | AY56: 5432.383121 | AZ56: 5541.030784 | BA56: 5651.851399 | BB56: 5764.888427 | BC56: 5880.186196 | BD56: 5997.78992 | BE56: 6117.745718 | BF56: 6240.100633 | BG56: 6364.902645 | BH56: 6492.200698 | BI56: 6622.044712 | BJ56: 6754.485606 | BK56: 6889.575319 | BL56: 7027.366825 | BM56: 7167.914161 | BN56: 7311.272445 | BO56: 7457.497894 | BP56: 7606.647851 | BQ56: =NPV($D$56,BQ54:ACN54) -> 7758.780808 | BR56: 7913.956425 | BS56: 8072.235553 | BT56: 8233.680264 | BU56: 8398.353869 | BV56: 8566.320947 | BW56: 8737.647366 | BX56: 8912.400313 | BY56: 9090.648319 | BZ56: 9272.461286 | CA56: 9457.910511 | CB56: 9647.068722 | CC56: 9840.010096 | CD56: 10036.8103 | CE56: 10237.5465 | CF56: 10442.29743 | CG56: 10651.14338 | CH56: 10864.16625 | CI56: 11081.44958 | CJ56: 11303.07857 | CK56: 11529.14014 | CL56: 11759.72294 | CM56: 11994.9174 | CN56: 12234.81575 | CO56: 12479.51206 | CP56: 12729.1023 | CQ56: 12983.68435 | CR56: 13243.35804 | CS56: 13508.2252 | CT56: 13778.3897 | CU56: 14053.9575 | CV56: 14335.03665 | CW56: 14621.73738 | CX56: 14914.17213 | CY56: 15212.45557 | CZ56: 15516.70468 | DA56: 15827.03877 | DB56: 16143.57955 | DC56: 16466.45114 | DD56: 16795.78016 | DE56: 17131.69577 | DF56: 17474.32968 | DG56: 17823.81628 | DH56: 18180.2926 | DI56: 18543.89845 | DJ56: 18914.77642 | DK56: 19293.07195 | DL56: 19678.93339 | DM56: 20072.51206 | DN56: 20473.9623 | DO56: 20883.44154 | DP56: 21301.11037 | DQ56: 21727.13258 | DR56: 22161.67523 | DS56: 22604.90874 | DT56: 23057.00691 | DU56: 23518.14705 | DV56: 23988.50999 | DW56: 24468.28019 | DX56: 24957.6458 | DY56: 25456.79871 | DZ56: 25965.93469 | EA56: 26485.25338 | EB56: 27014.95845 | EC56: =NPV($D$56,EC54:AEZ54) -> 27555.25762 | ED56: 28106.36277 | EE56: 28668.49002 | EF56: 29241.85983 | EG56: 29826.69702 | EH56: 30423.23096 | EI56: 31031.69558 | EJ56: 31652.32949 | EK56: 32285.37608 | EL56: 32931.0836 | EM56: 33589.70528 | EN56: 34261.49938 | EO56: 34946.72937 | EP56: 35645.66396 | EQ56: 36358.57724 | ER56: 37085.74878 | ES56: 37827.46376 | ET56: 38584.01303 | EU56: 39355.69329 | EV56: 40142.80716 | EW56: 40945.6633 | EX56: 41764.57657 | EY56: 42599.8681 | EZ56: 43451.86546 | FA56: 44320.90277 | FB56: 45207.32082 | FC56: 46111.46724 | FD56: 47033.69659 | FE56: 47974.37052 | FF56: 48933.85793 | FG56: 49912.53509 | FH56: 50910.78579 | FI56: 51929.0015 | FJ56: 52967.58153 | FK56: 54026.93316 | FL56: 55107.47183 | FM56: 56209.62126 | FN56: 57333.81369 | FO56: 58480.48996 | FP56: 59650.09976 | FQ56: 60843.10176 | FR56: 62059.96379 | FS56: 63301.16307 | FT56: 64567.18633 | FU56: 65858.53005 | FV56: 67175.70065 | FW56: 68519.21467 | FX56: 69889.59896 | FY56: 71287.39094 | FZ56: 72713.13876 | GA56: 74167.40153 | GB56: 75650.74956 | GC56: 77163.76455 | GD56: 78707.03984 | GE56: 80281.18064 | GF56: 81886.80425 | GG56: 83524.54034 | GH56: 85195.03114 | GI56: 86898.93177 | GJ56: 88636.9104 | GK56: 90409.64861 | GL56: 92217.84158 | GM56: 94062.19841 | GN56: 95943.44238 | GO56: =NPV($D$56,GO54:AHL54) -> 97862.31122 | GP56: 99819.55745 | GQ56: 101815.9486 | GR56: 103852.2676 | GS56: 105929.3129 | GT56: 108047.8992 | GU56: 110208.8572 | GV56: 112413.0343 | GW56: 114661.295 | GX56: 116954.5209 | GY56: 119293.6113 | GZ56: 121679.4835 | HA56: 124113.0732 | HB56: 126595.3347 | HC56: 129127.2413 | HD56: 131709.7862 | HE56: 134343.9819 | HF56: 137030.8615 | HG56: 139771.4788 | HH56: 142566.9083 | HI56: 145418.2465 | HJ56: 148326.6114 | HK56: 151293.1436 | HL56: 154319.0065 | HM56: 157405.3866 | HN56: 160553.4944 | HO56: 163764.5642 | HP56: 167039.8555 | HQ56: 170380.6526 | HR56: 173788.2657 | HS56: 177264.031 | HT56: 180809.3116 | HU56: 184425.4978 | HV56: 188114.0078 | HW56: 191876.2879 | HX56: 195713.8137 | HY56: 199628.0899 | HZ56: 203620.6517 | IA56: 207693.0647 | IB56: 211846.926 | IC56: 216083.8645 | ID56: 220405.5418 | IE56: 224813.6526 | IF56: 229309.9257 | IG56: 233896.1242 | IH56: 238574.0467 | II56: 243345.5276 | IJ56: 248212.4381 | IK56: 253176.6868 | IL56: 258240.2206 | IM56: 263405.025 | IN56: 268673.1254 | IO56: 274046.5879 | IP56: 279527.5196 | IQ56: 285118.07 | IR56: 290820.4314 | IS56: 296636.84 | IT56: 302569.5767 | IU56: 308620.9682 | IV56: 314793.3876 | IW56: 321089.2553 | IX56: 327511.0404 | IY56: 334061.2611 | IZ56: 340742.4863 | JA56: =NPV($D$56,JA54:AJX54) -> 347557.336 | JB56: 354508.4826 | JC56: 361598.6522 | JD56: 368830.6252 | JE56: 376207.2376 | JF56: 383731.3823 | JG56: 391406.0099 | JH56: 399234.13 | JI56: 407218.8125 | JJ56: 415363.1887 | JK56: 423670.4524 | JL56: 432143.8613 | JM56: 440786.7384 | JN56: 449602.4731 | JO56: 458594.5224 | JP56: 467766.4127 | JQ56: 477121.7408 | JR56: 486664.1755 | JS56: 496397.4589 | JT56: 506325.4079 | JU56: 516451.9158 | JV56: 526780.954 | JW56: 537316.5728 | JX56: 548062.9041 | JY56: 559024.1619 | JZ56: 570204.6449 | KA56: 581608.7375 | KB56: 593240.912 | KC56: 605105.7299 | KD56: 617207.8442 | KE56: 629552.0007 | KF56: 642143.0404 | KG56: 654985.9008 | KH56: 668085.6184 | KI56: 681447.3303 | KJ56: 695076.2764 | KK56: 708977.8015 | KL56: 723157.357 | KM56: 737620.5035 | KN56: 752372.913 | KO56: 767420.3706 | KP56: 782768.7773 | KQ56: 798424.1521 | KR56: 814392.6344 | KS56: 830680.4862 | KT56: 847294.095 | KU56: 864239.976 | KV56: 881524.7745 | KW56: 899155.2689 | KX56: 917138.3731 | KY56: 935481.1393 | KZ56: 954190.7608 | LA56: 973274.5746 | LB56: 992740.0646 | LC56: 1012594.864 | LD56: 1032846.76 | LE56: 1053503.693 | LF56: 1074573.765 | LG56: 1096065.238 | LH56: 1117986.541 | LI56: 1140346.269 | LJ56: 1163153.192 | LK56: 1186416.254 | LL56: 1210144.576 | LM56: =NPV($D$56,LM54:AMJ54) -> 1234347.464 | LN56: 1259034.41 | LO56: 1284215.095 | LP56: 1309899.393 | LQ56: 1336097.377 | LR56: 1362819.321 | LS56: 1390075.703 | LT56: 1417877.212 | LU56: 1446234.751 | LV56: 1475159.441 | LW56: 1504662.624 | LX56: 1534755.87 | LY56: 1565450.981 | LZ56: 1596759.994 | MA56: 1628695.187 | MB56: 1661269.083 | MC56: 1694494.456 | MD56: 1728384.336 | ME56: 1762952.013 | MF56: 1798211.043 | MG56: 1834175.253 | MH56: 1870858.747 | MI56: 1908275.91 | MJ56: 1946441.415 | MK56: 1985370.229 | ML56: 2025077.619 | MM56: 2065579.156 | MN56: 2106890.722 | MO56: 2149028.518 | MP56: 2192009.07 | MQ56: 2235849.23 | MR56: 2280566.193 | MS56: 2326177.494 | MT56: 2372701.019 | MU56: 2420155.013 | MV56: 2468558.086 | MW56: 2517929.217 | MX56: 2568287.77 | MY56: 2619653.491 | MZ56: 2672046.525 | NA56: 2725487.417 | NB56: 2779997.124 | NC56: 2835597.023 | ND56: 2892308.916 | NE56: 2950155.045 | NF56: 3009158.093 | NG56: 3069341.198 | NH56: 3130727.962 | NI56: 3193342.457 | NJ56: 3257209.238 | NK56: 3322353.349 | NL56: 3388800.339 | NM56: 3456576.263 | NN56: 3525707.699 | NO56: 3596221.759 | NP56: 3668146.094 | NQ56: 3741508.909 | NR56: 3816338.973 | NS56: 3892665.632 | NT56: 3970518.815 | NU56: 4049929.053 | NV56: 4130927.487 | NW56: 4213545.88 | NX56: 4297816.631 | NY56: =NPV($D$56,NY54:AOV54) -> 4383772.786 | NZ56: 4471448.052 | OA56: 4560876.811 | OB56: 4652094.131 | OC56: 4745135.784 | OD56: 4840038.255 | OE56: 4936838.76 | OF56: 5035575.257 | OG56: 5136286.466 | OH56: 5239011.879 | OI56: 5343791.781 | OJ56: 5450667.258 | OK56: 5559680.221 | OL56: 5670873.418 | OM56: 5784290.452 | ON56: 5899975.798 | OO56: 6017974.821 | OP56: 6138333.792 | OQ56: 6261099.908 | OR56: 6386321.309 | OS56: 6514047.099 | OT56: 6644327.363 | OU56: 6777213.187 | OV56: 6912756.681 | OW56: 7051010.994 | OX56: 7192030.339 | OY56: 7335870.013 | OZ56: 7482586.42 | PA56: 7632237.089 | PB56: 7784880.702 | PC56: 7940577.113 | PD56: 8099387.374 | PE56: 8261373.755 | PF56: 8426599.773 | PG56: 8595130.217 | PH56: 8767031.167 | PI56: 8942370.027 | PJ56: 9121215.549 | PK56: 9303637.858 | PL56: 9489708.481 | PM56: 9679500.376 | PN56: 9873087.959 | PO56: 10070547.13 | PP56: 10271955.32 | PQ56: 10477391.5 | PR56: 10686936.2 | PS56: 10900671.59 | PT56: 11118681.47 | PU56: 11341051.31 | PV56: 11567868.3 | PW56: 11799221.37 | PX56: 12035201.21 | PY56: 12275900.35 | PZ56: 12521413.15 | QA56: 12771835.86 | QB56: 13027266.67 | QC56: 13287805.7 | QD56: 13553555.09 | QE56: 13824619.04 | QF56: 14101103.79 | QG56: 14383117.73 | QH56: 14670771.42 | QI56: 14964177.61 | QJ56: 15263451.32 | QK56: =NPV($D$56,QK54:ARH54) -> 15568709.85 | QL56: 15880072.87 | QM56: 16197662.41 | QN56: 16521602.95 | QO56: 16852021.48 | QP56: 17189047.48 | QQ56: 17532813.05 | QR56: 17883452.92 | QS56: 18241104.52 | QT56: 18605907.99 | QU56: 18978006.32 | QV56: 19357545.3 | QW56: 19744673.67 | QX56: 20139543.13 | QY56: 20542308.39 | QZ56: 20953127.28 | RA56: 21372160.75 | RB56: 21799572.98 | RC56: 22235531.42 | RD56: 22680206.85 | RE56: 23133773.48 | RF56: 23596408.97 | RG56: 24068294.54 | RH56: 24549615.02 | RI56: 25040558.92 | RJ56: 25541318.52 | RK56: 26052089.92 | RL56: 26573073.13 | RM56: 27104472.15 | RN56: 27646495.04 | RO56: 28199354.01 | RP56: 28763265.5 | RQ56: 29338450.25 | RR56: 29925133.39 | RS56: 30523544.55 | RT56: 31133917.91 | RU56: 31756492.32 | RV56: 32391511.39 | RW56: 33039223.55 | RX56: 33699882.19 | RY56: 34373745.72 | RZ56: 35061077.7 | SA56: 35762146.92 | SB56: 36477227.51 | SC56: 37206599.03 | SD56: 37950546.6 | SE56: 38709360.99 | SF56: 39483338.74 | SG56: 40272782.27 | SH56: 41077999.99 | SI56: 41899306.41 | SJ56: 42737022.28 | SK56: 43591474.69 | SL56: 44462997.21 | SM56: 45351929.98 | SN56: 46258619.9 | SO56: 47183420.67 | SP56: 48126693.02 | SQ56: 49088804.76 | SR56: 50070130.97 | SS56: 51071054.12 | ST56: 52091964.2 | SU56: 53133258.86 | SV56: 54195343.6 | SW56: =NPV($D$56,SW54:ATT54) -> 55278631.85 | SX56: 56383545.18 | SY56: 57510513.41 | SZ56: 58659974.79 | TA56: 59832376.13 | TB56: 61028173.01 | TC56: 62247829.87 | TD56: 63491820.25 | TE56: 64760626.87 | TF56: 66054741.9 | TG56: 67374667.04 | TH56: 68720913.74 | TI56: 70094003.39 | TJ56: 71494467.44 | TK56: 72922847.63 | TL56: 74379696.16 | TM56: 75865575.88 | TN56: 77381060.43 | TO56: 78926734.51 | TP56: 80503194.01 | TQ56: 82111046.19 | TR56: 83750909.95 | TS56: 85423415.95 | TT56: 87129206.83 | TU56: 88868937.42 | TV56: 90643274.93 | TW56: 92452899.16 | TX56: 94298502.69 | TY56: 96180791.07 | TZ56: 98100483.06 | UA56: 100058310.8 | UB56: 102055020 | UC56: 104091370.3 | UD56: 106168135.2 | UE56: 108286102.3 | UF56: 110446073.9 | UG56: 112648866.8 | UH56: 114895312.3 | UI56: 117186257.2 | UJ56: 119522563.1 | UK56: 121905107.1 | UL56: 124334781.9 | UM56: 126812495.9 | UN56: 129339173.4 | UO56: 131915754.8 | UP56: 134543196.9 | UQ56: 137222472.6 | UR56: 139954571.6 | US56: 142740500.3 | UT56: 145581281.8 | UU56: 148477956.3 | UV56: 151431580.8 | UW56: 154443229.7 | UX56: 157513994.6 | UY56: 160644984.3 | UZ56: 163837325 | VA56: 167092160.2 | VB56: 170410651 | VC56: 173793975.6 | VD56: 177243329.7 | VE56: 180759926.2 | VF56: 184344995.3 | VG56: 187999783.9 | VH56: 191725556.2 | VI56: =NPV($D$56,VI54:AWF54) -> 195523593 | VJ56: 199395191.5 | VK56: 203341665.1 | VL56: 207364343.1 | VM56: 211464570.5 | VN56: 215643707.1 | VO56: 219903127.5 | VP56: 224244220.5 | VQ56: 228668388.2 | VR56: 233177045.8 | VS56: 237771620.2 | VT56: 242453550 | VU56: 247224283.8 | VV56: 252085279.7 | VW56: 257038004.1 | VX56: 262083930.3 | VY56: 267224537.5 | VZ56: 272461309 | WA56: 277795730.8 | WB56: 283229289.9 | WC56: 288763472.4 | WD56: 294399761.4 | WE56: 300139634.9 | WF56: 305984563.3 | WG56: 311936007 | WH56: 317995413.3 | WI56: 324164213.5 | WJ56: 330443819.8 | WK56: 336835621.5 | WL56: 343340981.5 | WM56: 349961231.6 | WN56: 356697669 | WO56: 363551550.6 | WP56: 370524088.4 | WQ56: 377616443.9 | WR56: 384829722.2 | WS56: 392164965.3 | WT56: 399623145.9 | WU56: 407205159.3 | WV56: 414911816.1 | WW56: 422743833.5 | WX56: 430701826.3 | WY56: 438786296.9 | WZ56: 446997625.4 | XA56: 455336057.8 | XB56: 463801694.6 | XC56: 472394477.5 | XD56: 481114176 | XE56: 489960372.6 | XF56: 498932446.9 | XG56: 508029558.9 | XH56: 517250631.1 | XI56: 526594328.9 | XJ56: 536059040.3 | XK56: 545642853.8 | XL56: 555343534.5 | XM56: 565158499.2 | XN56: 575084789.7 | XO56: 585119043.3 | XP56: 595257462.6 | XQ56: 605495782.5 | XR56: 615829235 | XS56: 626252511.7 | XT56: 636759723.8 | XU56: =NPV($D$56,XU54:AYR54) -> 647344359.2 | XV56: 657999236.6 | XW56: 668716457.4 | XX56: 679487352.5 | XY56: 690302427.6 | XZ56: 701151303.3 | YA56: 712022651.9 | YB56: 722904129.5 | YC56: 733782303.9 | YD56: 744642577.4 | YE56: 755469104.6 | YF56: 766244704.4 | YG56: 776950766.7 | YH56: 787567151.9 | YI56: 798072084.4 | YJ56: 808442038.9 | YK56: 818651618.8 | YL56: 828673426.8 | YM56: 838477926.3 | YN56: 848033294.7 | YO56: 857305265.3 | YP56: 866256960.2 | YQ56: 874848711 | YR56: 883037868.2 | YS56: 890778597.5 | YT56: 898021662.8 | YU56: 904714194.9 | YV56: 910799444.4 | YW56: 916216518.3 | YX56: 920900099.7 | YY56: 924780148.1 | YZ56: 927781580.1 | ZA56: 929823929.4 | ZB56: 930820983.4 | ZC56: 930680396.5 | ZD56: 929303277.1 | ZE56: 926583748.1 | ZF56: 922408477.4 | ZG56: 916656177.9 | ZH56: 909197074.2 | ZI56: 899892334.2 | ZJ56: 888593462.7 | ZK56: 875141655.7 | ZL56: 859367110.9 | ZM56: 841088293.7 | ZN56: 820111154 | ZO56: 796228291.8 | ZP56: 769218066.8 | ZQ56: 738843650.6 | ZR56: 704852014.7 | ZS56: 666972853.2 | ZT56: 624917433.2 | ZU56: 578377370 | ZV56: 527023321.5 | ZW56: 470503596 | ZX56: 408442668.5 | ZY56: 340439599.1 | ZZ56: 266066347.2 | AAA56: 184865974.1 | AAB56: 96350727.59
C57: Debt Computed from Net Debt | D57: =D36 -> 0.42 | E57: =$D$57*E56 -> 917.554312 | F57: =$D$57*F56 -> 935.9053983 | G57: 954.6235062 | H57: 973.7159764 | I57: 993.1902959 | J57: 1013.054102 | K57: 1033.315184 | L57: 1053.981488 | M57: 1075.061117 | N57: 1096.56234 | O57: 1118.493586 | P57: 1140.863458 | Q57: 1163.680727 | R57: 1186.954342 | S57: 1210.693429 | T57: 1234.907297 | U57: 1259.605443 | V57: 1284.797552 | W57: 1310.493503 | X57: 1336.703373 | Y57: 1363.437441 | Z57: 1390.706189 | AA57: 1418.520313 | AB57: 1446.89072 | AC57: 1475.828534 | AD57: 1505.345105 | AE57: 1535.452007 | AF57: 1566.161047 | AG57: 1597.484268 | AH57: 1629.433953 | AI57: 1662.022632 | AJ57: 1695.263085 | AK57: 1729.168346 | AL57: 1763.751713 | AM57: 1799.026748 | AN57: 1835.007283 | AO57: 1871.707428 | AP57: 1909.141577 | AQ57: 1947.324408 | AR57: 1986.270897 | AS57: 2025.996314 | AT57: 2066.516241 | AU57: 2107.846566 | AV57: 2150.003497 | AW57: 2193.003567 | AX57: 2236.863638 | AY57: 2281.600911 | AZ57: 2327.232929 | BA57: 2373.777588 | BB57: 2421.25314 | BC57: 2469.678202 | BD57: 2519.071766 | BE57: 2569.453202 | BF57: 2620.842266 | BG57: 2673.259111 | BH57: 2726.724293 | BI57: 2781.258779 | BJ57: 2836.883955 | BK57: 2893.621634 | BL57: 2951.494066 | BM57: 3010.523948 | BN57: 3070.734427 | BO57: 3132.149115 | BP57: 3194.792098 | BQ57: 3258.68794 | BR57: =$D$57*BR56 -> 3323.861698 | BS57: 3390.338932 | BT57: 3458.145711 | BU57: 3527.308625 | BV57: 3597.854798 | BW57: 3669.811894 | BX57: 3743.208131 | BY57: 3818.072294 | BZ57: 3894.43374 | CA57: 3972.322415 | CB57: 4051.768863 | CC57: 4132.80424 | CD57: 4215.460325 | CE57: 4299.769532 | CF57: 4385.764922 | CG57: 4473.480221 | CH57: 4562.949825 | CI57: 4654.208822 | CJ57: 4747.292998 | CK57: 4842.238858 | CL57: 4939.083635 | CM57: 5037.865308 | CN57: 5138.622614 | CO57: 5241.395066 | CP57: 5346.222968 | CQ57: 5453.147427 | CR57: 5562.210376 | CS57: 5673.454583 | CT57: 5786.923675 | CU57: 5902.662148 | CV57: 6020.715391 | CW57: 6141.129699 | CX57: 6263.952293 | CY57: 6389.231339 | CZ57: 6517.015966 | DA57: 6647.356285 | DB57: 6780.303411 | DC57: 6915.909479 | DD57: 7054.227668 | DE57: 7195.312222 | DF57: 7339.218466 | DG57: 7486.002836 | DH57: 7635.722892 | DI57: 7788.43735 | DJ57: 7944.206097 | DK57: 8103.090219 | DL57: 8265.152023 | DM57: 8430.455064 | DN57: 8599.064165 | DO57: 8771.045448 | DP57: 8946.466357 | DQ57: 9125.395685 | DR57: 9307.903598 | DS57: 9494.06167 | DT57: 9683.942904 | DU57: 9877.621762 | DV57: 10075.1742 | DW57: 10276.67768 | DX57: 10482.21123 | DY57: 10691.85546 | DZ57: 10905.69257 | EA57: 11123.80642 | EB57: 11346.28255 | EC57: 11573.2082 | ED57: =$D$57*ED56 -> 11804.67236 | EE57: 12040.76581 | EF57: 12281.58113 | EG57: 12527.21275 | EH57: 12777.757 | EI57: 13033.31214 | EJ57: 13293.97839 | EK57: 13559.85795 | EL57: 13831.05511 | EM57: 14107.67622 | EN57: 14389.82974 | EO57: 14677.62634 | EP57: 14971.17886 | EQ57: 15270.60244 | ER57: 15576.01449 | ES57: 15887.53478 | ET57: 16205.28547 | EU57: 16529.39118 | EV57: 16859.97901 | EW57: 17197.17859 | EX57: 17541.12216 | EY57: 17891.9446 | EZ57: 18249.78349 | FA57: 18614.77916 | FB57: 18987.07475 | FC57: 19366.81624 | FD57: 19754.15257 | FE57: 20149.23562 | FF57: 20552.22033 | FG57: 20963.26474 | FH57: 21382.53003 | FI57: 21810.18063 | FJ57: 22246.38424 | FK57: 22691.31193 | FL57: 23145.13817 | FM57: 23608.04093 | FN57: 24080.20175 | FO57: 24561.80578 | FP57: 25053.0419 | FQ57: 25554.10274 | FR57: 26065.18479 | FS57: 26586.48849 | FT57: 27118.21826 | FU57: 27660.58262 | FV57: 28213.79427 | FW57: 28778.07016 | FX57: 29353.63156 | FY57: 29940.70419 | FZ57: 30539.51828 | GA57: 31150.30864 | GB57: 31773.31482 | GC57: 32408.78111 | GD57: 33056.95673 | GE57: 33718.09587 | GF57: 34392.45779 | GG57: 35080.30694 | GH57: 35781.91308 | GI57: 36497.55134 | GJ57: 37227.50237 | GK57: 37972.05242 | GL57: 38731.49346 | GM57: 39506.12333 | GN57: 40296.2458 | GO57: 41102.17071 | GP57: =$D$57*GP56 -> 41924.21413 | GQ57: 42762.69841 | GR57: 43617.95238 | GS57: 44490.31142 | GT57: 45380.11765 | GU57: 46287.72001 | GV57: 47213.47441 | GW57: 48157.74389 | GX57: 49120.89877 | GY57: 50103.31674 | GZ57: 51105.38308 | HA57: 52127.49074 | HB57: 53170.04055 | HC57: 54233.44136 | HD57: 55318.11019 | HE57: 56424.47239 | HF57: 57552.96184 | HG57: 58704.02108 | HH57: 59878.1015 | HI57: 61075.66352 | HJ57: 62297.17679 | HK57: 63543.12033 | HL57: 64813.98273 | HM57: 66110.26239 | HN57: 67432.46763 | HO57: 68781.11698 | HP57: 70156.73932 | HQ57: 71559.8741 | HR57: 72991.07158 | HS57: 74450.89301 | HT57: 75939.91087 | HU57: 77458.70908 | HV57: 79007.88326 | HW57: 80588.04093 | HX57: 82199.80174 | HY57: 83843.79777 | HZ57: 85520.67372 | IA57: 87231.08719 | IB57: 88975.70893 | IC57: 90755.22311 | ID57: 92570.32756 | IE57: 94421.73411 | IF57: 96310.16879 | IG57: 98236.37216 | IH57: 100201.0996 | II57: 102205.1216 | IJ57: 104249.224 | IK57: 106334.2085 | IL57: 108460.8926 | IM57: 110630.1105 | IN57: 112842.7127 | IO57: 115099.5669 | IP57: 117401.5583 | IQ57: 119749.5894 | IR57: 122144.5812 | IS57: 124587.4728 | IT57: 127079.2222 | IU57: 129620.8067 | IV57: 132213.2228 | IW57: 134857.4872 | IX57: 137554.6369 | IY57: 140305.7297 | IZ57: 143111.8442 | JA57: 145974.0811 | JB57: =$D$57*JB56 -> 148893.5627 | JC57: 151871.4339 | JD57: 154908.8626 | JE57: 158007.0398 | JF57: 161167.1806 | JG57: 164390.5242 | JH57: 167678.3346 | JI57: 171031.9013 | JJ57: 174452.5392 | JK57: 177941.59 | JL57: 181500.4218 | JM57: 185130.4301 | JN57: 188833.0387 | JO57: 192609.6994 | JP57: 196461.8933 | JQ57: 200391.1312 | JR57: 204398.9537 | JS57: 208486.9327 | JT57: 212656.6713 | JU57: 216909.8047 | JV57: 221248.0007 | JW57: 225672.9606 | JX57: 230186.4197 | JY57: 234790.148 | JZ57: 239485.9509 | KA57: 244275.6698 | KB57: 249161.183 | KC57: 254144.4066 | KD57: 259227.2946 | KE57: 264411.8403 | KF57: 269700.077 | KG57: 275094.0783 | KH57: 280595.9597 | KI57: 286207.8787 | KJ57: 291932.0361 | KK57: 297770.6766 | KL57: 303726.0899 | KM57: 309800.6115 | KN57: 315996.6235 | KO57: 322316.5556 | KP57: 328762.8865 | KQ57: 335338.1439 | KR57: 342044.9064 | KS57: 348885.8042 | KT57: 355863.5199 | KU57: 362980.7899 | KV57: 370240.4053 | KW57: 377645.2129 | KX57: 385198.1167 | KY57: 392902.0785 | KZ57: 400760.1195 | LA57: 408775.3213 | LB57: 416950.8271 | LC57: 425289.843 | LD57: 433795.6391 | LE57: 442471.5512 | LF57: 451320.9814 | LG57: 460347.4001 | LH57: 469554.3472 | LI57: 478945.4332 | LJ57: 488524.3408 | LK57: 498294.8265 | LL57: 508260.7218 | LM57: 518425.935 | LN57: =$D$57*LN56 -> 528794.4523 | LO57: 539370.34 | LP57: 550157.7452 | LQ57: 561160.8985 | LR57: 572384.1147 | LS57: 583831.7952 | LT57: 595508.4291 | LU57: 607418.5955 | LV57: 619566.9652 | LW57: 631958.3021 | LX57: 644597.4656 | LY57: 657489.4122 | LZ57: 670639.1975 | MA57: 684051.9784 | MB57: 697733.0147 | MC57: 711687.6714 | MD57: 725921.4211 | ME57: 740439.8456 | MF57: 755248.6382 | MG57: 770353.6065 | MH57: 785760.6738 | MI57: 801475.8821 | MJ57: 817505.3942 | MK57: 833855.4963 | ML57: 850532.6 | MM57: 867543.2453 | MN57: 884894.1032 | MO57: 902591.9777 | MP57: 920643.8092 | MQ57: 939056.6768 | MR57: 957837.8012 | MS57: 976994.5475 | MT57: 996534.4281 | MU57: 1016465.106 | MV57: 1036794.396 | MW57: 1057530.271 | MX57: 1078680.863 | MY57: 1100254.466 | MZ57: 1122259.54 | NA57: 1144704.715 | NB57: 1167598.792 | NC57: 1190950.75 | ND57: 1214769.745 | NE57: 1239065.119 | NF57: 1263846.399 | NG57: 1289123.303 | NH57: 1314905.744 | NI57: 1341203.832 | NJ57: 1368027.88 | NK57: 1395388.407 | NL57: 1423296.142 | NM57: 1451762.03 | NN57: 1480797.234 | NO57: 1510413.139 | NP57: 1540621.36 | NQ57: 1571433.742 | NR57: 1602862.369 | NS57: 1634919.565 | NT57: 1667617.902 | NU57: 1700970.202 | NV57: 1734989.545 | NW57: 1769689.27 | NX57: 1805082.985 | NY57: 1841184.57 | NZ57: =$D$57*NZ56 -> 1878008.182 | OA57: 1915568.26 | OB57: 1953879.535 | OC57: 1992957.029 | OD57: 2032816.067 | OE57: 2073472.279 | OF57: 2114941.608 | OG57: 2157240.316 | OH57: 2200384.989 | OI57: 2244392.548 | OJ57: 2289280.248 | OK57: 2335065.693 | OL57: 2381766.835 | OM57: 2429401.99 | ON57: 2477989.835 | OO57: 2527549.425 | OP57: 2578100.193 | OQ57: 2629661.961 | OR57: 2682254.95 | OS57: 2735899.782 | OT57: 2790617.492 | OU57: 2846429.539 | OV57: 2903357.806 | OW57: 2961424.617 | OX57: 3020652.742 | OY57: 3081065.406 | OZ57: 3142686.296 | PA57: 3205539.577 | PB57: 3269649.895 | PC57: 3335042.388 | PD57: 3401742.697 | PE57: 3469776.977 | PF57: 3539171.905 | PG57: 3609954.691 | PH57: 3682153.09 | PI57: 3755795.412 | PJ57: 3830910.531 | PK57: 3907527.9 | PL57: 3985677.562 | PM57: 4065390.158 | PN57: 4146696.943 | PO57: 4229629.797 | PP57: 4314221.236 | PQ57: 4400504.428 | PR57: 4488513.203 | PS57: 4578282.067 | PT57: 4669846.216 | PU57: 4763241.55 | PV57: 4858504.687 | PW57: 4955672.974 | PX57: 5054784.508 | PY57: 5155878.147 | PZ57: 5258993.523 | QA57: 5364171.063 | QB57: 5471452 | QC57: 5580878.393 | QD57: 5692493.14 | QE57: 5806339.995 | QF57: 5922463.591 | QG57: 6040909.447 | QH57: 6161723.996 | QI57: 6284954.596 | QJ57: 6410649.553 | QK57: 6538858.138 | QL57: =$D$57*QL56 -> 6669630.604 | QM57: 6803018.211 | QN57: 6939073.24 | QO57: 7077849.02 | QP57: 7219399.941 | QQ57: 7363781.481 | QR57: 7511050.228 | QS57: 7661263.897 | QT57: 7814481.357 | QU57: 7970762.652 | QV57: 8130169.025 | QW57: 8292762.941 | QX57: 8458608.113 | QY57: 8627769.525 | QZ57: 8800313.458 | RA57: 8976307.517 | RB57: 9155820.653 | RC57: 9338923.196 | RD57: 9525686.877 | RE57: 9716184.86 | RF57: 9910491.767 | RG57: 10108683.71 | RH57: 10310838.31 | RI57: 10517034.75 | RJ57: 10727353.78 | RK57: 10941877.77 | RL57: 11160690.71 | RM57: 11383878.3 | RN57: 11611527.92 | RO57: 11843728.69 | RP57: 12080571.51 | RQ57: 12322149.1 | RR57: 12568556.02 | RS57: 12819888.71 | RT57: 13076245.52 | RU57: 13337726.78 | RV57: 13604434.78 | RW57: 13876473.89 | RX57: 14153950.52 | RY57: 14436973.2 | RZ57: 14725652.63 | SA57: 15020101.71 | SB57: 15320435.55 | SC57: 15626771.59 | SD57: 15939229.57 | SE57: 16257931.62 | SF57: 16583002.27 | SG57: 16914568.55 | SH57: 17252760 | SI57: 17597708.69 | SJ57: 17949549.36 | SK57: 18308419.37 | SL57: 18674458.83 | SM57: 19047810.59 | SN57: 19428620.36 | SO57: 19817036.68 | SP57: 20213211.07 | SQ57: 20617298 | SR57: 21029455.01 | SS57: 21449842.73 | ST57: 21878624.96 | SU57: 22315968.72 | SV57: 22762044.31 | SW57: 23217025.38 | SX57: =$D$57*SX56 -> 23681088.97 | SY57: 24154415.63 | SZ57: 24637189.41 | TA57: 25129597.98 | TB57: 25631832.66 | TC57: 26144088.55 | TD57: 26666564.5 | TE57: 27199463.29 | TF57: 27742991.6 | TG57: 28297360.16 | TH57: 28862783.77 | TI57: 29439481.42 | TJ57: 30027676.32 | TK57: 30627596 | TL57: 31239472.39 | TM57: 31863541.87 | TN57: 32500045.38 | TO57: 33149228.5 | TP57: 33811341.48 | TQ57: 34486639.4 | TR57: 35175382.18 | TS57: 35877834.7 | TT57: 36594266.87 | TU57: 37324953.72 | TV57: 38070175.47 | TW57: 38830217.65 | TX57: 39605371.13 | TY57: 40395932.25 | TZ57: 41202202.89 | UA57: 42024490.54 | UB57: 42863108.42 | UC57: 43718375.54 | UD57: 44590616.77 | UE57: 45480162.98 | UF57: 46387351.05 | UG57: 47312524.04 | UH57: 48256031.18 | UI57: 49218228.02 | UJ57: 50199476.49 | UK57: 51200144.97 | UL57: 52220608.38 | UM57: 53261248.26 | UN57: 54322452.81 | UO57: 55404617.02 | UP57: 56508142.68 | UQ57: 57633438.49 | UR57: 58780920.09 | US57: 59951010.14 | UT57: 61144138.37 | UU57: 62360741.63 | UV57: 63601263.92 | UW57: 64866156.47 | UX57: 66155877.72 | UY57: 67470893.39 | UZ57: 68811676.48 | VA57: 70178707.29 | VB57: 71572473.42 | VC57: 72993469.76 | VD57: 74442198.49 | VE57: 75919169.02 | VF57: 77424898.01 | VG57: 78959909.24 | VH57: 80524733.62 | VI57: 82119909.08 | VJ57: =$D$57*VJ56 -> 83745980.44 | VK57: 85403499.34 | VL57: 87093024.12 | VM57: 88815119.59 | VN57: 90570356.96 | VO57: 92359313.55 | VP57: 94182572.61 | VQ57: 96040723.06 | VR57: 97934359.23 | VS57: 99864080.5 | VT57: 101830491 | VU57: 103834199.2 | VV57: 105875817.5 | VW57: 107955961.7 | VX57: 110075250.7 | VY57: 112234305.8 | VZ57: 114433749.8 | WA57: 116674206.9 | WB57: 118956301.8 | WC57: 121280658.4 | WD57: 123647899.8 | WE57: 126058646.7 | WF57: 128513516.6 | WG57: 131013122.9 | WH57: 133558073.6 | WI57: 136148969.7 | WJ57: 138786404.3 | WK57: 141470961 | WL57: 144203212.2 | WM57: 146983717.3 | WN57: 149813021 | WO57: 152691651.3 | WP57: 155620117.1 | WQ57: 158598906.5 | WR57: 161628483.3 | WS57: 164709285.4 | WT57: 167841721.3 | WU57: 171026166.9 | WV57: 174262962.8 | WW57: 177552410.1 | WX57: 180894767 | WY57: 184290244.7 | WZ57: 187739002.6 | XA57: 191241144.3 | XB57: 194796711.7 | XC57: 198405680.5 | XD57: 202067953.9 | XE57: 205783356.5 | XF57: 209551627.7 | XG57: 213372414.7 | XH57: 217245265 | XI57: 221169618.1 | XJ57: 225144796.9 | XK57: 229169998.6 | XL57: 233244284.5 | XM57: 237366569.7 | XN57: 241535611.7 | XO57: 245749998.2 | XP57: 250008134.3 | XQ57: 254308228.6 | XR57: 258648278.7 | XS57: 263026054.9 | XT57: 267439084 | XU57: 271884630.8 | XV57: =$D$57*XV56 -> 276359679.4 | XW57: 280860912.1 | XX57: 285384688 | XY57: 289927019.6 | XZ57: 294483547.4 | YA57: 299049513.8 | YB57: 303619734.4 | YC57: 308188567.6 | YD57: 312749882.5 | YE57: 317297023.9 | YF57: 321822775.9 | YG57: 326319322 | YH57: 330778203.8 | YI57: 335190275.5 | YJ57: 339545656.4 | YK57: 343833679.9 | YL57: 348042839.2 | YM57: 352160729.1 | YN57: 356173983.8 | YO57: 360068211.4 | YP57: 363827923.3 | YQ57: 367436458.6 | YR57: 370875904.6 | YS57: 374127010.9 | YT57: 377169098.4 | YU57: 379979961.9 | YV57: 382535766.6 | YW57: 384810937.7 | YX57: 386778041.9 | YY57: 388407662.2 | YZ57: 389668263.7 | ZA57: 390526050.4 | ZB57: 390944813 | ZC57: 390885766.5 | ZD57: 390307376.4 | ZE57: 389165174.2 | ZF57: 387411560.5 | ZG57: 384995594.7 | ZH57: 381862771.2 | ZI57: 377954780.4 | ZJ57: 373209254.3 | ZK57: 367559495.4 | ZL57: 360934186.6 | ZM57: 353257083.3 | ZN57: 344446684.7 | ZO57: 334415882.5 | ZP57: 323071588.1 | ZQ57: 310314333.2 | ZR57: 296037846.2 | ZS57: 280128598.3 | ZT57: 262465321.9 | ZU57: 242918495.4 | ZV57: 221349795 | ZW57: 197611510.3 | ZX57: 171545920.8 | ZY57: 142984631.6 | ZZ57: 111747865.8 | AAA57: 77643709.12 | AAB57: 40467305.59
C58: Debt Computed from Gross Debt | D58: =D31 -> 0.6 | E58: =E56*$D$58 -> 1310.791874 | F58: =F56*$D$58 -> 1337.007712 | G58: 1363.747866 | H58: 1391.022823 | I58: 1418.84328 | J58: 1447.220145 | K58: 1476.164548 | L58: 1505.687839 | M58: 1535.801596 | N58: 1566.517628 | O58: 1597.847981 | P58: 1629.80494 | Q58: 1662.401039 | R58: 1695.64906 | S58: 1729.562041 | T58: 1764.153282 | U58: 1799.436347 | V58: 1835.425074 | W58: 1872.133576 | X58: 1909.576247 | Y58: 1947.767772 | Z58: 1986.723128 | AA58: 2026.45759 | AB58: 2066.986742 | AC58: 2108.326477 | AD58: 2150.493007 | AE58: 2193.502867 | AF58: 2237.372924 | AG58: 2282.120382 | AH58: 2327.76279 | AI58: 2374.318046 | AJ58: 2421.804407 | AK58: 2470.240495 | AL58: 2519.645305 | AM58: 2570.038211 | AN58: 2621.438975 | AO58: 2673.867755 | AP58: 2727.34511 | AQ58: 2781.892012 | AR58: 2837.529852 | AS58: 2894.280449 | AT58: 2952.166058 | AU58: 3011.209379 | AV58: 3071.433567 | AW58: 3132.862238 | AX58: 3195.519483 | AY58: 3259.429873 | AZ58: 3324.61847 | BA58: 3391.11084 | BB58: 3458.933056 | BC58: 3528.111718 | BD58: 3598.673952 | BE58: 3670.647431 | BF58: 3744.06038 | BG58: 3818.941587 | BH58: 3895.320419 | BI58: 3973.226827 | BJ58: 4052.691364 | BK58: 4133.745191 | BL58: 4216.420095 | BM58: 4300.748497 | BN58: 4386.763467 | BO58: 4474.498736 | BP58: 4563.988711 | BQ58: 4655.268485 | BR58: =BR56*$D$58 -> 4748.373855 | BS58: 4843.341332 | BT58: 4940.208158 | BU58: 5039.012322 | BV58: 5139.792568 | BW58: 5242.588419 | BX58: 5347.440188 | BY58: 5454.388992 | BZ58: 5563.476771 | CA58: 5674.746307 | CB58: 5788.241233 | CC58: 5904.006058 | CD58: 6022.086179 | CE58: 6142.527902 | CF58: 6265.37846 | CG58: 6390.68603 | CH58: 6518.49975 | CI58: 6648.869745 | CJ58: 6781.84714 | CK58: 6917.484083 | CL58: 7055.833765 | CM58: 7196.95044 | CN58: 7340.889449 | CO58: 7487.707238 | CP58: 7637.461382 | CQ58: 7790.21061 | CR58: 7946.014822 | CS58: 8104.935119 | CT58: 8267.033821 | CU58: 8432.374497 | CV58: 8601.021987 | CW58: 8773.042427 | CX58: 8948.503276 | CY58: 9127.473341 | CZ58: 9310.022808 | DA58: 9496.223264 | DB58: 9686.14773 | DC58: 9879.870684 | DD58: 10077.4681 | DE58: 10279.01746 | DF58: 10484.59781 | DG58: 10694.28977 | DH58: 10908.17556 | DI58: 11126.33907 | DJ58: 11348.86585 | DK58: 11575.84317 | DL58: 11807.36003 | DM58: 12043.50723 | DN58: 12284.37738 | DO58: 12530.06493 | DP58: 12780.66622 | DQ58: 13036.27955 | DR58: 13297.00514 | DS58: 13562.94524 | DT58: 13834.20415 | DU58: 14110.88823 | DV58: 14393.106 | DW58: 14680.96812 | DX58: 14974.58748 | DY58: 15274.07923 | DZ58: 15579.56081 | EA58: 15891.15203 | EB58: 16208.97507 | EC58: 16533.15457 | ED58: =ED56*$D$58 -> 16863.81766 | EE58: 17201.09401 | EF58: 17545.1159 | EG58: 17896.01821 | EH58: 18253.93858 | EI58: 18619.01735 | EJ58: 18991.3977 | EK58: 19371.22565 | EL58: 19758.65016 | EM58: 20153.82317 | EN58: 20556.89963 | EO58: 20968.03762 | EP58: 21387.39837 | EQ58: 21815.14634 | ER58: 22251.44927 | ES58: 22696.47825 | ET58: 23150.40782 | EU58: 23613.41598 | EV58: 24085.68429 | EW58: 24567.39798 | EX58: 25058.74594 | EY58: 25559.92086 | EZ58: 26071.11928 | FA58: 26592.54166 | FB58: 27124.39249 | FC58: 27666.88034 | FD58: 28220.21795 | FE58: 28784.62231 | FF58: 29360.31476 | FG58: 29947.52105 | FH58: 30546.47147 | FI58: 31157.4009 | FJ58: 31780.54892 | FK58: 32416.1599 | FL58: 33064.4831 | FM58: 33725.77276 | FN58: 34400.28821 | FO58: 35088.29398 | FP58: 35790.05986 | FQ58: 36505.86105 | FR58: 37235.97827 | FS58: 37980.69784 | FT58: 38740.3118 | FU58: 39515.11803 | FV58: 40305.42039 | FW58: 41111.5288 | FX58: 41933.75938 | FY58: 42772.43456 | FZ58: 43627.88325 | GA58: 44500.44092 | GB58: 45390.44974 | GC58: 46298.25873 | GD58: 47224.22391 | GE58: 48168.70838 | GF58: 49132.08255 | GG58: 50114.7242 | GH58: 51117.01869 | GI58: 52139.35906 | GJ58: 53182.14624 | GK58: 54245.78916 | GL58: 55330.70495 | GM58: 56437.31905 | GN58: 57566.06543 | GO58: 58717.38673 | GP58: =GP56*$D$58 -> 59891.73447 | GQ58: 61089.56916 | GR58: 62311.36054 | GS58: 63557.58775 | GT58: 64828.7395 | GU58: 66125.31429 | GV58: 67447.82058 | GW58: 68796.77699 | GX58: 70172.71253 | GY58: 71576.16678 | GZ58: 73007.69011 | HA58: 74467.84391 | HB58: 75957.20079 | HC58: 77476.34481 | HD58: 79025.8717 | HE58: 80606.38913 | HF58: 82218.51691 | HG58: 83862.88725 | HH58: 85540.14499 | HI58: 87250.94789 | HJ58: 88995.96685 | HK58: 90775.88618 | HL58: 92591.4039 | HM58: 94443.23198 | HN58: 96332.09662 | HO58: 98258.73855 | HP58: 100223.9133 | HQ58: 102228.3916 | HR58: 104272.9594 | HS58: 106358.4186 | HT58: 108485.587 | HU58: 110655.2987 | HV58: 112868.4047 | HW58: 115125.7728 | HX58: 117428.2882 | HY58: 119776.854 | HZ58: 122172.391 | IA58: 124615.8388 | IB58: 127108.1556 | IC58: 129650.3187 | ID58: 132243.3251 | IE58: 134888.1916 | IF58: 137585.9554 | IG58: 140337.6745 | IH58: 143144.428 | II58: 146007.3165 | IJ58: 148927.4629 | IK58: 151906.0121 | IL58: 154944.1323 | IM58: 158043.015 | IN58: 161203.8753 | IO58: 164427.9527 | IP58: 167716.5118 | IQ58: 171070.842 | IR58: 174492.2588 | IS58: 177982.104 | IT58: 181541.746 | IU58: 185172.5809 | IV58: 188876.0325 | IW58: 192653.5532 | IX58: 196506.6242 | IY58: 200436.7567 | IZ58: 204445.4918 | JA58: 208534.4016 | JB58: =JB56*$D$58 -> 212705.0896 | JC58: 216959.1913 | JD58: 221298.3751 | JE58: 225724.3426 | JF58: 230238.8294 | JG58: 234843.6059 | JH58: 239540.478 | JI58: 244331.2875 | JJ58: 249217.9132 | JK58: 254202.2714 | JL58: 259286.3168 | JM58: 264472.0431 | JN58: 269761.4838 | JO58: 275156.7134 | JP58: 280659.8476 | JQ58: 286273.0445 | JR58: 291998.5053 | JS58: 297838.4753 | JT58: 303795.2447 | JU58: 309871.1495 | JV58: 316068.5724 | JW58: 322389.9437 | JX58: 328837.7424 | JY58: 335414.4971 | JZ58: 342122.7869 | KA58: 348965.2425 | KB58: 355944.5472 | KC58: 363063.438 | KD58: 370324.7065 | KE58: 377731.2004 | KF58: 385285.8242 | KG58: 392991.5405 | KH58: 400851.371 | KI58: 408868.3982 | KJ58: 417045.7659 | KK58: 425386.6809 | KL58: 433894.4142 | KM58: 442572.3021 | KN58: 451423.7478 | KO58: 460452.2224 | KP58: 469661.2664 | KQ58: 479054.4913 | KR58: 488635.5806 | KS58: 498408.2917 | KT58: 508376.457 | KU58: 518543.9856 | KV58: 528914.8647 | KW58: 539493.1613 | KX58: 550283.0238 | KY58: 561288.6836 | KZ58: 572514.4565 | LA58: 583964.7447 | LB58: 595644.0387 | LC58: 607556.9186 | LD58: 619708.0559 | LE58: 632102.2159 | LF58: 644744.2591 | LG58: 657639.143 | LH58: 670791.9246 | LI58: 684207.7617 | LJ58: 697891.9154 | LK58: 711849.7521 | LL58: 726086.7455 | LM58: 740608.4786 | LN58: =LN56*$D$58 -> 755420.6462 | LO58: 770529.0571 | LP58: 785939.636 | LQ58: 801658.4264 | LR58: 817691.5925 | LS58: 834045.4216 | LT58: 850726.3273 | LU58: 867740.8508 | LV58: 885095.6646 | LW58: 902797.5745 | LX58: 920853.5223 | LY58: 939270.5889 | LZ58: 958055.9965 | MA58: 977217.112 | MB58: 996761.4495 | MC58: 1016696.673 | MD58: 1037030.602 | ME58: 1057771.208 | MF58: 1078926.626 | MG58: 1100505.152 | MH58: 1122515.248 | MI58: 1144965.546 | MJ58: 1167864.849 | MK58: 1191222.138 | ML58: 1215046.571 | MM58: 1239347.493 | MN58: 1264134.433 | MO58: 1289417.111 | MP58: 1315205.442 | MQ58: 1341509.538 | MR58: 1368339.716 | MS58: 1395706.496 | MT58: 1423620.612 | MU58: 1452093.008 | MV58: 1481134.851 | MW58: 1510757.53 | MX58: 1540972.662 | MY58: 1571792.095 | MZ58: 1603227.915 | NA58: 1635292.45 | NB58: 1667998.274 | NC58: 1701358.214 | ND58: 1735385.35 | NE58: 1770093.027 | NF58: 1805494.856 | NG58: 1841604.719 | NH58: 1878436.777 | NI58: 1916005.474 | NJ58: 1954325.543 | NK58: 1993412.01 | NL58: 2033280.203 | NM58: 2073945.758 | NN58: 2115424.62 | NO58: 2157733.056 | NP58: 2200887.657 | NQ58: 2244905.346 | NR58: 2289803.384 | NS58: 2335599.379 | NT58: 2382311.289 | NU58: 2429957.432 | NV58: 2478556.492 | NW58: 2528127.528 | NX58: 2578689.979 | NY58: 2630263.671 | NZ58: =NZ56*$D$58 -> 2682868.831 | OA58: 2736526.086 | OB58: 2791256.479 | OC58: 2847081.471 | OD58: 2904022.953 | OE58: 2962103.256 | OF58: 3021345.154 | OG58: 3081771.88 | OH58: 3143407.128 | OI58: 3206275.068 | OJ58: 3270400.355 | OK58: 3335808.132 | OL58: 3402524.051 | OM58: 3470574.271 | ON58: 3539985.479 | OO58: 3610784.893 | OP58: 3683000.275 | OQ58: 3756659.945 | OR58: 3831792.785 | OS58: 3908428.259 | OT58: 3986596.418 | OU58: 4066327.912 | OV58: 4147654.009 | OW58: 4230606.596 | OX58: 4315218.203 | OY58: 4401522.008 | OZ58: 4489551.852 | PA58: 4579342.254 | PB58: 4670928.421 | PC58: 4764346.268 | PD58: 4859632.424 | PE58: 4956824.253 | PF58: 5055959.864 | PG58: 5157078.13 | PH58: 5260218.7 | PI58: 5365422.016 | PJ58: 5472729.329 | PK58: 5582182.715 | PL58: 5693825.088 | PM58: 5807700.225 | PN58: 5923852.775 | PO58: 6042328.281 | PP58: 6163173.194 | PQ58: 6286434.897 | PR58: 6412161.719 | PS58: 6540402.953 | PT58: 6671208.88 | PU58: 6804630.786 | PV58: 6940720.981 | PW58: 7079532.82 | PX58: 7221120.726 | PY58: 7365540.21 | PZ58: 7512847.89 | QA58: 7663101.518 | QB58: 7816360 | QC58: 7972683.419 | QD58: 8132133.056 | QE58: 8294771.422 | QF58: 8460662.272 | QG58: 8629870.639 | QH58: 8802462.851 | QI58: 8978506.566 | QJ58: 9158070.791 | QK58: 9341225.911 | QL58: =QL56*$D$58 -> 9528043.72 | QM58: 9718597.444 | QN58: 9912961.772 | QO58: 10111212.89 | QP58: 10313428.49 | QQ58: 10519687.83 | QR58: 10730071.75 | QS58: 10944662.71 | QT58: 11163544.8 | QU58: 11386803.79 | QV58: 11614527.18 | QW58: 11846804.2 | QX58: 12083725.88 | QY58: 12325385.04 | QZ58: 12571876.37 | RA58: 12823296.45 | RB58: 13079743.79 | RC58: 13341318.85 | RD58: 13608124.11 | RE58: 13880264.09 | RF58: 14157845.38 | RG58: 14440976.72 | RH58: 14729769.01 | RI58: 15024335.35 | RJ58: 15324791.11 | RK58: 15631253.95 | RL58: 15943843.88 | RM58: 16262683.29 | RN58: 16587897.02 | RO58: 16919612.41 | RP58: 17257959.3 | RQ58: 17603070.15 | RR58: 17955080.03 | RS58: 18314126.73 | RT58: 18680350.75 | RU58: 19053895.39 | RV58: 19434906.83 | RW58: 19823534.13 | RX58: 20219929.31 | RY58: 20624247.43 | RZ58: 21036646.62 | SA58: 21457288.15 | SB58: 21886336.51 | SC58: 22323959.42 | SD58: 22770327.96 | SE58: 23225616.59 | SF58: 23690003.25 | SG58: 24163669.36 | SH58: 24646799.99 | SI58: 25139583.85 | SJ58: 25642213.37 | SK58: 26154884.82 | SL58: 26677798.33 | SM58: 27211157.99 | SN58: 27755171.94 | SO58: 28310052.4 | SP58: 28876015.81 | SQ58: 29453282.86 | SR58: 30042078.58 | SS58: 30642632.47 | ST58: 31255178.52 | SU58: 31879955.32 | SV58: 32517206.16 | SW58: 33167179.11 | SX58: =SX56*$D$58 -> 33830127.11 | SY58: 34506308.04 | SZ58: 35195984.87 | TA58: 35899425.68 | TB58: 36616903.81 | TC58: 37348697.92 | TD58: 38095092.15 | TE58: 38856376.12 | TF58: 39632845.14 | TG58: 40424800.22 | TH58: 41232548.25 | TI58: 42056402.03 | TJ58: 42896680.46 | TK58: 43753708.58 | TL58: 44627817.7 | TM58: 45519345.53 | TN58: 46428636.26 | TO58: 47356040.71 | TP58: 48301916.4 | TQ58: 49266627.72 | TR58: 50250545.97 | TS58: 51254049.57 | TT58: 52277524.1 | TU58: 53321362.45 | TV58: 54385964.96 | TW58: 55471739.5 | TX58: 56579101.61 | TY58: 57708474.64 | TZ58: 58860289.84 | UA58: 60034986.49 | UB58: 61233012.03 | UC58: 62454822.19 | UD58: 63700881.1 | UE58: 64971661.39 | UF58: 66267644.36 | UG58: 67589320.05 | UH58: 68937187.39 | UI58: 70311754.31 | UJ58: 71713537.84 | UK58: 73143064.24 | UL58: 74600869.12 | UM58: 76087497.51 | UN58: 77603504.02 | UO58: 79149452.89 | UP58: 80725918.12 | UQ58: 82333483.56 | UR58: 83972742.99 | US58: 85644300.2 | UT58: 87348769.1 | UU58: 89086773.75 | UV58: 90858948.46 | UW58: 92665937.81 | UX58: 94508396.74 | UY58: 96386990.56 | UZ58: 98302394.97 | VA58: 100255296.1 | VB58: 102246390.6 | VC58: 104276385.4 | VD58: 106345997.8 | VE58: 108455955.7 | VF58: 110606997.2 | VG58: 112799870.3 | VH58: 115035333.7 | VI58: 117314155.8 | VJ58: =VJ56*$D$58 -> 119637114.9 | VK58: 122004999.1 | VL58: 124418605.9 | VM58: 126878742.3 | VN58: 129386224.2 | VO58: 131941876.5 | VP58: 134546532.3 | VQ58: 137201032.9 | VR58: 139906227.5 | VS58: 142662972.1 | VT58: 145472130 | VU58: 148334570.3 | VV58: 151251167.8 | VW58: 154222802.5 | VX58: 157250358.2 | VY58: 160334722.5 | VZ58: 163476785.4 | WA58: 166677438.5 | WB58: 169937573.9 | WC58: 173258083.4 | WD58: 176639856.8 | WE58: 180083780.9 | WF58: 183590738 | WG58: 187161604.2 | WH58: 190797248 | WI58: 194498528.1 | WJ58: 198266291.9 | WK58: 202101372.9 | WL58: 206004588.9 | WM58: 209976739 | WN58: 214018601.4 | WO58: 218130930.4 | WP58: 222314453.1 | WQ58: 226569866.4 | WR58: 230897833.3 | WS58: 235298979.2 | WT58: 239773887.5 | WU58: 244323095.6 | WV58: 248947089.6 | WW58: 253646300.1 | WX58: 258421095.8 | WY58: 263271778.1 | WZ58: 268198575.2 | XA58: 273201634.7 | XB58: 278281016.7 | XC58: 283436686.5 | XD58: 288668505.6 | XE58: 293976223.6 | XF58: 299359468.1 | XG58: 304817735.3 | XH58: 310350378.6 | XI58: 315956597.3 | XJ58: 321635424.2 | XK58: 327385712.3 | XL58: 333206120.7 | XM58: 339095099.5 | XN58: 345050873.8 | XO58: 351071426 | XP58: 357154477.5 | XQ58: 363297469.5 | XR58: 369497541 | XS58: 375751507 | XT58: 382055834.3 | XU58: 388406615.5 | XV58: =XV56*$D$58 -> 394799542 | XW58: 401229874.4 | XX58: 407692411.5 | XY58: 414181456.6 | XZ58: 420690782 | YA58: 427213591.2 | YB58: 433742477.7 | YC58: 440269382.3 | YD58: 446785546.4 | YE58: 453281462.7 | YF58: 459746822.7 | YG58: 466170460 | YH58: 472540291.2 | YI58: 478843250.7 | YJ58: 485065223.4 | YK58: 491190971.3 | YL58: 497204056.1 | YM58: 503086755.8 | YN58: 508819976.8 | YO58: 514383159.2 | YP58: 519754176.1 | YQ58: 524909226.6 | YR58: 529822720.9 | YS58: 534467158.5 | YT58: 538812997.7 | YU58: 542828517 | YV58: 546479666.6 | YW58: 549729911 | YX58: 552540059.8 | YY58: 554868088.9 | YZ58: 556668948.1 | ZA58: 557894357.7 | ZB58: 558492590.1 | ZC58: 558408237.9 | ZD58: 557581966.3 | ZE58: 555950248.9 | ZF58: 553445086.5 | ZG58: 549993706.8 | ZH58: 545518244.5 | ZI58: 539935400.5 | ZJ58: 533156077.6 | ZK58: 525084993.4 | ZL58: 515620266.5 | ZM58: 504652976.2 | ZN58: 492066692.4 | ZO58: 477736975.1 | ZP58: 461530840.1 | ZQ58: 443306190.3 | ZR58: 422911208.8 | ZS58: 400183711.9 | ZT58: 374950459.9 | ZU58: 347026422 | ZV58: 316213992.9 | ZW58: 282302157.6 | ZX58: 245065601.1 | ZY58: 204263759.5 | ZZ58: 159639808.3 | AAA58: 110919584.5 | AAB58: 57810436.55
C60: Interest Cash Outflow Pre-tax | D60: =G93 -> 0.052 | E60: =E58*$D$60 -> 68.16117747 | F60: =F58*$D$60 -> 69.52440101 | G60: 70.91488904 | H60: 72.33318682 | I60: 73.77985055 | J60: 75.25544756 | K60: 76.76055651 | L60: 78.29576764 | M60: 79.861683 | N60: 81.45891666 | O60: 83.08809499 | P60: 84.74985689 | Q60: 86.44485403 | R60: 88.17375111 | S60: 89.93722613 | T60: 91.73597065 | U60: 93.57069007 | V60: 95.44210387 | W60: 97.35094595 | X60: 99.29796486 | Y60: 101.2839242 | Z60: 103.3096026 | AA60: 105.3757947 | AB60: 107.4833106 | AC60: 109.6329768 | AD60: 111.8256363 | AE60: 114.0621491 | AF60: 116.343392 | AG60: 118.6702599 | AH60: 121.0436651 | AI60: 123.4645384 | AJ60: 125.9338292 | AK60: 128.4525057 | AL60: 131.0215559 | AM60: 133.641987 | AN60: 136.3148267 | AO60: 139.0411232 | AP60: 141.8219457 | AQ60: 144.6583846 | AR60: 147.5515523 | AS60: 150.5025834 | AT60: 153.512635 | AU60: 156.5828877 | AV60: 159.7145455 | AW60: 162.9088364 | AX60: 166.1670131 | AY60: 169.4903534 | AZ60: 172.8801605 | BA60: 176.3377637 | BB60: 179.8645189 | BC60: 183.4618093 | BD60: 187.1310455 | BE60: 190.8736664 | BF60: 194.6911397 | BG60: 198.5849625 | BH60: 202.5566618 | BI60: 206.607795 | BJ60: 210.7399509 | BK60: 214.9547499 | BL60: 219.2538449 | BM60: 223.6389218 | BN60: 228.1117003 | BO60: 232.6739343 | BP60: 237.327413 | BQ60: 242.0739612 | BR60: =BR58*$D$60 -> 246.9154404 | BS60: 251.8537493 | BT60: 256.8908242 | BU60: 262.0286407 | BV60: 267.2692135 | BW60: 272.6145978 | BX60: 278.0668898 | BY60: 283.6282276 | BZ60: 289.3007921 | CA60: 295.086808 | CB60: 300.9885441 | CC60: 307.008315 | CD60: 313.1484813 | CE60: 319.4114509 | CF60: 325.7996799 | CG60: 332.3156735 | CH60: 338.961987 | CI60: 345.7412268 | CJ60: 352.6560513 | CK60: 359.7091723 | CL60: 366.9033558 | CM60: 374.2414229 | CN60: 381.7262513 | CO60: 389.3607764 | CP60: 397.1479919 | CQ60: 405.0909517 | CR60: 413.1927708 | CS60: 421.4566262 | CT60: 429.8857587 | CU60: 438.4834739 | CV60: 447.2531433 | CW60: 456.1982062 | CX60: 465.3221703 | CY60: 474.6286137 | CZ60: 484.121186 | DA60: 493.8036097 | DB60: 503.6796819 | DC60: 513.7532756 | DD60: 524.0283411 | DE60: 534.5089079 | DF60: 545.1990861 | DG60: 556.1030678 | DH60: 567.2251291 | DI60: 578.5696317 | DJ60: 590.1410244 | DK60: 601.9438448 | DL60: 613.9827217 | DM60: 626.2623762 | DN60: 638.7876237 | DO60: 651.5633762 | DP60: 664.5946437 | DQ60: 677.8865366 | DR60: 691.4442673 | DS60: 705.2731526 | DT60: 719.3786157 | DU60: 733.766188 | DV60: 748.4415118 | DW60: 763.410342 | DX60: 778.6785488 | DY60: 794.2521198 | DZ60: 810.1371622 | EA60: 826.3399055 | EB60: 842.8667036 | EC60: 859.7240376 | ED60: =ED58*$D$60 -> 876.9185184 | EE60: 894.4568888 | EF60: 912.3460265 | EG60: 930.5929471 | EH60: 949.204806 | EI60: 968.1889021 | EJ60: 987.5526802 | EK60: 1007.303734 | EL60: 1027.449808 | EM60: 1047.998805 | EN60: 1068.958781 | EO60: 1090.337956 | EP60: 1112.144715 | EQ60: 1134.38761 | ER60: 1157.075362 | ES60: 1180.216869 | ET60: 1203.821207 | EU60: 1227.897631 | EV60: 1252.455583 | EW60: 1277.504695 | EX60: 1303.054789 | EY60: 1329.115885 | EZ60: 1355.698202 | FA60: 1382.812166 | FB60: 1410.46841 | FC60: 1438.677778 | FD60: 1467.451333 | FE60: 1496.80036 | FF60: 1526.736367 | FG60: 1557.271095 | FH60: 1588.416517 | FI60: 1620.184847 | FJ60: 1652.588544 | FK60: 1685.640315 | FL60: 1719.353121 | FM60: 1753.740183 | FN60: 1788.814987 | FO60: 1824.591287 | FP60: 1861.083113 | FQ60: 1898.304775 | FR60: 1936.27087 | FS60: 1974.996288 | FT60: 2014.496213 | FU60: 2054.786138 | FV60: 2095.88186 | FW60: 2137.799498 | FX60: 2180.555488 | FY60: 2224.166597 | FZ60: 2268.649929 | GA60: 2314.022928 | GB60: 2360.303386 | GC60: 2407.509454 | GD60: 2455.659643 | GE60: 2504.772836 | GF60: 2554.868293 | GG60: 2605.965659 | GH60: 2658.084972 | GI60: 2711.246671 | GJ60: 2765.471604 | GK60: 2820.781037 | GL60: 2877.196657 | GM60: 2934.74059 | GN60: 2993.435402 | GO60: 3053.30411 | GP60: =GP58*$D$60 -> 3114.370192 | GQ60: 3176.657596 | GR60: 3240.190748 | GS60: 3304.994563 | GT60: 3371.094454 | GU60: 3438.516343 | GV60: 3507.28667 | GW60: 3577.432403 | GX60: 3648.981051 | GY60: 3721.960672 | GZ60: 3796.399886 | HA60: 3872.327883 | HB60: 3949.774441 | HC60: 4028.76993 | HD60: 4109.345328 | HE60: 4191.532235 | HF60: 4275.362879 | HG60: 4360.870137 | HH60: 4448.08754 | HI60: 4537.04929 | HJ60: 4627.790276 | HK60: 4720.346081 | HL60: 4814.753003 | HM60: 4911.048063 | HN60: 5009.269024 | HO60: 5109.454404 | HP60: 5211.643492 | HQ60: 5315.876362 | HR60: 5422.193889 | HS60: 5530.637767 | HT60: 5641.250522 | HU60: 5754.075532 | HV60: 5869.157042 | HW60: 5986.540183 | HX60: 6106.270986 | HY60: 6228.396406 | HZ60: 6352.964334 | IA60: 6480.02362 | IB60: 6609.624092 | IC60: 6741.816574 | ID60: 6876.652905 | IE60: 7014.185963 | IF60: 7154.469681 | IG60: 7297.559075 | IH60: 7443.510256 | II60: 7592.38046 | IJ60: 7744.228069 | IK60: 7899.11263 | IL60: 8057.094882 | IM60: 8218.236779 | IN60: 8382.601513 | IO60: 8550.253543 | IP60: 8721.258613 | IQ60: 8895.683784 | IR60: 9073.597459 | IS60: 9255.069407 | IT60: 9440.170795 | IU60: 9628.974209 | IV60: 9821.553692 | IW60: 10017.98477 | IX60: 10218.34446 | IY60: 10422.71135 | IZ60: 10631.16557 | JA60: 10843.78888 | JB60: =JB58*$D$60 -> 11060.66466 | JC60: 11281.87795 | JD60: 11507.51551 | JE60: 11737.66581 | JF60: 11972.41913 | JG60: 12211.86751 | JH60: 12456.10486 | JI60: 12705.22695 | JJ60: 12959.33149 | JK60: 13218.51811 | JL60: 13482.88847 | JM60: 13752.54624 | JN60: 14027.59716 | JO60: 14308.1491 | JP60: 14594.31208 | JQ60: 14886.19831 | JR60: 15183.92228 | JS60: 15487.60072 | JT60: 15797.35273 | JU60: 16113.29977 | JV60: 16435.56576 | JW60: 16764.27707 | JX60: 17099.56261 | JY60: 17441.55385 | JZ60: 17790.38492 | KA60: 18146.19261 | KB60: 18509.11645 | KC60: 18879.29877 | KD60: 19256.88474 | KE60: 19642.02242 | KF60: 20034.86286 | KG60: 20435.5601 | KH60: 20844.27129 | KI60: 21261.15671 | KJ60: 21686.37983 | KK60: 22120.10741 | KL60: 22562.50954 | KM60: 23013.75971 | KN60: 23474.03488 | KO60: 23943.51556 | KP60: 24422.38585 | KQ60: 24910.83355 | KR60: 25409.05019 | KS60: 25917.23117 | KT60: 26435.57576 | KU60: 26964.28725 | KV60: 27503.57296 | KW60: 28053.64439 | KX60: 28614.71724 | KY60: 29187.01155 | KZ60: 29770.75174 | LA60: 30366.16673 | LB60: 30973.49001 | LC60: 31592.95977 | LD60: 32224.81891 | LE60: 32869.31523 | LF60: 33526.70147 | LG60: 34197.23544 | LH60: 34881.18008 | LI60: 35578.80361 | LJ60: 36290.3796 | LK60: 37016.18711 | LL60: 37756.51076 | LM60: 38511.64089 | LN60: =LN58*$D$60 -> 39281.8736 | LO60: 40067.51097 | LP60: 40868.86107 | LQ60: 41686.23817 | LR60: 42519.96281 | LS60: 43370.36193 | LT60: 44237.76902 | LU60: 45122.52424 | LV60: 46024.97456 | LW60: 46945.47387 | LX60: 47884.38316 | LY60: 48842.07062 | LZ60: 49818.91182 | MA60: 50815.28982 | MB60: 51831.59538 | MC60: 52868.22702 | MD60: 53925.59128 | ME60: 55004.10281 | MF60: 56104.18455 | MG60: 57226.26791 | MH60: 58370.79291 | MI60: 59538.20838 | MJ60: 60728.97214 | MK60: 61943.55115 | ML60: 63182.42171 | MM60: 64446.06965 | MN60: 65734.99052 | MO60: 67049.68977 | MP60: 68390.68297 | MQ60: 69758.49599 | MR60: 71153.66523 | MS60: 72576.73781 | MT60: 74028.2718 | MU60: 75508.83641 | MV60: 77019.01227 | MW60: 78559.39158 | MX60: 80130.57842 | MY60: 81733.18893 | MZ60: 83367.85158 | NA60: 85035.2074 | NB60: 86735.91027 | NC60: 88470.62711 | ND60: 90240.03819 | NE60: 92044.8374 | NF60: 93885.7325 | NG60: 95763.44538 | NH60: 97678.71241 | NI60: 99632.28465 | NJ60: 101624.9282 | NK60: 103657.4245 | NL60: 105730.5706 | NM60: 107845.1794 | NN60: 110002.0802 | NO60: 112202.1189 | NP60: 114446.1581 | NQ60: 116735.078 | NR60: 119069.776 | NS60: 121451.1677 | NT60: 123880.187 | NU60: 126357.7865 | NV60: 128884.9376 | NW60: 131462.6315 | NX60: 134091.8789 | NY60: 136773.7109 | NZ60: =NZ58*$D$60 -> 139509.1792 | OA60: 142299.3565 | OB60: 145145.3369 | OC60: 148048.2365 | OD60: 151009.1936 | OE60: 154029.3693 | OF60: 157109.948 | OG60: 160252.1377 | OH60: 163457.1706 | OI60: 166726.3036 | OJ60: 170060.8184 | OK60: 173462.0229 | OL60: 176931.2506 | OM60: 180469.8621 | ON60: 184079.2449 | OO60: 187760.8144 | OP60: 191516.0143 | OQ60: 195346.3171 | OR60: 199253.2248 | OS60: 203238.2695 | OT60: 207303.0137 | OU60: 211449.0514 | OV60: 215678.0084 | OW60: 219991.543 | OX60: 224391.3466 | OY60: 228879.1444 | OZ60: 233456.6963 | PA60: 238125.7972 | PB60: 242888.2779 | PC60: 247746.0059 | PD60: 252700.8861 | PE60: 257754.8611 | PF60: 262909.9129 | PG60: 268168.0628 | PH60: 273531.3724 | PI60: 279001.9449 | PJ60: 284581.9251 | PK60: 290273.5012 | PL60: 296078.9046 | PM60: 302000.4117 | PN60: 308040.3443 | PO60: 314201.0706 | PP60: 320485.0061 | PQ60: 326894.6147 | PR60: 333432.4094 | PS60: 340100.9536 | PT60: 346902.8618 | PU60: 353840.8009 | PV60: 360917.491 | PW60: 368135.7066 | PX60: 375498.2778 | PY60: 383008.0909 | PZ60: 390668.0903 | QA60: 398481.2789 | QB60: 406450.72 | QC60: 414579.5378 | QD60: 422870.9189 | QE60: 431328.1139 | QF60: 439954.4382 | QG60: 448753.2732 | QH60: 457728.0683 | QI60: 466882.3414 | QJ60: 476219.6811 | QK60: 485743.7474 | QL60: =QL58*$D$60 -> 495458.2735 | QM60: 505367.0671 | QN60: 515474.0121 | QO60: 525783.07 | QP60: 536298.2813 | QQ60: 547023.7672 | QR60: 557963.7312 | QS60: 569122.461 | QT60: 580504.3294 | QU60: 592113.797 | QV60: 603955.4133 | QW60: 616033.8185 | QX60: 628353.7456 | QY60: 640920.0219 | QZ60: 653737.5712 | RA60: 666811.4155 | RB60: 680146.6771 | RC60: 693748.5803 | RD60: 707622.4538 | RE60: 721773.7325 | RF60: 736207.9598 | RG60: 750930.7896 | RH60: 765947.9886 | RI60: 781265.4384 | RJ60: 796889.1378 | RK60: 812825.2054 | RL60: 829079.8816 | RM60: 845659.531 | RN60: 862570.6453 | RO60: 879819.8452 | RP60: 897413.8837 | RQ60: 915359.6478 | RR60: 933664.1618 | RS60: 952334.5899 | RT60: 971378.2388 | RU60: 990802.5605 | RV60: 1010615.155 | RW60: 1030823.775 | RX60: 1051436.324 | RY60: 1072460.866 | RZ60: 1093905.624 | SA60: 1115778.984 | SB60: 1138089.498 | SC60: 1160845.89 | SD60: 1184057.054 | SE60: 1207732.063 | SF60: 1231880.169 | SG60: 1256510.807 | SH60: 1281633.6 | SI60: 1307258.36 | SJ60: 1333395.095 | SK60: 1360054.01 | SL60: 1387245.513 | SM60: 1414980.216 | SN60: 1443268.941 | SO60: 1472122.725 | SP60: 1501552.822 | SQ60: 1531570.709 | SR60: 1562188.086 | SS60: 1593416.889 | ST60: 1625269.283 | SU60: 1657757.676 | SV60: 1690894.72 | SW60: 1724693.314 | SX60: =SX58*$D$60 -> 1759166.61 | SY60: 1794328.018 | SZ60: 1830191.213 | TA60: 1866770.135 | TB60: 1904078.998 | TC60: 1942132.292 | TD60: 1980944.792 | TE60: 2020531.558 | TF60: 2060907.947 | TG60: 2102089.612 | TH60: 2144092.509 | TI60: 2186932.906 | TJ60: 2230627.384 | TK60: 2275192.846 | TL60: 2320646.52 | TM60: 2367005.967 | TN60: 2414289.085 | TO60: 2462514.117 | TP60: 2511699.653 | TQ60: 2561864.641 | TR60: 2613028.391 | TS60: 2665210.578 | TT60: 2718431.253 | TU60: 2772710.848 | TV60: 2828070.178 | TW60: 2884530.454 | TX60: 2942113.284 | TY60: 3000840.681 | TZ60: 3060735.072 | UA60: 3121819.297 | UB60: 3184116.626 | UC60: 3247650.754 | UD60: 3312445.817 | UE60: 3378526.392 | UF60: 3445917.507 | UG60: 3514644.643 | UH60: 3584733.744 | UI60: 3656211.224 | UJ60: 3729103.968 | UK60: 3803439.341 | UL60: 3879245.194 | UM60: 3956549.871 | UN60: 4035382.209 | UO60: 4115771.55 | UP60: 4197747.742 | UQ60: 4281341.145 | UR60: 4366582.635 | US60: 4453503.61 | UT60: 4542135.993 | UU60: 4632512.235 | UV60: 4724665.32 | UW60: 4818628.766 | UX60: 4914436.631 | UY60: 5012123.509 | UZ60: 5111724.539 | VA60: 5213275.399 | VB60: 5316812.311 | VC60: 5422372.04 | VD60: 5529991.888 | VE60: 5639709.699 | VF60: 5751563.852 | VG60: 5865593.258 | VH60: 5981837.355 | VI60: 6100336.103 | VJ60: =VJ58*$D$60 -> 6221129.975 | VK60: 6344259.951 | VL60: 6469767.506 | VM60: 6597694.598 | VN60: 6728083.66 | VO60: 6860977.578 | VP60: 6996419.68 | VQ60: 7134453.713 | VR60: 7275123.829 | VS60: 7418474.551 | VT60: 7564550.759 | VU60: 7713397.654 | VV60: 7865060.726 | VW60: 8019585.728 | VX60: 8177018.627 | VY60: 8337405.571 | VZ60: 8500792.841 | WA60: 8667226.801 | WB60: 8836753.845 | WC60: 9009420.338 | WD60: 9185272.555 | WE60: 9364356.609 | WF60: 9546718.376 | WG60: 9732403.419 | WH60: 9921456.894 | WI60: 10113923.46 | WJ60: 10309847.18 | WK60: 10509271.39 | WL60: 10712238.62 | WM60: 10918790.43 | WN60: 11128967.27 | WO60: 11342808.38 | WP60: 11560351.56 | WQ60: 11781633.05 | WR60: 12006687.33 | WS60: 12235546.92 | WT60: 12468242.15 | WU60: 12704800.97 | WV60: 12945248.66 | WW60: 13189607.61 | WX60: 13437896.98 | WY60: 13690132.46 | WZ60: 13946325.91 | XA60: 14206485 | XB60: 14470612.87 | XC60: 14738707.7 | XD60: 15010762.29 | XE60: 15286763.62 | XF60: 15566692.34 | XG60: 15850522.24 | XH60: 16138219.69 | XI60: 16429743.06 | XJ60: 16725042.06 | XK60: 17024057.04 | XL60: 17326718.28 | XM60: 17632945.18 | XN60: 17942645.44 | XO60: 18255714.15 | XP60: 18572032.83 | XQ60: 18891468.41 | XR60: 19213872.13 | XS60: 19539078.37 | XT60: 19866903.38 | XU60: 20197144.01 | XV60: =XV58*$D$60 -> 20529576.18 | XW60: 20863953.47 | XX60: 21200005.4 | XY60: 21537435.74 | XZ60: 21875920.66 | YA60: 22215106.74 | YB60: 22554608.84 | YC60: 22894007.88 | YD60: 23232848.41 | YE60: 23570636.06 | YF60: 23906834.78 | YG60: 24240863.92 | YH60: 24572095.14 | YI60: 24899849.03 | YJ60: 25223391.61 | YK60: 25541930.51 | YL60: 25854610.92 | YM60: 26160511.3 | YN60: 26458638.79 | YO60: 26747924.28 | YP60: 27027217.16 | YQ60: 27295279.78 | YR60: 27550781.49 | YS60: 27792292.24 | YT60: 28018275.88 | YU60: 28227082.88 | YV60: 28416942.67 | YW60: 28585955.37 | YX60: 28732083.11 | YY60: 28853140.62 | YZ60: 28946785.3 | ZA60: 29010506.6 | ZB60: 29041614.68 | ZC60: 29037228.37 | ZD60: 28994262.25 | ZE60: 28909412.94 | ZF60: 28779144.5 | ZG60: 28599672.75 | ZH60: 28366948.72 | ZI60: 28076640.83 | ZJ60: 27724116.04 | ZK60: 27304419.66 | ZL60: 26812253.86 | ZM60: 26241954.76 | ZN60: 25587468.01 | ZO60: 24842322.7 | ZP60: 23999603.68 | ZQ60: 23051921.9 | ZR60: 21991382.86 | ZS60: 20809553.02 | ZT60: 19497423.91 | ZU60: 18045373.94 | ZV60: 16443127.63 | ZW60: 14679712.2 | ZX60: 12743411.26 | ZY60: 10621715.49 | ZZ60: 8301270.033 | AAA60: 5767818.392 | AAB60: 3006142.701
C61: Less: Tax Shield | D61: =D86 -> 0.3 | E61: =$D$61*E60 -> 20.44835324 | F61: =$D$61*F60 -> 20.8573203 | G61: 21.27446671 | H61: 21.69995604 | I61: 22.13395517 | J61: 22.57663427 | K61: 23.02816695 | L61: 23.48873029 | M61: 23.9585049 | N61: 24.437675 | O61: 24.9264285 | P61: 25.42495707 | Q61: 25.93345621 | R61: 26.45212533 | S61: 26.98116784 | T61: 27.5207912 | U61: 28.07120702 | V61: 28.63263116 | W61: 29.20528378 | X61: 29.78938946 | Y61: 30.38517725 | Z61: 30.99288079 | AA61: 31.61273841 | AB61: 32.24499318 | AC61: 32.88989304 | AD61: 33.5476909 | AE61: 34.21864472 | AF61: 34.90301761 | AG61: 35.60107797 | AH61: 36.31309953 | AI61: 37.03936152 | AJ61: 37.78014875 | AK61: 38.53575172 | AL61: 39.30646676 | AM61: 40.09259609 | AN61: 40.89444801 | AO61: 41.71233697 | AP61: 42.54658371 | AQ61: 43.39751539 | AR61: 44.26546569 | AS61: 45.15077501 | AT61: 46.05379051 | AU61: 46.97486632 | AV61: 47.91436365 | AW61: 48.87265092 | AX61: 49.85010394 | AY61: 50.84710602 | AZ61: 51.86404814 | BA61: 52.9013291 | BB61: 53.95935568 | BC61: 55.03854279 | BD61: 56.13931365 | BE61: 57.26209992 | BF61: 58.40734192 | BG61: 59.57548876 | BH61: 60.76699854 | BI61: 61.98233851 | BJ61: 63.22198528 | BK61: 64.48642498 | BL61: 65.77615348 | BM61: 67.09167655 | BN61: 68.43351008 | BO61: 69.80218028 | BP61: 71.19822389 | BQ61: 72.62218837 | BR61: =$D$61*BR60 -> 74.07463213 | BS61: 75.55612478 | BT61: 77.06724727 | BU61: 78.60859222 | BV61: 80.18076406 | BW61: 81.78437934 | BX61: 83.42006693 | BY61: 85.08846827 | BZ61: 86.79023763 | CA61: 88.52604239 | CB61: 90.29656323 | CC61: 92.1024945 | CD61: 93.94454439 | CE61: 95.82343528 | CF61: 97.73990398 | CG61: 99.69470206 | CH61: 101.6885961 | CI61: 103.722368 | CJ61: 105.7968154 | CK61: 107.9127517 | CL61: 110.0710067 | CM61: 112.2724269 | CN61: 114.5178754 | CO61: 116.8082329 | CP61: 119.1443976 | CQ61: 121.5272855 | CR61: 123.9578312 | CS61: 126.4369879 | CT61: 128.9657276 | CU61: 131.5450422 | CV61: 134.175943 | CW61: 136.8594619 | CX61: 139.5966511 | CY61: 142.3885841 | CZ61: 145.2363558 | DA61: 148.1410829 | DB61: 151.1039046 | DC61: 154.1259827 | DD61: 157.2085023 | DE61: 160.3526724 | DF61: 163.5597258 | DG61: 166.8309203 | DH61: 170.1675387 | DI61: 173.5708895 | DJ61: 177.0423073 | DK61: 180.5831535 | DL61: 184.1948165 | DM61: 187.8787129 | DN61: 191.6362871 | DO61: 195.4690129 | DP61: 199.3783931 | DQ61: 203.365961 | DR61: 207.4332802 | DS61: 211.5819458 | DT61: 215.8135847 | DU61: 220.1298564 | DV61: 224.5324535 | DW61: 229.0231026 | DX61: 233.6035647 | DY61: 238.2756359 | DZ61: 243.0411487 | EA61: 247.9019716 | EB61: 252.8600111 | EC61: 257.9172113 | ED61: =$D$61*ED60 -> 263.0755555 | EE61: 268.3370666 | EF61: 273.703808 | EG61: 279.1778841 | EH61: 284.7614418 | EI61: 290.4566706 | EJ61: 296.2658041 | EK61: 302.1911201 | EL61: 308.2349425 | EM61: 314.3996414 | EN61: 320.6876342 | EO61: 327.1013869 | EP61: 333.6434146 | EQ61: 340.3162829 | ER61: 347.1226086 | ES61: 354.0650608 | ET61: 361.146362 | EU61: 368.3692892 | EV61: 375.736675 | EW61: 383.2514085 | EX61: 390.9164367 | EY61: 398.7347654 | EZ61: 406.7094607 | FA61: 414.8436499 | FB61: 423.1405229 | FC61: 431.6033334 | FD61: 440.2354 | FE61: 449.040108 | FF61: 458.0209102 | FG61: 467.1813284 | FH61: 476.524955 | FI61: 486.0554541 | FJ61: 495.7765631 | FK61: 505.6920944 | FL61: 515.8059363 | FM61: 526.122055 | FN61: 536.6444961 | FO61: 547.377386 | FP61: 558.3249338 | FQ61: 569.4914324 | FR61: 580.8812611 | FS61: 592.4988863 | FT61: 604.348864 | FU61: 616.4358413 | FV61: 628.7645581 | FW61: 641.3398493 | FX61: 654.1666463 | FY61: 667.2499792 | FZ61: 680.5949788 | GA61: 694.2068783 | GB61: 708.0910159 | GC61: 722.2528362 | GD61: 736.6978929 | GE61: 751.4318508 | GF61: 766.4604878 | GG61: 781.7896976 | GH61: 797.4254915 | GI61: 813.3740013 | GJ61: 829.6414813 | GK61: 846.234311 | GL61: 863.1589972 | GM61: 880.4221771 | GN61: 898.0306207 | GO61: 915.9912331 | GP61: =$D$61*GP60 -> 934.3110577 | GQ61: 952.9972789 | GR61: 972.0572244 | GS61: 991.4983689 | GT61: 1011.328336 | GU61: 1031.554903 | GV61: 1052.186001 | GW61: 1073.229721 | GX61: 1094.694315 | GY61: 1116.588202 | GZ61: 1138.919966 | HA61: 1161.698365 | HB61: 1184.932332 | HC61: 1208.630979 | HD61: 1232.803599 | HE61: 1257.45967 | HF61: 1282.608864 | HG61: 1308.261041 | HH61: 1334.426262 | HI61: 1361.114787 | HJ61: 1388.337083 | HK61: 1416.103824 | HL61: 1444.425901 | HM61: 1473.314419 | HN61: 1502.780707 | HO61: 1532.836321 | HP61: 1563.493048 | HQ61: 1594.762909 | HR61: 1626.658167 | HS61: 1659.19133 | HT61: 1692.375157 | HU61: 1726.22266 | HV61: 1760.747113 | HW61: 1795.962055 | HX61: 1831.881296 | HY61: 1868.518922 | HZ61: 1905.8893 | IA61: 1944.007086 | IB61: 1982.887228 | IC61: 2022.544972 | ID61: 2062.995871 | IE61: 2104.255789 | IF61: 2146.340904 | IG61: 2189.267722 | IH61: 2233.053077 | II61: 2277.714138 | IJ61: 2323.268421 | IK61: 2369.733789 | IL61: 2417.128464 | IM61: 2465.471034 | IN61: 2514.780454 | IO61: 2565.076063 | IP61: 2616.377584 | IQ61: 2668.705135 | IR61: 2722.079238 | IS61: 2776.520822 | IT61: 2832.051238 | IU61: 2888.692263 | IV61: 2946.466108 | IW61: 3005.39543 | IX61: 3065.503338 | IY61: 3126.813404 | IZ61: 3189.349672 | JA61: 3253.136665 | JB61: =$D$61*JB60 -> 3318.199397 | JC61: 3384.563385 | JD61: 3452.254652 | JE61: 3521.299744 | JF61: 3591.725739 | JG61: 3663.560253 | JH61: 3736.831457 | JI61: 3811.568085 | JJ61: 3887.799446 | JK61: 3965.555434 | JL61: 4044.866542 | JM61: 4125.763872 | JN61: 4208.279148 | JO61: 4292.44473 | JP61: 4378.293623 | JQ61: 4465.859494 | JR61: 4555.176683 | JS61: 4646.280215 | JT61: 4739.205818 | JU61: 4833.989932 | JV61: 4930.669729 | JW61: 5029.283122 | JX61: 5129.868782 | JY61: 5232.466155 | JZ61: 5337.115476 | KA61: 5443.857783 | KB61: 5552.734936 | KC61: 5663.789632 | KD61: 5777.065422 | KE61: 5892.606727 | KF61: 6010.458858 | KG61: 6130.668031 | KH61: 6253.281388 | KI61: 6378.347012 | KJ61: 6505.913948 | KK61: 6636.032222 | KL61: 6768.752861 | KM61: 6904.127913 | KN61: 7042.210465 | KO61: 7183.054669 | KP61: 7326.715756 | KQ61: 7473.250064 | KR61: 7622.715058 | KS61: 7775.169351 | KT61: 7930.672729 | KU61: 8089.286175 | KV61: 8251.071889 | KW61: 8416.093317 | KX61: 8584.415172 | KY61: 8756.103464 | KZ61: 8931.225521 | LA61: 9109.850018 | LB61: 9292.047004 | LC61: 9477.88793 | LD61: 9667.445672 | LE61: 9860.794569 | LF61: 10058.01044 | LG61: 10259.17063 | LH61: 10464.35402 | LI61: 10673.64108 | LJ61: 10887.11388 | LK61: 11104.85613 | LL61: 11326.95323 | LM61: 11553.49227 | LN61: =$D$61*LN60 -> 11784.56208 | LO61: 12020.25329 | LP61: 12260.65832 | LQ61: 12505.87145 | LR61: 12755.98884 | LS61: 13011.10858 | LT61: 13271.33071 | LU61: 13536.75727 | LV61: 13807.49237 | LW61: 14083.64216 | LX61: 14365.31495 | LY61: 14652.62119 | LZ61: 14945.67355 | MA61: 15244.58695 | MB61: 15549.47861 | MC61: 15860.46811 | MD61: 16177.67739 | ME61: 16501.23084 | MF61: 16831.25537 | MG61: 17167.88037 | MH61: 17511.23787 | MI61: 17861.46252 | MJ61: 18218.69164 | MK61: 18583.06535 | ML61: 18954.72651 | MM61: 19333.8209 | MN61: 19720.49716 | MO61: 20114.90693 | MP61: 20517.20489 | MQ61: 20927.5488 | MR61: 21346.09957 | MS61: 21773.02134 | MT61: 22208.48154 | MU61: 22652.65092 | MV61: 23105.70368 | MW61: 23567.81747 | MX61: 24039.17353 | MY61: 24519.95668 | MZ61: 25010.35547 | NA61: 25510.56222 | NB61: 26020.77308 | NC61: 26541.18813 | ND61: 27072.01146 | NE61: 27613.45122 | NF61: 28165.71975 | NG61: 28729.03361 | NH61: 29303.61372 | NI61: 29889.6854 | NJ61: 30487.47846 | NK61: 31097.22735 | NL61: 31719.17117 | NM61: 32353.55382 | NN61: 33000.62407 | NO61: 33660.63567 | NP61: 34333.84744 | NQ61: 35020.52339 | NR61: 35720.93279 | NS61: 36435.35031 | NT61: 37164.05611 | NU61: 37907.33594 | NV61: 38665.48128 | NW61: 39438.78944 | NX61: 40227.56367 | NY61: 41032.11327 | NZ61: =$D$61*NZ60 -> 41852.75376 | OA61: 42689.80695 | OB61: 43543.60107 | OC61: 44414.47094 | OD61: 45302.75807 | OE61: 46208.81079 | OF61: 47132.9844 | OG61: 48075.64132 | OH61: 49037.15119 | OI61: 50017.89107 | OJ61: 51018.24553 | OK61: 52038.60686 | OL61: 53079.37519 | OM61: 54140.95863 | ON61: 55223.77347 | OO61: 56328.24433 | OP61: 57454.80429 | OQ61: 58603.89514 | OR61: 59775.96745 | OS61: 60971.48085 | OT61: 62190.90412 | OU61: 63434.71543 | OV61: 64703.40253 | OW61: 65997.4629 | OX61: 67317.40397 | OY61: 68663.74332 | OZ61: 70037.00889 | PA61: 71437.73915 | PB61: 72866.48337 | PC61: 74323.80178 | PD61: 75810.26582 | PE61: 77326.45834 | PF61: 78872.97388 | PG61: 80450.41883 | PH61: 82059.41172 | PI61: 83700.58346 | PJ61: 85374.57754 | PK61: 87082.05035 | PL61: 88823.67138 | PM61: 90600.12352 | PN61: 92412.1033 | PO61: 94260.32118 | PP61: 96145.50183 | PQ61: 98068.3844 | PR61: 100029.7228 | PS61: 102030.2861 | PT61: 104070.8585 | PU61: 106152.2403 | PV61: 108275.2473 | PW61: 110440.712 | PX61: 112649.4833 | PY61: 114902.4273 | PZ61: 117200.4271 | QA61: 119544.3837 | QB61: 121935.216 | QC61: 124373.8613 | QD61: 126861.2757 | QE61: 129398.4342 | QF61: 131986.3314 | QG61: 134625.982 | QH61: 137318.4205 | QI61: 140064.7024 | QJ61: 142865.9043 | QK61: 145723.1242 | QL61: =$D$61*QL60 -> 148637.482 | QM61: 151610.1201 | QN61: 154642.2036 | QO61: 157734.921 | QP61: 160889.4844 | QQ61: 164107.1302 | QR61: 167389.1194 | QS61: 170736.7383 | QT61: 174151.2988 | QU61: 177634.1391 | QV61: 181186.624 | QW61: 184810.1456 | QX61: 188506.1237 | QY61: 192276.0066 | QZ61: 196121.2714 | RA61: 200043.4247 | RB61: 204044.0031 | RC61: 208124.5741 | RD61: 212286.7361 | RE61: 216532.1197 | RF61: 220862.3879 | RG61: 225279.2369 | RH61: 229784.3966 | RI61: 234379.6315 | RJ61: 239066.7414 | RK61: 243847.5616 | RL61: 248723.9645 | RM61: 253697.8593 | RN61: 258771.1936 | RO61: 263945.9536 | RP61: 269224.1651 | RQ61: 274607.8943 | RR61: 280099.2485 | RS61: 285700.377 | RT61: 291413.4716 | RU61: 297240.7681 | RV61: 303184.5466 | RW61: 309247.1324 | RX61: 315430.8973 | RY61: 321738.2599 | RZ61: 328171.6873 | SA61: 334733.6952 | SB61: 341426.8495 | SC61: 348253.7669 | SD61: 355217.1162 | SE61: 362319.6189 | SF61: 369564.0506 | SG61: 376953.2421 | SH61: 384490.0799 | SI61: 392177.508 | SJ61: 400018.5286 | SK61: 408016.2031 | SL61: 416173.6539 | SM61: 424494.0647 | SN61: 432980.6822 | SO61: 441636.8175 | SP61: 450465.8466 | SQ61: 459471.2126 | SR61: 468656.4259 | SS61: 478025.0666 | ST61: 487580.7849 | SU61: 497327.3029 | SV61: 507268.4161 | SW61: 517407.9941 | SX61: =$D$61*SX60 -> 527749.9829 | SY61: 538298.4055 | SZ61: 549057.364 | TA61: 560031.0406 | TB61: 571223.6994 | TC61: 582639.6876 | TD61: 594283.4375 | TE61: 606159.4675 | TF61: 618272.3842 | TG61: 630626.8835 | TH61: 643227.7527 | TI61: 656079.8717 | TJ61: 669188.2152 | TK61: 682557.8538 | TL61: 696193.9561 | TM61: 710101.7902 | TN61: 724286.7256 | TO61: 738754.235 | TP61: 753509.8959 | TQ61: 768559.3924 | TR61: 783908.5172 | TS61: 799563.1733 | TT61: 815529.3759 | TU61: 831813.2543 | TV61: 848421.0534 | TW61: 865359.1362 | TX61: 882633.9852 | TY61: 900252.2044 | TZ61: 918220.5215 | UA61: 936545.7892 | UB61: 955234.9877 | UC61: 974295.2262 | UD61: 993733.7452 | UE61: 1013557.918 | UF61: 1033775.252 | UG61: 1054393.393 | UH61: 1075420.123 | UI61: 1096863.367 | UJ61: 1118731.19 | UK61: 1141031.802 | UL61: 1163773.558 | UM61: 1186964.961 | UN61: 1210614.663 | UO61: 1234731.465 | UP61: 1259324.323 | UQ61: 1284402.344 | UR61: 1309974.791 | US61: 1336051.083 | UT61: 1362640.798 | UU61: 1389753.671 | UV61: 1417399.596 | UW61: 1445588.63 | UX61: 1474330.989 | UY61: 1503637.053 | UZ61: 1533517.362 | VA61: 1563982.62 | VB61: 1595043.693 | VC61: 1626711.612 | VD61: 1658997.566 | VE61: 1691912.91 | VF61: 1725469.156 | VG61: 1759677.977 | VH61: 1794551.206 | VI61: 1830100.831 | VJ61: =$D$61*VJ60 -> 1866338.993 | VK61: 1903277.985 | VL61: 1940930.252 | VM61: 1979308.38 | VN61: 2018425.098 | VO61: 2058293.273 | VP61: 2098925.904 | VQ61: 2140336.114 | VR61: 2182537.149 | VS61: 2225542.365 | VT61: 2269365.228 | VU61: 2314019.296 | VV61: 2359518.218 | VW61: 2405875.718 | VX61: 2453105.588 | VY61: 2501221.671 | VZ61: 2550237.852 | WA61: 2600168.04 | WB61: 2651026.153 | WC61: 2702826.101 | WD61: 2755581.767 | WE61: 2809306.983 | WF61: 2864015.513 | WG61: 2919721.026 | WH61: 2976437.068 | WI61: 3034177.038 | WJ61: 3092954.153 | WK61: 3152781.417 | WL61: 3213671.586 | WM61: 3275637.128 | WN61: 3338690.182 | WO61: 3402842.514 | WP61: 3468105.468 | WQ61: 3534489.915 | WR61: 3602006.2 | WS61: 3670664.075 | WT61: 3740472.645 | WU61: 3811440.291 | WV61: 3883574.599 | WW61: 3956882.282 | WX61: 4031369.094 | WY61: 4107039.739 | WZ61: 4183897.773 | XA61: 4261945.501 | XB61: 4341183.861 | XC61: 4421612.309 | XD61: 4503228.688 | XE61: 4586029.087 | XF61: 4670007.703 | XG61: 4755156.671 | XH61: 4841465.907 | XI61: 4928922.918 | XJ61: 5017512.617 | XK61: 5107217.111 | XL61: 5198015.483 | XM61: 5289883.553 | XN61: 5382793.631 | XO61: 5476714.245 | XP61: 5571609.85 | XQ61: 5667440.524 | XR61: 5764161.64 | XS61: 5861723.51 | XT61: 5960071.015 | XU61: 6059143.202 | XV61: =$D$61*XV60 -> 6158872.855 | XW61: 6259186.041 | XX61: 6360001.619 | XY61: 6461230.722 | XZ61: 6562776.199 | YA61: 6664532.022 | YB61: 6766382.652 | YC61: 6868202.364 | YD61: 6969854.524 | YE61: 7071190.819 | YF61: 7172050.434 | YG61: 7272259.177 | YH61: 7371628.542 | YI61: 7469954.71 | YJ61: 7567017.484 | YK61: 7662579.152 | YL61: 7756383.275 | YM61: 7848153.391 | YN61: 7937591.638 | YO61: 8024377.283 | YP61: 8108165.147 | YQ61: 8188583.935 | YR61: 8265234.446 | YS61: 8337687.672 | YT61: 8405482.764 | YU61: 8468124.865 | YV61: 8525082.8 | YW61: 8575786.612 | YX61: 8619624.934 | YY61: 8655942.186 | YZ61: 8684035.59 | ZA61: 8703151.979 | ZB61: 8712484.405 | ZC61: 8711168.511 | ZD61: 8698278.674 | ZE61: 8672823.883 | ZF61: 8633743.349 | ZG61: 8579901.825 | ZH61: 8510084.615 | ZI61: 8422992.248 | ZJ61: 8317234.811 | ZK61: 8191325.897 | ZL61: 8043676.158 | ZM61: 7872586.429 | ZN61: 7676240.402 | ZO61: 7452696.811 | ZP61: 7199881.105 | ZQ61: 6915576.569 | ZR61: 6597414.858 | ZS61: 6242865.906 | ZT61: 5849227.174 | ZU61: 5413612.183 | ZV61: 4932938.289 | ZW61: 4403913.659 | ZX61: 3823023.377 | ZY61: 3186514.648 | ZZ61: 2490381.01 | AAA61: 1730345.518 | AAB61: 901842.8102
C62: Cash Outflow Net New Debt (Difference in Debt) | E62: =F57-E57 -> 18.35108624 | F62: =G57-F57 -> 18.71810797 | G62: 19.09247012 | H62: 19.47431953 | I62: 19.86380592 | J62: 20.26108204 | K62: 20.66630368 | L62: 21.07962975 | M62: 21.50122235 | N62: 21.93124679 | O62: 22.36987173 | P62: 22.81726916 | Q62: 23.27361455 | R62: 23.73908684 | S62: 24.21386857 | T62: 24.69814595 | U62: 25.19210886 | V62: 25.69595104 | W62: 26.20987006 | X62: 26.73406746 | Y62: 27.26874881 | Z62: 27.81412379 | AA62: 28.37040626 | AB62: 28.93781439 | AC62: 29.51657068 | AD62: 30.10690209 | AE62: 30.70904013 | AF62: 31.32322094 | AG62: 31.94968535 | AH62: 32.58867906 | AI62: 33.24045264 | AJ62: 33.9052617 | AK62: 34.58336693 | AL62: 35.27503427 | AM62: 35.98053495 | AN62: 36.70014565 | AO62: 37.43414857 | AP62: 38.18283154 | AQ62: 38.94648817 | AR62: 39.72541793 | AS62: 40.51992629 | AT62: 41.33032482 | AU62: 42.15693131 | AV62: 43.00006994 | AW62: 43.86007134 | AX62: 44.73727276 | AY62: 45.63201822 | AZ62: 46.54465858 | BA62: 47.47555176 | BB62: 48.42506279 | BC62: 49.39356405 | BD62: 50.38143533 | BE62: 51.38906403 | BF62: 52.41684531 | BG62: 53.46518222 | BH62: 54.53448586 | BI62: 55.62517558 | BJ62: 56.73767909 | BK62: 57.87243268 | BL62: 59.02988133 | BM62: 60.21047896 | BN62: 61.41468853 | BO62: 62.64298231 | BP62: 63.89584195 | BQ62: 65.17375879 | BR62: =BS57-BR57 -> 66.47723397 | BS62: 67.80677865 | BT62: 69.16291422 | BU62: 70.5461725 | BV62: 71.95709595 | BW62: 73.39623787 | BX62: 74.86416263 | BY62: 76.36144588 | BZ62: 77.8886748 | CA62: 79.4464483 | CB62: 81.03537726 | CC62: 82.65608481 | CD62: 84.3092065 | CE62: 85.99539063 | CF62: 87.71529845 | CG62: 89.46960441 | CH62: 91.2589965 | CI62: 93.08417643 | CJ62: 94.94585996 | CK62: 96.84477716 | CL62: 98.7816727 | CM62: 100.7573062 | CN62: 102.7724523 | CO62: 104.8279013 | CP62: 106.9244594 | CQ62: 109.0629485 | CR62: 111.2442075 | CS62: 113.4690917 | CT62: 115.7384735 | CU62: 118.053243 | CV62: 120.4143078 | CW62: 122.822594 | CX62: 125.2790459 | CY62: 127.7846268 | CZ62: 130.3403193 | DA62: 132.9471257 | DB62: 135.6060682 | DC62: 138.3181896 | DD62: 141.0845534 | DE62: 143.9062444 | DF62: 146.7843693 | DG62: 149.7200567 | DH62: 152.7144578 | DI62: 155.768747 | DJ62: 158.8841219 | DK62: 162.0618044 | DL62: 165.3030405 | DM62: 168.6091013 | DN62: 171.9812833 | DO62: 175.420909 | DP62: 178.9293271 | DQ62: 182.5079137 | DR62: 186.158072 | DS62: 189.8812334 | DT62: 193.6788581 | DU62: 197.5524352 | DV62: 201.5034839 | DW62: 205.5335536 | DX62: 209.6442247 | DY62: 213.8371092 | DZ62: 218.1138514 | EA62: 222.4761284 | EB62: 226.925651 | EC62: 231.464164 | ED62: =EE57-ED57 -> 236.0934473 | EE62: 240.8153162 | EF62: 245.6316225 | EG62: 250.544255 | EH62: 255.5551401 | EI62: 260.6662429 | EJ62: 265.8795677 | EK62: 271.1971591 | EL62: 276.6211023 | EM62: 282.1535243 | EN62: 287.7965948 | EO62: 293.5525267 | EP62: 299.4235772 | EQ62: 305.4120488 | ER62: 311.5202897 | ES62: 317.7506955 | ET62: 324.1057094 | EU62: 330.5878236 | EV62: 337.1995801 | EW62: 343.9435717 | EX62: 350.8224431 | EY62: 357.838892 | EZ62: 364.9956698 | FA62: 372.2955832 | FB62: 379.7414949 | FC62: 387.3363248 | FD62: 395.0830513 | FE62: 402.9847123 | FF62: 411.0444065 | FG62: 419.2652947 | FH62: 427.6506006 | FI62: 436.2036126 | FJ62: 444.9276848 | FK62: 453.8262385 | FL62: 462.9027633 | FM62: 472.1608185 | FN62: 481.6040349 | FO62: 491.2361156 | FP62: 501.0608379 | FQ62: 511.0820547 | FR62: 521.3036957 | FS62: 531.7297697 | FT62: 542.364365 | FU62: 553.2116523 | FV62: 564.2758854 | FW62: 575.5614031 | FX62: 587.0726311 | FY62: 598.8140837 | FZ62: 610.7903654 | GA62: 623.0061727 | GB62: 635.4662962 | GC62: 648.1756221 | GD62: 661.1391345 | GE62: 674.3619172 | GF62: 687.8491555 | GG62: 701.6061386 | GH62: 715.6382614 | GI62: 729.9510266 | GJ62: 744.5500471 | GK62: 759.441048 | GL62: 774.6298689 | GM62: 790.1224663 | GN62: 805.9249156 | GO62: 822.0434139 | GP62: =GQ57-GP57 -> 838.4842821 | GQ62: 855.2539678 | GR62: 872.3590471 | GS62: 889.806228 | GT62: 907.6023525 | GU62: 925.7543995 | GV62: 944.2694875 | GW62: 963.1548772 | GX62: 982.4179747 | GY62: 1002.066334 | GZ62: 1022.107661 | HA62: 1042.549814 | HB62: 1063.40081 | HC62: 1084.668826 | HD62: 1106.362203 | HE62: 1128.489447 | HF62: 1151.059236 | HG62: 1174.08042 | HH62: 1197.562029 | HI62: 1221.513269 | HJ62: 1245.943534 | HK62: 1270.862405 | HL62: 1296.279653 | HM62: 1322.205246 | HN62: 1348.649351 | HO62: 1375.622338 | HP62: 1403.134784 | HQ62: 1431.19748 | HR62: 1459.821429 | HS62: 1489.017858 | HT62: 1518.798215 | HU62: 1549.174179 | HV62: 1580.157662 | HW62: 1611.760815 | HX62: 1643.996031 | HY62: 1676.875952 | HZ62: 1710.41347 | IA62: 1744.62174 | IB62: 1779.514174 | IC62: 1815.104457 | ID62: 1851.406546 | IE62: 1888.434677 | IF62: 1926.20337 | IG62: 1964.727437 | IH62: 2004.021985 | II62: 2044.102424 | IJ62: 2084.984472 | IK62: 2126.684161 | IL62: 2169.217844 | IM62: 2212.6022 | IN62: 2256.854244 | IO62: 2301.991328 | IP62: 2348.031154 | IQ62: 2394.991776 | IR62: 2442.891611 | IS62: 2491.749442 | IT62: 2541.58443 | IU62: 2592.416118 | IV62: 2644.264439 | IW62: 2697.149727 | IX62: 2751.09272 | IY62: 2806.114573 | IZ62: 2862.236863 | JA62: 2919.481599 | JB62: =JC57-JB57 -> 2977.87123 | JC62: 3037.428653 | JD62: 3098.177224 | JE62: 3160.140767 | JF62: 3223.34358 | JG62: 3287.81045 | JH62: 3353.566656 | JI62: 3420.637987 | JJ62: 3489.050744 | JK62: 3558.831757 | JL62: 3630.008389 | JM62: 3702.608554 | JN62: 3776.660721 | JO62: 3852.193932 | JP62: 3929.237807 | JQ62: 4007.82256 | JR62: 4087.979007 | JS62: 4169.738582 | JT62: 4253.133349 | JU62: 4338.196011 | JV62: 4424.959926 | JW62: 4513.459119 | JX62: 4603.728295 | JY62: 4695.802854 | JZ62: 4789.718904 | KA62: 4885.513275 | KB62: 4983.223533 | KC62: 5082.887995 | KD62: 5184.545746 | KE62: 5288.236651 | KF62: 5394.001374 | KG62: 5501.881391 | KH62: 5611.919007 | KI62: 5724.157375 | KJ62: 5838.640509 | KK62: 5955.413305 | KL62: 6074.521557 | KM62: 6196.011972 | KN62: 6319.932194 | KO62: 6446.33082 | KP62: 6575.257417 | KQ62: 6706.762545 | KR62: 6840.897774 | KS62: 6977.715706 | KT62: 7117.269995 | KU62: 7259.615369 | KV62: 7404.807648 | KW62: 7552.903771 | KX62: 7703.961814 | KY62: 7858.041016 | KZ62: 8015.2018 | LA62: 8175.505797 | LB62: 8339.015872 | LC62: 8505.796145 | LD62: 8675.912021 | LE62: 8849.430212 | LF62: 9026.418762 | LG62: 9206.947081 | LH62: 9391.085962 | LI62: 9578.907616 | LJ62: 9770.4857 | LK62: 9965.89534 | LL62: 10165.21317 | LM62: 10368.51735 | LN62: =LO57-LN57 -> 10575.88761 | LO62: 10787.40526 | LP62: 11003.15327 | LQ62: 11223.21623 | LR62: 11447.68044 | LS62: 11676.63392 | LT62: 11910.16647 | LU62: 12148.36966 | LV62: 12391.33691 | LW62: 12639.16349 | LX62: 12891.94659 | LY62: 13149.78534 | LZ62: 13412.78086 | MA62: 13681.03627 | MB62: 13954.65678 | MC62: 14233.74969 | MD62: 14518.42443 | ME62: 14808.79266 | MF62: 15104.96823 | MG62: 15407.0673 | MH62: 15715.20833 | MI62: 16029.51216 | MJ62: 16350.10204 | MK62: 16677.10369 | ML62: 17010.64536 | MM62: 17350.85783 | MN62: 17697.87452 | MO62: 18051.83151 | MP62: 18412.86761 | MQ62: 18781.1244 | MR62: 19156.74629 | MS62: 19539.88058 | MT62: 19930.67751 | MU62: 20329.29033 | MV62: 20735.87536 | MW62: 21150.59204 | MX62: 21573.603 | MY62: 22005.07412 | MZ62: 22445.17461 | NA62: 22894.07703 | NB62: 23351.95744 | NC62: 23818.99538 | ND62: 24295.37399 | NE62: 24781.2801 | NF62: 25276.90423 | NG62: 25782.44076 | NH62: 26298.08791 | NI62: 26824.04789 | NJ62: 27360.52696 | NK62: 27907.73548 | NL62: 28465.88805 | NM62: 29035.20352 | NN62: 29615.90515 | NO62: 30208.22065 | NP62: 30812.38229 | NQ62: 31428.62699 | NR62: 32057.19638 | NS62: 32698.33695 | NT62: 33352.30012 | NU62: 34019.34231 | NV62: 34699.72509 | NW62: 35393.71527 | NX62: 36101.58496 | NY62: 36823.61174 | NZ62: =OA57-NZ57 -> 37560.07874 | OA62: 38311.27473 | OB62: 39077.49427 | OC62: 39859.03782 | OD62: 40656.21181 | OE62: 41469.32885 | OF62: 42298.70775 | OG62: 43144.67372 | OH62: 44007.55847 | OI62: 44887.70034 | OJ62: 45785.44445 | OK62: 46701.14278 | OL62: 47635.15438 | OM62: 48587.84547 | ON62: 49559.5896 | OO62: 50550.76777 | OP62: 51561.76861 | OQ62: 52592.98851 | OR62: 53644.83179 | OS62: 54717.71085 | OT62: 55812.04634 | OU62: 56928.2673 | OV62: 58066.81137 | OW62: 59228.12492 | OX62: 60412.66325 | OY62: 61620.89076 | OZ62: 62853.28113 | PA62: 64110.31749 | PB62: 65392.49266 | PC62: 66700.30928 | PD62: 68034.28005 | PE62: 69394.9279 | PF62: 70782.78623 | PG62: 72198.39908 | PH62: 73642.32137 | PI62: 75115.11909 | PJ62: 76617.36957 | PK62: 78149.66165 | PL62: 79712.59592 | PM62: 81306.785 | PN62: 82932.85374 | PO62: 84591.43944 | PP62: 86283.19216 | PQ62: 88008.77493 | PR62: 89768.86403 | PS62: 91564.14923 | PT62: 93395.33407 | PU62: 95263.13615 | PV62: 97168.2874 | PW62: 99111.53434 | PX62: 101093.6384 | PY62: 103115.3762 | PZ62: 105177.5399 | QA62: 107280.9374 | QB62: 109426.3928 | QC62: 111614.7465 | QD62: 113846.8559 | QE62: 116123.5952 | QF62: 118445.8564 | QG62: 120814.5488 | QH62: 123230.6004 | QI62: 125694.9572 | QJ62: 128208.5844 | QK62: 130772.4663 | QL62: =QM57-QL57 -> 133387.6067 | QM62: 136055.0296 | QN62: 138775.7793 | QO62: 141550.9209 | QP62: 144381.5408 | QQ62: 147268.7468 | QR62: 150213.6691 | QS62: 153217.46 | QT62: 156281.295 | QU62: 159406.3728 | QV62: 162593.9162 | QW62: 165845.172 | QX62: 169161.412 | QY62: 172543.9331 | QZ62: 175994.0582 | RA62: 179513.1362 | RB62: 183102.543 | RC62: 186763.6815 | RD62: 190497.9829 | RE62: 194306.9063 | RF62: 198191.94 | RG62: 202154.6017 | RH62: 206196.4393 | RI62: 210319.0311 | RJ62: 214523.9868 | RK62: 218812.9479 | RL62: 223187.5884 | RM62: 227649.6152 | RN62: 232200.769 | RO62: 236842.8251 | RP62: 241577.5933 | RQ62: 246406.9196 | RR62: 251332.686 | RS62: 256356.8118 | RT62: 261481.2537 | RU62: 266708.0073 | RV62: 272039.1072 | RW62: 277476.6277 | RX62: 283022.6841 | RY62: 288679.433 | RZ62: 294449.0731 | SA62: 300333.8464 | SB62: 306336.0384 | SC62: 312457.9792 | SD62: 318702.0444 | SE62: 325070.6559 | SF62: 331566.2824 | SG62: 338191.4409 | SH62: 344948.6969 | SI62: 351840.6658 | SJ62: 358870.0132 | SK62: 366039.4566 | SL62: 373351.7654 | SM62: 380809.7627 | SN62: 388416.3254 | SO62: 396174.3858 | SP62: 404086.9322 | SQ62: 412157.0098 | SR62: 420387.722 | SS62: 428782.231 | ST62: 437343.7591 | SU62: 446075.5891 | SV62: 454981.0662 | SW62: 464063.5981 | SX62: =SY57-SX57 -> 473326.6567 | SY62: 482773.7785 | SZ62: 492408.5659 | TA62: 502234.6884 | TB62: 512255.8831 | TC62: 522475.956 | TD62: 532898.7831 | TE62: 543528.3111 | TF62: 554368.5586 | TG62: 565423.6168 | TH62: 576697.6508 | TI62: 588194.9004 | TJ62: 599919.6809 | TK62: 611876.384 | TL62: 624069.4791 | TM62: 636503.5135 | TN62: 649183.114 | TO62: 662112.9868 | TP62: 675297.9191 | TQ62: 688742.7795 | TR62: 702452.5184 | TS62: 716432.1691 | TT62: 730686.8482 | TU62: 745221.7559 | TV62: 760042.1768 | TW62: 775153.4803 | TX62: 790561.1204 | TY62: 806270.6365 | TZ62: 822287.6534 | UA62: 838617.881 | UB62: 855267.1145 | UC62: 872241.2344 | UD62: 889546.2057 | UE62: 907188.0778 | UF62: 925172.9835 | UG62: 943507.1388 | UH62: 962196.8414 | UI62: 981248.4698 | UJ62: 1000668.482 | UK62: 1020463.413 | UL62: 1040639.876 | UM62: 1061204.555 | UN62: 1082164.209 | UO62: 1103525.662 | UP62: 1125295.807 | UQ62: 1147481.599 | UR62: 1170090.05 | US62: 1193128.23 | UT62: 1216603.257 | UU62: 1240522.295 | UV62: 1264892.547 | UW62: 1289721.25 | UX62: 1315015.671 | UY62: 1340783.092 | UZ62: 1367030.811 | VA62: 1393766.129 | VB62: 1420996.34 | VC62: 1448728.725 | VD62: 1476970.534 | VE62: 1505728.983 | VF62: 1535011.235 | VG62: 1564824.385 | VH62: 1595175.453 | VI62: 1626071.358 | VJ62: =VK57-VJ57 -> 1657518.907 | VK62: 1689524.773 | VL62: 1722095.479 | VM62: 1755237.368 | VN62: 1788956.587 | VO62: 1823259.06 | VP62: 1858150.456 | VQ62: 1893636.166 | VR62: 1929721.268 | VS62: 1966410.493 | VT62: 2003708.191 | VU62: 2041618.288 | VV62: 2080144.247 | VW62: 2119289.025 | VX62: 2159055.019 | VY62: 2199444.019 | VZ62: 2240457.152 | WA62: 2282094.822 | WB62: 2324356.645 | WC62: 2367241.384 | WD62: 2410746.874 | WE62: 2454869.946 | WF62: 2499606.342 | WG62: 2544950.625 | WH62: 2590896.088 | WI62: 2637434.646 | WJ62: 2684556.731 | WK62: 2732251.174 | WL62: 2780505.08 | WM62: 2829303.696 | WN62: 2878630.267 | WO62: 2928465.883 | WP62: 2978789.32 | WQ62: 3029576.863 | WR62: 3080802.119 | WS62: 3132435.825 | WT62: 3184445.628 | WU62: 3236795.864 | WV62: 3289447.317 | WW62: 3342356.957 | WX62: 3395477.668 | WY62: 3448757.953 | WZ62: 3502141.62 | XA62: 3555567.448 | XB62: 3608968.829 | XC62: 3662273.384 | XD62: 3715402.56 | XE62: 3768271.194 | XF62: 3820787.047 | XG62: 3872850.313 | XH62: 3924353.088 | XI62: 3975178.808 | XJ62: 4025201.65 | XK62: 4074285.887 | XL62: 4122285.208 | XM62: 4169041.985 | XN62: 4214386.5 | XO62: 4258136.11 | XP62: 4300094.362 | XQ62: 4340050.056 | XR62: 4377776.227 | XS62: 4413029.081 | XT62: 4445546.844 | XU62: 4475048.542 | XV62: =XW57-XV57 -> 4501232.699 | XW62: 4523775.948 | XX62: 4542331.55 | XY62: 4556527.813 | XZ62: 4565966.411 | YA62: 4570220.587 | YB62: 4568833.234 | YC62: 4561314.863 | YD62: 4547141.416 | YE62: 4525751.952 | YF62: 4496546.171 | YG62: 4458881.774 | YH62: 4412071.653 | YI62: 4355380.89 | YJ62: 4288023.563 | YK62: 4209159.333 | YL62: 4117889.818 | YM62: 4013254.711 | YN62: 3894227.657 | YO62: 3759711.85 | YP62: 3608535.335 | YQ62: 3439446.012 | YR62: 3251106.3 | YS62: 3042087.452 | YT62: 2810863.495 | YU62: 2555804.771 | YV62: 2275171.05 | YW62: 1967104.189 | YX62: 1629620.31 | YY62: 1260601.456 | YZ62: 857786.7038 | ZA62: 418762.6839 | ZB62: -59046.51844 | ZC62: -578390.1318 | ZD62: -1142202.176 | ZE62: -1753613.694 | ZF62: -2415965.796 | ZG62: -3132823.554 | ZH62: -3907990.819 | ZI62: -4745526.012 | ZJ62: -5649758.957 | ZK62: -6625308.818 | ZL62: -7677103.225 | ZM62: -8810398.653 | ZN62: -10030802.15 | ZO62: -11344294.48 | ZP62: -12757254.82 | ZQ62: -14276487.06 | ZR62: -15909247.84 | ZS62: -17663276.41 | ZT62: -19546826.53 | ZU62: -21568700.36 | ZV62: -23738284.72 | ZW62: -26065589.55 | ZX62: -28561289.13 | ZY62: -31236765.8 | ZZ62: -34104156.71 | AAA62: -37176403.54 | AAB62: -40467305.59
C63: Debt Cash Flow | E63: =E60-E62-E61 -> 29.36173799 | F63: 29.94897274 | G63: 30.5479522 | H63: 31.15891124 | I63: 31.78208947 | J63: 32.41773126 | K63: 33.06608588 | L63: 33.7274076 | M63: 34.40195575 | N63: 35.08999487 | O63: 35.79179477 | P63: 36.50763066 | Q63: 37.23778327 | R63: 37.98253894 | S63: 38.74218972 | T63: 39.51703351 | U63: 40.30737418 | V63: 41.11352167 | W63: 41.9357921 | X63: 42.77450794 | Y63: 43.6299981 | Z63: 44.50259806 | AA63: 45.39265002 | AB63: 46.30050302 | AC63: 47.22651308 | AD63: 48.17104335 | AE63: 49.13446421 | AF63: 50.1171535 | AG63: 51.11949657 | AH63: 52.1418865 | AI63: 53.18472423 | AJ63: 54.24841871 | AK63: 55.33338709 | AL63: 56.44005483 | AM63: 57.56885593 | AN63: 58.72023304 | AO63: 59.89463771 | AP63: 61.09253046 | AQ63: 62.31438107 | AR63: 63.56066869 | AS63: 64.83188206 | AT63: 66.12851971 | AU63: 67.4510901 | AV63: 68.8001119 | AW63: 70.17611414 | AX63: 71.57963642 | AY63: 73.01122915 | AZ63: 74.47145373 | BA63: 75.96088281 | BB63: 77.48010046 | BC63: 79.02970247 | BD63: 80.61029652 | BE63: 82.22250245 | BF63: 83.8669525 | BG63: 85.54429155 | BH63: 87.25517738 | BI63: 89.00028093 | BJ63: 90.78028655 | BK63: 92.59589228 | BL63: 94.44781013 | BM63: 96.33676633 | BN63: 98.26350166 | BO63: 100.2287717 | BP63: 102.2333471 | BQ63: =BQ60-BQ62-BQ61 -> 104.2780141 | BR63: 106.3635743 | BS63: 108.4908458 | BT63: 110.6606628 | BU63: 112.873876 | BV63: 115.1313535 | BW63: 117.4339806 | BX63: 119.7826602 | BY63: 122.1783134 | BZ63: 124.6218797 | CA63: 127.1143173 | CB63: 129.6566036 | CC63: 132.2497357 | CD63: 134.8947304 | CE63: 137.592625 | CF63: 140.3444775 | CG63: 143.1513671 | CH63: 146.0143944 | CI63: 148.9346823 | CJ63: 151.9133759 | CK63: 154.9516435 | CL63: 158.0506763 | CM63: 161.2116899 | CN63: 164.4359237 | CO63: 167.7246421 | CP63: 171.079135 | CQ63: 174.5007177 | CR63: 177.990732 | CS63: 181.5505467 | CT63: 185.1815576 | CU63: 188.8851887 | CV63: 192.6628925 | CW63: 196.5161504 | CX63: 200.4464734 | CY63: 204.4554028 | CZ63: 208.5445109 | DA63: 212.7154011 | DB63: 216.9697091 | DC63: 221.3091033 | DD63: 225.7352854 | DE63: 230.2499911 | DF63: 234.8549909 | DG63: 239.5520907 | DH63: 244.3431326 | DI63: 249.2299952 | DJ63: 254.2145951 | DK63: 259.298887 | DL63: 264.4848648 | DM63: 269.774562 | DN63: 275.1700533 | DO63: 280.6734544 | DP63: 286.2869234 | DQ63: 292.0126619 | DR63: 297.8529151 | DS63: 303.8099735 | DT63: 309.8861729 | DU63: 316.0838964 | DV63: 322.4055743 | DW63: 328.8536858 | DX63: 335.4307595 | DY63: 342.1393747 | DZ63: 348.9821622 | EA63: 355.9618054 | EB63: 363.0810415 | EC63: =EC60-EC62-EC61 -> 370.3426624 | ED63: 377.7495156 | EE63: 385.3045059 | EF63: 393.0105961 | EG63: 400.870808 | EH63: 408.8882241 | EI63: 417.0659886 | EJ63: 425.4073084 | EK63: 433.9154546 | EL63: 442.5937637 | EM63: 451.4456389 | EN63: 460.4745517 | EO63: 469.6840427 | EP63: 479.0777236 | EQ63: 488.6592781 | ER63: 498.4324636 | ES63: 508.4011129 | ET63: 518.5691352 | EU63: 528.9405179 | EV63: 539.5193282 | EW63: 550.3097148 | EX63: 561.3159091 | EY63: 572.5422273 | EZ63: 583.9930718 | FA63: 595.6729332 | FB63: 607.5863919 | FC63: 619.7381197 | FD63: 632.1328821 | FE63: 644.7755398 | FF63: 657.6710506 | FG63: 670.8244716 | FH63: 684.240961 | FI63: 697.9257802 | FJ63: 711.8842959 | FK63: 726.1219818 | FL63: 740.6444214 | FM63: 755.4573098 | FN63: 770.566456 | FO63: 785.9777852 | FP63: 801.6973409 | FQ63: 817.7312877 | FR63: 834.0859134 | FS63: 850.7676317 | FT63: 867.7829843 | FU63: 885.138644 | FV63: 902.8414169 | FW63: 920.8982452 | FX63: 939.3162102 | FY63: 958.1025344 | FZ63: 977.264585 | GA63: 996.8098768 | GB63: 1016.746074 | GC63: 1037.080996 | GD63: 1057.822616 | GE63: 1078.979068 | GF63: 1100.558649 | GG63: 1122.569822 | GH63: 1145.021219 | GI63: 1167.921643 | GJ63: 1191.280076 | GK63: 1215.105678 | GL63: 1239.407791 | GM63: 1264.195947 | GN63: 1289.479866 | GO63: =GO60-GO62-GO61 -> 1315.269463 | GP63: 1341.574853 | GQ63: 1368.40635 | GR63: 1395.774477 | GS63: 1423.689966 | GT63: 1452.163765 | GU63: 1481.207041 | GV63: 1510.831182 | GW63: 1541.047805 | GX63: 1571.868761 | GY63: 1603.306137 | GZ63: 1635.372259 | HA63: 1668.079704 | HB63: 1701.441299 | HC63: 1735.470125 | HD63: 1770.179527 | HE63: 1805.583118 | HF63: 1841.69478 | HG63: 1878.528676 | HH63: 1916.099249 | HI63: 1954.421234 | HJ63: 1993.509659 | HK63: 2033.379852 | HL63: 2074.047449 | HM63: 2115.528398 | HN63: 2157.838966 | HO63: 2200.995745 | HP63: 2245.01566 | HQ63: 2289.915974 | HR63: 2335.714293 | HS63: 2382.428579 | HT63: 2430.077151 | HU63: 2478.678694 | HV63: 2528.252268 | HW63: 2578.817313 | HX63: 2630.393659 | HY63: 2683.001533 | HZ63: 2736.661563 | IA63: 2791.394795 | IB63: 2847.222691 | IC63: 2904.167144 | ID63: 2962.250487 | IE63: 3021.495497 | IF63: 3081.925407 | IG63: 3143.563915 | IH63: 3206.435194 | II63: 3270.563898 | IJ63: 3335.975176 | IK63: 3402.694679 | IL63: 3470.748573 | IM63: 3540.163545 | IN63: 3610.966816 | IO63: 3683.186152 | IP63: 3756.849875 | IQ63: 3831.986873 | IR63: 3908.626611 | IS63: 3986.799143 | IT63: 4066.535126 | IU63: 4147.865829 | IV63: 4230.823146 | IW63: 4315.439609 | IX63: 4401.748401 | IY63: 4489.78337 | IZ63: 4579.579037 | JA63: =JA60-JA62-JA61 -> 4671.170618 | JB63: 4764.594031 | JC63: 4859.885912 | JD63: 4957.08363 | JE63: 5056.225303 | JF63: 5157.34981 | JG63: 5260.496807 | JH63: 5365.706743 | JI63: 5473.020879 | JJ63: 5582.481297 | JK63: 5694.130923 | JL63: 5808.013542 | JM63: 5924.173814 | JN63: 6042.657291 | JO63: 6163.510437 | JP63: 6286.780647 | JQ63: 6412.51626 | JR63: 6540.766587 | JS63: 6671.581919 | JT63: 6805.013559 | JU63: 6941.113831 | JV63: 7079.936109 | JW63: 7221.534832 | JX63: 7365.96553 | JY63: 7513.284842 | JZ63: 7663.55054 | KA63: 7816.821552 | KB63: 7973.157985 | KC63: 8132.621147 | KD63: 8295.273571 | KE63: 8461.179045 | KF63: 8630.402628 | KG63: 8803.010683 | KH63: 8979.070899 | KI63: 9158.652319 | KJ63: 9341.825368 | KK63: 9528.661879 | KL63: 9719.235119 | KM63: 9913.619825 | KN63: 10111.89223 | KO63: 10314.13007 | KP63: 10520.41268 | KQ63: 10730.82094 | KR63: 10945.43736 | KS63: 11164.34611 | KT63: 11387.63304 | KU63: 11615.38571 | KV63: 11847.69343 | KW63: 12084.6473 | KX63: 12326.34025 | KY63: 12572.86707 | KZ63: 12824.32441 | LA63: 13080.81091 | LB63: 13342.42714 | LC63: 13609.27569 | LD63: 13881.46121 | LE63: 14159.09045 | LF63: 14442.27227 | LG63: 14731.11773 | LH63: 15025.74009 | LI63: 15326.25491 | LJ63: 15632.78002 | LK63: 15945.43564 | LL63: 16264.34437 | LM63: =LM60-LM62-LM61 -> 16589.63127 | LN63: 16921.42392 | LO63: 17259.85241 | LP63: 17605.04948 | LQ63: 17957.15049 | LR63: 18316.29353 | LS63: 18682.61942 | LT63: 19056.27184 | LU63: 19437.39731 | LV63: 19826.14528 | LW63: 20222.66822 | LX63: 20627.12162 | LY63: 21039.66409 | LZ63: 21460.45741 | MA63: 21889.6666 | MB63: 22327.45998 | MC63: 22774.00923 | MD63: 23229.48947 | ME63: 23694.07931 | MF63: 24167.96096 | MG63: 24651.32024 | MH63: 25144.34671 | MI63: 25647.23371 | MJ63: 26160.17846 | MK63: 26683.38211 | ML63: 27217.04984 | MM63: 27761.39093 | MN63: 28316.61885 | MO63: 28882.95133 | MP63: 29460.61046 | MQ63: 30049.82279 | MR63: 30650.81937 | MS63: 31263.83589 | MT63: 31889.11275 | MU63: 32526.89516 | MV63: 33177.43323 | MW63: 33840.98206 | MX63: 34517.80189 | MY63: 35208.15812 | MZ63: 35912.3215 | NA63: 36630.56815 | NB63: 37363.17975 | NC63: 38110.4436 | ND63: 38872.65274 | NE63: 39650.10608 | NF63: 40443.10851 | NG63: 41251.97101 | NH63: 42077.01078 | NI63: 42918.55137 | NJ63: 43776.92279 | NK63: 44652.46167 | NL63: 45545.51135 | NM63: 46456.42206 | NN63: 47385.55101 | NO63: 48333.26257 | NP63: 49299.9284 | NQ63: 50285.92759 | NR63: 51291.6468 | NS63: 52317.48044 | NT63: 53363.8308 | NU63: 54431.10821 | NV63: 55519.73123 | NW63: 56630.12676 | NX63: 57762.73026 | NY63: =NY60-NY62-NY61 -> 58917.98589 | NZ63: 60096.34671 | OA63: 61298.27481 | OB63: 62524.24155 | OC63: 63774.72771 | OD63: 65050.22368 | OE63: 66351.22966 | OF63: 67678.25587 | OG63: 69031.8227 | OH63: 70412.46098 | OI63: 71820.71214 | OJ63: 73257.12846 | OK63: 74722.27324 | OL63: 76216.72106 | OM63: 77741.05799 | ON63: 79295.88183 | OO63: 80881.80232 | OP63: 82499.44141 | OQ63: 84149.43348 | OR63: 85832.4256 | OS63: 87549.07779 | OT63: 89300.06327 | OU63: 91086.06871 | OV63: 92907.79454 | OW63: 94765.95518 | OX63: 96661.27935 | OY63: 98594.51033 | OZ63: 100566.4063 | PA63: 102577.7405 | PB63: 104629.3019 | PC63: 106721.8949 | PD63: 108856.3402 | PE63: 111033.4749 | PF63: 113254.1528 | PG63: 115519.2449 | PH63: 117829.6393 | PI63: 120186.2423 | PJ63: 122589.978 | PK63: 125041.7892 | PL63: 127542.6373 | PM63: 130093.5032 | PN63: 132695.3873 | PO63: 135349.31 | PP63: 138056.3121 | PQ63: 140817.4553 | PR63: 143633.8225 | PS63: 146506.5183 | PT63: 149436.6692 | PU63: 152425.4245 | PV63: 155473.9563 | PW63: 158583.4603 | PX63: 161755.156 | PY63: 164990.2874 | PZ63: 168290.1233 | QA63: 171655.9578 | QB63: 175089.1112 | QC63: 178590.9299 | QD63: 182162.7874 | QE63: 185806.0845 | QF63: 189522.2504 | QG63: 193312.7424 | QH63: 197179.0474 | QI63: 201122.6818 | QJ63: 205145.1924 | QK63: =QK60-QK62-QK61 -> 209248.1569 | QL63: 213433.1847 | QM63: 217701.9174 | QN63: 222056.0292 | QO63: 226497.2281 | QP63: 231027.2561 | QQ63: 235647.8902 | QR63: 240360.9428 | QS63: 245168.2627 | QT63: 250071.7356 | QU63: 255073.2851 | QV63: 260174.8731 | QW63: 265378.5009 | QX63: 270686.2099 | QY63: 276100.0822 | QZ63: 281622.2416 | RA63: 287254.8547 | RB63: 293000.131 | RC63: 298860.3247 | RD63: 304837.7348 | RE63: 310934.7065 | RF63: 317153.6319 | RG63: 323496.951 | RH63: 329967.1527 | RI63: 336566.7757 | RJ63: 343298.4097 | RK63: 350164.6959 | RL63: 357168.3287 | RM63: 364312.0565 | RN63: 371598.6827 | RO63: 379031.0666 | RP63: 386612.1253 | RQ63: 394344.8338 | RR63: 402232.2272 | RS63: 410277.4012 | RT63: 418483.5134 | RU63: 426853.785 | RV63: 435391.5016 | RW63: 444100.0146 | RX63: 452982.7429 | RY63: 462043.1735 | RZ63: 471284.8639 | SA63: 480711.4424 | SB63: 490326.6104 | SC63: 500134.1436 | SD63: 510137.8933 | SE63: 520341.7882 | SF63: 530749.8357 | SG63: 541366.1239 | SH63: 552194.8228 | SI63: 563240.1862 | SJ63: 574506.5534 | SK63: 585998.3508 | SL63: 597720.0936 | SM63: 609676.3882 | SN63: 621871.9331 | SO63: 634311.5216 | SP63: 647000.0433 | SQ63: 659942.4862 | SR63: 673143.9384 | SS63: 686609.591 | ST63: 700344.739 | SU63: 714354.7844 | SV63: 728645.238 | SW63: =SW60-SW62-SW61 -> 743221.7214 | SX63: 758089.97 | SY63: 773255.8344 | SZ63: 788725.2834 | TA63: 804504.4064 | TB63: 820599.4155 | TC63: 837016.6485 | TD63: 853762.5711 | TE63: 870843.7798 | TF63: 888267.0045 | TG63: 906039.1113 | TH63: 924167.1054 | TI63: 942658.1336 | TJ63: 961519.488 | TK63: 980758.6082 | TL63: 1000383.085 | TM63: 1020400.664 | TN63: 1040819.246 | TO63: 1061646.895 | TP63: 1082891.838 | TQ63: 1104562.469 | TR63: 1126667.355 | TS63: 1149215.235 | TT63: 1172215.029 | TU63: 1195675.837 | TV63: 1219606.948 | TW63: 1244017.837 | TX63: 1268918.178 | TY63: 1294317.84 | TZ63: 1320226.897 | UA63: 1346655.627 | UB63: 1373614.523 | UC63: 1401114.293 | UD63: 1429165.866 | UE63: 1457780.397 | UF63: 1486969.271 | UG63: 1516744.111 | UH63: 1547116.78 | UI63: 1578099.387 | UJ63: 1609704.295 | UK63: 1641944.125 | UL63: 1674831.76 | UM63: 1708380.354 | UN63: 1742603.338 | UO63: 1777514.423 | UP63: 1813127.613 | UQ63: 1849457.203 | UR63: 1886517.794 | US63: 1924324.297 | UT63: 1962891.938 | UU63: 2002236.27 | UV63: 2042373.177 | UW63: 2083318.886 | UX63: 2125089.971 | UY63: 2167703.365 | UZ63: 2211176.366 | VA63: 2255526.65 | VB63: 2300772.277 | VC63: 2346931.703 | VD63: 2394023.787 | VE63: 2442067.806 | VF63: 2491083.462 | VG63: 2541090.895 | VH63: 2592110.696 | VI63: =VI60-VI62-VI61 -> 2644163.914 | VJ63: 2697272.076 | VK63: 2751457.192 | VL63: 2806741.775 | VM63: 2863148.851 | VN63: 2920701.975 | VO63: 2979425.245 | VP63: 3039343.32 | VQ63: 3100481.433 | VR63: 3162865.412 | VS63: 3226521.693 | VT63: 3291477.341 | VU63: 3357760.07 | VV63: 3425398.261 | VW63: 3494420.984 | VX63: 3564858.02 | VY63: 3636739.88 | VZ63: 3710097.836 | WA63: 3784963.939 | WB63: 3861371.046 | WC63: 3939352.853 | WD63: 4018943.915 | WE63: 4100179.68 | WF63: 4183096.522 | WG63: 4267731.768 | WH63: 4354123.738 | WI63: 4442311.776 | WJ63: 4532336.293 | WK63: 4624238.8 | WL63: 4718061.955 | WM63: 4813849.603 | WN63: 4911646.825 | WO63: 5011499.982 | WP63: 5113456.771 | WQ63: 5217566.273 | WR63: 5323879.013 | WS63: 5432447.018 | WT63: 5543323.878 | WU63: 5656564.814 | WV63: 5772226.746 | WW63: 5890368.367 | WX63: 6011050.218 | WY63: 6134334.771 | WZ63: 6260286.518 | XA63: 6388972.054 | XB63: 6520460.181 | XC63: 6654822.005 | XD63: 6792131.044 | XE63: 6932463.344 | XF63: 7075897.593 | XG63: 7222515.253 | XH63: 7372400.695 | XI63: 7525641.335 | XJ63: 7682327.791 | XK63: 7842554.039 | XL63: 8006417.585 | XM63: 8174019.638 | XN63: 8345465.307 | XO63: 8520863.795 | XP63: 8700328.62 | XQ63: 8883977.833 | XR63: 9071934.265 | XS63: 9264325.775 | XT63: 9461285.524 | XU63: =XU60-XU62-XU61 -> 9662952.262 | XV63: 9869470.629 | XW63: 10080991.48 | XX63: 10297672.23 | XY63: 10519677.21 | XZ63: 10747178.05 | YA63: 10980354.13 | YB63: 11219392.95 | YC63: 11464490.65 | YD63: 11715852.47 | YE63: 11973693.29 | YF63: 12238238.17 | YG63: 12509722.97 | YH63: 12788394.95 | YI63: 13074513.43 | YJ63: 13368350.57 | YK63: 13670192.02 | YL63: 13980337.82 | YM63: 14299103.2 | YN63: 14626819.5 | YO63: 14963835.14 | YP63: 15310516.68 | YQ63: 15667249.84 | YR63: 16034440.74 | YS63: 16412517.12 | YT63: 16801929.62 | YU63: 17203153.25 | YV63: 17616688.82 | YW63: 18043064.57 | YX63: 18482837.87 | YY63: 18936596.98 | YZ63: 19404963.01 | ZA63: 19888591.93 | ZB63: 20388176.8 | ZC63: 20904449.99 | ZD63: 21438185.75 | ZE63: 21990202.75 | ZF63: 22561366.94 | ZG63: 23152594.48 | ZH63: 23764854.92 | ZI63: 24399174.59 | ZJ63: 25056640.18 | ZK63: 25738402.58 | ZL63: 26445680.93 | ZM63: 27179766.99 | ZN63: 27942029.75 | ZO63: 28733920.37 | ZP63: 29556977.4 | ZQ63: 30412832.39 | ZR63: 31303215.84 | ZS63: 32229963.52 | ZT63: 33195023.27 | ZU63: 34200462.12 | ZV63: 35248474.06 | ZW63: 36341388.09 | ZX63: 37481677.01 | ZY63: 38671966.65 | ZZ63: 39915045.73 | AAA63: 41213876.41 | AAB63: 42571605.48
C65: Dividend - Equity Cash Flow | E65: =E54-E63 -> 70.63826201 | F65: 72.05102726 | G65: 73.4920478 | H65: 74.96188876 | I65: 76.46112653 | J65: 77.99034906 | K65: 79.55015604 | L65: 81.14115916 | M65: 82.76398235 | N65: 84.41926199 | O65: 86.10764723 | P65: 87.82980018 | Q65: 89.58639618 | R65: 91.37812411 | S65: 93.20568659 | T65: 95.06980032 | U65: 96.97119633 | V65: 98.91062025 | W65: 100.8888327 | X65: 102.9066093 | Y65: 104.9647415 | Z65: 107.0640363 | AA65: 109.2053171 | AB65: 111.3894234 | AC65: 113.6172119 | AD65: 115.8895561 | AE65: 118.2073472 | AF65: 120.5714942 | AG65: 122.982924 | AH65: 125.4425825 | AI65: 127.9514342 | AJ65: 130.5104629 | AK65: 133.1206721 | AL65: 135.7830856 | AM65: 138.4987473 | AN65: 141.2687222 | AO65: 144.0940967 | AP65: 146.9759786 | AQ65: 149.9154982 | AR65: 152.9138081 | AS65: 155.9720843 | AT65: 159.091526 | AU65: 162.2733565 | AV65: 165.5188236 | AW65: 168.8292001 | AX65: 172.2057841 | AY65: 175.6498998 | AZ65: 179.1628978 | BA65: 182.7461557 | BB65: 186.4010789 | BC65: 190.1291004 | BD65: 193.9316824 | BE65: 197.8103161 | BF65: 201.7665224 | BG65: 205.8018529 | BH65: 209.9178899 | BI65: 214.1162477 | BJ65: 218.3985727 | BK65: 222.7665441 | BL65: 227.221875 | BM65: 231.7663125 | BN65: 236.4016388 | BO65: 241.1296715 | BP65: 245.952265 | BQ65: =BQ54-BQ63 -> 250.8713103 | BR65: 255.8887365 | BS65: 261.0065112 | BT65: 266.2266414 | BU65: 271.5511742 | BV65: 276.9821977 | BW65: 282.5218417 | BX65: 288.1722785 | BY65: 293.9357241 | BZ65: 299.8144386 | CA65: 305.8107273 | CB65: 311.9269419 | CC65: 318.1654807 | CD65: 324.5287903 | CE65: 331.0193662 | CF65: 337.6397535 | CG65: 344.3925485 | CH65: 351.2803995 | CI65: 358.3060075 | CJ65: 365.4721277 | CK65: 372.7815702 | CL65: 380.2372016 | CM65: 387.8419456 | CN65: 395.5987846 | CO65: 403.5107603 | CP65: 411.5809755 | CQ65: 419.812595 | CR65: 428.2088469 | CS65: 436.7730238 | CT65: 445.5084843 | CU65: 454.418654 | CV65: 463.507027 | CW65: 472.7771676 | CX65: 482.2327109 | CY65: 491.8773652 | CZ65: 501.7149125 | DA65: 511.7492107 | DB65: 521.9841949 | DC65: 532.4238788 | DD65: 543.0723564 | DE65: 553.9338035 | DF65: 565.0124796 | DG65: 576.3127292 | DH65: 587.8389838 | DI65: 599.5957634 | DJ65: 611.5876787 | DK65: 623.8194323 | DL65: 636.2958209 | DM65: 649.0217374 | DN65: 662.0021721 | DO65: 675.2422155 | DP65: 688.7470599 | DQ65: 702.522001 | DR65: 716.5724411 | DS65: 730.9038899 | DT65: 745.5219677 | DU65: 760.432407 | DV65: 775.6410552 | DW65: 791.1538763 | DX65: 806.9769538 | DY65: 823.1164929 | DZ65: 839.5788227 | EA65: 856.3703992 | EB65: 873.4978072 | EC65: =EC54-EC63 -> 890.9677633 | ED65: 908.7871186 | EE65: 926.962861 | EF65: 945.5021182 | EG65: 964.4121605 | EH65: 983.7004038 | EI65: 1003.374412 | EJ65: 1023.4419 | EK65: 1043.910738 | EL65: 1064.788953 | EM65: 1086.084732 | EN65: 1107.806427 | EO65: 1129.962555 | EP65: 1152.561806 | EQ65: 1175.613042 | ER65: 1199.125303 | ES65: 1223.107809 | ET65: 1247.569965 | EU65: 1272.521365 | EV65: 1297.971792 | EW65: 1323.931228 | EX65: 1350.409852 | EY65: 1377.418049 | EZ65: 1404.96641 | FA65: 1433.065739 | FB65: 1461.727053 | FC65: 1490.961594 | FD65: 1520.780826 | FE65: 1551.196443 | FF65: 1582.220372 | FG65: 1613.864779 | FH65: 1646.142075 | FI65: 1679.064916 | FJ65: 1712.646215 | FK65: 1746.899139 | FL65: 1781.837122 | FM65: 1817.473864 | FN65: 1853.823341 | FO65: 1890.899808 | FP65: 1928.717804 | FQ65: 1967.29216 | FR65: 2006.638004 | FS65: 2046.770764 | FT65: 2087.706179 | FU65: 2129.460303 | FV65: 2172.049509 | FW65: 2215.490499 | FX65: 2259.800309 | FY65: 2304.996315 | FZ65: 2351.096241 | GA65: 2398.118166 | GB65: 2446.080529 | GC65: 2495.00214 | GD65: 2544.902183 | GE65: 2595.800226 | GF65: 2647.716231 | GG65: 2700.670556 | GH65: 2754.683967 | GI65: 2809.777646 | GJ65: 2865.973199 | GK65: 2923.292663 | GL65: 2981.758516 | GM65: 3041.393686 | GN65: 3102.22156 | GO65: =GO54-GO63 -> 3164.265991 | GP65: 3227.551311 | GQ65: 3292.102337 | GR65: 3357.944384 | GS65: 3425.103272 | GT65: 3493.605337 | GU65: 3563.477444 | GV65: 3634.746993 | GW65: 3707.441933 | GX65: 3781.590771 | GY65: 3857.222587 | GZ65: 3934.367038 | HA65: 4013.054379 | HB65: 4093.315467 | HC65: 4175.181776 | HD65: 4258.685412 | HE65: 4343.85912 | HF65: 4430.736302 | HG65: 4519.351028 | HH65: 4609.738049 | HI65: 4701.93281 | HJ65: 4795.971466 | HK65: 4891.890895 | HL65: 4989.728713 | HM65: 5089.523287 | HN65: 5191.313753 | HO65: 5295.140028 | HP65: 5401.042829 | HQ65: 5509.063685 | HR65: 5619.244959 | HS65: 5731.629858 | HT65: 5846.262455 | HU65: 5963.187704 | HV65: 6082.451458 | HW65: 6204.100487 | HX65: 6328.182497 | HY65: 6454.746147 | HZ65: 6583.84107 | IA65: 6715.517891 | IB65: 6849.828249 | IC65: 6986.824814 | ID65: 7126.56131 | IE65: 7269.092536 | IF65: 7414.474387 | IG65: 7562.763874 | IH65: 7714.019152 | II65: 7868.299535 | IJ65: 8025.665525 | IK65: 8186.178836 | IL65: 8349.902412 | IM65: 8516.900461 | IN65: 8687.23847 | IO65: 8860.983239 | IP65: 9038.202904 | IQ65: 9218.966961 | IR65: 9403.3463 | IS65: 9591.413226 | IT65: 9783.241491 | IU65: 9978.90632 | IV65: 10178.48445 | IW65: 10382.05414 | IX65: 10589.69522 | IY65: 10801.48912 | IZ65: 11017.5189 | JA65: =JA54-JA63 -> 11237.86928 | JB65: 11462.62667 | JC65: 11691.8792 | JD65: 11925.71678 | JE65: 12164.23112 | JF65: 12407.51574 | JG65: 12655.66606 | JH65: 12908.77938 | JI65: 13166.95496 | JJ65: 13430.29406 | JK65: 13698.89994 | JL65: 13972.87794 | JM65: 14252.3355 | JN65: 14537.38221 | JO65: 14828.12985 | JP65: 15124.69245 | JQ65: 15427.1863 | JR65: 15735.73002 | JS65: 16050.44462 | JT65: 16371.45351 | JU65: 16698.88258 | JV65: 17032.86023 | JW65: 17373.51743 | JX65: 17720.98778 | JY65: 18075.40754 | JZ65: 18436.91569 | KA65: 18805.654 | KB65: 19181.76708 | KC65: 19565.40242 | KD65: 19956.71046 | KE65: 20355.84467 | KF65: 20762.96156 | KG65: 21178.22079 | KH65: 21601.7852 | KI65: 22033.8209 | KJ65: 22474.49732 | KK65: 22923.98726 | KL65: 23382.46701 | KM65: 23850.11634 | KN65: 24327.11867 | KO65: 24813.66104 | KP65: 25309.93425 | KQ65: 25816.13293 | KR65: 26332.45559 | KS65: 26859.10469 | KT65: 27396.28678 | KU65: 27944.21251 | KV65: 28503.09676 | KW65: 29073.15869 | KX65: 29654.62185 | KY65: 30247.71428 | KZ65: 30852.66856 | LA65: 31469.72192 | LB65: 32099.11635 | LC65: 32741.09867 | LD65: 33395.92064 | LE65: 34063.83904 | LF65: 34745.11581 | LG65: 35440.01811 | LH65: 36148.81846 | LI65: 36871.79482 | LJ65: 37609.2307 | LK65: 38361.4153 | LL65: 39128.64359 | LM65: =LM54-LM63 -> 39911.21644 | LN65: 40709.44075 | LO65: 41523.62955 | LP65: 42354.10212 | LQ65: 43201.18414 | LR65: 44065.20779 | LS65: 44946.51192 | LT65: 45845.44214 | LU65: 46762.35095 | LV65: 47697.59794 | LW65: 48651.54986 | LX65: 49624.58083 | LY65: 50617.0724 | LZ65: 51629.41381 | MA65: 52662.00205 | MB65: 53715.24204 | MC65: 54789.54683 | MD65: 55885.33772 | ME65: 57003.04442 | MF65: 58143.10525 | MG65: 59305.96729 | MH65: 60492.08657 | MI65: 61701.92823 | MJ65: 62935.96672 | MK65: 64194.68597 | ML65: 65478.57961 | MM65: 66788.15111 | MN65: 68123.91403 | MO65: 69486.39221 | MP65: 70876.11994 | MQ65: 72293.64222 | MR65: 73739.51494 | MS65: 75214.30511 | MT65: 76718.59107 | MU65: 78252.96274 | MV65: 79818.02183 | MW65: 81414.38209 | MX65: 83042.66955 | MY65: 84703.52274 | MZ65: 86397.59299 | NA65: 88125.54463 | NB65: 89888.05528 | NC65: 91685.81613 | ND65: 93519.53218 | NE65: 95389.92254 | NF65: 97297.72068 | NG65: 99243.67477 | NH65: 101228.5479 | NI65: 103253.1185 | NJ65: 105318.1805 | NK65: 107424.5437 | NL65: 109573.0341 | NM65: 111764.4943 | NN65: 113999.7837 | NO65: 116279.7788 | NP65: 118605.3738 | NQ65: 120977.4806 | NR65: 123397.0296 | NS65: 125864.9695 | NT65: 128382.2681 | NU65: 130949.9127 | NV65: 133568.9101 | NW65: 136240.2874 | NX65: 138965.0922 | NY65: =NY54-NY63 -> 141744.393 | NZ65: 144579.2798 | OA65: 147470.8642 | OB65: 150420.2802 | OC65: 153428.6845 | OD65: 156497.2568 | OE65: 159627.2004 | OF65: 162819.7428 | OG65: 166076.1359 | OH65: 169397.6568 | OI65: 172785.608 | OJ65: 176241.3181 | OK65: 179766.1423 | OL65: 183361.4627 | OM65: 187028.6895 | ON65: 190769.2606 | OO65: 194584.643 | OP65: 198476.3328 | OQ65: 202445.8562 | OR65: 206494.7699 | OS65: 210624.6616 | OT65: 214837.1509 | OU65: 219133.8897 | OV65: 223516.5631 | OW65: 227986.8896 | OX65: 232546.6223 | OY65: 237197.5494 | OZ65: 241941.4946 | PA65: 246780.3184 | PB65: 251715.9182 | PC65: 256750.2296 | PD65: 261885.2268 | PE65: 267122.9234 | PF65: 272465.3735 | PG65: 277914.672 | PH65: 283472.9558 | PI65: 289142.4047 | PJ65: 294925.242 | PK65: 300823.7352 | PL65: 306840.1976 | PM65: 312976.9884 | PN65: 319236.5141 | PO65: 325621.2295 | PP65: 332133.6381 | PQ65: 338776.2939 | PR65: 345551.8017 | PS65: 352462.8184 | PT65: 359512.0543 | PU65: 366702.2734 | PV65: 374036.2956 | PW65: 381516.9966 | PX65: 389147.31 | PY65: 396930.2279 | PZ65: 404868.8024 | QA65: 412966.1463 | QB65: 421225.435 | QC65: 429649.9073 | QD65: 438242.8666 | QE65: 447007.6825 | QF65: 455947.792 | QG65: 465066.7008 | QH65: 474367.9847 | QI65: 483855.2909 | QJ65: 493532.3398 | QK65: =QK54-QK63 -> 503402.9259 | QL65: 513470.9197 | QM65: 523740.2692 | QN65: 534215.0011 | QO65: 544899.2228 | QP65: 555797.1238 | QQ65: 566912.9773 | QR65: 578251.142 | QS65: 589816.0638 | QT65: 601612.2774 | QU65: 613644.4082 | QV65: 625917.1741 | QW65: 638435.3872 | QX65: 651203.956 | QY65: 664227.8871 | QZ65: 677512.287 | RA65: 691062.3645 | RB65: 704883.4326 | RC65: 718980.9102 | RD65: 733360.3248 | RE65: 748027.3143 | RF65: 762987.6293 | RG65: 778247.1354 | RH65: 793811.8154 | RI65: 809687.7717 | RJ65: 825881.2287 | RK65: 842398.5353 | RL65: 859246.1671 | RM65: 876430.7292 | RN65: 893958.9588 | RO65: 911837.7276 | RP65: 930074.0449 | RQ65: 948675.0597 | RR65: 967648.0642 | RS65: 987000.4961 | RT65: 1006739.942 | RU65: 1026874.139 | RV65: 1047410.981 | RW65: 1068358.518 | RX65: 1089724.96 | RY65: 1111518.684 | RZ65: 1133748.23 | SA65: 1156422.314 | SB65: 1179549.821 | SC65: 1203139.816 | SD65: 1227201.546 | SE65: 1251744.44 | SF65: 1276778.117 | SG65: 1302312.388 | SH65: 1328357.259 | SI65: 1354922.937 | SJ65: 1382019.832 | SK65: 1409658.563 | SL65: 1437849.958 | SM65: 1466605.065 | SN65: 1495935.149 | SO65: 1525851.702 | SP65: 1556366.445 | SQ65: 1587491.332 | SR65: 1619238.556 | SS65: 1651620.553 | ST65: 1684650.008 | SU65: 1718339.857 | SV65: 1752703.297 | SW65: =SW54-SW63 -> 1787753.784 | SX65: 1823505.045 | SY65: 1859971.081 | SZ65: 1897166.171 | TA65: 1935104.877 | TB65: 1973802.053 | TC65: 2013272.85 | TD65: 2053532.717 | TE65: 2094597.414 | TF65: 2136483.013 | TG65: 2179205.907 | TH65: 2222782.813 | TI65: 2267230.783 | TJ65: 2312567.207 | TK65: 2358809.821 | TL65: 2405976.713 | TM65: 2454086.33 | TN65: 2503157.488 | TO65: 2553209.373 | TP65: 2604261.556 | TQ65: 2656333.992 | TR65: 2709447.036 | TS65: 2763621.443 | TT65: 2818878.383 | TU65: 2875239.443 | TV65: 2932726.638 | TW65: 2991362.42 | TX65: 3051169.684 | TY65: 3112171.78 | TZ65: 3174392.516 | UA65: 3237856.174 | UB65: 3302587.513 | UC65: 3368611.784 | UD65: 3435954.733 | UE65: 3504642.614 | UF65: 3574702.2 | UG65: 3646160.79 | UH65: 3719046.219 | UI65: 3793386.872 | UJ65: 3869211.688 | UK65: 3946550.179 | UL65: 4025432.43 | UM65: 4105889.119 | UN65: 4187951.525 | UO65: 4271651.537 | UP65: 4357021.667 | UQ65: 4444095.062 | UR65: 4532905.516 | US65: 4623487.48 | UT65: 4715876.074 | UU65: 4810107.102 | UV65: 4906217.062 | UW65: 5004243.158 | UX65: 5104223.314 | UY65: 5206196.186 | UZ65: 5310201.176 | VA65: 5416278.443 | VB65: 5524468.917 | VC65: 5634814.316 | VD65: 5747357.152 | VE65: 5862140.752 | VF65: 5979209.267 | VG65: 6098607.688 | VH65: 6220381.859 | VI65: =VI54-VI63 -> 6344578.492 | VJ65: 6471245.178 | VK65: 6600430.407 | VL65: 6732183.576 | VM65: 6866555.007 | VN65: 7003595.961 | VO65: 7143358.649 | VP65: 7285896.252 | VQ65: 7431262.93 | VR65: 7579513.839 | VS65: 7730705.143 | VT65: 7884894.032 | VU65: 8042138.73 | VV65: 8202498.515 | VW65: 8366033.727 | VX65: 8532805.786 | VY65: 8702877.202 | VZ65: 8876311.587 | WA65: 9053173.674 | WB65: 9233529.318 | WC65: 9417445.519 | WD65: 9604990.424 | WE65: 9796233.346 | WF65: 9991244.765 | WG65: 10190096.34 | WH65: 10392860.94 | WI65: 10599612.59 | WJ65: 10810426.56 | WK65: 11025379.31 | WL65: 11244548.52 | WM65: 11468013.08 | WN65: 11695853.11 | WO65: 11928149.95 | WP65: 12164986.16 | WQ65: 12406445.52 | WR65: 12652613.02 | WS65: 12903574.85 | WT65: 13159418.43 | WU65: 13420232.34 | WV65: 13686106.35 | WW65: 13957131.39 | WX65: 14233399.54 | WY65: 14515003.98 | WZ65: 14802039.01 | XA65: 15094599.98 | XB65: 15392783.29 | XC65: 15696686.34 | XD65: 16006407.47 | XE65: 16322045.94 | XF65: 16643701.87 | XG65: 16971476.2 | XH65: 17305470.59 | XI65: 17645787.38 | XJ65: 17992529.5 | XK65: 18345800.39 | XL65: 18705703.94 | XM65: 19072344.31 | XN65: 19445825.92 | XO65: 19826253.26 | XP65: 20213730.78 | XQ65: 20608362.75 | XR65: 21010253.13 | XS65: 21419505.37 | XT65: 21836222.24 | XU65: =XU54-XU63 -> 22260505.66 | XV65: 22692456.45 | XW65: 23132174.14 | XX65: 23579756.71 | XY65: 24035300.31 | XZ65: 24498899.01 | YA65: 24970644.47 | YB65: 25450625.62 | YC65: 25938928.29 | YD65: 26435634.85 | YE65: 26940823.78 | YF65: 27454569.24 | YG65: 27976940.59 | YH65: 28508001.89 | YI65: 29047811.34 | YJ65: 29596420.7 | YK65: 30153874.67 | YL65: 30720210.2 | YM65: 31295455.79 | YN65: 31879630.67 | YO65: 32472744.02 | YP65: 33074794.08 | YQ65: 33685767.13 | YR65: 34305636.57 | YS65: 34934361.74 | YT65: 35571886.81 | YU65: 36218139.51 | YV65: 36873029.8 | YW65: 37536448.41 | YX65: 38208265.38 | YY65: 38888328.33 | YZ65: 39576460.81 | ZA65: 40272460.36 | ZB65: 40976096.54 | ZC65: 41687108.81 | ZD65: 42405204.23 | ZE65: 43130055.03 | ZF65: 43861295.99 | ZG65: 44598521.72 | ZH65: 45341283.6 | ZI65: 46089086.7 | ZJ65: 46841386.33 | ZK65: 47597584.47 | ZL65: 48357025.86 | ZM65: 49118993.94 | ZN65: 49882706.39 | ZO65: 50647310.49 | ZP65: 51411878.08 | ZQ65: 52175400.2 | ZR65: 52936781.4 | ZS65: 53694833.66 | ZT65: 54448269.87 | ZU65: 55195696.87 | ZV65: 55935608.12 | ZW65: 56666375.73 | ZX65: 57386242.08 | ZY65: 58093310.83 | ZZ65: 58785537.29 | AAA65: 59460718.27 | AAB65: 60116481.1
C66: Dividend without Neto of Tax Cash Flow | E66: =E54-E60+E62 -> 50.18990878 | F66: =F54-F60+F62 -> 51.19370695 | G66: 52.21758109 | H66: 53.26193271 | I66: 54.32717137 | J66: 55.41371479 | K66: 56.52198909 | L66: 57.65242887 | M66: 58.80547745 | N66: 59.981587 | O66: 61.18121874 | P66: 62.40484311 | Q66: 63.65293997 | R66: 64.92599877 | S66: 66.22451875 | T66: 67.54900912 | U66: 68.89998931 | V66: 70.27798909 | W66: 71.68354887 | X66: 73.11721985 | Y66: 74.57956425 | Z66: 76.07115553 | AA66: 77.59257864 | AB66: 79.14443022 | AC66: 80.72731882 | AD66: 82.3418652 | AE66: 83.9887025 | AF66: 85.66847655 | AG66: 87.38184608 | AH66: 89.129483 | AI66: 90.91207266 | AJ66: 92.73031412 | AK66: 94.5849204 | AL66: 96.47661881 | AM66: 98.40615118 | AN66: 100.3742742 | AO66: 102.3817597 | AP66: 104.4293949 | AQ66: 106.5179828 | AR66: 108.6483424 | AS66: 110.8213093 | AT66: 113.0377355 | AU66: 115.2984902 | AV66: 117.60446 | AW66: 119.9565492 | AX66: 122.3556802 | AY66: 124.8027938 | AZ66: 127.2988497 | BA66: 129.8448266 | BB66: 132.4417232 | BC66: 135.0905576 | BD66: 137.7923688 | BE66: 140.5482162 | BF66: 143.3591805 | BG66: 146.2263641 | BH66: 149.1508914 | BI66: 152.1339092 | BJ66: 155.1765874 | BK66: 158.2801191 | BL66: 161.4457215 | BM66: 164.674636 | BN66: 167.9681287 | BO66: 171.3274912 | BP66: 174.7540411 | BQ66: 178.2491219 | BR66: =BR54-BR60+BR62 -> 181.8141043 | BS66: 185.4503864 | BT66: 189.1593941 | BU66: 192.942582 | BV66: 196.8014337 | BW66: 200.7374623 | BX66: 204.7522116 | BY66: 208.8472558 | BZ66: 213.0242009 | CA66: 217.284685 | CB66: 221.6303787 | CC66: 226.0629862 | CD66: 230.584246 | CE66: 235.1959309 | CF66: 239.8998495 | CG66: 244.6978465 | CH66: 249.5918034 | CI66: 254.5836395 | CJ66: 259.6753123 | CK66: 264.8688185 | CL66: 270.1661949 | CM66: 275.5695188 | CN66: 281.0809092 | CO66: 286.7025273 | CP66: 292.4365779 | CQ66: 298.2853094 | CR66: 304.2510156 | CS66: 310.3360359 | CT66: 316.5427567 | CU66: 322.8736118 | CV66: 329.331084 | CW66: 335.9177057 | CX66: 342.6360598 | CY66: 349.488781 | CZ66: 356.4785567 | DA66: 363.6081278 | DB66: 370.8802903 | DC66: 378.2978961 | DD66: 385.8638541 | DE66: 393.5811312 | DF66: 401.4527538 | DG66: 409.4818088 | DH66: 417.671445 | DI66: 426.0248739 | DJ66: 434.5453714 | DK66: 443.2362788 | DL66: 452.1010044 | DM66: 461.1430245 | DN66: 470.365885 | DO66: 479.7732027 | DP66: 489.3686667 | DQ66: 499.1560401 | DR66: 509.1391609 | DS66: 519.3219441 | DT66: 529.708383 | DU66: 540.3025506 | DV66: 551.1086016 | DW66: 562.1307737 | DX66: 573.3733892 | DY66: 584.8408569 | DZ66: 596.5376741 | EA66: 608.4684276 | EB66: 620.6377961 | EC66: 633.050552 | ED66: =ED54-ED60+ED62 -> 645.7115631 | EE66: 658.6257943 | EF66: 671.7983102 | EG66: 685.2342764 | EH66: 698.938962 | EI66: 712.9177412 | EJ66: 727.176096 | EK66: 741.7196179 | EL66: 756.5540103 | EM66: 771.6850905 | EN66: 787.1187923 | EO66: 802.8611682 | EP66: 818.9183915 | EQ66: 835.2967594 | ER66: 852.0026945 | ES66: 869.0427484 | ET66: 886.4236034 | EU66: 904.1520755 | EV66: 922.235117 | EW66: 940.6798193 | EX66: 959.4934157 | EY66: 978.683284 | EZ66: 998.2569497 | FA66: 1018.222089 | FB66: 1038.58653 | FC66: 1059.358261 | FD66: 1080.545426 | FE66: 1102.156335 | FF66: 1124.199462 | FG66: 1146.683451 | FH66: 1169.61712 | FI66: 1193.009462 | FJ66: 1216.869651 | FK66: 1241.207044 | FL66: 1266.031185 | FM66: 1291.351809 | FN66: 1317.178845 | FO66: 1343.522422 | FP66: 1370.392871 | FQ66: 1397.800728 | FR66: 1425.756743 | FS66: 1454.271877 | FT66: 1483.357315 | FU66: 1513.024461 | FV66: 1543.28495 | FW66: 1574.150649 | FX66: 1605.633662 | FY66: 1637.746336 | FZ66: 1670.501262 | GA66: 1703.911288 | GB66: 1737.989513 | GC66: 1772.749304 | GD66: 1808.20429 | GE66: 1844.368376 | GF66: 1881.255743 | GG66: 1918.880858 | GH66: 1957.258475 | GI66: 1996.403645 | GJ66: 2036.331718 | GK66: 2077.058352 | GL66: 2118.599519 | GM66: 2160.971509 | GN66: 2204.190939 | GO66: 2248.274758 | GP66: =GP54-GP60+GP62 -> 2293.240253 | GQ66: 2339.105059 | GR66: 2385.88716 | GS66: 2433.604903 | GT66: 2482.277001 | GU66: 2531.922541 | GV66: 2582.560992 | GW66: 2634.212212 | GX66: 2686.896456 | GY66: 2740.634385 | GZ66: 2795.447073 | HA66: 2851.356014 | HB66: 2908.383134 | HC66: 2966.550797 | HD66: 3025.881813 | HE66: 3086.399449 | HF66: 3148.127438 | HG66: 3211.089987 | HH66: 3275.311787 | HI66: 3340.818023 | HJ66: 3407.634383 | HK66: 3475.787071 | HL66: 3545.302812 | HM66: 3616.208868 | HN66: 3688.533046 | HO66: 3762.303707 | HP66: 3837.549781 | HQ66: 3914.300777 | HR66: 3992.586792 | HS66: 4072.438528 | HT66: 4153.887299 | HU66: 4236.965045 | HV66: 4321.704345 | HW66: 4408.138432 | HX66: 4496.301201 | HY66: 4586.227225 | HZ66: 4677.95177 | IA66: 4771.510805 | IB66: 4866.941021 | IC66: 4964.279842 | ID66: 5063.565439 | IE66: 5164.836747 | IF66: 5268.133482 | IG66: 5373.496152 | IH66: 5480.966075 | II66: 5590.585397 | IJ66: 5702.397105 | IK66: 5816.445047 | IL66: 5932.773948 | IM66: 6051.429427 | IN66: 6172.458016 | IO66: 6295.907176 | IP66: 6421.82532 | IQ66: 6550.261826 | IR66: 6681.267063 | IS66: 6814.892404 | IT66: 6951.190252 | IU66: 7090.214057 | IV66: 7232.018339 | IW66: 7376.658706 | IX66: 7524.19188 | IY66: 7674.675718 | IZ66: 7828.169232 | JA66: 7984.732617 | JB66: =JB54-JB60+JB62 -> 8144.42727 | JC66: 8307.315815 | JD66: 8473.462132 | JE66: 8642.931375 | JF66: 8815.790002 | JG66: 8992.105803 | JH66: 9171.947919 | JI66: 9355.386878 | JJ66: 9542.494616 | JK66: 9733.344508 | JL66: 9928.011399 | JM66: 10126.57163 | JN66: 10329.10306 | JO66: 10535.68512 | JP66: 10746.39882 | JQ66: 10961.3268 | JR66: 11180.55334 | JS66: 11404.16441 | JT66: 11632.24769 | JU66: 11864.89265 | JV66: 12102.1905 | JW66: 12344.23431 | JX66: 12591.119 | JY66: 12842.94138 | JZ66: 13099.80021 | KA66: 13361.79621 | KB66: 13629.03214 | KC66: 13901.61278 | KD66: 14179.64504 | KE66: 14463.23794 | KF66: 14752.5027 | KG66: 15047.55276 | KH66: 15348.50382 | KI66: 15655.47389 | KJ66: 15968.58337 | KK66: 16287.95504 | KL66: 16613.71414 | KM66: 16945.98843 | KN66: 17284.9082 | KO66: 17630.60637 | KP66: 17983.2185 | KQ66: 18342.88287 | KR66: 18709.74053 | KS66: 19083.93534 | KT66: 19465.61405 | KU66: 19854.92634 | KV66: 20252.02487 | KW66: 20657.06537 | KX66: 21070.20668 | KY66: 21491.61082 | KZ66: 21921.44304 | LA66: 22359.87191 | LB66: 22807.06935 | LC66: 23263.21074 | LD66: 23728.47496 | LE66: 24203.04447 | LF66: 24687.10536 | LG66: 25180.84748 | LH66: 25684.46444 | LI66: 26198.15373 | LJ66: 26722.11682 | LK66: 27256.55916 | LL66: 27801.69036 | LM66: 28357.72417 | LN66: =LN54-LN60+LN62 -> 28924.87867 | LO66: 29503.37626 | LP66: 30093.44379 | LQ66: 30695.31268 | LR66: 31309.21895 | LS66: 31935.40335 | LT66: 32574.11143 | LU66: 33225.59368 | LV66: 33890.10557 | LW66: 34567.9077 | LX66: 35259.26588 | LY66: 35964.45122 | LZ66: 36683.74027 | MA66: 37417.4151 | MB66: 38165.76343 | MC66: 38929.07873 | MD66: 39707.66033 | ME66: 40501.81357 | MF66: 41311.84988 | MG66: 42138.08692 | MH66: 42980.8487 | MI66: 43840.46572 | MJ66: 44717.27508 | MK66: 45611.62063 | ML66: 46523.85309 | MM66: 47454.33021 | MN66: 48403.41688 | MO66: 49371.48528 | MP66: 50358.91505 | MQ66: 51366.09343 | MR66: 52393.41537 | MS66: 53441.28376 | MT66: 54510.10953 | MU66: 55600.31181 | MV66: 56712.31815 | MW66: 57846.56462 | MX66: 59003.49602 | MY66: 60183.56607 | MZ66: 61387.23752 | NA66: 62614.9824 | NB66: 63867.2822 | NC66: 65144.628 | ND66: 66447.52073 | NE66: 67776.47132 | NF66: 69132.00094 | NG66: 70514.64116 | NH66: 71924.93419 | NI66: 73363.43311 | NJ66: 74830.70202 | NK66: 76327.31632 | NL66: 77853.86292 | NM66: 79410.94047 | NN66: 80999.1596 | NO66: 82619.14313 | NP66: 84271.52635 | NQ66: 85956.95726 | NR66: 87676.09681 | NS66: 89429.61918 | NT66: 91218.21203 | NU66: 93042.57676 | NV66: 94903.42882 | NW66: 96801.49796 | NX66: 98737.52851 | NY66: 100712.2797 | NZ66: =NZ54-NZ60+NZ62 -> 102726.526 | OA66: 104781.0572 | OB66: 106876.6792 | OC66: 109014.2136 | OD66: 111194.4987 | OE66: 113418.3896 | OF66: 115686.7584 | OG66: 118000.4946 | OH66: 120360.5056 | OI66: 122767.717 | OJ66: 125223.0726 | OK66: 127727.5354 | OL66: 130282.0876 | OM66: 132887.7309 | ON66: 135545.4871 | OO66: 138256.3986 | OP66: 141021.5285 | OQ66: 143841.9611 | OR66: 146718.8024 | OS66: 149653.1807 | OT66: 152646.2468 | OU66: 155699.1743 | OV66: 158813.1605 | OW66: 161989.4267 | OX66: 165229.2183 | OY66: 168533.806 | OZ66: 171904.4857 | PA66: 175342.5792 | PB66: 178849.4348 | PC66: 182426.4278 | PD66: 186074.961 | PE66: 189796.4651 | PF66: 193592.3996 | PG66: 197464.2531 | PH66: 201413.5441 | PI66: 205441.8213 | PJ66: 209550.6644 | PK66: 213741.6849 | PL66: 218016.5262 | PM66: 222376.8649 | PN66: 226824.4108 | PO66: 231360.9083 | PP66: 235988.1363 | PQ66: 240707.9095 | PR66: 245522.0789 | PS66: 250432.5324 | PT66: 255441.1957 | PU66: 260550.0332 | PV66: 265761.0483 | PW66: 271076.2846 | PX66: 276497.8267 | PY66: 282027.8007 | PZ66: 287668.3753 | QA66: 293421.7626 | QB66: 299290.219 | QC66: 305276.046 | QD66: 311381.5909 | QE66: 317609.2483 | QF66: 323961.4605 | QG66: 330440.7188 | QH66: 337049.5642 | QI66: 343790.5885 | QJ66: 350666.4355 | QK66: 357679.8017 | QL66: =QL54-QL60+QL62 -> 364833.4377 | QM66: 372130.149 | QN66: 379572.7974 | QO66: 387164.3018 | QP66: 394907.6394 | QQ66: 402805.8471 | QR66: 410862.0227 | QS66: 419079.3256 | QT66: 427460.9786 | QU66: 436010.2691 | QV66: 444730.5501 | QW66: 453625.2416 | QX66: 462697.8323 | QY66: 471951.8805 | QZ66: 481391.0156 | RA66: 491018.9399 | RB66: 500839.4294 | RC66: 510856.3361 | RD66: 521073.5886 | RE66: 531495.1945 | RF66: 542125.2413 | RG66: 552967.8985 | RH66: 564027.4188 | RI66: 575308.1402 | RJ66: 586814.4874 | RK66: 598550.9737 | RL66: 610522.2026 | RM66: 622732.8699 | RN66: 635187.7652 | RO66: 647891.774 | RP66: 660849.8798 | RQ66: 674067.1654 | RR66: 687548.8156 | RS66: 701300.1191 | RT66: 715326.4702 | RU66: 729633.3712 | RV66: 744226.4346 | RW66: 759111.3854 | RX66: 774294.063 | RY66: 789780.4237 | RZ66: 805576.5431 | SA66: 821688.6186 | SB66: 838122.9713 | SC66: 854886.0493 | SD66: 871984.4296 | SE66: 889424.8208 | SF66: 907214.0661 | SG66: 925359.1455 | SH66: 943867.179 | SI66: 962745.4291 | SJ66: 982001.3039 | SK66: 1001642.36 | SL66: 1021676.304 | SM66: 1042111 | SN66: 1062954.467 | SO66: 1084214.884 | SP66: 1105900.598 | SQ66: 1128020.119 | SR66: 1150582.13 | SS66: 1173595.486 | ST66: 1197069.223 | SU66: 1221012.555 | SV66: 1245434.881 | SW66: 1270345.79 | SX66: =SX54-SX60+SX62 -> 1295755.063 | SY66: 1321672.676 | SZ66: 1348108.807 | TA66: 1375073.836 | TB66: 1402578.354 | TC66: 1430633.162 | TD66: 1459249.28 | TE66: 1488437.947 | TF66: 1518210.629 | TG66: 1548579.023 | TH66: 1579555.061 | TI66: 1611150.912 | TJ66: 1643378.992 | TK66: 1676251.967 | TL66: 1709782.757 | TM66: 1743984.54 | TN66: 1778870.762 | TO66: 1814455.138 | TP66: 1850751.66 | TQ66: 1887774.6 | TR66: 1925538.519 | TS66: 1964058.27 | TT66: 2003349.007 | TU66: 2043426.189 | TV66: 2084305.585 | TW66: 2126003.284 | TX66: 2168535.699 | TY66: 2211919.575 | TZ66: 2256171.994 | UA66: 2301310.384 | UB66: 2347352.526 | UC66: 2394316.558 | UD66: 2442220.988 | UE66: 2491084.696 | UF66: 2540926.948 | UG66: 2591767.397 | UH66: 2643626.096 | UI66: 2696523.504 | UJ66: 2750480.498 | UK66: 2805518.376 | UL66: 2861658.871 | UM66: 2918924.158 | UN66: 2977336.862 | UO66: 3036920.072 | UP66: 3097697.344 | UQ66: 3159692.719 | UR66: 3222930.725 | US66: 3287436.396 | UT66: 3353235.276 | UU66: 3420353.432 | UV66: 3488817.466 | UW66: 3558654.528 | UX66: 3629892.325 | UY66: 3702559.134 | UZ66: 3776683.814 | VA66: 3852295.823 | VB66: 3929425.224 | VC66: 4008102.704 | VD66: 4088359.586 | VE66: 4170227.842 | VF66: 4253740.112 | VG66: 4338929.711 | VH66: 4425830.653 | VI66: 4514477.661 | VJ66: =VJ54-VJ60+VJ62 -> 4604906.186 | VK66: 4697152.422 | VL66: 4791253.324 | VM66: 4887246.628 | VN66: 4985170.863 | VO66: 5085065.376 | VP66: 5186970.348 | VQ66: 5290926.816 | VR66: 5396976.69 | VS66: 5505162.778 | VT66: 5615528.804 | VU66: 5728119.434 | VV66: 5842980.297 | VW66: 5960158.009 | VX66: 6079700.198 | VY66: 6201655.53 | VZ66: 6326073.735 | WA66: 6453005.633 | WB66: 6582503.165 | WC66: 6714619.417 | WD66: 6849408.658 | WE66: 6986926.363 | WF66: 7127229.252 | WG66: 7270375.319 | WH66: 7416423.869 | WI66: 7565435.553 | WJ66: 7717472.409 | WK66: 7872597.895 | WL66: 8030876.933 | WM66: 8192375.953 | WN66: 8357162.931 | WO66: 8525307.441 | WP66: 8696880.697 | WQ66: 8871955.606 | WR66: 9050606.817 | WS66: 9232910.777 | WT66: 9418945.784 | WU66: 9608792.049 | WV66: 9802531.752 | WW66: 10000249.11 | WX66: 10202030.44 | WY66: 10407964.24 | WZ66: 10618141.23 | XA66: 10832654.48 | XB66: 11051599.43 | XC66: 11275074.03 | XD66: 11503178.78 | XE66: 11736016.85 | XF66: 11973694.17 | XG66: 12216319.53 | XH66: 12464004.68 | XI66: 12716864.46 | XJ66: 12975016.88 | XK66: 13238583.28 | XL66: 13507688.45 | XM66: 13782460.76 | XN66: 14063032.29 | XO66: 14349539.01 | XP66: 14642120.93 | XQ66: 14940922.23 | XR66: 15246091.49 | XS66: 15557781.86 | XT66: 15876151.23 | XU66: 16201362.46 | XV66: =XV54-XV60+XV62 -> 16533583.6 | XW66: 16872988.1 | XX66: 17219755.09 | XY66: 17574069.58 | XZ66: 17936122.81 | YA66: 18306112.45 | YB66: 18684242.97 | YC66: 19070725.93 | YD66: 19465780.33 | YE66: 19869632.96 | YF66: 20282518.81 | YG66: 20704681.41 | YH66: 21136373.35 | YI66: 21577856.63 | YJ66: 22029403.21 | YK66: 22491295.52 | YL66: 22963826.93 | YM66: 23447302.39 | YN66: 23942039.03 | YO66: 24448366.74 | YP66: 24966628.93 | YQ66: 25497183.2 | YR66: 26040402.12 | YS66: 26596674.06 | YT66: 27166404.05 | YU66: 27750014.65 | YV66: 28347947 | YW66: 28960661.8 | YX66: 29588640.44 | YY66: 30232386.15 | YZ66: 30892425.22 | ZA66: 31569308.38 | ZB66: 32263612.14 | ZC66: 32975940.3 | ZD66: 33706925.56 | ZE66: 34457231.15 | ZF66: 35227552.64 | ZG66: 36018619.89 | ZH66: 36831198.98 | ZI66: 37666094.45 | ZJ66: 38524151.52 | ZK66: 39406258.57 | ZL66: 40313349.7 | ZM66: 41246407.51 | ZN66: 42206465.99 | ZO66: 43194613.68 | ZP66: 44211996.97 | ZQ66: 45259823.63 | ZR66: 46339366.55 | ZS66: 47451967.76 | ZT66: 48599042.69 | ZU66: 49782084.69 | ZV66: 51002669.83 | ZW66: 52262462.07 | ZX66: 53563218.7 | ZY66: 54906796.18 | ZZ66: 56295156.28 | AAA66: 57730372.76 | AAB66: 59214638.29
C68: Value of Nominal Interest from NPV Calculation | D68: =G93 -> 0.052 | E68: =NPV($D$68,E60:AAB60) -> 2130.036793 | F68: 2172.637529 | G68: 2216.090279 | H68: 2260.412085 | I68: 2305.620326 | J68: 2351.732733 | K68: 2398.767387 | L68: 2446.742735 | M68: 2495.677589 | N68: 2545.591141 | O68: 2596.502964 | P68: 2648.433023 | Q68: 2701.401683 | R68: 2755.429717 | S68: 2810.538311 | T68: 2866.749077 | U68: 2924.084058 | V68: 2982.565739 | W68: 3042.217054 | X68: 3103.061394 | Y68: 3165.122622 | Z68: 3228.425074 | AA68: 3292.993576 | AB68: 3358.853447 | AC68: 3426.030515 | AD68: 3494.551125 | AE68: 3564.442148 | AF68: 3635.73099 | AG68: 3708.44561 | AH68: 3782.614521 | AI68: 3858.266811 | AJ68: 3935.432147 | AK68: 4014.14079 | AL68: 4094.423605 | AM68: 4176.312077 | AN68: 4259.838318 | AO68: 4345.035084 | AP68: 4431.935785 | AQ68: 4520.5745 | AR68: 4610.985989 | AS68: 4703.205708 | AT68: 4797.269822 | AU68: 4893.215217 | AV68: 4991.079521 | AW68: 5090.901111 | AX68: 5192.719132 | AY68: 5296.573514 | AZ68: 5402.504983 | BA68: 5510.555082 | BB68: 5620.766182 | BC68: 5733.181505 | BD68: 5847.845134 | BE68: 5964.802035 | BF68: 6084.098075 | BG68: 6205.780035 | BH68: 6329.895634 | BI68: 6456.493545 | BJ68: 6585.623415 | BK68: 6717.335881 | BL68: 6851.682597 | BM68: 6988.716247 | BN68: 7128.49057 | BO68: 7271.06038 | BP68: 7416.481585 | BQ68: =NPV($D$68,BQ60:ACN60) -> 7564.811214 | BR68: 7716.107436 | BS68: 7870.429583 | BT68: 8027.838172 | BU68: 8188.394932 | BV68: 8352.162828 | BW68: 8519.206082 | BX68: 8689.5902 | BY68: 8863.382001 | BZ68: 9040.649637 | CA68: 9221.462626 | CB68: 9405.891875 | CC68: 9594.009708 | CD68: 9785.889898 | CE68: 9981.607691 | CF68: 10181.23984 | CG68: 10384.86463 | CH68: 10592.56192 | CI68: 10804.41315 | CJ68: 11020.50141 | CK68: 11240.91143 | CL68: 11465.72965 | CM68: 11695.04424 | CN68: 11928.94512 | CO68: 12167.52401 | CP68: 12410.87448 | CQ68: 12659.09197 | CR68: 12912.2738 | CS68: 13170.51926 | CT68: 13433.92964 | CU68: 13702.60822 | CV68: 13976.66037 | CW68: 14256.19357 | CX68: 14541.31743 | CY68: 14832.14377 | CZ68: 15128.78663 | DA68: 15431.36235 | DB68: 15739.98958 | DC68: 16054.78936 | DD68: 16375.88513 | DE68: 16703.40281 | DF68: 17037.47085 | DG68: 17378.22025 | DH68: 17725.78463 | DI68: 18080.30031 | DJ68: 18441.90629 | DK68: 18810.74439 | DL68: 19186.95926 | DM68: 19570.69841 | DN68: 19962.11236 | DO68: 20361.35458 | DP68: 20768.58164 | DQ68: 21183.95324 | DR68: 21607.63227 | DS68: 22039.78488 | DT68: 22480.58054 | DU68: 22930.19211 | DV68: 23388.79592 | DW68: 23856.57179 | DX68: 24333.70318 | DY68: 24820.3772 | DZ68: 25316.78469 | EA68: 25823.12034 | EB68: 26339.58269 | EC68: =NPV($D$68,EC60:AEZ60) -> 26866.37428 | ED68: 27403.70171 | EE68: 27951.77568 | EF68: 28510.81113 | EG68: 29081.02728 | EH68: 29662.64775 | EI68: 30255.90063 | EJ68: 30861.01856 | EK68: 31478.23884 | EL68: 32107.80353 | EM68: 32749.9595 | EN68: 33404.95859 | EO68: 34073.05766 | EP68: 34754.5187 | EQ68: 35449.60896 | ER68: 36158.60102 | ES68: 36881.77291 | ET68: 37619.40823 | EU68: 38371.79625 | EV68: 39139.23202 | EW68: 39922.01651 | EX68: 40720.45667 | EY68: 41534.86563 | EZ68: 42365.56275 | FA68: 43212.87382 | FB68: 44077.13109 | FC68: 44958.67349 | FD68: 45857.84674 | FE68: 46775.00344 | FF68: 47710.50325 | FG68: 48664.71306 | FH68: 49638.00704 | FI68: 50630.76689 | FJ68: 51643.38192 | FK68: 52676.24924 | FL68: 53729.77388 | FM68: 54804.369 | FN68: 55900.45601 | FO68: 57018.46473 | FP68: 58158.83361 | FQ68: 59322.00985 | FR68: 60508.44959 | FS68: 61718.61809 | FT68: 62952.98995 | FU68: 64212.04921 | FV68: 65496.28963 | FW68: 66806.21483 | FX68: 68142.33851 | FY68: 69505.18462 | FZ68: 70895.28762 | GA68: 72313.19265 | GB68: 73759.45574 | GC68: 75234.64405 | GD68: 76739.33609 | GE68: 78274.12192 | GF68: 79839.60343 | GG68: 81436.39451 | GH68: 83065.12137 | GI68: 84726.42271 | GJ68: 86420.95002 | GK68: 88149.36781 | GL68: 89912.3539 | GM68: 91710.59965 | GN68: 93544.81024 | GO68: =NPV($D$68,GO60:AHL60) -> 95415.70497 | GP68: 97324.01752 | GQ68: 99270.49624 | GR68: 101255.9044 | GS68: 103281.0207 | GT68: 105346.6392 | GU68: 107453.57 | GV68: 109602.6393 | GW68: 111794.6899 | GX68: 114030.5814 | GY68: 116311.1906 | GZ68: 118637.4118 | HA68: 121010.1573 | HB68: 123430.3576 | HC68: 125898.9618 | HD68: 128416.9379 | HE68: 130985.2733 | HF68: 133604.9753 | HG68: 136277.0711 | HH68: 139002.6087 | HI68: 141782.6568 | HJ68: 144618.3056 | HK68: 147510.6673 | HL68: 150460.8759 | HM68: 153470.0884 | HN68: 156539.485 | HO68: 159670.2691 | HP68: 162863.6687 | HQ68: 166120.936 | HR68: 169443.3483 | HS68: 172832.2086 | HT68: 176288.8456 | HU68: 179814.6151 | HV68: 183410.8995 | HW68: 187079.1093 | HX68: 190820.6828 | HY68: 194637.0873 | HZ68: 198529.8194 | IA68: 202500.4057 | IB68: 206550.4032 | IC68: 210681.4 | ID68: 214895.0163 | IE68: 219192.9042 | IF68: 223576.7493 | IG68: 228048.2705 | IH68: 232609.2215 | II68: 237261.3908 | IJ68: 242006.6027 | IK68: 246846.7179 | IL68: 251783.6346 | IM68: 256819.2888 | IN68: 261955.655 | IO68: 267194.7475 | IP68: 272538.6209 | IQ68: 277989.3705 | IR68: 283549.134 | IS68: 289220.0915 | IT68: 295004.4669 | IU68: 300904.5284 | IV68: 306922.5896 | IW68: 313061.0106 | IX68: 319322.1984 | IY68: 325708.6083 | IZ68: 332222.7445 | JA68: =NPV($D$68,JA60:AJX60) -> 338867.1617 | JB68: 345644.4652 | JC68: 352557.3127 | JD68: 359608.4151 | JE68: 366800.5371 | JF68: 374136.4992 | JG68: 381619.1781 | JH68: 389251.5078 | JI68: 397036.4814 | JJ68: 404977.1515 | JK68: 413076.6318 | JL68: 421338.0986 | JM68: 429764.7912 | JN68: 438360.0141 | JO68: 447127.1377 | JP68: 456069.5998 | JQ68: 465190.9069 | JR68: 474494.6357 | JS68: 483984.4345 | JT68: 493664.0244 | JU68: 503537.2009 | JV68: 513607.8356 | JW68: 523879.8773 | JX68: 534357.3539 | JY68: 545044.3737 | JZ68: 555945.1272 | KA68: 567063.8889 | KB68: 578405.0185 | KC68: 589972.963 | KD68: 601772.2584 | KE68: 613807.531 | KF68: 626083.5002 | KG68: 638604.9794 | KH68: 651376.8782 | KI68: 664404.2046 | KJ68: 677692.0665 | KK68: 691245.6742 | KL68: 705070.3418 | KM68: 719171.49 | KN68: 733554.6478 | KO68: 748225.4546 | KP68: 763189.6627 | KQ68: 778453.1393 | KR68: 794021.869 | KS68: 809901.956 | KT68: 826099.6265 | KU68: 842621.2314 | KV68: 859473.2481 | KW68: 876662.2841 | KX68: 894195.0785 | KY68: 912078.5053 | KZ68: 930319.576 | LA68: 948925.4422 | LB68: 967903.3985 | LC68: 987260.8852 | LD68: 1007005.491 | LE68: 1027144.958 | LF68: 1047687.181 | LG68: 1068640.213 | LH68: 1090012.268 | LI68: 1111811.726 | LJ68: 1134047.132 | LK68: 1156727.204 | LL68: 1179860.831 | LM68: =NPV($D$68,LM60:AMJ60) -> 1203457.084 | LN68: 1227525.211 | LO68: 1252074.648 | LP68: 1277115.019 | LQ68: 1302656.139 | LR68: 1328708.02 | LS68: 1355280.874 | LT68: 1382385.118 | LU68: 1410031.375 | LV68: 1438230.482 | LW68: 1466993.493 | LX68: 1496331.68 | LY68: 1526256.545 | LZ68: 1556779.814 | MA68: 1587913.453 | MB68: 1619669.663 | MC68: 1652060.89 | MD68: 1685099.829 | ME68: 1718799.429 | MF68: 1753172.896 | MG68: 1788233.702 | MH68: 1823995.587 | MI68: 1860472.565 | MJ68: 1897678.93 | MK68: 1935629.262 | ML68: 1974338.432 | MM68: 2013821.609 | MN68: 2054094.263 | MO68: 2095172.174 | MP68: 2137071.437 | MQ68: 2179808.469 | MR68: 2223400.014 | MS68: 2267863.149 | MT68: 2313215.295 | MU68: 2359474.219 | MV68: 2406658.041 | MW68: 2454785.247 | MX68: 2503874.689 | MY68: 2553945.594 | MZ68: 2605017.576 | NA68: 2657110.638 | NB68: 2710245.184 | NC68: 2764442.023 | ND68: 2819722.382 | NE68: 2876107.907 | NF68: 2933620.681 | NG68: 2992283.224 | NH68: 3052118.506 | NI68: 3113149.956 | NJ68: 3175401.469 | NK68: 3238897.417 | NL68: 3303662.659 | NM68: 3369722.546 | NN68: 3437102.939 | NO68: 3505830.212 | NP68: 3575931.264 | NQ68: 3647433.532 | NR68: 3720364.997 | NS68: 3794754.201 | NT68: 3870630.252 | NU68: 3948022.838 | NV68: 4026962.239 | NW68: 4107479.338 | NX68: 4189605.632 | NY68: =NPV($D$68,NY60:AOV60) -> 4273373.246 | NZ68: 4358814.944 | OA68: 4445964.142 | OB68: 4534854.921 | OC68: 4625522.04 | OD68: 4718000.949 | OE68: 4812327.805 | OF68: 4908539.482 | OG68: 5006673.587 | OH68: 5106768.475 | OI68: 5208863.265 | OJ68: 5312997.852 | OK68: 5419212.922 | OL68: 5527549.971 | OM68: 5638051.318 | ON68: 5750760.125 | OO68: 5865720.406 | OP68: 5982977.053 | OQ68: 6102575.846 | OR68: 6224563.472 | OS68: 6348987.548 | OT68: 6475896.631 | OU68: 6605340.242 | OV68: 6737368.883 | OW68: 6872034.057 | OX68: 7009388.285 | OY68: 7149485.129 | OZ68: 7292379.211 | PA68: 7438126.234 | PB68: 7586783.001 | PC68: 7738407.439 | PD68: 7893058.62 | PE68: 8050796.782 | PF68: 8211683.354 | PG68: 8375780.975 | PH68: 8543153.523 | PI68: 8713866.134 | PJ68: 8887985.228 | PK68: 9065578.535 | PL68: 9246715.118 | PM68: 9431465.399 | PN68: 9619901.188 | PO68: 9812095.706 | PP68: 10008123.61 | PQ68: 10208061.03 | PR68: 10411985.59 | PS68: 10619976.43 | PT68: 10832114.26 | PU68: 11048481.33 | PV68: 11269161.56 | PW68: 11494240.47 | PX68: 11723805.27 | PY68: 11957944.87 | PZ68: 12196749.91 | QA68: 12440312.82 | QB68: 12688727.8 | QC68: 12942090.93 | QD68: 13200500.12 | QE68: 13464055.21 | QF68: 13732857.96 | QG68: 14007012.14 | QH68: 14286623.5 | QI68: 14571799.85 | QJ68: 14862651.1 | QK68: =NPV($D$68,QK60:ARH60) -> 15159289.28 | QL68: 15461828.57 | QM68: 15770385.38 | QN68: 16085078.36 | QO68: 16406028.42 | QP68: 16733358.83 | QQ68: 17067195.21 | QR68: 17407665.59 | QS68: 17754900.47 | QT68: 18109032.83 | QU68: 18470198.21 | QV68: 18838534.72 | QW68: 19214183.11 | QX68: 19597286.81 | QY68: 19987991.98 | QZ68: 20386447.54 | RA68: 20792805.25 | RB68: 21207219.7 | RC68: 21629848.45 | RD68: 22060851.99 | RE68: 22500393.84 | RF68: 22948640.59 | RG68: 23405761.94 | RH68: 23871930.77 | RI68: 24347323.18 | RJ68: 24832118.55 | RK68: 25326499.57 | RL68: 25830652.35 | RM68: 26344766.39 | RN68: 26869034.71 | RO68: 27403653.87 | RP68: 27948824.02 | RQ68: 28504748.99 | RR68: 29071636.29 | RS68: 29649697.21 | RT68: 30239146.88 | RU68: 30840204.28 | RV68: 31453092.34 | RW68: 32078037.98 | RX68: 32715272.19 | RY68: 33365030.01 | RZ68: 34027550.71 | SA68: 34703077.72 | SB68: 35391858.78 | SC68: 36094145.94 | SD68: 36810195.64 | SE68: 37540268.76 | SF68: 38284630.67 | SG68: 39043551.29 | SH68: 39817305.15 | SI68: 40606171.42 | SJ68: 41410433.98 | SK68: 42230381.45 | SL68: 43066307.27 | SM68: 43918509.74 | SN68: 44787292.03 | SO68: 45672962.27 | SP68: 46575833.59 | SQ68: 47496224.11 | SR68: 48434457.06 | SS68: 49390860.74 | ST68: 50365768.61 | SU68: 51359519.29 | SV68: 52372456.62 | SW68: =NPV($D$68,SW60:ATT60) -> 53404929.64 | SX68: 54457292.67 | SY68: 55529905.28 | SZ68: 56623132.34 | TA68: 57737344 | TB68: 58872915.76 | TC68: 60030228.38 | TD68: 61209667.96 | TE68: 62411625.9 | TF68: 63636498.89 | TG68: 64884688.89 | TH68: 66156603.1 | TI68: 67452653.95 | TJ68: 68773259.05 | TK68: 70118841.14 | TL68: 71489828.03 | TM68: 72886652.57 | TN68: 74309752.53 | TO68: 75759570.58 | TP68: 77236554.13 | TQ68: 78741155.3 | TR68: 80273830.73 | TS68: 81835041.54 | TT68: 83425253.12 | TU68: 85044935.03 | TV68: 86694560.8 | TW68: 88374607.79 | TX68: 90085556.94 | TY68: 91827892.62 | TZ68: 93602102.35 | UA68: 95408676.6 | UB68: 97248108.49 | UC68: 99120893.5 | UD68: 101027529.2 | UE68: 102968514.9 | UF68: 104944351.3 | UG68: 106955540.1 | UH68: 109002583.5 | UI68: 111085984.1 | UJ68: 113206244 | UK68: 115363864.8 | UL68: 117559346.4 | UM68: 119793187.2 | UN68: 122065883.1 | UO68: 124377926.8 | UP68: 126729807.4 | UQ68: 129122009.7 | UR68: 131555013 | US68: 134029291.1 | UT68: 136545310.6 | UU68: 139103530.8 | UV68: 141704402.1 | UW68: 144348365.7 | UX68: 147035852 | UY68: 149767279.6 | UZ68: 152543054.7 | VA68: 155363569 | VB68: 158229199.2 | VC68: 161140305.2 | VD68: 164097229 | VE68: 167100293.1 | VF68: 170149798.6 | VG68: 173246024.3 | VH68: 176389224.3 | VI68: =NPV($D$68,VI60:AWF60) -> 179579626.6 | VJ68: 182817431.1 | VK68: 186102807.5 | VL68: 189435893.5 | VM68: 192816792.5 | VN68: 196245571.1 | VO68: 199722257.1 | VP68: 203246836.9 | VQ68: 206819252.8 | VR68: 210439400.2 | VS68: 214107125.2 | VT68: 217822221.1 | VU68: 221584425.9 | VV68: 225393418.4 | VW68: 229248815.4 | VX68: 233150168.1 | VY68: 237096958.2 | VZ68: 241088594.5 | WA68: 245124408.5 | WB68: 249203651 | WC68: 253325487 | WD68: 257488992 | WE68: 261693147 | WF68: 265936834 | WG68: 270218831 | WH68: 274537806.8 | WI68: 278892315.9 | WJ68: 283280792.8 | WK68: 287701546.9 | WL68: 292152755.9 | WM68: 296632460.6 | WN68: 301138558.1 | WO68: 305668795.9 | WP68: 310220764.9 | WQ68: 314791893.1 | WR68: 319379438.5 | WS68: 323980482 | WT68: 328591920.1 | WU68: 333210457.8 | WV68: 337832600.6 | WW68: 342454647.2 | WX68: 347072681.3 | WY68: 351682563.7 | WZ68: 356279924.6 | XA68: 360860154.7 | XB68: 365418397.8 | XC68: 369949541.6 | XD68: 374448210.1 | XE68: 378908754.7 | XF68: 383325246.3 | XG68: 387691466.8 | XH68: 392000900.8 | XI68: 396246728 | XJ68: 400421814.7 | XK68: 404518707.1 | XL68: 408529622.8 | XM68: 412446444.9 | XN68: 416260714.8 | XO68: 419963626.6 | XP68: 423546021 | XQ68: 426998381.3 | XR68: 430310828.7 | XS68: 433473119.7 | XT68: 436474643.5 | XU68: =NPV($D$68,XU60:AYR60) -> 439304421.6 | XV68: 441951107.5 | XW68: 444402988.9 | XX68: 446647990.9 | XY68: 448673681 | XZ68: 450467276.7 | YA68: 452015654.4 | YB68: 453305361.7 | YC68: 454322631.6 | YD68: 455053400.6 | YE68: 455483329 | YF68: 455597826.1 | YG68: 455382078.2 | YH68: 454821082.4 | YI68: 453899683.5 | YJ68: 452602618 | YK68: 450914562.6 | YL68: 448820189.3 | YM68: 446304228.2 | YN68: 443351536.8 | YO68: 439947177.9 | YP68: 436076506.9 | YQ68: 431725268.1 | YR68: 426879702.3 | YS68: 421526665.3 | YT68: 415653759.6 | YU68: 409249479.3 | YV68: 402303369.3 | YW68: 394806201.8 | YX68: 386750169 | YY68: 378129094.6 | YZ68: 368938666.9 | ZA68: 359176692.3 | ZB68: 348843373.7 | ZC68: 337941614.5 | ZD68: 326477350.1 | ZE68: 314459910 | ZF68: 301902412.4 | ZG68: 288822193.3 | ZH68: 275241274.6 | ZI68: 261186872.2 | ZJ68: 246691948.7 | ZK68: 231795814 | ZL68: 216544776.7 | ZM68: 200992851.2 | ZN68: 185202524.7 | ZO68: 169245588 | ZP68: 153204035.9 | ZQ68: 137171042.1 | ZR68: 121252014.4 | ZS68: 105565736.3 | ZT68: 90245601.52 | ZU68: 75440948.88 | ZV68: 61318504.28 | ZW68: 48063938.87 | ZX68: 35883551.5 | ZY68: 25006084.92 | ZZ68: 15684685.84 | AAA68: 8199019.475 | AAB68: 2857550.096
C69: Value of Tax Shield Using NPV and Nominal Rate | D69: =D68 -> 0.052 | E69: =NPV($D$69,E61:AAB61) -> 639.0110379 | F69: 651.7912586 | G69: 664.8270837 | H69: 678.1236254 | I69: 691.6860979 | J69: 705.5198198 | K69: 719.6302162 | L69: 734.0228204 | M69: 748.7032768 | N69: 763.6773423 | O69: 778.9508891 | P69: 794.5299068 | Q69: 810.4205049 | R69: 826.628915 | S69: 843.1614932 | T69: 860.024723 | U69: 877.2252174 | V69: 894.7697217 | W69: 912.6651161 | X69: 930.9184183 | Y69: 949.5367866 | Z69: 968.5275223 | AA69: 987.8980727 | AB69: 1007.656034 | AC69: 1027.809155 | AD69: 1048.365338 | AE69: 1069.332644 | AF69: 1090.719297 | AG69: 1112.533683 | AH69: 1134.784356 | AI69: 1157.480043 | AJ69: 1180.629644 | AK69: 1204.242237 | AL69: 1228.327082 | AM69: 1252.893623 | AN69: 1277.951495 | AO69: 1303.510525 | AP69: 1329.580735 | AQ69: 1356.17235 | AR69: 1383.295797 | AS69: 1410.961712 | AT69: 1439.180947 | AU69: 1467.964565 | AV69: 1497.323856 | AW69: 1527.270333 | AX69: 1557.81574 | AY69: 1588.972054 | AZ69: 1620.751495 | BA69: 1653.166524 | BB69: 1686.229855 | BC69: 1719.954451 | BD69: 1754.35354 | BE69: 1789.440611 | BF69: 1825.229422 | BG69: 1861.73401 | BH69: 1898.96869 | BI69: 1936.948064 | BJ69: 1975.687024 | BK69: 2015.200764 | BL69: 2055.504779 | BM69: 2096.614874 | BN69: 2138.547171 | BO69: 2181.318114 | BP69: 2224.944475 | BQ69: =NPV($D$69,BQ61:ACN61) -> 2269.443364 | BR69: 2314.832231 | BS69: 2361.128875 | BT69: 2408.351451 | BU69: 2456.51848 | BV69: 2505.648848 | BW69: 2555.761824 | BX69: 2606.87706 | BY69: 2659.0146 | BZ69: 2712.194891 | CA69: 2766.438788 | CB69: 2821.767562 | CC69: 2878.202912 | CD69: 2935.766969 | CE69: 2994.482307 | CF69: 3054.371952 | CG69: 3115.45939 | CH69: 3177.768576 | CI69: 3241.323946 | CJ69: 3306.150423 | CK69: 3372.273429 | CL69: 3439.718896 | CM69: 3508.513272 | CN69: 3578.683535 | CO69: 3650.257204 | CP69: 3723.262345 | CQ69: 3797.72759 | CR69: 3873.682139 | CS69: 3951.155779 | CT69: 4030.178892 | CU69: 4110.782466 | CV69: 4192.998112 | CW69: 4276.858071 | CX69: 4362.395229 | CY69: 4449.64313 | CZ69: 4538.635988 | DA69: 4629.408704 | DB69: 4721.996874 | DC69: 4816.436807 | DD69: 4912.765538 | DE69: 5011.020843 | DF69: 5111.241255 | DG69: 5213.466074 | DH69: 5317.73539 | DI69: 5424.090092 | DJ69: 5532.571887 | DK69: 5643.223318 | DL69: 5756.087777 | DM69: 5871.209524 | DN69: 5988.633707 | DO69: 6108.406373 | DP69: 6230.574491 | DQ69: 6355.185971 | DR69: 6482.289681 | DS69: 6611.935464 | DT69: 6744.174163 | DU69: 6879.057634 | DV69: 7016.638775 | DW69: 7156.971538 | DX69: 7300.110955 | DY69: 7446.11316 | DZ69: 7595.035408 | EA69: 7746.936101 | EB69: 7901.874807 | EC69: =NPV($D$69,EC61:AEZ61) -> 8059.912285 | ED69: 8221.110513 | EE69: 8385.532704 | EF69: 8553.243338 | EG69: 8724.308184 | EH69: 8898.794325 | EI69: 9076.770188 | EJ69: 9258.305567 | EK69: 9443.471653 | EL69: 9632.341059 | EM69: 9824.987851 | EN69: 10021.48758 | EO69: 10221.9173 | EP69: 10426.35561 | EQ69: 10634.88269 | ER69: 10847.5803 | ES69: 11064.53187 | ET69: 11285.82247 | EU69: 11511.53887 | EV69: 11741.76961 | EW69: 11976.60495 | EX69: 12216.137 | EY69: 12460.45969 | EZ69: 12709.66883 | FA69: 12963.86214 | FB69: 13223.13933 | FC69: 13487.60205 | FD69: 13757.35402 | FE69: 14032.50103 | FF69: 14313.15098 | FG69: 14599.41392 | FH69: 14891.40211 | FI69: 15189.23007 | FJ69: 15493.01458 | FK69: 15802.87477 | FL69: 16118.93216 | FM69: 16441.3107 | FN69: 16770.1368 | FO69: 17105.53942 | FP69: 17447.65008 | FQ69: 17796.60295 | FR69: 18152.53488 | FS69: 18515.58543 | FT69: 18885.89698 | FU69: 19263.61476 | FV69: 19648.88689 | FW69: 20041.86445 | FX69: 20442.70155 | FY69: 20851.55539 | FZ69: 21268.58629 | GA69: 21693.9578 | GB69: 22127.83672 | GC69: 22570.39322 | GD69: 23021.80083 | GE69: 23482.23658 | GF69: 23951.88103 | GG69: 24430.91835 | GH69: 24919.53641 | GI69: 25417.92681 | GJ69: 25926.28501 | GK69: 26444.81034 | GL69: 26973.70617 | GM69: 27513.1799 | GN69: 28063.44307 | GO69: =NPV($D$69,GO61:AHL61) -> 28624.71149 | GP69: 29197.20526 | GQ69: 29781.14887 | GR69: 30376.77133 | GS69: 30984.30622 | GT69: 31603.99177 | GU69: 32236.07101 | GV69: 32880.7918 | GW69: 33538.40697 | GX69: 34209.17441 | GY69: 34893.35717 | GZ69: 35591.22354 | HA69: 36303.0472 | HB69: 37029.10729 | HC69: 37769.68853 | HD69: 38525.08136 | HE69: 39295.58199 | HF69: 40081.49258 | HG69: 40883.12133 | HH69: 41700.7826 | HI69: 42534.79703 | HJ69: 43385.49169 | HK69: 44253.20018 | HL69: 45138.26276 | HM69: 46041.02652 | HN69: 46961.84549 | HO69: 47901.08074 | HP69: 48859.10062 | HQ69: 49836.28081 | HR69: 50833.0045 | HS69: 51849.66257 | HT69: 52886.65369 | HU69: 53944.38452 | HV69: 55023.26986 | HW69: 56123.73278 | HX69: 57246.20483 | HY69: 58391.12618 | HZ69: 59558.94582 | IA69: 60750.12171 | IB69: 61965.12095 | IC69: 63204.42001 | ID69: 64468.50488 | IE69: 65757.87126 | IF69: 67073.02478 | IG69: 68414.48116 | IH69: 69782.76646 | II69: 71178.41724 | IJ69: 72601.9808 | IK69: 74054.01538 | IL69: 75535.09039 | IM69: 77045.78663 | IN69: 78586.6965 | IO69: 80158.42426 | IP69: 81761.58626 | IQ69: 83396.81116 | IR69: 85064.74021 | IS69: 86766.02746 | IT69: 88501.34007 | IU69: 90271.35851 | IV69: 92076.77689 | IW69: 93918.30318 | IX69: 95796.65952 | IY69: 97712.58248 | IZ69: 99666.82336 | JA69: =NPV($D$69,JA61:AJX61) -> 101660.1485 | JB69: 103693.3396 | JC69: 105767.1938 | JD69: 107882.5245 | JE69: 110040.1611 | JF69: 112240.9498 | JG69: 114485.7534 | JH69: 116775.4523 | JI69: 119110.9444 | JJ69: 121493.1454 | JK69: 123922.9896 | JL69: 126401.4296 | JM69: 128929.4374 | JN69: 131508.0042 | JO69: 134138.1413 | JP69: 136820.8799 | JQ69: 139557.2721 | JR69: 142348.3907 | JS69: 145195.3304 | JT69: 148099.2073 | JU69: 151061.1603 | JV69: 154082.3507 | JW69: 157163.9632 | JX69: 160307.2062 | JY69: 163513.3121 | JZ69: 166783.5382 | KA69: 170119.1667 | KB69: 173521.5056 | KC69: 176991.8889 | KD69: 180531.6775 | KE69: 184142.2593 | KF69: 187825.0501 | KG69: 191581.4938 | KH69: 195413.0635 | KI69: 199321.2614 | KJ69: 203307.62 | KK69: 207373.7022 | KL69: 211521.1025 | KM69: 215751.447 | KN69: 220066.3943 | KO69: 224467.6364 | KP69: 228956.8988 | KQ69: 233535.9418 | KR69: 238206.5607 | KS69: 242970.5868 | KT69: 247829.888 | KU69: 252786.3694 | KV69: 257841.9744 | KW69: 262998.6852 | KX69: 268258.5235 | KY69: 273623.5516 | KZ69: 279095.8728 | LA69: 284677.6327 | LB69: 290371.0196 | LC69: 296178.2656 | LD69: 302101.6474 | LE69: 308143.4874 | LF69: 314306.1542 | LG69: 320592.0638 | LH69: 327003.6805 | LI69: 333543.5178 | LJ69: 340214.1397 | LK69: 347018.1611 | LL69: 353958.2493 | LM69: =NPV($D$69,LM61:AMJ61) -> 361037.1251 | LN69: 368257.5633 | LO69: 375622.3945 | LP69: 383134.5057 | LQ69: 390796.8417 | LR69: 398612.406 | LS69: 406584.2623 | LT69: 414715.5353 | LU69: 423009.4125 | LV69: 431469.1447 | LW69: 440098.0478 | LX69: 448899.5041 | LY69: 457876.9634 | LZ69: 467033.9443 | MA69: 476374.0359 | MB69: 485900.8988 | MC69: 495618.2669 | MD69: 505529.9487 | ME69: 515639.8286 | MF69: 525951.8689 | MG69: 536470.1107 | MH69: 547198.6761 | MI69: 558141.7694 | MJ69: 569303.6789 | MK69: 580688.7785 | ML69: 592301.5297 | MM69: 604146.4827 | MN69: 616228.2789 | MO69: 628551.6522 | MP69: 641121.4312 | MQ69: 653942.5408 | MR69: 667020.0041 | MS69: 680358.9447 | MT69: 693964.5885 | MU69: 707842.2656 | MV69: 721997.4124 | MW69: 736435.5742 | MX69: 751162.4066 | MY69: 766183.6782 | MZ69: 781505.2728 | NA69: 797133.1915 | NB69: 813073.5553 | NC69: 829332.607 | ND69: 845916.7145 | NE69: 862832.3722 | NF69: 880086.2043 | NG69: 897684.9672 | NH69: 915635.5519 | NI69: 933944.9868 | NJ69: 952620.4408 | NK69: 971669.2252 | NL69: 991098.7976 | NM69: 1010916.764 | NN69: 1031130.882 | NO69: 1051749.064 | NP69: 1072779.379 | NQ69: 1094230.059 | NR69: 1116109.499 | NS69: 1138426.26 | NT69: 1161189.076 | NU69: 1184406.851 | NV69: 1208088.672 | NW69: 1232243.801 | NX69: 1256881.69 | NY69: =NPV($D$69,NY61:AOV61) -> 1282011.974 | NZ69: 1307644.483 | OA69: 1333789.243 | OB69: 1360456.476 | OC69: 1387656.612 | OD69: 1415400.285 | OE69: 1443698.342 | OF69: 1472561.844 | OG69: 1502002.076 | OH69: 1532030.543 | OI69: 1562658.98 | OJ69: 1593899.356 | OK69: 1625763.876 | OL69: 1658264.991 | OM69: 1691415.396 | ON69: 1725228.037 | OO69: 1759716.122 | OP69: 1794893.116 | OQ69: 1830772.754 | OR69: 1867369.042 | OS69: 1904696.264 | OT69: 1942768.989 | OU69: 1981602.073 | OV69: 2021210.665 | OW69: 2061610.217 | OX69: 2102816.485 | OY69: 2144845.539 | OZ69: 2187713.763 | PA69: 2231437.87 | PB69: 2276034.9 | PC69: 2321522.232 | PD69: 2367917.586 | PE69: 2415239.035 | PF69: 2463505.006 | PG69: 2512734.293 | PH69: 2562946.057 | PI69: 2614159.84 | PJ69: 2666395.569 | PK69: 2719673.561 | PL69: 2774014.535 | PM69: 2829439.62 | PN69: 2885970.356 | PO69: 2943628.712 | PP69: 3002437.084 | PQ69: 3062418.31 | PR69: 3123595.678 | PS69: 3185992.93 | PT69: 3249634.277 | PU69: 3314544.4 | PV69: 3380748.469 | PW69: 3448272.142 | PX69: 3517141.581 | PY69: 3587383.46 | PZ69: 3659024.973 | QA69: 3732093.845 | QB69: 3806618.341 | QC69: 3882627.278 | QD69: 3960150.036 | QE69: 4039216.562 | QF69: 4119857.389 | QG69: 4202103.642 | QH69: 4285987.049 | QI69: 4371539.955 | QJ69: 4458795.33 | QK69: =NPV($D$69,QK61:ARH61) -> 4547786.783 | QL69: 4638548.572 | QM69: 4731115.615 | QN69: 4825523.507 | QO69: 4921808.526 | QP69: 5020007.648 | QQ69: 5120158.562 | QR69: 5222299.677 | QS69: 5326470.14 | QT69: 5432709.849 | QU69: 5541059.463 | QV69: 5651560.416 | QW69: 5764254.933 | QX69: 5879186.044 | QY69: 5996397.595 | QZ69: 6115934.263 | RA69: 6237841.574 | RB69: 6362165.911 | RC69: 6488954.535 | RD69: 6618255.597 | RE69: 6750118.152 | RF69: 6884592.176 | RG69: 7021728.581 | RH69: 7161579.231 | RI69: 7304196.954 | RJ69: 7449635.564 | RK69: 7597949.872 | RL69: 7749195.704 | RM69: 7903429.916 | RN69: 8060710.412 | RO69: 8221096.16 | RP69: 8384647.207 | RQ69: 8551424.696 | RR69: 8721490.886 | RS69: 8894909.164 | RT69: 9071744.063 | RU69: 9252061.283 | RV69: 9435927.702 | RW69: 9623411.395 | RX69: 9814581.656 | RY69: 10009509 | RZ69: 10208265.21 | SA69: 10410923.32 | SB69: 10617557.63 | SC69: 10828243.78 | SD69: 11043058.69 | SE69: 11262080.63 | SF69: 11485389.2 | SG69: 11713065.39 | SH69: 11945191.55 | SI69: 12181851.43 | SJ69: 12423130.19 | SK69: 12669114.43 | SL69: 12919892.18 | SM69: 13175552.92 | SN69: 13436187.61 | SO69: 13701888.68 | SP69: 13972750.08 | SQ69: 14248867.23 | SR69: 14530337.12 | SS69: 14817258.22 | ST69: 15109730.58 | SU69: 15407855.79 | SV69: 15711736.99 | SW69: =NPV($D$69,SW61:ATT61) -> 16021478.89 | SX69: 16337187.8 | SY69: 16658971.58 | SZ69: 16986939.7 | TA69: 17321203.2 | TB69: 17661874.73 | TC69: 18009068.51 | TD69: 18362900.39 | TE69: 18723487.77 | TF69: 19090949.67 | TG69: 19465406.67 | TH69: 19846980.93 | TI69: 20235796.19 | TJ69: 20631977.72 | TK69: 21035652.34 | TL69: 21446948.41 | TM69: 21865995.77 | TN69: 22292925.76 | TO69: 22727871.17 | TP69: 23170966.24 | TQ69: 23622346.59 | TR69: 24082149.22 | TS69: 24550512.46 | TT69: 25027575.94 | TU69: 25513480.51 | TV69: 26008368.24 | TW69: 26512382.34 | TX69: 27025667.08 | TY69: 27548367.78 | TZ69: 28080630.7 | UA69: 28622602.98 | UB69: 29174432.55 | UC69: 29736268.05 | UD69: 30308258.76 | UE69: 30890554.47 | UF69: 31483305.39 | UG69: 32086662.02 | UH69: 32700775.05 | UI69: 33325795.23 | UJ69: 33961873.21 | UK69: 34609159.43 | UL69: 35267803.92 | UM69: 35937956.16 | UN69: 36619764.92 | UO69: 37313378.04 | UP69: 38018942.23 | UQ69: 38736602.9 | UR69: 39466503.91 | US69: 40208787.32 | UT69: 40963593.18 | UU69: 41731059.23 | UV69: 42511320.64 | UW69: 43304509.71 | UX69: 44110755.59 | UY69: 44930183.89 | UZ69: 45762916.4 | VA69: 46609070.69 | VB69: 47468759.75 | VC69: 48342091.56 | VD69: 49229168.71 | VE69: 50130087.92 | VF69: 51044939.58 | VG69: 51973807.28 | VH69: 52916767.28 | VI69: =NPV($D$69,VI61:AWF61) -> 53873887.97 | VJ69: 54845229.32 | VK69: 55830842.25 | VL69: 56830768.06 | VM69: 57845037.75 | VN69: 58873671.33 | VO69: 59916677.14 | VP69: 60974051.08 | VQ69: 62045775.83 | VR69: 63131820.06 | VS69: 64232137.56 | VT69: 65346666.34 | VU69: 66475327.77 | VV69: 67618025.51 | VW69: 68774644.62 | VX69: 69945050.43 | VY69: 71129087.46 | VZ69: 72326578.34 | WA69: 73537322.56 | WB69: 74761095.29 | WC69: 75997646.09 | WD69: 77246697.59 | WE69: 78507944.09 | WF69: 79781050.2 | WG69: 81065649.3 | WH69: 82361342.04 | WI69: 83667694.76 | WJ69: 84984237.85 | WK69: 86310464.06 | WL69: 87645826.78 | WM69: 88989738.18 | WN69: 90341567.44 | WO69: 91700638.77 | WP69: 93066229.47 | WQ69: 94437567.93 | WR69: 95813831.55 | WS69: 97194144.59 | WT69: 98577576.03 | WU69: 99963137.34 | WV69: 101349780.2 | WW69: 102736394.2 | WX69: 104121804.4 | WY69: 105504769.1 | WZ69: 106883977.4 | XA69: 108258046.4 | XB69: 109625519.3 | XC69: 110984862.5 | XD69: 112334463 | XE69: 113672626.4 | XF69: 114997573.9 | XG69: 116307440 | XH69: 117600270.2 | XI69: 118874018.4 | XJ69: 120126544.4 | XK69: 121355612.1 | XL69: 122558886.8 | XM69: 123733933.5 | XN69: 124878214.5 | XO69: 125989088 | XP69: 127063806.3 | XQ69: 128099514.4 | XR69: 129093248.6 | XS69: 130041935.9 | XT69: 130942393.1 | XU69: =NPV($D$69,XU61:AYR61) -> 131791326.5 | XV69: 132585332.3 | XW69: 133320896.7 | XX69: 133994397.3 | XY69: 134602104.3 | XZ69: 135140183 | YA69: 135604696.3 | YB69: 135991608.5 | YC69: 136296789.5 | YD69: 136516020.2 | YE69: 136644998.7 | YF69: 136679347.8 | YG69: 136614623.5 | YH69: 136446324.7 | YI69: 136169905.1 | YJ69: 135780785.4 | YK69: 135274368.8 | YL69: 134646056.8 | YM69: 133891268.5 | YN69: 133005461 | YO69: 131984153.4 | YP69: 130822952.1 | YQ69: 129517580.4 | YR69: 128063910.7 | YS69: 126457999.6 | YT69: 124696127.9 | YU69: 122774843.8 | YV69: 120691010.8 | YW69: 118441860.6 | YX69: 116025050.7 | YY69: 113438728.4 | YZ69: 110681600.1 | ZA69: 107753007.7 | ZB69: 104653012.1 | ZC69: 101382484.3 | ZD69: 97943205.02 | ZE69: 94337973 | ZF69: 90570723.72 | ZG69: 86646658 | ZH69: 82572382.39 | ZI69: 78356061.66 | ZJ69: 74007584.62 | ZK69: 69538744.21 | ZL69: 64963433.01 | ZM69: 60297855.37 | ZN69: 55560757.42 | ZO69: 50773676.41 | ZP69: 45961210.77 | ZQ69: 41151312.62 | ZR69: 36375604.31 | ZS69: 31669720.88 | ZT69: 27073680.46 | ZU69: 22632284.67 | ZV69: 18395551.28 | ZW69: 14419181.66 | ZX69: 10765065.45 | ZY69: 7501825.476 | ZZ69: 4705405.753 | AAA69: 2459705.842 | AAB69: 857265.0287
C70: Net of Tax Value of Interest | D70: =D61 -> 0.3 | E70: =E68*(1-$D$70) -> 1491.025755 | F70: =F68*(1-$D$70) -> 1520.84627 | G70: 1551.263195 | H70: 1582.288459 | I70: 1613.934228 | J70: 1646.212913 | K70: 1679.137171 | L70: 1712.719914 | M70: 1746.974313 | N70: 1781.913799 | O70: 1817.552075 | P70: 1853.903116 | Q70: 1890.981178 | R70: 1928.800802 | S70: 1967.376818 | T70: 2006.724354 | U70: 2046.858841 | V70: 2087.796017 | W70: 2129.551938 | X70: 2172.142976 | Y70: 2215.585835 | Z70: 2259.897552 | AA70: 2305.095503 | AB70: 2351.197413 | AC70: 2398.221361 | AD70: 2446.185788 | AE70: 2495.109503 | AF70: 2545.011693 | AG70: 2595.911927 | AH70: 2647.830165 | AI70: 2700.786768 | AJ70: 2754.802503 | AK70: 2809.898553 | AL70: 2866.096524 | AM70: 2923.418454 | AN70: 2981.886822 | AO70: 3041.524558 | AP70: 3102.355049 | AQ70: 3164.40215 | AR70: 3227.690192 | AS70: 3292.243996 | AT70: 3358.088875 | AU70: 3425.250652 | AV70: 3493.755665 | AW70: 3563.630777 | AX70: 3634.903392 | AY70: 3707.60146 | AZ70: 3781.753488 | BA70: 3857.388557 | BB70: 3934.536328 | BC70: 4013.227053 | BD70: 4093.491594 | BE70: 4175.361425 | BF70: 4258.868652 | BG70: 4344.046024 | BH70: 4430.926944 | BI70: 4519.545482 | BJ70: 4609.93639 | BK70: 4702.135117 | BL70: 4796.177818 | BM70: 4892.101373 | BN70: 4989.943399 | BO70: 5089.742266 | BP70: 5191.537109 | BQ70: 5295.36785 | BR70: =BR68*(1-$D$70) -> 5401.275205 | BS70: 5509.300708 | BT70: 5619.48672 | BU70: 5731.876453 | BV70: 5846.51398 | BW70: 5963.444257 | BX70: 6082.71314 | BY70: 6204.3674 | BZ70: 6328.454746 | CA70: 6455.023838 | CB70: 6584.124312 | CC70: 6715.806796 | CD70: 6850.122929 | CE70: 6987.125384 | CF70: 7126.867888 | CG70: 7269.405242 | CH70: 7414.793344 | CI70: 7563.089207 | CJ70: 7714.350987 | CK70: 7868.638002 | CL70: 8026.010757 | CM70: 8186.530968 | CN70: 8350.261582 | CO70: 8517.266808 | CP70: 8687.612139 | CQ70: 8861.364376 | CR70: 9038.591657 | CS70: 9219.363484 | CT70: 9403.750747 | CU70: 9591.825755 | CV70: 9783.662262 | CW70: 9979.335499 | CX70: 10178.9222 | CY70: 10382.50064 | CZ70: 10590.15064 | DA70: 10801.95364 | DB70: 11017.99271 | DC70: 11238.35255 | DD70: 11463.11959 | DE70: 11692.38197 | DF70: 11926.22959 | DG70: 12164.75417 | DH70: 12408.04924 | DI70: 12656.21021 | DJ70: 12909.3344 | DK70: 13167.52107 | DL70: 13430.87148 | DM70: 13699.48889 | DN70: 13973.47865 | DO70: 14252.9482 | DP70: 14538.00715 | DQ70: 14828.76727 | DR70: 15125.34259 | DS70: 15427.84942 | DT70: 15736.40638 | DU70: 16051.13448 | DV70: 16372.15714 | DW70: 16699.60025 | DX70: 17033.59223 | DY70: 17374.26404 | DZ70: 17721.74929 | EA70: 18076.18424 | EB70: 18437.70788 | EC70: 18806.462 | ED70: =ED68*(1-$D$70) -> 19182.5912 | EE70: 19566.24298 | EF70: 19957.56779 | EG70: 20356.7191 | EH70: 20763.85343 | EI70: 21179.13044 | EJ70: 21602.71299 | EK70: 22034.76719 | EL70: 22475.46247 | EM70: 22924.97165 | EN70: 23383.47102 | EO70: 23851.14036 | EP70: 24328.16309 | EQ70: 24814.72627 | ER70: 25311.02071 | ES70: 25817.24103 | ET70: 26333.58576 | EU70: 26860.25737 | EV70: 27397.46242 | EW70: 27945.41155 | EX70: 28504.31967 | EY70: 29074.40594 | EZ70: 29655.89393 | FA70: 30249.01167 | FB70: 30853.99176 | FC70: 31471.07145 | FD70: 32100.49272 | FE70: 32742.5024 | FF70: 33397.35228 | FG70: 34065.29914 | FH70: 34746.60493 | FI70: 35441.53682 | FJ70: 36150.36734 | FK70: 36873.37447 | FL70: 37610.84172 | FM70: 38363.0583 | FN70: 39130.31921 | FO70: 39912.92531 | FP70: 40711.18353 | FQ70: 41525.40689 | FR70: 42355.91471 | FS70: 43203.03267 | FT70: 44067.09296 | FU70: 44948.43445 | FV70: 45847.40274 | FW70: 46764.35038 | FX70: 47699.63695 | FY70: 48653.62923 | FZ70: 49626.70134 | GA70: 50619.23486 | GB70: 51631.61902 | GC70: 52664.25084 | GD70: 53717.53526 | GE70: 54791.88535 | GF70: 55887.7224 | GG70: 57005.47616 | GH70: 58145.58496 | GI70: 59308.4959 | GJ70: 60494.66501 | GK70: 61704.55747 | GL70: 62938.64773 | GM70: 64197.41976 | GN70: 65481.36717 | GO70: 66790.99348 | GP70: =GP68*(1-$D$70) -> 68126.81226 | GQ70: 69489.34737 | GR70: 70879.13311 | GS70: 72296.71451 | GT70: 73742.64747 | GU70: 75217.49902 | GV70: 76721.84753 | GW70: 78256.28293 | GX70: 79821.40696 | GY70: 81417.83339 | GZ70: 83046.18826 | HA70: 84707.11012 | HB70: 86401.25033 | HC70: 88129.27324 | HD70: 89891.8565 | HE70: 91689.69131 | HF70: 93523.48269 | HG70: 95393.94977 | HH70: 97301.82607 | HI70: 99247.85974 | HJ70: 101232.8139 | HK70: 103257.4671 | HL70: 105322.6131 | HM70: 107429.0619 | HN70: 109577.6395 | HO70: 111769.1884 | HP70: 114004.5681 | HQ70: 116284.6552 | HR70: 118610.3438 | HS70: 120982.546 | HT70: 123402.1919 | HU70: 125870.2306 | HV70: 128387.6297 | HW70: 130955.3765 | HX70: 133574.4779 | HY70: 136245.9611 | HZ70: 138970.8736 | IA70: 141750.284 | IB70: 144585.2822 | IC70: 147476.98 | ID70: 150426.5114 | IE70: 153435.0329 | IF70: 156503.7245 | IG70: 159633.7894 | IH70: 162826.4551 | II70: 166082.9736 | IJ70: 169404.6219 | IK70: 172792.7026 | IL70: 176248.5442 | IM70: 179773.5021 | IN70: 183368.9585 | IO70: 187036.3233 | IP70: 190777.0346 | IQ70: 194592.5594 | IR70: 198484.3938 | IS70: 202454.0641 | IT70: 206503.1268 | IU70: 210633.1699 | IV70: 214845.8127 | IW70: 219142.7074 | IX70: 223525.5389 | IY70: 227996.0258 | IZ70: 232555.9212 | JA70: 237207.0132 | JB70: =JB68*(1-$D$70) -> 241951.1256 | JC70: 246790.1189 | JD70: 251725.8905 | JE70: 256760.376 | JF70: 261895.5495 | JG70: 267133.4247 | JH70: 272476.0555 | JI70: 277925.537 | JJ70: 283484.006 | JK70: 289153.6423 | JL70: 294936.669 | JM70: 300835.3539 | JN70: 306852.0099 | JO70: 312988.9964 | JP70: 319248.7199 | JQ70: 325633.6348 | JR70: 332146.245 | JS70: 338789.1042 | JT70: 345564.8171 | JU70: 352476.0407 | JV70: 359525.4849 | JW70: 366715.9141 | JX70: 374050.1477 | JY70: 381531.0616 | JZ70: 389161.5891 | KA70: 396944.7222 | KB70: 404883.513 | KC70: 412981.0741 | KD70: 421240.5808 | KE70: 429665.2717 | KF70: 438258.4502 | KG70: 447023.4856 | KH70: 455963.8148 | KI70: 465082.9432 | KJ70: 474384.4466 | KK70: 483871.9719 | KL70: 493549.2393 | KM70: 503420.043 | KN70: 513488.2535 | KO70: 523757.8182 | KP70: 534232.7639 | KQ70: 544917.1975 | KR70: 555815.3083 | KS70: 566931.3692 | KT70: 578269.7386 | KU70: 589834.8619 | KV70: 601631.2737 | KW70: 613663.5989 | KX70: 625936.5549 | KY70: 638454.9537 | KZ70: 651223.7032 | LA70: 664247.8096 | LB70: 677532.379 | LC70: 691082.6197 | LD70: 704903.844 | LE70: 719001.4707 | LF70: 733381.0265 | LG70: 748048.1489 | LH70: 763008.5878 | LI70: 778268.2083 | LJ70: 793832.9926 | LK70: 809709.0425 | LL70: 825902.5817 | LM70: 842419.9585 | LN70: =LN68*(1-$D$70) -> 859267.6477 | LO70: 876452.2538 | LP70: 893980.5134 | LQ70: 911859.2973 | LR70: 930095.614 | LS70: 948696.612 | LT70: 967669.5825 | LU70: 987021.9625 | LV70: 1006761.338 | LW70: 1026895.445 | LX70: 1047432.176 | LY70: 1068379.581 | LZ70: 1089745.87 | MA70: 1111539.417 | MB70: 1133768.764 | MC70: 1156442.623 | MD70: 1179569.88 | ME70: 1203159.6 | MF70: 1227221.027 | MG70: 1251763.592 | MH70: 1276796.911 | MI70: 1302330.795 | MJ70: 1328375.251 | MK70: 1354940.483 | ML70: 1382036.903 | MM70: 1409675.126 | MN70: 1437865.984 | MO70: 1466620.522 | MP70: 1495950.006 | MQ70: 1525865.928 | MR70: 1556380.01 | MS70: 1587504.204 | MT70: 1619250.706 | MU70: 1651631.953 | MV70: 1684660.629 | MW70: 1718349.673 | MX70: 1752712.282 | MY70: 1787761.916 | MZ70: 1823512.303 | NA70: 1859977.447 | NB70: 1897171.629 | NC70: 1935109.416 | ND70: 1973805.667 | NE70: 2013275.535 | NF70: 2053534.477 | NG70: 2094598.257 | NH70: 2136482.954 | NI70: 2179204.969 | NJ70: 2222781.028 | NK70: 2267228.192 | NL70: 2312563.861 | NM70: 2358805.782 | NN70: 2405972.057 | NO70: 2454081.148 | NP70: 2503151.885 | NQ70: 2553203.472 | NR70: 2604255.498 | NS70: 2656327.941 | NT70: 2709441.176 | NU70: 2763615.987 | NV70: 2818873.567 | NW70: 2875235.537 | NX70: 2932723.942 | NY70: 2991361.272 | NZ70: =NZ68*(1-$D$70) -> 3051170.461 | OA70: 3112174.899 | OB70: 3174398.444 | OC70: 3237865.428 | OD70: 3302600.664 | OE70: 3368629.464 | OF70: 3435977.637 | OG70: 3504671.511 | OH70: 3574737.933 | OI70: 3646204.286 | OJ70: 3719098.496 | OK70: 3793449.045 | OL70: 3869284.979 | OM70: 3946635.923 | ON70: 4025532.087 | OO70: 4106004.285 | OP70: 4188083.937 | OQ70: 4271803.092 | OR70: 4357194.431 | OS70: 4444291.284 | OT70: 4533127.642 | OU70: 4623738.17 | OV70: 4716158.218 | OW70: 4810423.84 | OX70: 4906571.799 | OY70: 5004639.59 | OZ70: 5104665.448 | PA70: 5206688.364 | PB70: 5310748.101 | PC70: 5416885.208 | PD70: 5525141.034 | PE70: 5635557.748 | PF70: 5748178.348 | PG70: 5863046.683 | PH70: 5980207.466 | PI70: 6099706.294 | PJ70: 6221589.66 | PK70: 6345904.975 | PL70: 6472700.582 | PM70: 6602025.779 | PN70: 6733930.832 | PO70: 6868466.994 | PP70: 7005686.528 | PQ70: 7145642.724 | PR70: 7288389.915 | PS70: 7433983.504 | PT70: 7582479.979 | PU70: 7733936.934 | PV70: 7888413.094 | PW70: 8045968.331 | PX70: 8206663.69 | PY70: 8370561.407 | PZ70: 8537724.937 | QA70: 8708218.971 | QB70: 8882109.462 | QC70: 9059463.65 | QD70: 9240350.083 | QE70: 9424838.644 | QF70: 9613000.574 | QG70: 9804908.497 | QH70: 10000636.45 | QI70: 10200259.9 | QJ70: 10403855.77 | QK70: 10611502.49 | QL70: =QL68*(1-$D$70) -> 10823280 | QM70: 11039269.77 | QN70: 11259554.85 | QO70: 11484219.89 | QP70: 11713351.18 | QQ70: 11947036.64 | QR70: 12185365.91 | QS70: 12428430.33 | QT70: 12676322.98 | QU70: 12929138.75 | QV70: 13186974.3 | QW70: 13449928.18 | QX70: 13718100.77 | QY70: 13991594.39 | QZ70: 14270513.28 | RA70: 14554963.67 | RB70: 14845053.79 | RC70: 15140893.92 | RD70: 15442596.39 | RE70: 15750275.69 | RF70: 16064048.41 | RG70: 16384033.36 | RH70: 16710351.54 | RI70: 17043126.23 | RJ70: 17382482.98 | RK70: 17728549.7 | RL70: 18081456.64 | RM70: 18441336.47 | RN70: 18808324.29 | RO70: 19182557.71 | RP70: 19564176.82 | RQ70: 19953324.29 | RR70: 20350145.4 | RS70: 20754788.05 | RT70: 21167402.81 | RU70: 21588142.99 | RV70: 22017164.64 | RW70: 22454626.59 | RX70: 22900690.53 | RY70: 23355521.01 | RZ70: 23819285.5 | SA70: 24292154.41 | SB70: 24774301.15 | SC70: 25265902.16 | SD70: 25767136.95 | SE70: 26278188.13 | SF70: 26799241.47 | SG70: 27330485.91 | SH70: 27872113.61 | SI70: 28424320 | SJ70: 28987303.78 | SK70: 29561267.01 | SL70: 30146415.09 | SM70: 30742956.82 | SN70: 31351104.42 | SO70: 31971073.59 | SP70: 32603083.51 | SQ70: 33247356.88 | SR70: 33904119.94 | SS70: 34573602.52 | ST70: 35256038.03 | SU70: 35951663.5 | SV70: 36660719.63 | SW70: 37383450.75 | SX70: =SX68*(1-$D$70) -> 38120104.87 | SY70: 38870933.7 | SZ70: 39636192.64 | TA70: 40416140.8 | TB70: 41211041.03 | TC70: 42021159.87 | TD70: 42846767.57 | TE70: 43688138.13 | TF70: 44545549.23 | TG70: 45419282.22 | TH70: 46309622.17 | TI70: 47216857.77 | TJ70: 48141281.34 | TK70: 49083188.8 | TL70: 50042879.62 | TM70: 51020656.8 | TN70: 52016826.77 | TO70: 53031699.41 | TP70: 54065587.89 | TQ70: 55118808.71 | TR70: 56191681.51 | TS70: 57284529.08 | TT70: 58397677.18 | TU70: 59531454.52 | TV70: 60686192.56 | TW70: 61862225.45 | TX70: 63059889.86 | TY70: 64279524.83 | TZ70: 65521471.64 | UA70: 66786073.62 | UB70: 68073675.94 | UC70: 69384625.45 | UD70: 70719270.45 | UE70: 72077960.44 | UF70: 73461045.91 | UG70: 74868878.04 | UH70: 76301808.45 | UI70: 77760188.87 | UJ70: 79244370.83 | UK70: 80754705.33 | UL70: 82291542.47 | UM70: 83855231.05 | UN70: 85446118.15 | UO70: 87064548.75 | UP70: 88710865.2 | UQ70: 90385406.77 | UR70: 92088509.12 | US70: 93820503.75 | UT70: 95581717.42 | UU70: 97372471.53 | UV70: 99193081.48 | UW70: 101043856 | UX70: 102925096.4 | UY70: 104837095.7 | UZ70: 106780138.3 | VA70: 108754498.3 | VB70: 110760439.4 | VC70: 112798213.6 | VD70: 114868060.3 | VE70: 116970205.1 | VF70: 119104859 | VG70: 121272217 | VH70: 123472457 | VI70: 125705738.6 | VJ70: =VJ68*(1-$D$70) -> 127972201.7 | VK70: 130271965.2 | VL70: 132605125.5 | VM70: 134971754.7 | VN70: 137371899.8 | VO70: 139805580 | VP70: 142272785.9 | VQ70: 144773476.9 | VR70: 147307580.1 | VS70: 149874987.6 | VT70: 152475554.8 | VU70: 155109098.1 | VV70: 157775392.9 | VW70: 160474170.8 | VX70: 163205117.7 | VY70: 165967870.7 | VZ70: 168762016.1 | WA70: 171587086 | WB70: 174442555.7 | WC70: 177327840.9 | WD70: 180242294.4 | WE70: 183185202.9 | WF70: 186155783.8 | WG70: 189153181.7 | WH70: 192176464.8 | WI70: 195224621.1 | WJ70: 198296555 | WK70: 201391082.8 | WL70: 204506929.1 | WM70: 207642722.4 | WN70: 210796990.7 | WO70: 213968157.1 | WP70: 217154535.4 | WQ70: 220354325.2 | WR70: 223565606.9 | WS70: 226786337.4 | WT70: 230014344.1 | WU70: 233247320.5 | WV70: 236482820.5 | WW70: 239718253.1 | WX70: 242950876.9 | WY70: 246177794.6 | WZ70: 249395947.2 | XA70: 252602108.3 | XB70: 255792878.4 | XC70: 258964679.1 | XD70: 262113747 | XE70: 265236128.3 | XF70: 268327672.4 | XG70: 271384026.7 | XH70: 274400630.6 | XI70: 277372709.6 | XJ70: 280295270.3 | XK70: 283163094.9 | XL70: 285970735.9 | XM70: 288712511.4 | XN70: 291382500.4 | XO70: 293974538.6 | XP70: 296482214.7 | XQ70: 298898866.9 | XR70: 301217580.1 | XS70: 303431183.8 | XT70: 305532250.5 | XU70: 307513095.1 | XV70: =XV68*(1-$D$70) -> 309365775.3 | XW70: 311082092.2 | XX70: 312653593.6 | XY70: 314071576.7 | XZ70: 315327093.7 | YA70: 316410958.1 | YB70: 317313753.2 | YC70: 318025842.1 | YD70: 318537380.4 | YE70: 318838330.3 | YF70: 318918478.2 | YG70: 318767454.8 | YH70: 318374757.7 | YI70: 317729778.5 | YJ70: 316821832.6 | YK70: 315640193.8 | YL70: 314174132.5 | YM70: 312412959.8 | YN70: 310346075.8 | YO70: 307963024.5 | YP70: 305253554.8 | YQ70: 302207687.7 | YR70: 298815791.6 | YS70: 295068665.7 | YT70: 290957631.7 | YU70: 286474635.5 | YV70: 281612358.5 | YW70: 276364341.3 | YX70: 270725118.3 | YY70: 264690366.2 | YZ70: 258257066.9 | ZA70: 251423684.6 | ZB70: 244190361.6 | ZC70: 236559130.1 | ZD70: 228534145 | ZE70: 220121937 | ZF70: 211331688.7 | ZG70: 202175535.3 | ZH70: 192668892.2 | ZI70: 182830810.5 | ZJ70: 172684364.1 | ZK70: 162257069.8 | ZL70: 151581343.7 | ZM70: 140694995.9 | ZN70: 129641767.3 | ZO70: 118471911.6 | ZP70: 107242825.1 | ZQ70: 96019729.45 | ZR70: 84876410.06 | ZS70: 73896015.38 | ZT70: 63171921.06 | ZU70: 52808664.22 | ZV70: 42922953 | ZW70: 33644757.21 | ZX70: 25118486.05 | ZY70: 17504259.44 | ZZ70: 10979280.09 | AAA70: 5739313.632 | AAB70: 2000285.067
C72: Nominal Value of Added Debt Using NPV | D72: =D68 -> 0.052 | E72: =NPV($D$72,E62:AAB62) -> 573.471443 | F72: 584.9408718 | G72: 596.6396892 | H72: 608.5724829 | I72: 620.7439325 | J72: 633.158811 | K72: 645.8219872 | L72: 658.7384268 | M72: 671.9131953 | N72: 685.3514591 | O72: 699.0584882 | P72: 713.0396578 | Q72: 727.3004509 | R72: 741.8464598 | S72: 756.6833888 | T72: 771.8170565 | U72: 787.2533975 | V72: 802.9984653 | W72: 819.0584344 | X72: 835.439603 | Y72: 852.1483948 | Z72: 869.1913626 | AA72: 886.5751896 | AB72: 904.3066932 | AC72: 922.3928269 | AD72: 940.8406832 | AE72: 959.6574966 | AF72: 978.8506463 | AG72: 998.427659 | AH72: 1018.396212 | AI72: 1038.764136 | AJ72: 1059.539418 | AK72: 1080.730206 | AL72: 1102.34481 | AM72: 1124.391706 | AN72: 1146.87954 | AO72: 1169.81713 | AP72: 1193.213472 | AQ72: 1217.077741 | AR72: 1241.419296 | AS72: 1266.247681 | AT72: 1291.572634 | AU72: 1317.404087 | AV72: 1343.752168 | AW72: 1370.627211 | AX72: 1398.039754 | AY72: 1426.000549 | AZ72: 1454.520559 | BA72: 1483.610969 | BB72: 1513.283188 | BC72: 1543.548851 | BD72: 1574.419827 | BE72: 1605.908223 | BF72: 1638.026386 | BG72: 1670.786913 | BH72: 1704.202651 | BI72: 1738.286703 | BJ72: 1773.052435 | BK72: 1808.513483 | BL72: 1844.683751 | BM72: 1881.577425 | BN72: 1919.208972 | BO72: 1957.59315 | BP72: 1996.745012 | BQ72: =NPV($D$72,BQ62:ACN62) -> 2036.679911 | BR72: 2077.413507 | BS72: 2118.961776 | BT72: 2161.341009 | BU72: 2204.567827 | BV72: 2248.659182 | BW72: 2293.632364 | BX72: 2339.505009 | BY72: 2386.295106 | BZ72: 2434.021006 | CA72: 2482.701424 | CB72: 2532.355449 | CC72: 2583.002555 | CD72: 2634.662603 | CE72: 2687.355852 | CF72: 2741.102966 | CG72: 2795.925022 | CH72: 2851.843518 | CI72: 2908.880385 | CJ72: 2967.057989 | CK72: 3026.399144 | CL72: 3086.927122 | CM72: 3148.66566 | CN72: 3211.638968 | CO72: 3275.871742 | CP72: 3341.389171 | CQ72: 3408.216949 | CR72: 3476.381282 | CS72: 3545.908901 | CT72: 3616.827072 | CU72: 3689.163606 | CV72: 3762.946871 | CW72: 3838.2058 | CX72: 3914.969908 | CY72: 3993.269297 | CZ72: 4073.134674 | DA72: 4154.597358 | DB72: 4237.689295 | DC72: 4322.44307 | DD72: 4408.89192 | DE72: 4497.069746 | DF72: 4587.011129 | DG72: 4678.751338 | DH72: 4772.326351 | DI72: 4867.772863 | DJ72: 4965.128305 | DK72: 5064.430855 | DL72: 5165.719455 | DM72: 5269.033827 | DN72: 5374.414484 | DO72: 5481.902754 | DP72: 5591.540788 | DQ72: 5703.371582 | DR72: 5817.438991 | DS72: 5933.787746 | DT72: 6052.463476 | DU72: 6173.512718 | DV72: 6296.982945 | DW72: 6422.922574 | DX72: 6551.380994 | DY72: 6682.408581 | DZ72: 6816.056718 | EA72: 6952.377816 | EB72: 7091.425334 | EC72: =NPV($D$72,EC62:AEZ62) -> 7233.2538 | ED72: 7377.918834 | EE72: 7525.477166 | EF72: 7675.986663 | EG72: 7829.506346 | EH72: 7986.096422 | EI72: 8145.818295 | EJ72: 8308.734604 | EK72: 8474.909236 | EL72: 8644.407357 | EM72: 8817.295437 | EN72: 8993.641275 | EO72: 9173.514027 | EP72: 9356.98423 | EQ72: 9544.123832 | ER72: 9735.006223 | ES72: 9929.706257 | ET72: 10128.30029 | EU72: 10330.86619 | EV72: 10537.48341 | EW72: 10748.23297 | EX72: 10963.19751 | EY72: 11182.46134 | EZ72: 11406.11044 | FA72: 11634.23251 | FB72: 11866.91702 | FC72: 12104.25521 | FD72: 12346.34015 | FE72: 12593.26679 | FF72: 12845.13195 | FG72: 13102.0344 | FH72: 13364.0749 | FI72: 13631.35619 | FJ72: 13903.9831 | FK72: 14182.06254 | FL72: 14465.70355 | FM72: 14755.01737 | FN72: 15050.11746 | FO72: 15351.11953 | FP72: 15658.14163 | FQ72: 15971.30416 | FR72: 16290.72992 | FS72: 16616.54418 | FT72: 16948.87471 | FU72: 17287.85182 | FV72: 17633.60847 | FW72: 17986.28022 | FX72: 18346.00539 | FY72: 18712.92504 | FZ72: 19087.18306 | GA72: 19468.92621 | GB72: 19858.3042 | GC72: 20255.46972 | GD72: 20660.57853 | GE72: 21073.78948 | GF72: 21495.26461 | GG72: 21925.16922 | GH72: 22363.67188 | GI72: 22810.94455 | GJ72: 23267.16264 | GK72: 23732.50505 | GL72: 24207.15427 | GM72: 24691.29642 | GN72: 25185.12137 | GO72: =NPV($D$72,GO62:AHL62) -> 25688.82277 | GP72: 26202.59814 | GQ72: 26726.64896 | GR72: 27261.18074 | GS72: 27806.40309 | GT72: 28362.52982 | GU72: 28929.77902 | GV72: 29508.37313 | GW72: 30098.53904 | GX72: 30700.50819 | GY72: 31314.51665 | GZ72: 31940.80518 | HA72: 32579.61939 | HB72: 33231.20978 | HC72: 33895.83188 | HD72: 34573.74631 | HE72: 35265.21891 | HF72: 35970.52085 | HG72: 36689.9287 | HH72: 37423.72457 | HI72: 38172.19622 | HJ72: 38935.63716 | HK72: 39714.34675 | HL72: 40508.63038 | HM72: 41318.79951 | HN72: 42145.17183 | HO72: 42988.07142 | HP72: 43847.8288 | HQ72: 44724.78111 | HR72: 45619.27225 | HS72: 46531.65297 | HT72: 47462.28107 | HU72: 48411.52147 | HV72: 49379.74641 | HW72: 50367.33556 | HX72: 51374.6762 | HY72: 52402.16333 | HZ72: 53450.19987 | IA72: 54519.19679 | IB72: 55609.57328 | IC72: 56721.75692 | ID72: 57856.18382 | IE72: 59013.29884 | IF72: 60193.5557 | IG72: 61397.41723 | IH72: 62625.35548 | II72: 63877.85198 | IJ72: 65155.39786 | IK72: 66458.49408 | IL72: 67787.65161 | IM72: 69143.39165 | IN72: 70526.24582 | IO72: 71936.75636 | IP72: 73375.47636 | IQ72: 74842.96998 | IR72: 76339.81264 | IS72: 77866.59128 | IT72: 79423.90459 | IU72: 81012.3632 | IV72: 82632.58997 | IW72: 84285.22021 | IX72: 85970.90193 | IY72: 87690.29611 | IZ72: 89444.07693 | JA72: =NPV($D$72,JA62:AJX62) -> 91232.93207 | JB72: 93057.56294 | JC72: 94918.68498 | JD72: 96817.02795 | JE72: 98753.33618 | JF72: 100728.3689 | JG72: 102742.9005 | JH72: 104797.7209 | JI72: 106893.6357 | JJ72: 109031.4668 | JK72: 111212.0523 | JL72: 113436.2473 | JM72: 115704.9237 | JN72: 118018.9712 | JO72: 120379.297 | JP72: 122786.8265 | JQ72: 125242.5037 | JR72: 127747.2913 | JS72: 130302.1714 | JT72: 132908.1458 | JU72: 135566.236 | JV72: 138277.4843 | JW72: 141042.9535 | JX72: 143863.728 | JY72: 146740.9136 | JZ72: 149675.6382 | KA72: 152669.0525 | KB72: 155722.3299 | KC72: 158836.6676 | KD72: 162013.2863 | KE72: 165253.4314 | KF72: 168558.3732 | KG72: 171929.4072 | KH72: 175367.855 | KI72: 178875.0645 | KJ72: 182452.4105 | KK72: 186101.2953 | KL72: 189823.1493 | KM72: 193619.4316 | KN72: 197491.63 | KO72: 201441.2626 | KP72: 205469.8774 | KQ72: 209579.0536 | KR72: 213770.4019 | KS72: 218045.565 | KT72: 222406.2187 | KU72: 226854.072 | KV72: 231390.8684 | KW72: 236018.3859 | KX72: 240738.4382 | KY72: 245552.8752 | KZ72: 250463.5837 | LA72: 255472.4883 | LB72: 260581.5518 | LC72: 265792.7767 | LD72: 271108.2049 | LE72: 276529.9195 | LF72: 282060.0451 | LG72: 287700.7487 | LH72: 293454.2406 | LI72: 299322.7751 | LJ72: 305308.6518 | LK72: 311414.216 | LL72: 317641.8599 | LM72: =NPV($D$72,LM62:AMJ62) -> 323994.0235 | LN72: 330473.1953 | LO72: 337081.9139 | LP72: 343822.7681 | LQ72: 350698.3988 | LR72: 357711.4993 | LS72: 364864.8169 | LT72: 372161.1534 | LU72: 379603.3669 | LV72: 387194.3723 | LW72: 394937.1428 | LX72: 402834.7107 | LY72: 410890.1691 | LZ72: 419106.6725 | MA72: 427487.4386 | MB72: 436035.7492 | MC72: 444754.9514 | MD72: 453648.4591 | ME72: 462719.7546 | MF72: 471972.3892 | MG72: 481409.9852 | MH72: 491036.2371 | MI72: 500854.9131 | MJ72: 510869.8564 | MK72: 521084.9869 | ML72: 531504.3026 | MM72: 542131.8809 | MN72: 552971.8809 | MO72: 564028.5442 | MP72: 575306.197 | MQ72: 586809.2516 | MR72: 598542.2083 | MS72: 610509.6568 | MT72: 622716.2784 | MU72: 635166.8474 | MV72: 647866.2331 | MW72: 660819.4019 | MX72: 674031.4187 | MY72: 687507.4495 | MZ72: 701252.7628 | NA72: 715272.7318 | NB72: 729572.8368 | NC72: 744158.6669 | ND72: 759035.9222 | NE72: 774210.4162 | NF72: 789688.0777 | NG72: 805474.9535 | NH72: 821577.2104 | NI72: 838001.1374 | NJ72: 854753.1486 | NK72: 871839.7854 | NL72: 889267.7188 | NM72: 907043.7521 | NN72: 925174.8237 | NO72: 943668.0094 | NP72: 962530.5252 | NQ72: 981769.7302 | NR72: 1001393.129 | NS72: 1021408.376 | NT72: 1041823.274 | NU72: 1062645.784 | NV72: 1083884.023 | NW72: 1105546.267 | NX72: 1127640.957 | NY72: =NPV($D$72,NY62:AOV62) -> 1150176.702 | NZ72: 1173162.279 | OA72: 1196606.639 | OB72: 1220518.909 | OC72: 1244908.398 | OD72: 1269784.597 | OE72: 1295157.184 | OF72: 1321036.029 | OG72: 1347431.195 | OH72: 1374352.943 | OI72: 1401811.738 | OJ72: 1429818.248 | OK72: 1458383.352 | OL72: 1487518.144 | OM72: 1517233.933 | ON72: 1547542.252 | OO72: 1578454.86 | OP72: 1609983.745 | OQ72: 1642141.131 | OR72: 1674939.481 | OS72: 1708391.502 | OT72: 1742510.149 | OU72: 1777308.631 | OV72: 1812800.412 | OW72: 1848999.222 | OX72: 1885919.057 | OY72: 1923574.185 | OZ72: 1961979.152 | PA72: 2001148.786 | PB72: 2041098.206 | PC72: 2081842.82 | PD72: 2123398.337 | PE72: 2165780.771 | PF72: 2209006.443 | PG72: 2253091.992 | PH72: 2298054.376 | PI72: 2343910.882 | PJ72: 2390679.129 | PK72: 2438377.074 | PL72: 2487023.021 | PM72: 2536635.622 | PN72: 2587233.889 | PO72: 2638837.198 | PP72: 2691465.292 | PQ72: 2745138.295 | PR72: 2799876.712 | PS72: 2855701.437 | PT72: 2912633.762 | PU72: 2970695.384 | PV72: 3029908.408 | PW72: 3090295.358 | PX72: 3151879.182 | PY72: 3214683.261 | PZ72: 3278731.414 | QA72: 3344047.908 | QB72: 3410657.462 | QC72: 3478585.257 | QD72: 3547856.944 | QE72: 3618498.649 | QF72: 3690536.983 | QG72: 3763999.05 | QH72: 3838912.452 | QI72: 3915305.299 | QJ72: 3993206.217 | QK72: =NPV($D$72,QK62:ARH62) -> 4072644.356 | QL72: 4153649.396 | QM72: 4236251.558 | QN72: 4320481.61 | QO72: 4406370.874 | QP72: 4493951.239 | QQ72: 4583255.162 | QR72: 4674315.684 | QS72: 4767166.43 | QT72: 4861841.625 | QU72: 4958376.094 | QV72: 5056805.278 | QW72: 5157165.237 | QX72: 5259492.657 | QY72: 5363824.863 | QZ72: 5470199.823 | RA72: 5578656.155 | RB72: 5689233.139 | RC72: 5801970.719 | RD72: 5916909.515 | RE72: 6034090.827 | RF72: 6153556.644 | RG72: 6275349.65 | RH72: 6399513.23 | RI72: 6526091.478 | RJ72: 6655129.204 | RK72: 6786671.936 | RL72: 6920765.928 | RM72: 7057458.168 | RN72: 7196796.378 | RO72: 7338829.021 | RP72: 7483605.305 | RQ72: 7631175.187 | RR72: 7781589.377 | RS72: 7934899.339 | RT72: 8091157.293 | RU72: 8250416.218 | RV72: 8412729.854 | RW72: 8578152.699 | RX72: 8746740.012 | RY72: 8918547.809 | RZ72: 9093632.862 | SA72: 9272052.697 | SB72: 9453865.591 | SC72: 9639130.564 | SD72: 9827907.374 | SE72: 10020256.51 | SF72: 10216239.2 | SG72: 10415917.35 | SH72: 10619353.61 | SI72: 10826611.3 | SJ72: 11037754.43 | SK72: 11252847.64 | SL72: 11471956.26 | SM72: 11695146.22 | SN72: 11922484.06 | SO72: 12154036.91 | SP72: 12389872.44 | SQ72: 12630058.88 | SR72: 12874664.93 | SS72: 13123759.79 | ST72: 13377413.06 | SU72: 13635694.78 | SV72: 13898675.32 | SW72: =NPV($D$72,SW62:ATT62) -> 14166425.37 | SX72: 14439015.89 | SY72: 14716518.06 | SZ72: 14999003.23 | TA72: 15286542.83 | TB72: 15579208.37 | TC72: 15877071.32 | TD72: 16180203.07 | TE72: 16488674.85 | TF72: 16802557.63 | TG72: 17121922.07 | TH72: 17446838.4 | TI72: 17777376.34 | TJ72: 18113605.01 | TK72: 18455592.79 | TL72: 18803407.23 | TM72: 19157114.93 | TN72: 19516781.39 | TO72: 19882470.91 | TP72: 20254246.41 | TQ72: 20632169.31 | TR72: 21016299.33 | TS72: 21406694.38 | TT72: 21803410.32 | TU72: 22206500.8 | TV72: 22616017.09 | TW72: 23032007.8 | TX72: 23454518.73 | TY72: 23883592.58 | TZ72: 24319268.76 | UA72: 24761583.08 | UB72: 25210567.52 | UC72: 25666249.92 | UD72: 26128653.68 | UE72: 26597797.46 | UF72: 27073694.85 | UG72: 27556354 | UH72: 28045777.27 | UI72: 28541960.85 | UJ72: 29044894.34 | UK72: 29554560.37 | UL72: 30070934.09 | UM72: 30593982.79 | UN72: 31123665.34 | UO72: 31659931.73 | UP72: 32202722.52 | UQ72: 32751968.28 | UR72: 33307589.03 | US72: 33869493.61 | UT72: 34437579.05 | UU72: 35011729.9 | UV72: 35591817.56 | UW72: 36177699.53 | UX72: 36769218.65 | UY72: 37366202.35 | UZ72: 37968461.78 | VA72: 38575790.98 | VB72: 39187965.99 | VC72: 39804743.88 | VD72: 40425861.83 | VE72: 41051036.11 | VF72: 41679961.01 | VG72: 42312307.75 | VH72: 42947723.36 | VI72: =NPV($D$72,VI62:AWF62) -> 43585829.53 | VJ72: 44226221.3 | VK72: 44868465.91 | VL72: 45512101.36 | VM72: 46156635.15 | VN72: 46801542.81 | VO72: 47446266.45 | VP72: 48090213.25 | VQ72: 48732753.88 | VR72: 49373220.91 | VS72: 50010907.13 | VT72: 50645063.81 | VU72: 51274898.94 | VV72: 51899575.4 | VW72: 52518209.07 | VX72: 53129866.92 | VY72: 53733564.98 | VZ72: 54328266.34 | WA72: 54912879.03 | WB72: 55486253.92 | WC72: 56047182.48 | WD72: 56594394.59 | WE72: 57126556.23 | WF72: 57642267.21 | WG72: 58140058.76 | WH72: 58618391.19 | WI72: 59075651.45 | WJ72: 59510150.67 | WK72: 59920121.78 | WL72: 60303716.94 | WM72: 60659005.14 | WN72: 60983969.71 | WO72: 61276505.87 | WP72: 61534418.29 | WQ72: 61755418.72 | WR72: 61937123.63 | WS72: 62077051.94 | WT72: 62172622.82 | WU72: 62221153.57 | WV72: 62219857.7 | WW72: 62165842.98 | WX72: 62056109.86 | WY72: 61887549.9 | WZ72: 61656944.55 | XA72: 61360964.04 | XB72: 60996166.72 | XC72: 60558998.56 | XD72: 60045793.11 | XE72: 59452771.79 | XF72: 58776044.73 | XG72: 58011612.01 | XH72: 57155365.52 | XI72: 56203091.44 | XJ72: 55150473.38 | XK72: 53993096.35 | XL72: 52726451.47 | XM72: 51345941.74 | XN72: 49846888.73 | XO72: 48224540.44 | XP72: 46474080.43 | XQ72: 44590638.25 | XR72: 42569301.39 | XS72: 40405128.83 | XT72: 38093166.45 | XU72: =NPV($D$72,XU62:AYR62) -> 35628464.26 | XV72: 33006095.86 | XW72: 30221180.15 | XX72: 27268905.57 | XY72: 24144557.11 | XZ72: 20843546.26 | YA72: 17361444.26 | YB72: 13694018.77 | YC72: 9837274.513 | YD72: 5787497.925 | YE72: 1541306.401 | YF72: -2904297.618 | YG72: -7551867.265 | YH72: -12403446.14 | YI72: -17460496.99 | YJ72: -22723823.72 | YK72: -28193486.12 | YL72: -33868706.73 | YM72: -39747769.3 | YN72: -45827908.01 | YO72: -52105186.89 | YP72: -58574368.45 | YQ72: -65228770.95 | YR72: -72060113.05 | YS72: -79058345.23 | YT72: -86211466.63 | YU72: -93505326.39 | YV72: -100923408.1 | YW72: -108446596.4 | YX72: -116052923.6 | YY72: -123717296 | YZ72: -131411196.8 | ZA72: -139102365.7 | ZB72: -146754451.4 | ZC72: -154326636.4 | ZD72: -161773231.4 | ZE72: -169043237.2 | ZF72: -176079871.8 | ZG72: -182820059.4 | ZH72: -189193878.9 | ZI72: -195123969.8 | ZJ72: -200524890.2 | ZK72: -205302425.6 | ZL72: -209352842.9 | ZM72: -212562087.5 | ZN72: -214804917.4 | ZO72: -215943970.9 | ZP72: -215828762.9 | ZQ72: -214294603.8 | ZR72: -211161436.1 | ZS72: -206232583 | ZT72: -199293400.9 | ZU72: -190109831.2 | ZV72: -178426842 | ZW72: -163966753.1 | ZX72: -146427434.7 | ZY72: -125480372.2 | ZZ72: -100768585.7 | AAA72: -71904395.49 | AAB72: -38467020.52
C73: Reduced for Tax | D73: =D70 -> 0.3 | E73: =E72*(1-$D$73) -> 401.4300101 | F73: =F72*(1-$D$73) -> 409.4586103 | G73: 417.6477824 | H73: 426.000738 | I73: 434.5207527 | J73: 443.2111677 | K73: 452.075391 | L73: 461.1168988 | M73: 470.3392367 | N73: 479.7460214 | O73: 489.3409417 | P73: 499.1277605 | Q73: 509.1103156 | R73: 519.2925218 | S73: 529.6783722 | T73: 540.2719395 | U73: 551.0773782 | V73: 562.0989257 | W73: 573.3409041 | X73: 584.8077221 | Y73: 596.5038764 | Z73: 608.4339538 | AA73: 620.6026327 | AB73: 633.0146853 | AC73: 645.6749788 | AD73: 658.5884782 | AE73: 671.7602476 | AF73: 685.1954524 | AG73: 698.8993613 | AH73: 712.8773483 | AI73: 727.1348951 | AJ73: 741.6775928 | AK73: 756.5111445 | AL73: 771.6413671 | AM73: 787.0741942 | AN73: 802.8156778 | AO73: 818.8719911 | AP73: 835.2494307 | AQ73: 851.954419 | AR73: 868.9935071 | AS73: 886.3733769 | AT73: 904.1008441 | AU73: 922.1828606 | AV73: 940.6265174 | AW73: 959.4390474 | AX73: 978.6278279 | AY73: 998.200384 | AZ73: 1018.164391 | BA73: 1038.527679 | BB73: 1059.298232 | BC73: 1080.484196 | BD73: 1102.093879 | BE73: 1124.135756 | BF73: 1146.618471 | BG73: 1169.550839 | BH73: 1192.941855 | BI73: 1216.800692 | BJ73: 1241.136705 | BK73: 1265.959438 | BL73: 1291.278626 | BM73: 1317.104198 | BN73: 1343.446281 | BO73: 1370.315205 | BP73: 1397.721508 | BQ73: 1425.675937 | BR73: =BR72*(1-$D$73) -> 1454.189455 | BS73: 1483.273243 | BT73: 1512.938706 | BU73: 1543.197479 | BV73: 1574.061427 | BW73: 1605.542654 | BX73: 1637.653506 | BY73: 1670.406574 | BZ73: 1703.814704 | CA73: 1737.890996 | CB73: 1772.648814 | CC73: 1808.101789 | CD73: 1844.263822 | CE73: 1881.149097 | CF73: 1918.772076 | CG73: 1957.147515 | CH73: 1996.290463 | CI73: 2036.216269 | CJ73: 2076.940592 | CK73: 2118.479401 | CL73: 2160.848986 | CM73: 2204.065962 | CN73: 2248.147278 | CO73: 2293.110219 | CP73: 2338.97242 | CQ73: 2385.751864 | CR73: 2433.466897 | CS73: 2482.136231 | CT73: 2531.77895 | CU73: 2582.414524 | CV73: 2634.06281 | CW73: 2686.74406 | CX73: 2740.478936 | CY73: 2795.288508 | CZ73: 2851.194272 | DA73: 2908.21815 | DB73: 2966.382506 | DC73: 3025.710149 | DD73: 3086.224344 | DE73: 3147.948822 | DF73: 3210.90779 | DG73: 3275.125937 | DH73: 3340.628446 | DI73: 3407.441004 | DJ73: 3475.589814 | DK73: 3545.101599 | DL73: 3616.003619 | DM73: 3688.323679 | DN73: 3762.090139 | DO73: 3837.331928 | DP73: 3914.078552 | DQ73: 3992.360108 | DR73: 4072.207294 | DS73: 4153.651422 | DT73: 4236.724433 | DU73: 4321.458903 | DV73: 4407.888061 | DW73: 4496.045802 | DX73: 4585.966696 | DY73: 4677.686007 | DZ73: 4771.239703 | EA73: 4866.664471 | EB73: 4963.997734 | EC73: 5063.27766 | ED73: =ED72*(1-$D$73) -> 5164.543184 | EE73: 5267.834016 | EF73: 5373.190664 | EG73: 5480.654443 | EH73: 5590.267495 | EI73: 5702.072807 | EJ73: 5816.114223 | EK73: 5932.436465 | EL73: 6051.08515 | EM73: 6172.106806 | EN73: 6295.548893 | EO73: 6421.459819 | EP73: 6549.888961 | EQ73: 6680.886683 | ER73: 6814.504356 | ES73: 6950.79438 | ET73: 7089.810201 | EU73: 7231.606334 | EV73: 7376.238387 | EW73: 7523.763077 | EX73: 7674.238257 | EY73: 7827.722936 | EZ73: 7984.277305 | FA73: 8143.962756 | FB73: 8306.841911 | FC73: 8472.978644 | FD73: 8642.438106 | FE73: 8815.286751 | FF73: 8991.592364 | FG73: 9171.424082 | FH73: 9354.852428 | FI73: 9541.949334 | FJ73: 9732.78817 | FK73: 9927.443776 | FL73: 10125.99249 | FM73: 10328.51216 | FN73: 10535.08222 | FO73: 10745.78367 | FP73: 10960.69914 | FQ73: 11179.91291 | FR73: 11403.51094 | FS73: 11631.58092 | FT73: 11864.21229 | FU73: 12101.49628 | FV73: 12343.52593 | FW73: 12590.39616 | FX73: 12842.20377 | FY73: 13099.04753 | FZ73: 13361.02814 | GA73: 13628.24835 | GB73: 13900.81294 | GC73: 14178.82881 | GD73: 14462.40497 | GE73: 14751.65263 | GF73: 15046.68523 | GG73: 15347.61845 | GH73: 15654.57031 | GI73: 15967.66119 | GJ73: 16287.01385 | GK73: 16612.75354 | GL73: 16945.00799 | GM73: 17283.9075 | GN73: 17629.58496 | GO73: 17982.17594 | GP73: =GP72*(1-$D$73) -> 18341.8187 | GQ73: 18708.65427 | GR73: 19082.82651 | GS73: 19464.48216 | GT73: 19853.77087 | GU73: 20250.84531 | GV73: 20655.86119 | GW73: 21068.97733 | GX73: 21490.35574 | GY73: 21920.16165 | GZ73: 22358.56362 | HA73: 22805.73357 | HB73: 23261.84685 | HC73: 23727.08231 | HD73: 24201.62242 | HE73: 24685.65324 | HF73: 25179.3646 | HG73: 25682.95009 | HH73: 26196.6072 | HI73: 26720.53735 | HJ73: 27254.94601 | HK73: 27800.04273 | HL73: 28356.04127 | HM73: 28923.15965 | HN73: 29501.62028 | HO73: 30091.64999 | HP73: 30693.48016 | HQ73: 31307.34678 | HR73: 31933.49057 | HS73: 32572.15708 | HT73: 33223.59675 | HU73: 33888.06503 | HV73: 34565.82249 | HW73: 35257.13489 | HX73: 35962.27334 | HY73: 36681.51433 | HZ73: 37415.13991 | IA73: 38163.43775 | IB73: 38926.7013 | IC73: 39705.22984 | ID73: 40499.32868 | IE73: 41309.30919 | IF73: 42135.48899 | IG73: 42978.19206 | IH73: 43837.74884 | II73: 44714.49639 | IJ73: 45608.7785 | IK73: 46520.94586 | IL73: 47451.35613 | IM73: 48400.37416 | IN73: 49368.37207 | IO73: 50355.72945 | IP73: 51362.83345 | IQ73: 52390.07898 | IR73: 53437.86885 | IS73: 54506.6139 | IT73: 55596.73321 | IU73: 56708.65424 | IV73: 57842.81298 | IW73: 58999.65414 | IX73: 60179.63135 | IY73: 61383.20728 | IZ73: 62610.85385 | JA73: 63863.05245 | JB73: =JB72*(1-$D$73) -> 65140.29406 | JC73: 66443.07949 | JD73: 67771.91956 | JE73: 69127.33533 | JF73: 70509.85823 | JG73: 71920.03035 | JH73: 73358.40461 | JI73: 74825.54499 | JJ73: 76322.02674 | JK73: 77848.43661 | JL73: 79405.37308 | JM73: 80993.44661 | JN73: 82613.27985 | JO73: 84265.50789 | JP73: 85950.77855 | JQ73: 87669.75257 | JR73: 89423.10391 | JS73: 91211.52001 | JT73: 93035.70205 | JU73: 94896.36521 | JV73: 96794.23899 | JW73: 98730.06747 | JX73: 100704.6096 | JY73: 102718.6395 | JZ73: 104772.9467 | KA73: 106868.3367 | KB73: 109005.631 | KC73: 111185.6673 | KD73: 113409.3004 | KE73: 115677.402 | KF73: 117990.8612 | KG73: 120350.5851 | KH73: 122757.4985 | KI73: 125212.5451 | KJ73: 127716.6873 | KK73: 130270.9067 | KL73: 132876.2045 | KM73: 135533.6021 | KN73: 138244.141 | KO73: 141008.8838 | KP73: 143828.9142 | KQ73: 146705.3375 | KR73: 149639.2813 | KS73: 152631.8955 | KT73: 155684.3531 | KU73: 158797.8504 | KV73: 161973.6079 | KW73: 165212.8702 | KX73: 168516.9068 | KY73: 171887.0126 | KZ73: 175324.5086 | LA73: 178830.7418 | LB73: 182407.0863 | LC73: 186054.9437 | LD73: 189775.7434 | LE73: 193570.9437 | LF73: 197442.0316 | LG73: 201390.5241 | LH73: 205417.9684 | LI73: 209525.9426 | LJ73: 213716.0563 | LK73: 217989.9512 | LL73: 222349.3019 | LM73: 226795.8164 | LN73: =LN72*(1-$D$73) -> 231331.2367 | LO73: 235957.3397 | LP73: 240675.9377 | LQ73: 245488.8792 | LR73: 250398.0495 | LS73: 255405.3718 | LT73: 260512.8074 | LU73: 265722.3568 | LV73: 271036.0606 | LW73: 276455.9999 | LX73: 281984.2975 | LY73: 287623.1184 | LZ73: 293374.6708 | MA73: 299241.2071 | MB73: 305225.0244 | MC73: 311328.466 | MD73: 317553.9214 | ME73: 323903.8282 | MF73: 330380.6724 | MG73: 336986.9896 | MH73: 343725.366 | MI73: 350598.4392 | MJ73: 357608.8995 | MK73: 364759.4909 | ML73: 372053.0118 | MM73: 379492.3167 | MN73: 387080.3166 | MO73: 394819.9809 | MP73: 402714.3379 | MQ73: 410766.4761 | MR73: 418979.5458 | MS73: 427356.7598 | MT73: 435901.3949 | MU73: 444616.7932 | MV73: 453506.3632 | MW73: 462573.5813 | MX73: 471821.9931 | MY73: 481255.2147 | MZ73: 490876.9339 | NA73: 500690.9123 | NB73: 510700.9858 | NC73: 520911.0668 | ND73: 531325.1456 | NE73: 541947.2913 | NF73: 552781.6544 | NG73: 563832.4675 | NH73: 575104.0473 | NI73: 586600.7962 | NJ73: 598327.2041 | NK73: 610287.8498 | NL73: 622487.4031 | NM73: 634930.6265 | NN73: 647622.3766 | NO73: 660567.6066 | NP73: 673771.3676 | NQ73: 687238.8112 | NR73: 700975.1905 | NS73: 714985.8629 | NT73: 729276.2919 | NU73: 743852.049 | NV73: 758718.8159 | NW73: 773882.3868 | NX73: 789348.6702 | NY73: 805123.6916 | NZ73: =NZ72*(1-$D$73) -> 821213.5953 | OA73: 837624.6472 | OB73: 854363.2365 | OC73: 871435.8788 | OD73: 888849.218 | OE73: 906610.0291 | OF73: 924725.2204 | OG73: 943201.8365 | OH73: 962047.0604 | OI73: 981268.2166 | OJ73: 1000872.774 | OK73: 1020868.347 | OL73: 1041262.701 | OM73: 1062063.753 | ON73: 1083279.577 | OO73: 1104918.402 | OP73: 1126988.621 | OQ73: 1149498.791 | OR73: 1172457.637 | OS73: 1195874.052 | OT73: 1219757.105 | OU73: 1244116.042 | OV73: 1268960.289 | OW73: 1294299.456 | OX73: 1320143.34 | OY73: 1346501.929 | OZ73: 1373385.406 | PA73: 1400804.151 | PB73: 1428768.744 | PC73: 1457289.974 | PD73: 1486378.836 | PE73: 1516046.54 | PF73: 1546304.51 | PG73: 1577164.394 | PH73: 1608638.063 | PI73: 1640737.618 | PJ73: 1673475.39 | PK73: 1706863.952 | PL73: 1740916.114 | PM73: 1775644.935 | PN73: 1811063.722 | PO73: 1847186.038 | PP73: 1884025.705 | PQ73: 1921596.807 | PR73: 1959913.698 | PS73: 1998991.006 | PT73: 2038843.634 | PU73: 2079486.769 | PV73: 2120935.885 | PW73: 2163206.75 | PX73: 2206315.427 | PY73: 2250278.283 | PZ73: 2295111.99 | QA73: 2340833.535 | QB73: 2387460.223 | QC73: 2435009.68 | QD73: 2483499.861 | QE73: 2532949.054 | QF73: 2583375.888 | QG73: 2634799.335 | QH73: 2687238.716 | QI73: 2740713.709 | QJ73: 2795244.352 | QK73: 2850851.049 | QL73: =QL72*(1-$D$73) -> 2907554.577 | QM73: 2965376.091 | QN73: 3024337.127 | QO73: 3084459.612 | QP73: 3145765.867 | QQ73: 3208278.614 | QR73: 3272020.979 | QS73: 3337016.501 | QT73: 3403289.137 | QU73: 3470863.266 | QV73: 3539763.695 | QW73: 3610015.666 | QX73: 3681644.86 | QY73: 3754677.404 | QZ73: 3829139.876 | RA73: 3905059.309 | RB73: 3982463.197 | RC73: 4061379.504 | RD73: 4141836.661 | RE73: 4223863.579 | RF73: 4307489.651 | RG73: 4392744.755 | RH73: 4479659.261 | RI73: 4568264.035 | RJ73: 4658590.443 | RK73: 4750670.355 | RL73: 4844536.15 | RM73: 4940220.718 | RN73: 5037757.465 | RO73: 5137180.314 | RP73: 5238523.713 | RQ73: 5341822.631 | RR73: 5447112.564 | RS73: 5554429.537 | RT73: 5663810.105 | RU73: 5775291.353 | RV73: 5888910.898 | RW73: 6004706.89 | RX73: 6122718.008 | RY73: 6242983.466 | RZ73: 6365543.003 | SA73: 6490436.888 | SB73: 6617705.914 | SC73: 6747391.394 | SD73: 6879535.162 | SE73: 7014179.559 | SF73: 7151367.437 | SG73: 7291142.146 | SH73: 7433547.529 | SI73: 7578627.912 | SJ73: 7726428.098 | SK73: 7876993.35 | SL73: 8030369.384 | SM73: 8186602.357 | SN73: 8345738.845 | SO73: 8507825.837 | SP73: 8672910.711 | SQ73: 8841041.215 | SR73: 9012265.452 | SS73: 9186631.85 | ST73: 9364189.144 | SU73: 9544986.348 | SV73: 9729072.726 | SW73: 9916497.761 | SX73: =SX72*(1-$D$73) -> 10107311.13 | SY73: 10301562.65 | SZ73: 10499302.26 | TA73: 10700579.98 | TB73: 10905445.86 | TC73: 11113949.92 | TD73: 11326142.15 | TE73: 11542072.39 | TF73: 11761790.34 | TG73: 11985345.45 | TH73: 12212786.88 | TI73: 12444163.44 | TJ73: 12679523.51 | TK73: 12918914.95 | TL73: 13162385.06 | TM73: 13409980.45 | TN73: 13661746.97 | TO73: 13917729.64 | TP73: 14177972.49 | TQ73: 14442518.51 | TR73: 14711409.53 | TS73: 14984686.06 | TT73: 15262387.22 | TU73: 15544550.56 | TV73: 15831211.96 | TW73: 16122405.46 | TX73: 16418163.11 | TY73: 16718514.81 | TZ73: 17023488.13 | UA73: 17333108.16 | UB73: 17647397.26 | UC73: 17966374.94 | UD73: 18290057.57 | UE73: 18618458.22 | UF73: 18951586.4 | UG73: 19289447.8 | UH73: 19632044.09 | UI73: 19979372.59 | UJ73: 20331426.04 | UK73: 20688192.26 | UL73: 21049653.86 | UM73: 21415787.95 | UN73: 21786565.74 | UO73: 22161952.21 | UP73: 22541905.76 | UQ73: 22926377.8 | UR73: 23315312.32 | US73: 23708645.53 | UT73: 24106305.33 | UU73: 24508210.93 | UV73: 24914272.29 | UW73: 25324389.67 | UX73: 25738453.06 | UY73: 26156341.65 | UZ73: 26577923.25 | VA73: 27003053.69 | VB73: 27431576.19 | VC73: 27863320.71 | VD73: 28298103.28 | VE73: 28735725.28 | VF73: 29175972.71 | VG73: 29618615.42 | VH73: 30063406.35 | VI73: 30510080.67 | VJ73: =VJ72*(1-$D$73) -> 30958354.91 | VK73: 31407926.13 | VL73: 31858470.95 | VM73: 32309644.61 | VN73: 32761079.97 | VO73: 33212386.51 | VP73: 33663149.27 | VQ73: 34112927.71 | VR73: 34561254.64 | VS73: 35007634.99 | VT73: 35451544.67 | VU73: 35892429.26 | VV73: 36329702.78 | VW73: 36762746.35 | VX73: 37190906.84 | VY73: 37613495.48 | VZ73: 38029786.44 | WA73: 38439015.32 | WB73: 38840377.74 | WC73: 39233027.74 | WD73: 39616076.21 | WE73: 39988589.36 | WF73: 40349587.05 | WG73: 40698041.13 | WH73: 41032873.83 | WI73: 41352956.01 | WJ73: 41657105.47 | WK73: 41944085.25 | WL73: 42212601.86 | WM73: 42461303.6 | WN73: 42688778.8 | WO73: 42893554.11 | WP73: 43074092.8 | WQ73: 43228793.1 | WR73: 43355986.54 | WS73: 43453936.36 | WT73: 43520835.97 | WU73: 43554807.5 | WV73: 43553900.39 | WW73: 43516090.09 | WX73: 43439276.9 | WY73: 43321284.93 | WZ73: 43159861.18 | XA73: 42952674.83 | XB73: 42697316.71 | XC73: 42391299 | XD73: 42032055.17 | XE73: 41616940.25 | XF73: 41143231.31 | XG73: 40608128.4 | XH73: 40008755.86 | XI73: 39342164.01 | XJ73: 38605331.37 | XK73: 37795167.44 | XL73: 36908516.03 | XM73: 35942159.22 | XN73: 34892822.11 | XO73: 33757178.31 | XP73: 32531856.3 | XQ73: 31213446.78 | XR73: 29798510.97 | XS73: 28283590.18 | XT73: 26665216.51 | XU73: 24939924.98 | XV73: =XV72*(1-$D$73) -> 23104267.1 | XW73: 21154826.1 | XX73: 19088233.9 | XY73: 16901189.97 | XZ73: 14590482.38 | YA73: 12153010.98 | YB73: 9585813.139 | YC73: 6886092.159 | YD73: 4051248.547 | YE73: 1078914.481 | YF73: -2033008.333 | YG73: -5286307.086 | YH73: -8682412.296 | YI73: -12222347.89 | YJ73: -15906676.61 | YK73: -19735440.28 | YL73: -23708094.71 | YM73: -27823438.51 | YN73: -32079535.61 | YO73: -36473630.82 | YP73: -41002057.92 | YQ73: -45660139.66 | YR73: -50442079.14 | YS73: -55340841.66 | YT73: -60348026.64 | YU73: -65453728.48 | YV73: -70646385.7 | YW73: -75912617.49 | YX73: -81237046.53 | YY73: -86602107.17 | YZ73: -91987837.76 | ZA73: -97371656.01 | ZB73: -102728116 | ZC73: -108028645.5 | ZD73: -113241261.9 | ZE73: -118330266 | ZF73: -123255910.3 | ZG73: -127974041.6 | ZH73: -132435715.2 | ZI73: -136586778.9 | ZJ73: -140367423.2 | ZK73: -143711697.9 | ZL73: -146546990 | ZM73: -148793461.2 | ZN73: -150363442.2 | ZO73: -151160779.6 | ZP73: -151080134.1 | ZQ73: -150006222.7 | ZR73: -147813005.3 | ZS73: -144362808.1 | ZT73: -139505380.6 | ZU73: -133076881.8 | ZV73: -124898789.4 | ZW73: -114776727.2 | ZX73: -102499204.3 | ZY73: -87836260.53 | ZZ73: -70538010.02 | AAA73: -50333076.84 | AAB73: -26926914.36
C74: Tax Effect of New Debt | E74: =E72-E73 -> 172.0414329 | F74: =F72-F73 -> 175.4822615 | G74: 178.9919068 | H74: 182.5717449 | I74: 186.2231797 | J74: 189.9476433 | K74: 193.7465962 | L74: 197.621528 | M74: 201.5739586 | N74: 205.6054377 | O74: 209.7175464 | P74: 213.9118973 | Q74: 218.1901353 | R74: 222.5539379 | S74: 227.0050167 | T74: 231.5451169 | U74: 236.1760192 | V74: 240.8995396 | W74: 245.7175303 | X74: 250.6318809 | Y74: 255.6445185 | Z74: 260.7574088 | AA74: 265.9725569 | AB74: 271.292008 | AC74: 276.7178481 | AD74: 282.252205 | AE74: 287.897249 | AF74: 293.6551939 | AG74: 299.5282977 | AH74: 305.5188636 | AI74: 311.6292408 | AJ74: 317.8618255 | AK74: 324.2190619 | AL74: 330.703443 | AM74: 337.3175118 | AN74: 344.0638619 | AO74: 350.9451391 | AP74: 357.9640417 | AQ74: 365.1233224 | AR74: 372.4257887 | AS74: 379.8743044 | AT74: 387.4717903 | AU74: 395.221226 | AV74: 403.1256503 | AW74: 411.1881632 | AX74: 419.4119262 | AY74: 427.8001646 | AZ74: 436.3561677 | BA74: 445.0832908 | BB74: 453.9849564 | BC74: 463.0646553 | BD74: 472.3259482 | BE74: 481.7724669 | BF74: 491.4079159 | BG74: 501.236074 | BH74: 511.2607952 | BI74: 521.4860108 | BJ74: 531.9157306 | BK74: 542.5540449 | BL74: 553.4051254 | BM74: 564.4732276 | BN74: 575.7626917 | BO74: 587.2779451 | BP74: 599.0235036 | BQ74: 611.0039732 | BR74: =BR72-BR73 -> 623.2240521 | BS74: 635.6885327 | BT74: 648.4023028 | BU74: 661.3703482 | BV74: 674.5977546 | BW74: 688.0897091 | BX74: 701.8515026 | BY74: 715.8885319 | BZ74: 730.2063018 | CA74: 744.8104271 | CB74: 759.7066348 | CC74: 774.9007666 | CD74: 790.398781 | CE74: 806.2067557 | CF74: 822.3308898 | CG74: 838.7775065 | CH74: 855.5530555 | CI74: 872.6641155 | CJ74: 890.1173966 | CK74: 907.9197432 | CL74: 926.0781367 | CM74: 944.599698 | CN74: 963.4916904 | CO74: 982.7615226 | CP74: 1002.416751 | CQ74: 1022.465085 | CR74: 1042.914385 | CS74: 1063.77267 | CT74: 1085.048122 | CU74: 1106.749082 | CV74: 1128.884061 | CW74: 1151.46174 | CX74: 1174.490972 | CY74: 1197.980789 | CZ74: 1221.940402 | DA74: 1246.379207 | DB74: 1271.306788 | DC74: 1296.732921 | DD74: 1322.667576 | DE74: 1349.120924 | DF74: 1376.103339 | DG74: 1403.625401 | DH74: 1431.697905 | DI74: 1460.331859 | DJ74: 1489.538492 | DK74: 1519.329257 | DL74: 1549.715837 | DM74: 1580.710148 | DN74: 1612.324345 | DO74: 1644.570826 | DP74: 1677.462236 | DQ74: 1711.011475 | DR74: 1745.231697 | DS74: 1780.136324 | DT74: 1815.739043 | DU74: 1852.053816 | DV74: 1889.094883 | DW74: 1926.876772 | DX74: 1965.414298 | DY74: 2004.722574 | DZ74: 2044.817015 | EA74: 2085.713345 | EB74: 2127.4276 | EC74: 2169.97614 | ED74: =ED72-ED73 -> 2213.37565 | EE74: 2257.64315 | EF74: 2302.795999 | EG74: 2348.851904 | EH74: 2395.828926 | EI74: 2443.745489 | EJ74: 2492.620381 | EK74: 2542.472771 | EL74: 2593.322207 | EM74: 2645.188631 | EN74: 2698.092383 | EO74: 2752.054208 | EP74: 2807.095269 | EQ74: 2863.23715 | ER74: 2920.501867 | ES74: 2978.911877 | ET74: 3038.490086 | EU74: 3099.259858 | EV74: 3161.245023 | EW74: 3224.46989 | EX74: 3288.959253 | EY74: 3354.738401 | EZ74: 3421.833131 | FA74: 3490.269752 | FB74: 3560.075105 | FC74: 3631.276562 | FD74: 3703.902045 | FE74: 3777.980036 | FF74: 3853.539584 | FG74: 3930.610321 | FH74: 4009.222469 | FI74: 4089.406857 | FJ74: 4171.19493 | FK74: 4254.618761 | FL74: 4339.711065 | FM74: 4426.505212 | FN74: 4515.035237 | FO74: 4605.335859 | FP74: 4697.442489 | FQ74: 4791.391247 | FR74: 4887.218975 | FS74: 4984.963253 | FT74: 5084.662412 | FU74: 5186.355547 | FV74: 5290.08254 | FW74: 5395.884067 | FX74: 5503.801617 | FY74: 5613.877512 | FZ74: 5726.154918 | GA74: 5840.677864 | GB74: 5957.491261 | GC74: 6076.640917 | GD74: 6198.173558 | GE74: 6322.136843 | GF74: 6448.579384 | GG74: 6577.550765 | GH74: 6709.101563 | GI74: 6843.283366 | GJ74: 6980.148793 | GK74: 7119.751516 | GL74: 7262.146281 | GM74: 7407.388927 | GN74: 7555.536411 | GO74: 7706.64683 | GP74: =GP72-GP73 -> 7860.779441 | GQ74: 8017.994687 | GR74: 8178.354221 | GS74: 8341.920926 | GT74: 8508.758946 | GU74: 8678.933705 | GV74: 8852.511938 | GW74: 9029.561712 | GX74: 9210.152458 | GY74: 9394.354994 | GZ74: 9582.241553 | HA74: 9773.885816 | HB74: 9969.362934 | HC74: 10168.74956 | HD74: 10372.12389 | HE74: 10579.56567 | HF74: 10791.15626 | HG74: 11006.97861 | HH74: 11227.11737 | HI74: 11451.65887 | HJ74: 11680.69115 | HK74: 11914.30403 | HL74: 12152.58911 | HM74: 12395.63985 | HN74: 12643.55155 | HO74: 12896.42143 | HP74: 13154.34864 | HQ74: 13417.43433 | HR74: 13685.78167 | HS74: 13959.49589 | HT74: 14238.68432 | HU74: 14523.45644 | HV74: 14813.92392 | HW74: 15110.20067 | HX74: 15412.40286 | HY74: 15720.649 | HZ74: 16035.05996 | IA74: 16355.75904 | IB74: 16682.87199 | IC74: 17016.52708 | ID74: 17356.85515 | IE74: 17703.98965 | IF74: 18058.06671 | IG74: 18419.22517 | IH74: 18787.60665 | II74: 19163.3556 | IJ74: 19546.61936 | IK74: 19937.54822 | IL74: 20336.29548 | IM74: 20743.0175 | IN74: 21157.87374 | IO74: 21581.02691 | IP74: 22012.64291 | IQ74: 22452.89099 | IR74: 22901.94379 | IS74: 23359.97739 | IT74: 23827.17138 | IU74: 24303.70896 | IV74: 24789.77699 | IW74: 25285.56606 | IX74: 25791.27058 | IY74: 26307.08883 | IZ74: 26833.22308 | JA74: 27369.87962 | JB74: =JB72-JB73 -> 27917.26888 | JC74: 28475.60549 | JD74: 29045.10838 | JE74: 29626.00085 | JF74: 30218.51067 | JG74: 30822.87015 | JH74: 31439.31626 | JI74: 32068.09071 | JJ74: 32709.44003 | JK74: 33363.61569 | JL74: 34030.87418 | JM74: 34711.47712 | JN74: 35405.69136 | JO74: 36113.7891 | JP74: 36836.04795 | JQ74: 37572.7511 | JR74: 38324.18739 | JS74: 39090.65143 | JT74: 39872.44373 | JU74: 40669.8708 | JV74: 41483.24528 | JW74: 42312.88606 | JX74: 43159.1184 | JY74: 44022.27407 | JZ74: 44902.69146 | KA74: 45800.71575 | KB74: 46716.69898 | KC74: 47651.00027 | KD74: 48603.98588 | KE74: 49576.02943 | KF74: 50567.51196 | KG74: 51578.82217 | KH74: 52610.35651 | KI74: 53662.51934 | KJ74: 54735.72314 | KK74: 55830.38859 | KL74: 56946.9448 | KM74: 58085.82947 | KN74: 59247.48901 | KO74: 60432.37878 | KP74: 61640.96323 | KQ74: 62873.71609 | KR74: 64131.12056 | KS74: 65413.6695 | KT74: 66721.8656 | KU74: 68056.22161 | KV74: 69417.26053 | KW74: 70805.51578 | KX74: 72221.53147 | KY74: 73665.86256 | KZ74: 75139.07511 | LA74: 76641.74648 | LB74: 78174.46555 | LC74: 79737.833 | LD74: 81332.46147 | LE74: 82958.97586 | LF74: 84618.01354 | LG74: 86310.22462 | LH74: 88036.27218 | LI74: 89796.83254 | LJ74: 91592.59555 | LK74: 93424.26481 | LL74: 95292.55797 | LM74: 97198.20704 | LN74: =LN72-LN73 -> 99141.9586 | LO74: 101124.5742 | LP74: 103146.8304 | LQ74: 105209.5196 | LR74: 107313.4498 | LS74: 109459.4451 | LT74: 111648.346 | LU74: 113881.0101 | LV74: 116158.3117 | LW74: 118481.1428 | LX74: 120850.4132 | LY74: 123267.0507 | LZ74: 125732.0018 | MA74: 128246.2316 | MB74: 130810.7248 | MC74: 133426.4854 | MD74: 136094.5377 | ME74: 138815.9264 | MF74: 141591.7168 | MG74: 144422.9956 | MH74: 147310.8711 | MI74: 150256.4739 | MJ74: 153260.9569 | MK74: 156325.4961 | ML74: 159451.2908 | MM74: 162639.5643 | MN74: 165891.5643 | MO74: 169208.5633 | MP74: 172591.8591 | MQ74: 176042.7755 | MR74: 179562.6625 | MS74: 183152.897 | MT74: 186814.8835 | MU74: 190550.0542 | MV74: 194359.8699 | MW74: 198245.8206 | MX74: 202209.4256 | MY74: 206252.2349 | MZ74: 210375.8288 | NA74: 214581.8195 | NB74: 218871.8511 | NC74: 223247.6001 | ND74: 227710.7767 | NE74: 232263.1249 | NF74: 236906.4233 | NG74: 241642.4861 | NH74: 246473.1631 | NI74: 251400.3412 | NJ74: 256425.9446 | NK74: 261551.9356 | NL74: 266780.3156 | NM74: 272113.1256 | NN74: 277552.4471 | NO74: 283100.4028 | NP74: 288759.1576 | NQ74: 294530.9191 | NR74: 300417.9388 | NS74: 306422.5127 | NT74: 312546.9822 | NU74: 318793.7353 | NV74: 325165.2068 | NW74: 331663.8801 | NX74: 338292.2872 | NY74: 345053.0107 | NZ74: =NZ72-NZ73 -> 351948.6837 | OA74: 358981.9916 | OB74: 366155.6728 | OC74: 373472.5195 | OD74: 380935.3792 | OE74: 388547.1553 | OF74: 396310.8088 | OG74: 404229.3585 | OH74: 412305.883 | OI74: 420543.5214 | OJ74: 428945.4744 | OK74: 437515.0057 | OL74: 446255.4432 | OM74: 455170.1799 | ON74: 464262.6756 | OO74: 473536.4579 | OP74: 482995.1234 | OQ74: 492642.3392 | OR74: 502481.8443 | OS74: 512517.4507 | OT74: 522753.0448 | OU74: 533192.5893 | OV74: 543840.1237 | OW74: 554699.7667 | OX74: 565775.7171 | OY74: 577072.2555 | OZ74: 588593.7455 | PA74: 600344.6359 | PB74: 612329.4618 | PC74: 624552.846 | PD74: 637019.5012 | PE74: 649734.2312 | PF74: 662701.9329 | PG74: 675927.5975 | PH74: 689416.3129 | PI74: 703173.2647 | PJ74: 717203.7388 | PK74: 731513.1223 | PL74: 746106.9062 | PM74: 760990.6865 | PN74: 776170.1667 | PO74: 791651.1593 | PP74: 807439.5877 | PQ74: 823541.4886 | PR74: 839963.0136 | PS74: 856710.431 | PT74: 873790.1287 | PU74: 891208.6152 | PV74: 908972.5223 | PW74: 927088.6073 | PX74: 945563.7545 | PY74: 964404.9782 | PZ74: 983619.4242 | QA74: 1003214.372 | QB74: 1023197.238 | QC74: 1043575.577 | QD74: 1064357.083 | QE74: 1085549.595 | QF74: 1107161.095 | QG74: 1129199.715 | QH74: 1151673.736 | QI74: 1174591.59 | QJ74: 1197961.865 | QK74: 1221793.307 | QL74: =QL72-QL73 -> 1246094.819 | QM74: 1270875.467 | QN74: 1296144.483 | QO74: 1321911.262 | QP74: 1348185.372 | QQ74: 1374976.549 | QR74: 1402294.705 | QS74: 1430149.929 | QT74: 1458552.487 | QU74: 1487512.828 | QV74: 1517041.583 | QW74: 1547149.571 | QX74: 1577847.797 | QY74: 1609147.459 | QZ74: 1641059.947 | RA74: 1673596.847 | RB74: 1706769.942 | RC74: 1740591.216 | RD74: 1775072.855 | RE74: 1810227.248 | RF74: 1846066.993 | RG74: 1882604.895 | RH74: 1919853.969 | RI74: 1957827.443 | RJ74: 1996538.761 | RK74: 2036001.581 | RL74: 2076229.779 | RM74: 2117237.45 | RN74: 2159038.913 | RO74: 2201648.706 | RP74: 2245081.591 | RQ74: 2289352.556 | RR74: 2334476.813 | RS74: 2380469.802 | RT74: 2427347.188 | RU74: 2475124.865 | RV74: 2523818.956 | RW74: 2573445.81 | RX74: 2624022.004 | RY74: 2675564.343 | RZ74: 2728089.859 | SA74: 2781615.809 | SB74: 2836159.677 | SC74: 2891739.169 | SD74: 2948372.212 | SE74: 3006076.954 | SF74: 3064871.759 | SG74: 3124775.205 | SH74: 3185806.084 | SI74: 3247983.391 | SJ74: 3311326.328 | SK74: 3375854.293 | SL74: 3441586.879 | SM74: 3508543.867 | SN74: 3576745.219 | SO74: 3646211.073 | SP74: 3716961.733 | SQ74: 3789017.664 | SR74: 3862399.479 | SS74: 3937127.936 | ST74: 4013223.919 | SU74: 4090708.435 | SV74: 4169602.597 | SW74: 4249927.612 | SX74: =SX72-SX73 -> 4331704.768 | SY74: 4414955.419 | SZ74: 4499700.968 | TA74: 4585962.848 | TB74: 4673762.51 | TC74: 4763121.395 | TD74: 4854060.921 | TE74: 4946602.454 | TF74: 5040767.288 | TG74: 5136576.62 | TH74: 5234051.519 | TI74: 5333212.903 | TJ74: 5434081.504 | TK74: 5536677.838 | TL74: 5641022.17 | TM74: 5747134.479 | TN74: 5855034.418 | TO74: 5964741.273 | TP74: 6076273.924 | TQ74: 6189650.792 | TR74: 6304889.799 | TS74: 6422008.313 | TT74: 6541023.095 | TU74: 6661950.241 | TV74: 6784805.127 | TW74: 6909602.341 | TX74: 7036355.618 | TY74: 7165077.774 | TZ74: 7295780.628 | UA74: 7428474.924 | UB74: 7563170.256 | UC74: 7699874.975 | UD74: 7838596.103 | UE74: 7979339.239 | UF74: 8122108.456 | UG74: 8266906.201 | UH74: 8413733.181 | UI74: 8562588.254 | UJ74: 8713468.303 | UK74: 8866368.11 | UL74: 9021280.228 | UM74: 9178194.837 | UN74: 9337099.602 | UO74: 9497979.518 | UP74: 9660816.755 | UQ74: 9825590.484 | UR74: 9992276.709 | US74: 10160848.08 | UT74: 10331273.71 | UU74: 10503518.97 | UV74: 10677545.27 | UW74: 10853309.86 | UX74: 11030765.6 | UY74: 11209860.71 | UZ74: 11390538.53 | VA74: 11572737.3 | VB74: 11756389.8 | VC74: 11941423.16 | VD74: 12127758.55 | VE74: 12315310.83 | VF74: 12503988.3 | VG74: 12693692.32 | VH74: 12884317.01 | VI74: 13075748.86 | VJ74: =VJ72-VJ73 -> 13267866.39 | VK74: 13460539.77 | VL74: 13653630.41 | VM74: 13846990.55 | VN74: 14040462.84 | VO74: 14233879.93 | VP74: 14427063.97 | VQ74: 14619826.16 | VR74: 14811966.27 | VS74: 15003272.14 | VT74: 15193519.14 | VU74: 15382469.68 | VV74: 15569872.62 | VW74: 15755462.72 | VX74: 15938960.07 | VY74: 16120069.49 | VZ74: 16298479.9 | WA74: 16473863.71 | WB74: 16645876.18 | WC74: 16814154.74 | WD74: 16978318.38 | WE74: 17137966.87 | WF74: 17292680.16 | WG74: 17442017.63 | WH74: 17585517.36 | WI74: 17722695.43 | WJ74: 17853045.2 | WK74: 17976036.53 | WL74: 18091115.08 | WM74: 18197701.54 | WN74: 18295190.91 | WO74: 18382951.76 | WP74: 18460325.49 | WQ74: 18526625.62 | WR74: 18581137.09 | WS74: 18623115.58 | WT74: 18651786.84 | WU74: 18666346.07 | WV74: 18665957.31 | WW74: 18649752.89 | WX74: 18616832.96 | WY74: 18566264.97 | WZ74: 18497083.36 | XA74: 18408289.21 | XB74: 18298850.02 | XC74: 18167699.57 | XD74: 18013737.93 | XE74: 17835831.54 | XF74: 17632813.42 | XG74: 17403483.6 | XH74: 17146609.66 | XI74: 16860927.43 | XJ74: 16545142.02 | XK74: 16197928.9 | XL74: 15817935.44 | XM74: 15403782.52 | XN74: 14954066.62 | XO74: 14467362.13 | XP74: 13942224.13 | XQ74: 13377191.48 | XR74: 12770790.42 | XS74: 12121538.65 | XT74: 11427949.93 | XU74: 10688539.28 | XV74: =XV72-XV73 -> 9901828.758 | XW74: 9066354.044 | XX74: 8180671.67 | XY74: 7243367.132 | XZ74: 6253063.878 | YA74: 5208433.277 | YB74: 4108205.631 | YC74: 2951182.354 | YD74: 1736249.377 | YE74: 462391.9203 | YF74: -871289.2854 | YG74: -2265560.18 | YH74: -3721033.841 | YI74: -5238149.097 | YJ74: -6817147.117 | YK74: -8458045.836 | YL74: -10160612.02 | YM74: -11924330.79 | YN74: -13748372.4 | YO74: -15631556.07 | YP74: -17572310.54 | YQ74: -19568631.28 | YR74: -21618033.92 | YS74: -23717503.57 | YT74: -25863439.99 | YU74: -28051597.92 | YV74: -30277022.44 | YW74: -32533978.92 | YX74: -34815877.08 | YY74: -37115188.79 | YZ74: -39423359.04 | ZA74: -41730709.72 | ZB74: -44026335.43 | ZC74: -46297990.92 | ZD74: -48531969.41 | ZE74: -50712971.16 | ZF74: -52823961.55 | ZG74: -54846017.82 | ZH74: -56758163.68 | ZI74: -58537190.94 | ZJ74: -60157467.07 | ZK74: -61590727.67 | ZL74: -62805852.86 | ZM74: -63768626.24 | ZN74: -64441475.21 | ZO74: -64783191.28 | ZP74: -64748628.88 | ZQ74: -64288381.14 | ZR74: -63348430.84 | ZS74: -61869774.89 | ZT74: -59788020.26 | ZU74: -57032949.35 | ZV74: -53528052.61 | ZW74: -49190025.93 | ZX74: -43928230.42 | ZY74: -37644111.66 | ZZ74: -30230575.72 | AAA74: -21571318.65 | AAB74: -11540106.16
C76: Net Value of Debt | E76: =E70-E73 -> 1089.595745 | F76: =F70-F73 -> 1111.38766 | G76: 1133.615413 | H76: 1156.287721 | I76: 1179.413476 | J76: 1203.001745 | K76: 1227.06178 | L76: 1251.603016 | M76: 1276.635076 | N76: 1302.167777 | O76: 1328.211133 | P76: 1354.775355 | Q76: 1381.870863 | R76: 1409.50828 | S76: 1437.698445 | T76: 1466.452414 | U76: 1495.781462 | V76: 1525.697092 | W76: 1556.211033 | X76: 1587.335254 | Y76: 1619.081959 | Z76: 1651.463598 | AA76: 1684.49287 | AB76: 1718.182727 | AC76: 1752.546382 | AD76: 1787.59731 | AE76: 1823.349256 | AF76: 1859.816241 | AG76: 1897.012565 | AH76: 1934.952817 | AI76: 1973.651873 | AJ76: 2013.12491 | AK76: 2053.387408 | AL76: 2094.455156 | AM76: 2136.344259 | AN76: 2179.071145 | AO76: 2222.652567 | AP76: 2267.105619 | AQ76: 2312.447731 | AR76: 2358.696685 | AS76: 2405.870619 | AT76: 2453.988031 | AU76: 2503.067792 | AV76: 2553.129147 | AW76: 2604.19173 | AX76: 2656.275564 | AY76: 2709.401076 | AZ76: 2763.589097 | BA76: 2818.860879 | BB76: 2875.238096 | BC76: 2932.742858 | BD76: 2991.397715 | BE76: 3051.225669 | BF76: 3112.250182 | BG76: 3174.495185 | BH76: 3237.985088 | BI76: 3302.74479 | BJ76: 3368.799685 | BK76: 3436.175679 | BL76: 3504.899192 | BM76: 3574.997175 | BN76: 3646.497118 | BO76: 3719.42706 | BP76: 3793.815601 | BQ76: 3869.691913 | BR76: =BR70-BR73 -> 3947.08575 | BS76: 4026.027465 | BT76: 4106.548014 | BU76: 4188.678973 | BV76: 4272.452552 | BW76: 4357.901603 | BX76: 4445.059634 | BY76: 4533.960826 | BZ76: 4624.640042 | CA76: 4717.132842 | CB76: 4811.475498 | CC76: 4907.705007 | CD76: 5005.859106 | CE76: 5105.976287 | CF76: 5208.095812 | CG76: 5312.257727 | CH76: 5418.502881 | CI76: 5526.872937 | CJ76: 5637.410395 | CK76: 5750.158601 | CL76: 5865.161772 | CM76: 5982.465006 | CN76: 6102.114305 | CO76: 6224.156589 | CP76: 6348.639719 | CQ76: 6475.612512 | CR76: 6605.12476 | CS76: 6737.227253 | CT76: 6871.971796 | CU76: 7009.41123 | CV76: 7149.599452 | CW76: 7292.591439 | CX76: 7438.443265 | CY76: 7587.212128 | CZ76: 7738.956368 | DA76: 7893.735492 | DB76: 8051.610199 | DC76: 8212.6424 | DD76: 8376.895244 | DE76: 8544.433146 | DF76: 8715.321805 | DG76: 8889.628237 | DH76: 9067.420798 | DI76: 9248.769209 | DJ76: 9433.744589 | DK76: 9622.419476 | DL76: 9814.86786 | DM76: 10011.16521 | DN76: 10211.38851 | DO76: 10415.61627 | DP76: 10623.92859 | DQ76: 10836.40716 | DR76: 11053.1353 | DS76: 11274.19799 | DT76: 11499.68195 | DU76: 11729.67558 | DV76: 11964.26908 | DW76: 12203.55445 | DX76: 12447.62553 | DY76: 12696.57803 | DZ76: 12950.50958 | EA76: 13209.51976 | EB76: 13473.71015 | EC76: 13743.18434 | ED76: =ED70-ED73 -> 14018.04801 | EE76: 14298.40896 | EF76: 14584.37713 | EG76: 14876.06465 | EH76: 15173.58593 | EI76: 15477.05763 | EJ76: 15786.59877 | EK76: 16102.33073 | EL76: 16424.37732 | EM76: 16752.86485 | EN76: 17087.92212 | EO76: 17429.68054 | EP76: 17778.27413 | EQ76: 18133.83959 | ER76: 18496.51635 | ES76: 18866.44665 | ET76: 19243.77556 | EU76: 19628.65104 | EV76: 20021.22403 | EW76: 20421.64848 | EX76: 20830.08141 | EY76: 21246.683 | EZ76: 21671.61662 | FA76: 22105.04892 | FB76: 22547.14985 | FC76: 22998.0928 | FD76: 23458.05461 | FE76: 23927.21565 | FF76: 24405.75991 | FG76: 24893.87506 | FH76: 25391.7525 | FI76: 25899.58749 | FJ76: 26417.57917 | FK76: 26945.93069 | FL76: 27484.84923 | FM76: 28034.54614 | FN76: 28595.23699 | FO76: 29167.14164 | FP76: 29750.48439 | FQ76: 30345.49398 | FR76: 30952.40377 | FS76: 31571.45174 | FT76: 32202.88067 | FU76: 32846.93817 | FV76: 33503.87681 | FW76: 34173.95423 | FX76: 34857.43318 | FY76: 35554.58171 | FZ76: 36265.6732 | GA76: 36990.98651 | GB76: 37730.80608 | GC76: 38485.42203 | GD76: 39255.13029 | GE76: 40040.23271 | GF76: 40841.03717 | GG76: 41657.85771 | GH76: 42491.01464 | GI76: 43340.83471 | GJ76: 44207.65116 | GK76: 45091.80393 | GL76: 45993.63974 | GM76: 46913.51226 | GN76: 47851.78221 | GO76: 48808.81754 | GP76: =GP70-GP73 -> 49784.99357 | GQ76: 50780.6931 | GR76: 51796.3066 | GS76: 52832.23235 | GT76: 53888.8766 | GU76: 54966.65371 | GV76: 56065.98634 | GW76: 57187.3056 | GX76: 58331.05123 | GY76: 59497.67174 | GZ76: 60687.62463 | HA76: 61901.37655 | HB76: 63139.40349 | HC76: 64402.19093 | HD76: 65690.23408 | HE76: 67004.03807 | HF76: 68344.11809 | HG76: 69710.99968 | HH76: 71105.21887 | HI76: 72527.32239 | HJ76: 73977.86794 | HK76: 75457.42435 | HL76: 76966.57185 | HM76: 78505.90224 | HN76: 80076.01918 | HO76: 81677.53841 | HP76: 83311.08796 | HQ76: 84977.30844 | HR76: 86676.85326 | HS76: 88410.3889 | HT76: 90178.59519 | HU76: 91982.16553 | HV76: 93821.80719 | HW76: 95698.24159 | HX76: 97612.2046 | HY76: 99564.44677 | HZ76: 101555.7337 | IA76: 103586.8462 | IB76: 105658.5809 | IC76: 107771.7502 | ID76: 109927.1827 | IE76: 112125.7238 | IF76: 114368.2355 | IG76: 116655.5973 | IH76: 118988.7062 | II76: 121368.4772 | IJ76: 123795.8434 | IK76: 126271.7567 | IL76: 128797.1881 | IM76: 131373.128 | IN76: 134000.5864 | IO76: 136680.5938 | IP76: 139414.2012 | IQ76: 142202.4804 | IR76: 145046.525 | IS76: 147947.4502 | IT76: 150906.3936 | IU76: 153924.5156 | IV76: 157002.9998 | IW76: 160143.0533 | IX76: 163345.9075 | IY76: 166612.8185 | IZ76: 169945.0673 | JA76: 173343.9607 | JB76: =JB70-JB73 -> 176810.8316 | JC76: 180347.0394 | JD76: 183953.971 | JE76: 187633.0407 | JF76: 191385.6912 | JG76: 195213.3943 | JH76: 199117.6509 | JI76: 203099.992 | JJ76: 207161.9793 | JK76: 211305.2057 | JL76: 215531.2959 | JM76: 219841.9073 | JN76: 224238.7301 | JO76: 228723.4885 | JP76: 233297.9413 | JQ76: 237963.8823 | JR76: 242723.1411 | JS76: 247577.5842 | JT76: 252529.115 | JU76: 257579.6755 | JV76: 262731.2459 | JW76: 267985.8466 | JX76: 273345.5381 | JY76: 278812.4221 | JZ76: 284388.6423 | KA76: 290076.3855 | KB76: 295877.882 | KC76: 301795.4068 | KD76: 307831.2804 | KE76: 313987.8697 | KF76: 320267.5889 | KG76: 326672.9005 | KH76: 333206.3162 | KI76: 339870.3981 | KJ76: 346667.7592 | KK76: 353601.0652 | KL76: 360673.0347 | KM76: 367886.4409 | KN76: 375244.1125 | KO76: 382748.9344 | KP76: 390403.8497 | KQ76: 398211.86 | KR76: 406176.027 | KS76: 414299.4737 | KT76: 422585.3855 | KU76: 431037.0115 | KV76: 439657.6658 | KW76: 448450.7287 | KX76: 457419.6482 | KY76: 466567.9411 | KZ76: 475899.1946 | LA76: 485417.0678 | LB76: 495125.2927 | LC76: 505027.676 | LD76: 515128.1006 | LE76: 525430.527 | LF76: 535938.9949 | LG76: 546657.6248 | LH76: 557590.6194 | LI76: 568742.2657 | LJ76: 580116.9363 | LK76: 591719.0913 | LL76: 603553.2798 | LM76: 615624.142 | LN76: =LN70-LN73 -> 627936.4109 | LO76: 640494.9141 | LP76: 653304.5757 | LQ76: 666370.4181 | LR76: 679697.5645 | LS76: 693291.2402 | LT76: 707156.7751 | LU76: 721299.6056 | LV76: 735725.2769 | LW76: 750439.445 | LX76: 765447.8788 | LY76: 780756.4629 | LZ76: 796371.1993 | MA76: 812298.21 | MB76: 828543.7394 | MC76: 845114.1569 | MD76: 862015.9589 | ME76: 879255.7719 | MF76: 896840.355 | MG76: 914776.602 | MH76: 933071.5449 | MI76: 951732.356 | MJ76: 970766.3512 | MK76: 990180.9924 | ML76: 1009983.891 | MM76: 1030182.81 | MN76: 1050785.667 | MO76: 1071800.541 | MP76: 1093235.668 | MQ76: 1115099.452 | MR76: 1137400.464 | MS76: 1160147.445 | MT76: 1183349.312 | MU76: 1207015.16 | MV76: 1231154.266 | MW76: 1255776.092 | MX76: 1280890.289 | MY76: 1306506.701 | MZ76: 1332635.369 | NA76: 1359286.535 | NB76: 1386470.643 | NC76: 1414198.35 | ND76: 1442480.522 | NE76: 1471328.244 | NF76: 1500752.822 | NG76: 1530765.789 | NH76: 1561378.907 | NI76: 1592604.173 | NJ76: 1624453.824 | NK76: 1656940.342 | NL76: 1690076.458 | NM76: 1723875.156 | NN76: 1758349.681 | NO76: 1793513.542 | NP76: 1829380.517 | NQ76: 1865964.661 | NR76: 1903280.308 | NS76: 1941342.078 | NT76: 1980164.884 | NU76: 2019763.938 | NV76: 2060154.751 | NW76: 2101353.15 | NX76: 2143375.272 | NY76: 2186237.581 | NZ76: =NZ70-NZ73 -> 2229956.865 | OA76: 2274550.252 | OB76: 2320035.208 | OC76: 2366429.549 | OD76: 2413751.446 | OE76: 2462019.434 | OF76: 2511252.417 | OG76: 2561469.674 | OH76: 2612690.872 | OI76: 2664936.069 | OJ76: 2718225.723 | OK76: 2772580.698 | OL76: 2828022.279 | OM76: 2884572.17 | ON76: 2942252.511 | OO76: 3001085.883 | OP76: 3061095.316 | OQ76: 3122304.3 | OR76: 3184736.794 | OS76: 3248417.232 | OT76: 3313370.537 | OU76: 3379622.128 | OV76: 3447197.93 | OW76: 3516124.384 | OX76: 3586428.459 | OY76: 3658137.661 | OZ76: 3731280.042 | PA76: 3805884.213 | PB76: 3881979.357 | PC76: 3959595.234 | PD76: 4038762.198 | PE76: 4119511.208 | PF76: 4201873.838 | PG76: 4285882.289 | PH76: 4371569.403 | PI76: 4458968.676 | PJ76: 4548114.269 | PK76: 4639041.023 | PL76: 4731784.468 | PM76: 4826380.844 | PN76: 4922867.109 | PO76: 5021280.956 | PP76: 5121660.824 | PQ76: 5224045.917 | PR76: 5328476.217 | PS76: 5434992.498 | PT76: 5543636.345 | PU76: 5654450.166 | PV76: 5767477.209 | PW76: 5882761.581 | PX76: 6000348.263 | PY76: 6120283.125 | PZ76: 6242612.947 | QA76: 6367385.435 | QB76: 6494649.239 | QC76: 6624453.97 | QD76: 6756850.223 | QE76: 6891889.59 | QF76: 7029624.686 | QG76: 7170109.162 | QH76: 7313397.731 | QI76: 7459546.186 | QJ76: 7608611.419 | QK76: 7760651.445 | QL76: =QL70-QL73 -> 7915725.423 | QM76: 8073893.678 | QN76: 8235217.723 | QO76: 8399760.282 | QP76: 8567585.312 | QQ76: 8738758.03 | QR76: 8913344.933 | QS76: 9091413.826 | QT76: 9273033.845 | QU76: 9458275.481 | QV76: 9647210.609 | QW76: 9839912.512 | QX76: 10036455.91 | QY76: 10236916.98 | QZ76: 10441373.41 | RA76: 10649904.36 | RB76: 10862590.59 | RC76: 11079514.41 | RD76: 11300759.73 | RE76: 11526412.11 | RF76: 11756558.76 | RG76: 11991288.6 | RH76: 12230692.28 | RI76: 12474862.19 | RJ76: 12723892.54 | RK76: 12977879.35 | RL76: 13236920.49 | RM76: 13501115.75 | RN76: 13770566.83 | RO76: 14045377.39 | RP76: 14325653.1 | RQ76: 14611501.66 | RR76: 14903032.84 | RS76: 15200358.51 | RT76: 15503592.71 | RU76: 15812851.64 | RV76: 16128253.74 | RW76: 16449919.7 | RX76: 16777972.52 | RY76: 17112537.54 | RZ76: 17453742.49 | SA76: 17801717.52 | SB76: 18156595.23 | SC76: 18518510.76 | SD76: 18887601.78 | SE76: 19264008.57 | SF76: 19647874.03 | SG76: 20039343.76 | SH76: 20438566.08 | SI76: 20845692.08 | SJ76: 21260875.69 | SK76: 21684273.66 | SL76: 22116045.71 | SM76: 22556354.46 | SN76: 23005365.58 | SO76: 23463247.75 | SP76: 23930172.8 | SQ76: 24406315.66 | SR76: 24891854.49 | SS76: 25386970.67 | ST76: 25891848.88 | SU76: 26406677.16 | SV76: 26931646.91 | SW76: 27466952.99 | SX76: =SX70-SX73 -> 28012793.74 | SY76: 28569371.05 | SZ76: 29136890.38 | TA76: 29715560.82 | TB76: 30305595.17 | TC76: 30907209.94 | TD76: 31520625.42 | TE76: 32146065.74 | TF76: 32783758.89 | TG76: 33433936.78 | TH76: 34096835.29 | TI76: 34772694.33 | TJ76: 35461757.83 | TK76: 36164273.84 | TL76: 36880494.56 | TM76: 37610676.35 | TN76: 38355079.8 | TO76: 39113969.77 | TP76: 39887615.41 | TQ76: 40676290.19 | TR76: 41480271.98 | TS76: 42299843.01 | TT76: 43135289.96 | TU76: 43986903.96 | TV76: 44854980.6 | TW76: 45739819.99 | TX76: 46641726.75 | TY76: 47561010.02 | TZ76: 48497983.51 | UA76: 49452965.46 | UB76: 50426278.68 | UC76: 51418250.51 | UD76: 52429212.87 | UE76: 53459502.21 | UF76: 54509459.51 | UG76: 55579430.24 | UH76: 56669764.36 | UI76: 57780816.27 | UJ76: 58912944.79 | UK76: 60066513.08 | UL76: 61241888.61 | UM76: 62439443.09 | UN76: 63659552.41 | UO76: 64902596.54 | UP76: 66168959.44 | UQ76: 67459028.97 | UR76: 68773196.8 | US76: 70111858.22 | UT76: 71475412.08 | UU76: 72864260.6 | UV76: 74278809.19 | UW76: 75719466.33 | UX76: 77186643.32 | UY76: 78680754.1 | UZ76: 80202215.02 | VA76: 81751444.59 | VB76: 83328863.22 | VC76: 84934892.93 | VD76: 86569957.04 | VE76: 88234479.86 | VF76: 89928886.31 | VG76: 91653601.56 | VH76: 93409050.63 | VI76: 95195657.94 | VJ76: =VJ70-VJ73 -> 97013846.83 | VK76: 98864039.11 | VL76: 100746654.5 | VM76: 102662110.1 | VN76: 104610819.8 | VO76: 106593193.5 | VP76: 108609636.6 | VQ76: 110660549.2 | VR76: 112746325.5 | VS76: 114867352.6 | VT76: 117024010.1 | VU76: 119216668.9 | VV76: 121445690.1 | VW76: 123711424.4 | VX76: 126014210.8 | VY76: 128354375.3 | VZ76: 130732229.7 | WA76: 133148070.6 | WB76: 135602177.9 | WC76: 138094813.1 | WD76: 140626218.2 | WE76: 143196613.5 | WF76: 145806196.8 | WG76: 148455140.6 | WH76: 151143590.9 | WI76: 153871665.1 | WJ76: 156639449.5 | WK76: 159446997.6 | WL76: 162294327.3 | WM76: 165181418.8 | WN76: 168108211.9 | WO76: 171074603 | WP76: 174080442.6 | WQ76: 177125532.1 | WR76: 180209620.4 | WS76: 183332401 | WT76: 186493508.1 | WU76: 189692513 | WV76: 192928920.1 | WW76: 196202163 | WX76: 199511600 | WY76: 202856509.7 | WZ76: 206236086 | XA76: 209649433.5 | XB76: 213095561.7 | XC76: 216573380.1 | XD76: 220081691.9 | XE76: 223619188 | XF76: 227184441.1 | XG76: 230775898.3 | XH76: 234391874.7 | XI76: 238030545.6 | XJ76: 241689939 | XK76: 245367927.5 | XL76: 249062219.9 | XM76: 252770352.2 | XN76: 256489678.3 | XO76: 260217360.3 | XP76: 263950358.4 | XQ76: 267685420.1 | XR76: 271419069.1 | XS76: 275147593.6 | XT76: 278867033.9 | XU76: 282573170.1 | XV76: =XV70-XV73 -> 286261508.1 | XW76: 289927266.1 | XX76: 293565359.7 | XY76: 297170386.7 | XZ76: 300736611.3 | YA76: 304257947.1 | YB76: 307727940 | YC76: 311139750 | YD76: 314486131.9 | YE76: 317759415.8 | YF76: 320951486.6 | YG76: 324053761.9 | YH76: 327057170 | YI76: 329952126.4 | YJ76: 332728509.2 | YK76: 335375634.1 | YL76: 337882227.2 | YM76: 340236398.3 | YN76: 342425611.4 | YO76: 344436655.4 | YP76: 346255612.7 | YQ76: 347867827.3 | YR76: 349257870.7 | YS76: 350409507.4 | YT76: 351305658.4 | YU76: 351928364 | YV76: 352258744.2 | YW76: 352276958.8 | YX76: 351962164.8 | YY76: 351292473.4 | YZ76: 350244904.6 | ZA76: 348795340.6 | ZB76: 346918477.6 | ZC76: 344587775.6 | ZD76: 341775407 | ZE76: 338452203.1 | ZF76: 334587599 | ZG76: 330149576.9 | ZH76: 325104607.5 | ZI76: 319417589.4 | ZJ76: 313051787.3 | ZK76: 305968767.7 | ZL76: 298128333.7 | ZM76: 289488457.1 | ZN76: 280005209.5 | ZO76: 269632691.3 | ZP76: 258322959.2 | ZQ76: 246025952.1 | ZR76: 232689415.3 | ZS76: 218258823.4 | ZT76: 202677301.7 | ZU76: 185885546 | ZV76: 167821742.4 | ZW76: 148421484.4 | ZX76: 127617690.4 | ZY76: 105340520 | ZZ76: 81517290.11 | AAA76: 56072390.48 | AAB76: 28927199.43
C77: Value of Tax Shield | E77: =E69-E74 -> 466.969605 | F77: 476.3089971 | G77: 485.835177 | H77: 495.5518805 | I77: 505.4629181 | J77: 515.5721765 | K77: 525.88362 | L77: 536.4012924 | M77: 547.1293182 | N77: 558.0719046 | O77: 569.2333427 | P77: 580.6180095 | Q77: 592.2303697 | R77: 604.074977 | S77: 616.1564766 | T77: 628.4796061 | U77: 641.0491982 | V77: 653.8701821 | W77: 666.9475858 | X77: 680.2865375 | Y77: 693.8922682 | Z77: 707.7701135 | AA77: 721.9255158 | AB77: 736.3640261 | AC77: 751.0913066 | AD77: 766.1131327 | AE77: 781.4353953 | AF77: 797.0641032 | AG77: 813.0053852 | AH77: 829.2654929 | AI77: 845.8508027 | AJ77: 862.7678187 | AK77: 880.023175 | AL77: 897.6236385 | AM77: 915.5761112 | AN77: 933.8876334 | AO77: 952.565386 | AP77: 971.6166937 | AQ77: 991.0490275 | AR77: 1010.870008 | AS77: 1031.087408 | AT77: 1051.709156 | AU77: 1072.743339 | AV77: 1094.198206 | AW77: 1116.08217 | AX77: 1138.403813 | AY77: 1161.17189 | AZ77: 1184.395327 | BA77: 1208.083234 | BB77: 1232.244898 | BC77: 1256.889796 | BD77: 1282.027592 | BE77: 1307.668144 | BF77: 1333.821506 | BG77: 1360.497936 | BH77: 1387.707895 | BI77: 1415.462053 | BJ77: 1443.771294 | BK77: 1472.646719 | BL77: 1502.099654 | BM77: 1532.141647 | BN77: 1562.784479 | BO77: 1594.040169 | BP77: 1625.920972 | BQ77: =BQ69-BQ74 -> 1658.439391 | BR77: 1691.608179 | BS77: 1725.440342 | BT77: 1759.949149 | BU77: 1795.148131 | BV77: 1831.051094 | BW77: 1867.672115 | BX77: 1905.025557 | BY77: 1943.126068 | BZ77: 1981.988589 | CA77: 2021.628361 | CB77: 2062.060928 | CC77: 2103.302146 | CD77: 2145.368188 | CE77: 2188.275552 | CF77: 2232.041062 | CG77: 2276.681883 | CH77: 2322.21552 | CI77: 2368.65983 | CJ77: 2416.033026 | CK77: 2464.353686 | CL77: 2513.640759 | CM77: 2563.913574 | CN77: 2615.191845 | CO77: 2667.495681 | CP77: 2720.845594 | CQ77: 2775.262505 | CR77: 2830.767754 | CS77: 2887.383109 | CT77: 2945.13077 | CU77: 3004.033384 | CV77: 3064.114051 | CW77: 3125.396331 | CX77: 3187.904257 | CY77: 3251.662341 | CZ77: 3316.695586 | DA77: 3383.029497 | DB77: 3450.690085 | DC77: 3519.703886 | DD77: 3590.097962 | DE77: 3661.89992 | DF77: 3735.137916 | DG77: 3809.840673 | DH77: 3886.037485 | DI77: 3963.758232 | DJ77: 4043.033395 | DK77: 4123.894061 | DL77: 4206.37194 | DM77: 4290.499377 | DN77: 4376.309362 | DO77: 4463.835546 | DP77: 4553.112255 | DQ77: 4644.174497 | DR77: 4737.057984 | DS77: 4831.79914 | DT77: 4928.43512 | DU77: 5027.003819 | DV77: 5127.543892 | DW77: 5230.094766 | DX77: 5334.696657 | DY77: 5441.390586 | DZ77: 5550.218393 | EA77: 5661.222756 | EB77: 5774.447206 | EC77: =EC69-EC74 -> 5889.936145 | ED77: 6007.734863 | EE77: 6127.889554 | EF77: 6250.447339 | EG77: 6375.45628 | EH77: 6502.965399 | EI77: 6633.0247 | EJ77: 6765.685186 | EK77: 6900.998882 | EL77: 7039.018852 | EM77: 7179.79922 | EN77: 7323.395196 | EO77: 7469.86309 | EP77: 7619.260342 | EQ77: 7771.645538 | ER77: 7927.078438 | ES77: 8085.619995 | ET77: 8247.332382 | EU77: 8412.279017 | EV77: 8580.524584 | EW77: 8752.135061 | EX77: 8927.177748 | EY77: 9105.721287 | EZ77: 9287.835696 | FA77: 9473.592392 | FB77: 9663.064222 | FC77: 9856.325487 | FD77: 10053.45198 | FE77: 10254.52099 | FF77: 10459.61139 | FG77: 10668.8036 | FH77: 10882.17964 | FI77: 11099.82321 | FJ77: 11321.81965 | FK77: 11548.25601 | FL77: 11779.2211 | FM77: 12014.80549 | FN77: 12255.10157 | FO77: 12500.20356 | FP77: 12750.20759 | FQ77: 13005.21171 | FR77: 13265.3159 | FS77: 13530.62217 | FT77: 13801.23457 | FU77: 14077.25922 | FV77: 14358.80435 | FW77: 14645.98038 | FX77: 14938.89993 | FY77: 15237.67787 | FZ77: 15542.43137 | GA77: 15853.27993 | GB77: 16170.34546 | GC77: 16493.7523 | GD77: 16823.62727 | GE77: 17160.09973 | GF77: 17503.30164 | GG77: 17853.36759 | GH77: 18210.43485 | GI77: 18574.64345 | GJ77: 18946.13621 | GK77: 19325.05883 | GL77: 19711.55989 | GM77: 20105.79097 | GN77: 20507.90666 | GO77: =GO69-GO74 -> 20918.06466 | GP77: 21336.42582 | GQ77: 21763.15418 | GR77: 22198.41711 | GS77: 22642.38529 | GT77: 23095.23283 | GU77: 23557.1373 | GV77: 24028.27986 | GW77: 24508.84526 | GX77: 24999.02195 | GY77: 25499.00217 | GZ77: 26008.98198 | HA77: 26529.16138 | HB77: 27059.74435 | HC77: 27600.93897 | HD77: 28152.95746 | HE77: 28716.01631 | HF77: 29290.33633 | HG77: 29876.14272 | HH77: 30473.66523 | HI77: 31083.13817 | HJ77: 31704.80055 | HK77: 32338.89615 | HL77: 32985.67365 | HM77: 33645.38667 | HN77: 34318.29393 | HO77: 35004.65932 | HP77: 35704.75198 | HQ77: 36418.84647 | HR77: 37147.22282 | HS77: 37890.16667 | HT77: 38647.96937 | HU77: 39420.92808 | HV77: 40209.34594 | HW77: 41013.53211 | HX77: 41833.80197 | HY77: 42670.47719 | HZ77: 43523.88586 | IA77: 44394.36267 | IB77: 45282.24897 | IC77: 46187.89294 | ID77: 47111.64973 | IE77: 48053.88161 | IF77: 49014.95807 | IG77: 49995.256 | IH77: 50995.15982 | II77: 52015.06165 | IJ77: 53055.36144 | IK77: 54116.46716 | IL77: 55198.79491 | IM77: 56302.76913 | IN77: 57428.82275 | IO77: 58577.39736 | IP77: 59748.94335 | IQ77: 60943.92017 | IR77: 62162.79642 | IS77: 63406.05008 | IT77: 64674.16869 | IU77: 65967.64955 | IV77: 67286.9999 | IW77: 68632.73712 | IX77: 70005.38894 | IY77: 71405.49364 | IZ77: 72833.60028 | JA77: =JA69-JA74 -> 74290.26888 | JB77: 75776.07068 | JC77: 77291.58833 | JD77: 78837.41613 | JE77: 80414.16028 | JF77: 82022.4391 | JG77: 83662.88327 | JH77: 85336.13609 | JI77: 87042.8537 | JJ77: 88783.70541 | JK77: 90559.37386 | JL77: 92370.5554 | JM77: 94217.96025 | JN77: 96102.31288 | JO77: 98024.35222 | JP77: 99984.83198 | JQ77: 101984.521 | JR77: 104024.2033 | JS77: 106104.6789 | JT77: 108226.7636 | JU77: 110391.2895 | JV77: 112599.1054 | JW77: 114851.0771 | JX77: 117148.0878 | JY77: 119491.038 | JZ77: 121880.8467 | KA77: 124318.4509 | KB77: 126804.8066 | KC77: 129340.8886 | KD77: 131927.6916 | KE77: 134566.2299 | KF77: 137257.5381 | KG77: 140002.6716 | KH77: 142802.707 | KI77: 145658.742 | KJ77: 148571.8968 | KK77: 151543.3137 | KL77: 154574.1577 | KM77: 157665.6175 | KN77: 160818.9053 | KO77: 164035.2576 | KP77: 167315.9356 | KQ77: 170662.2257 | KR77: 174075.4401 | KS77: 177556.9173 | KT77: 181108.0224 | KU77: 184730.1478 | KV77: 188424.7139 | KW77: 192193.1694 | KX77: 196036.9921 | KY77: 199957.689 | KZ77: 203956.7977 | LA77: 208035.8862 | LB77: 212196.554 | LC77: 216440.4326 | LD77: 220769.186 | LE77: 225184.5116 | LF77: 229688.1407 | LG77: 234281.8392 | LH77: 238967.4083 | LI77: 243746.6853 | LJ77: 248621.5441 | LK77: 253593.8963 | LL77: 258665.6913 | LM77: =LM69-LM74 -> 263838.918 | LN77: 269115.6047 | LO77: 274497.8203 | LP77: 279987.6753 | LQ77: 285587.3221 | LR77: 291298.9562 | LS77: 297124.8172 | LT77: 303067.1893 | LU77: 309128.4024 | LV77: 315310.833 | LW77: 321616.905 | LX77: 328049.0909 | LY77: 334609.9127 | LZ77: 341301.9426 | MA77: 348127.8043 | MB77: 355090.174 | MC77: 362191.7815 | MD77: 369435.4109 | ME77: 376823.9023 | MF77: 384360.1521 | MG77: 392047.1151 | MH77: 399887.805 | MI77: 407885.2954 | MJ77: 416042.7219 | MK77: 424363.2824 | ML77: 432850.2389 | MM77: 441506.9184 | MN77: 450336.7146 | MO77: 459343.089 | MP77: 468529.5721 | MQ77: 477899.7653 | MR77: 487457.3416 | MS77: 497206.0477 | MT77: 507149.705 | MU77: 517292.2113 | MV77: 527637.5425 | MW77: 538189.7536 | MX77: 548952.981 | MY77: 559931.4434 | MZ77: 571129.444 | NA77: 582551.372 | NB77: 594201.7042 | NC77: 606085.007 | ND77: 618205.9378 | NE77: 630569.2473 | NF77: 643179.781 | NG77: 656042.4811 | NH77: 669162.3887 | NI77: 682544.6456 | NJ77: 696194.4962 | NK77: 710117.2896 | NL77: 724318.4819 | NM77: 738803.6382 | NN77: 753578.4347 | NO77: 768648.6607 | NP77: 784020.2216 | NQ77: 799699.1404 | NR77: 815691.5604 | NS77: 832003.7477 | NT77: 848642.0933 | NU77: 865613.1161 | NV77: 882923.4649 | NW77: 900579.9213 | NX77: 918589.4024 | NY77: =NY69-NY74 -> 936958.9631 | NZ77: 955695.7995 | OA77: 974807.2509 | OB77: 994300.8034 | OC77: 1014184.092 | OD77: 1034464.906 | OE77: 1055151.186 | OF77: 1076251.036 | OG77: 1097772.717 | OH77: 1119724.66 | OI77: 1142115.458 | OJ77: 1164953.881 | OK77: 1188248.871 | OL77: 1212009.548 | OM77: 1236245.216 | ON77: 1260965.362 | OO77: 1286179.664 | OP77: 1311897.993 | OQ77: 1338130.414 | OR77: 1364887.197 | OS77: 1392178.814 | OT77: 1420015.945 | OU77: 1448409.483 | OV77: 1477370.541 | OW77: 1506910.45 | OX77: 1537040.768 | OY77: 1567773.283 | OZ77: 1599120.018 | PA77: 1631093.234 | PB77: 1663705.439 | PC77: 1696969.386 | PD77: 1730898.085 | PE77: 1765504.804 | PF77: 1800803.073 | PG77: 1836806.695 | PH77: 1873529.744 | PI77: 1910986.576 | PJ77: 1949191.83 | PK77: 1988160.438 | PL77: 2027907.629 | PM77: 2068448.933 | PN77: 2109800.19 | PO77: 2151977.552 | PP77: 2194997.496 | PQ77: 2238876.821 | PR77: 2283632.664 | PS77: 2329282.499 | PT77: 2375844.148 | PU77: 2423335.785 | PV77: 2471775.947 | PW77: 2521183.535 | PX77: 2571577.827 | PY77: 2622978.482 | PZ77: 2675405.549 | QA77: 2728879.472 | QB77: 2783421.102 | QC77: 2839051.701 | QD77: 2895792.953 | QE77: 2953666.967 | QF77: 3012696.294 | QG77: 3072903.927 | QH77: 3134313.313 | QI77: 3196948.365 | QJ77: 3260833.465 | QK77: =QK69-QK74 -> 3325993.476 | QL77: 3392453.753 | QM77: 3460240.148 | QN77: 3529379.024 | QO77: 3599897.264 | QP77: 3671822.277 | QQ77: 3745182.013 | QR77: 3820004.971 | QS77: 3896320.211 | QT77: 3974157.362 | QU77: 4053546.635 | QV77: 4134518.832 | QW77: 4217105.362 | QX77: 4301338.247 | QY77: 4387250.136 | QZ77: 4474874.317 | RA77: 4564244.727 | RB77: 4655395.969 | RC77: 4748363.319 | RD77: 4843182.742 | RE77: 4939890.904 | RF77: 5038525.183 | RG77: 5139123.686 | RH77: 5241725.262 | RI77: 5346369.51 | RJ77: 5453096.803 | RK77: 5561948.291 | RL77: 5672965.925 | RM77: 5786192.465 | RN77: 5901671.499 | RO77: 6019447.454 | RP77: 6139565.615 | RQ77: 6262072.14 | RR77: 6387014.073 | RS77: 6514439.362 | RT77: 6644396.876 | RU77: 6776936.418 | RV77: 6912108.745 | RW77: 7049965.586 | RX77: 7190559.652 | RY77: 7333944.662 | RZ77: 7480175.354 | SA77: 7629307.507 | SB77: 7781397.956 | SC77: 7936504.612 | SD77: 8094686.479 | SE77: 8256003.673 | SF77: 8420517.442 | SG77: 8588290.183 | SH77: 8759385.463 | SI77: 8933868.036 | SJ77: 9111803.865 | SK77: 9293260.142 | SL77: 9478305.303 | SM77: 9667009.054 | SN77: 9859442.389 | SO77: 10055677.61 | SP77: 10255788.34 | SQ77: 10459849.57 | SR77: 10667937.64 | SS77: 10880130.29 | ST77: 11096506.66 | SU77: 11317147.35 | SV77: 11542134.39 | SW77: =SW69-SW74 -> 11771551.28 | SX77: 12005483.03 | SY77: 12244016.16 | SZ77: 12487238.73 | TA77: 12735240.35 | TB77: 12988112.22 | TC77: 13245947.12 | TD77: 13508839.47 | TE77: 13776885.32 | TF77: 14050182.38 | TG77: 14328830.05 | TH77: 14612929.41 | TI77: 14902583.28 | TJ77: 15197896.21 | TK77: 15498974.5 | TL77: 15805926.24 | TM77: 16118861.29 | TN77: 16437891.34 | TO77: 16763129.9 | TP77: 17094692.32 | TQ77: 17432695.8 | TR77: 17777259.42 | TS77: 18128504.15 | TT77: 18486552.84 | TU77: 18851530.27 | TV77: 19223563.11 | TW77: 19602780 | TX77: 19989311.46 | TY77: 20383290.01 | TZ77: 20784850.08 | UA77: 21194128.06 | UB77: 21611262.29 | UC77: 22036393.08 | UD77: 22469662.66 | UE77: 22911215.23 | UF77: 23361196.93 | UG77: 23819755.82 | UH77: 24287041.87 | UI77: 24763206.97 | UJ77: 25248404.91 | UK77: 25742791.32 | UL77: 26246523.69 | UM77: 26759761.33 | UN77: 27282665.32 | UO77: 27815398.52 | UP77: 28358125.47 | UQ77: 28911012.42 | UR77: 29474227.2 | US77: 30047939.24 | UT77: 30632319.46 | UU77: 31227540.26 | UV77: 31833775.37 | UW77: 32451199.85 | UX77: 33079989.99 | UY77: 33720323.18 | UZ77: 34372377.86 | VA77: 35036333.39 | VB77: 35712369.95 | VC77: 36400668.4 | VD77: 37101410.16 | VE77: 37814777.08 | VF77: 38540951.27 | VG77: 39280114.96 | VH77: 40032450.27 | VI77: =VI69-VI74 -> 40798139.12 | VJ77: 41577362.93 | VK77: 42370302.48 | VL77: 43177137.65 | VM77: 43998047.2 | VN77: 44833208.49 | VO77: 45682797.21 | VP77: 46546987.11 | VQ77: 47425949.67 | VR77: 48319853.79 | VS77: 49228865.42 | VT77: 50153147.2 | VU77: 51092858.08 | VV77: 52048152.9 | VW77: 53019181.9 | VX77: 54006090.35 | VY77: 55009017.97 | VZ77: 56028098.43 | WA77: 57063458.85 | WB77: 58115219.11 | WC77: 59183491.35 | WD77: 60268379.21 | WE77: 61369977.23 | WF77: 62488370.04 | WG77: 63623631.67 | WH77: 64775824.68 | WI77: 65944999.33 | WJ77: 67131192.65 | WK77: 68334427.53 | WL77: 69554711.7 | WM77: 70792036.64 | WN77: 72046376.53 | WO77: 73317687.01 | WP77: 74605903.98 | WQ77: 75910942.32 | WR77: 77232694.46 | WS77: 78571029.01 | WT77: 79925789.19 | WU77: 81296791.27 | WV77: 82683822.88 | WW77: 84086641.27 | WX77: 85504971.42 | WY77: 86938504.14 | WZ77: 88386894 | XA77: 89849757.21 | XB77: 91326669.31 | XC77: 92817162.91 | XD77: 94320725.08 | XE77: 95836794.87 | XF77: 97364760.47 | XG77: 98903956.43 | XH77: 100453660.6 | XI77: 102013091 | XJ77: 103581402.4 | XK77: 105157683.2 | XL77: 106740951.4 | XM77: 108330150.9 | XN77: 109924147.8 | XO77: 111521725.8 | XP77: 113121582.2 | XQ77: 114722322.9 | XR77: 116322458.2 | XS77: 117920397.2 | XT77: 119514443.1 | XU77: =XU69-XU74 -> 121102787.2 | XV77: 122683503.5 | XW77: 124254542.6 | XX77: 125813725.6 | XY77: 127358737.2 | XZ77: 128887119.1 | YA77: 130396263 | YB77: 131883402.9 | YC77: 133345607.1 | YD77: 134779770.8 | YE77: 136182606.8 | YF77: 137550637.1 | YG77: 138880183.7 | YH77: 140167358.6 | YI77: 141408054.2 | YJ77: 142597932.5 | YK77: 143732414.6 | YL77: 144806668.8 | YM77: 145815599.3 | YN77: 146753833.4 | YO77: 147615709.4 | YP77: 148395262.6 | YQ77: 149086211.7 | YR77: 149681944.6 | YS77: 150175503.2 | YT77: 150559567.9 | YU77: 150826441.7 | YV77: 150968033.2 | YW77: 150975839.5 | YX77: 150840927.8 | YY77: 150553917.2 | YZ77: 150104959.1 | ZA77: 149483717.4 | ZB77: 148679347.5 | ZC77: 147680475.3 | ZD77: 146475174.4 | ZE77: 145050944.2 | ZF77: 143394685.3 | ZG77: 141492675.8 | ZH77: 139330546.1 | ZI77: 136893252.6 | ZJ77: 134165051.7 | ZK77: 131129471.9 | ZL77: 127769285.9 | ZM77: 124066481.6 | ZN77: 120002232.6 | ZO77: 115556867.7 | ZP77: 110709839.6 | ZQ77: 105439693.8 | ZR77: 99724035.15 | ZS77: 93539495.76 | ZT77: 86861700.71 | ZU77: 79665234.02 | ZV77: 71923603.9 | ZW77: 63609207.6 | ZX77: 54693295.87 | ZY77: 45145937.13 | ZZ77: 34935981.47 | AAA77: 24031024.49 | AAB77: 12397371.18
C79: Value of Equity | D79: =H94 -> 0.07574802956 | E79: =NPV($D$79,E65:AAB65) -> 1267.098812 | F79: 1292.440788 | G79: 1318.289604 | H79: 1344.655396 | I79: 1371.548504 | J79: 1398.979474 | K79: 1426.959063 | L79: 1455.498245 | M79: 1484.60821 | N79: 1514.300374 | O79: 1544.586381 | P79: 1575.478109 | Q79: 1606.987671 | R79: 1639.127424 | S79: 1671.909973 | T79: 1705.348172 | U79: 1739.455136 | V79: 1774.244239 | W79: 1809.729123 | X79: 1845.923706 | Y79: 1882.84218 | Z79: 1920.499024 | AA79: 1958.909004 | AB79: 1998.087184 | AC79: 2038.048928 | AD79: 2078.809906 | AE79: 2120.386104 | AF79: 2162.793827 | AG79: 2206.049703 | AH79: 2250.170697 | AI79: 2295.174111 | AJ79: 2341.077593 | AK79: 2387.899145 | AL79: 2435.657128 | AM79: 2484.370271 | AN79: 2534.057676 | AO79: 2584.73883 | AP79: 2636.433606 | AQ79: 2689.162278 | AR79: 2742.945524 | AS79: 2797.804434 | AT79: 2853.760523 | AU79: 2910.835733 | AV79: 2969.052448 | AW79: 3028.433497 | AX79: 3089.002167 | AY79: 3150.78221 | AZ79: 3213.797855 | BA79: 3278.073812 | BB79: 3343.635288 | BC79: 3410.507994 | BD79: 3478.718154 | BE79: 3548.292517 | BF79: 3619.258367 | BG79: 3691.643534 | BH79: 3765.476405 | BI79: 3840.785933 | BJ79: 3917.601652 | BK79: 3995.953685 | BL79: 4075.872758 | BM79: 4157.390214 | BN79: 4240.538018 | BO79: 4325.348778 | BP79: 4411.855754 | BQ79: =NPV($D$79,BQ65:ACN65) -> 4500.092869 | BR79: 4590.094726 | BS79: 4681.896621 | BT79: 4775.534553 | BU79: 4871.045244 | BV79: 4968.466149 | BW79: 5067.835472 | BX79: 5169.192182 | BY79: 5272.576025 | BZ79: 5378.027546 | CA79: 5485.588097 | CB79: 5595.299859 | CC79: 5707.205856 | CD79: 5821.349973 | CE79: 5937.776972 | CF79: 6056.532512 | CG79: 6177.663162 | CH79: 6301.216425 | CI79: 6427.240754 | CJ79: 6555.785569 | CK79: 6686.90128 | CL79: 6820.639306 | CM79: 6957.052092 | CN79: 7096.193134 | CO79: 7238.116996 | CP79: 7382.879336 | CQ79: 7530.536923 | CR79: 7681.147662 | CS79: 7834.770615 | CT79: 7991.466027 | CU79: 8151.295348 | CV79: 8314.321255 | CW79: 8480.60768 | CX79: 8650.219833 | CY79: 8823.22423 | CZ79: 8999.688714 | DA79: 9179.682489 | DB79: 9363.276139 | DC79: 9550.541661 | DD79: 9741.552495 | DE79: 9936.383544 | DF79: 10135.11122 | DG79: 10337.81344 | DH79: 10544.56971 | DI79: 10755.4611 | DJ79: 10970.57032 | DK79: 11189.98173 | DL79: 11413.78137 | DM79: 11642.05699 | DN79: 11874.89813 | DO79: 12112.3961 | DP79: 12354.64402 | DQ79: 12601.7369 | DR79: 12853.77164 | DS79: 13110.84707 | DT79: 13373.06401 | DU79: 13640.52529 | DV79: 13913.3358 | DW79: 14191.60251 | DX79: 14475.43456 | DY79: 14764.94325 | DZ79: 15060.24212 | EA79: 15361.44696 | EB79: 15668.6759 | EC79: =NPV($D$79,EC65:AEZ65) -> 15982.04942 | ED79: 16301.69041 | EE79: 16627.72421 | EF79: 16960.2787 | EG79: 17299.48427 | EH79: 17645.47396 | EI79: 17998.38344 | EJ79: 18358.35111 | EK79: 18725.51813 | EL79: 19100.02849 | EM79: 19482.02906 | EN79: 19871.66964 | EO79: 20269.10303 | EP79: 20674.48509 | EQ79: 21087.9748 | ER79: 21509.73429 | ES79: 21939.92898 | ET79: 22378.72756 | EU79: 22826.30211 | EV79: 23282.82815 | EW79: 23748.48471 | EX79: 24223.45441 | EY79: 24707.9235 | EZ79: 25202.08197 | FA79: 25706.12361 | FB79: 26220.24608 | FC79: 26744.651 | FD79: 27279.54402 | FE79: 27825.1349 | FF79: 28381.6376 | FG79: 28949.27035 | FH79: 29528.25576 | FI79: 30118.82087 | FJ79: 30721.19729 | FK79: 31335.62123 | FL79: 31962.33366 | FM79: 32601.58033 | FN79: 33253.61194 | FO79: 33918.68418 | FP79: 34597.05786 | FQ79: 35288.99902 | FR79: 35994.779 | FS79: 36714.67458 | FT79: 37448.96807 | FU79: 38197.94743 | FV79: 38961.90638 | FW79: 39741.14451 | FX79: 40535.9674 | FY79: 41346.68674 | FZ79: 42173.62048 | GA79: 43017.09289 | GB79: 43877.43475 | GC79: 44754.98344 | GD79: 45650.08311 | GE79: 46563.08477 | GF79: 47494.34647 | GG79: 48444.2334 | GH79: 49413.11806 | GI79: 50401.38042 | GJ79: 51409.40803 | GK79: 52437.59619 | GL79: 53486.34812 | GM79: 54556.07508 | GN79: 55647.19658 | GO79: =NPV($D$79,GO65:AHL65) -> 56760.14051 | GP79: 57895.34332 | GQ79: 59053.25019 | GR79: 60234.31519 | GS79: 61439.00149 | GT79: 62667.78152 | GU79: 63921.13715 | GV79: 65199.55989 | GW79: 66503.55109 | GX79: 67833.62211 | GY79: 69190.29455 | GZ79: 70574.10044 | HA79: 71985.58245 | HB79: 73425.2941 | HC79: 74893.79998 | HD79: 76391.67598 | HE79: 77919.50949 | HF79: 79477.89968 | HG79: 81067.45768 | HH79: 82688.80683 | HI79: 84342.58296 | HJ79: 86029.43462 | HK79: 87750.02331 | HL79: 89505.02377 | HM79: 91295.12425 | HN79: 93121.02673 | HO79: 94983.44726 | HP79: 96883.1162 | HQ79: 98820.77852 | HR79: 100797.1941 | HS79: 102813.138 | HT79: 104869.4007 | HU79: 106966.7887 | HV79: 109106.1245 | HW79: 111288.247 | HX79: 113514.0119 | HY79: 115784.2922 | HZ79: 118099.978 | IA79: 120461.9776 | IB79: 122871.2171 | IC79: 125328.6414 | ID79: 127835.2143 | IE79: 130391.9185 | IF79: 132999.7569 | IG79: 135659.752 | IH79: 138372.9471 | II79: 141140.406 | IJ79: 143963.2141 | IK79: 146842.4784 | IL79: 149779.3279 | IM79: 152774.9145 | IN79: 155830.4127 | IO79: 158947.021 | IP79: 162125.9614 | IQ79: 165368.4806 | IR79: 168675.8502 | IS79: 172049.3672 | IT79: 175490.3545 | IU79: 179000.1616 | IV79: 182580.1648 | IW79: 186231.7681 | IX79: 189956.4034 | IY79: 193755.5314 | IZ79: 197630.642 | JA79: =NPV($D$79,JA65:AJX65) -> 201583.2549 | JB79: 205614.9199 | JC79: 209727.2183 | JD79: 213921.7626 | JE79: 218200.1978 | JF79: 222564.2017 | JG79: 227015.4857 | JH79: 231555.7954 | JI79: 236186.9113 | JJ79: 240910.6494 | JK79: 245728.8624 | JL79: 250643.4396 | JM79: 255656.3083 | JN79: 260769.4344 | JO79: 265984.823 | JP79: 271304.5194 | JQ79: 276730.6097 | JR79: 282265.2218 | JS79: 287910.5261 | JT79: 293668.7366 | JU79: 299542.1112 | JV79: 305532.9533 | JW79: 311643.6122 | JX79: 317876.4844 | JY79: 324234.0139 | JZ79: 330718.694 | KA79: 337333.0678 | KB79: 344079.729 | KC79: 350961.3234 | KD79: 357980.5496 | KE79: 365140.1604 | KF79: 372442.9634 | KG79: 379891.8225 | KH79: 387489.6587 | KI79: 395239.4516 | KJ79: 403144.2403 | KK79: 411207.1249 | KL79: 419431.267 | KM79: 427819.892 | KN79: 436376.2895 | KO79: 445103.8149 | KP79: 454005.8908 | KQ79: 463086.0082 | KR79: 472347.7279 | KS79: 481794.682 | KT79: 491430.5751 | KU79: 501259.1861 | KV79: 511284.3692 | KW79: 521510.0559 | KX79: 531940.2564 | KY79: 542579.0608 | KZ79: 553430.6412 | LA79: 564499.2533 | LB79: 575789.2375 | LC79: 587305.0213 | LD79: 599051.1207 | LE79: 611032.1421 | LF79: 623252.7838 | LG79: 635717.8383 | LH79: 648432.1938 | LI79: 661400.8363 | LJ79: 674628.8516 | LK79: 688121.4271 | LL79: 701883.854 | LM79: =NPV($D$79,LM65:AMJ65) -> 715921.5293 | LN79: 730239.958 | LO79: 744844.7552 | LP79: 759741.6482 | LQ79: 774936.4789 | LR79: 790435.206 | LS79: 806243.9076 | LT79: 822368.783 | LU79: 838816.1558 | LV79: 855592.4758 | LW79: 872704.322 | LX79: 890158.4049 | LY79: 907961.5692 | LZ79: 926120.7966 | MA79: 944643.2083 | MB79: 963536.0679 | MC79: 982806.7844 | MD79: 1002462.915 | ME79: 1022512.168 | MF79: 1042962.405 | MG79: 1063821.647 | MH79: 1085098.073 | MI79: 1106800.028 | MJ79: 1128936.021 | MK79: 1151514.733 | ML79: 1174545.019 | MM79: 1198035.91 | MN79: 1221996.619 | MO79: 1246436.541 | MP79: 1271365.26 | MQ79: 1296792.554 | MR79: 1322728.392 | MS79: 1349182.947 | MT79: 1376166.591 | MU79: 1403689.908 | MV79: 1431763.69 | MW79: 1460398.946 | MX79: 1489606.906 | MY79: 1519399.025 | MZ79: 1549786.984 | NA79: 1580782.702 | NB79: 1612398.332 | NC79: 1644646.273 | ND79: 1677539.172 | NE79: 1711089.926 | NF79: 1745311.694 | NG79: 1780217.895 | NH79: 1815822.218 | NI79: 1852138.625 | NJ79: 1889181.358 | NK79: 1926964.943 | NL79: 1965504.196 | NM79: 2004814.232 | NN79: 2044910.466 | NO79: 2085808.62 | NP79: 2127524.735 | NQ79: 2170075.167 | NR79: 2213476.605 | NS79: 2257746.066 | NT79: 2302900.913 | NU79: 2348958.851 | NV79: 2395937.943 | NW79: 2443856.611 | NX79: 2492733.646 | NY79: =NPV($D$79,NY65:AOV65) -> 2542588.216 | NZ79: 2593439.87 | OA79: 2645308.55 | OB79: 2698214.596 | OC79: 2752178.755 | OD79: 2807222.188 | OE79: 2863366.481 | OF79: 2920633.649 | OG79: 2979046.15 | OH79: 3038626.89 | OI79: 3099399.233 | OJ79: 3161387.009 | OK79: 3224614.528 | OL79: 3289106.582 | OM79: 3354888.462 | ON79: 3421985.963 | OO79: 3490425.396 | OP79: 3560233.599 | OQ79: 3631437.946 | OR79: 3704066.359 | OS79: 3778147.317 | OT79: 3853709.87 | OU79: 3930783.649 | OV79: 4009398.875 | OW79: 4089586.376 | OX79: 4171377.597 | OY79: 4254804.608 | OZ79: 4339900.124 | PA79: 4426697.512 | PB79: 4515230.807 | PC79: 4605534.726 | PD79: 4697644.677 | PE79: 4791596.778 | PF79: 4887427.869 | PG79: 4985175.526 | PH79: 5084878.077 | PI79: 5186574.616 | PJ79: 5290305.018 | PK79: 5396109.957 | PL79: 5504030.919 | PM79: 5614110.218 | PN79: 5726391.016 | PO79: 5840917.338 | PP79: 5957734.088 | PQ79: 6076887.067 | PR79: 6198422.995 | PS79: 6322389.521 | PT79: 6448835.251 | PU79: 6577809.76 | PV79: 6709363.615 | PW79: 6843548.393 | PX79: 6980416.702 | PY79: 7120022.203 | PZ79: 7262419.627 | QA79: 7407664.801 | QB79: 7555814.667 | QC79: 7706927.305 | QD79: 7861061.955 | QE79: 8018279.041 | QF79: 8178640.197 | QG79: 8342208.284 | QH79: 8509047.423 | QI79: 8679223.014 | QJ79: 8852801.764 | QK79: =NPV($D$79,QK65:ARH65) -> 9029851.714 | QL79: 9210442.263 | QM79: 9394644.196 | QN79: 9582529.713 | QO79: 9774172.456 | QP79: 9969647.537 | QQ79: 10169031.57 | QR79: 10372402.7 | QS79: 10579840.62 | QT79: 10791426.64 | QU79: 11007243.66 | QV79: 11227376.27 | QW79: 11451910.73 | QX79: 11680935.01 | QY79: 11914538.87 | QZ79: 12152813.82 | RA79: 12395853.24 | RB79: 12643752.33 | RC79: 12896608.22 | RD79: 13154519.97 | RE79: 13417588.62 | RF79: 13685917.2 | RG79: 13959610.83 | RH79: 14238776.71 | RI79: 14523524.18 | RJ79: 14813964.74 | RK79: 15110212.15 | RL79: 15412382.41 | RM79: 15720593.85 | RN79: 16034967.12 | RO79: 16355625.33 | RP79: 16682693.99 | RQ79: 17016301.14 | RR79: 17356577.37 | RS79: 17703655.84 | RT79: 18057672.39 | RU79: 18418765.55 | RV79: 18787076.6 | RW79: 19162749.66 | RX79: 19545931.67 | RY79: 19936772.52 | RZ79: 20335425.07 | SA79: 20742045.22 | SB79: 21156791.96 | SC79: 21579827.44 | SD79: 22011317.03 | SE79: 22451429.37 | SF79: 22900336.47 | SG79: 23358213.72 | SH79: 23825239.99 | SI79: 24301597.72 | SJ79: 24787472.92 | SK79: 25283055.32 | SL79: 25788538.38 | SM79: 26304119.39 | SN79: 26829999.54 | SO79: 27366383.99 | SP79: 27913481.95 | SQ79: 28471506.76 | SR79: 29040675.97 | SS79: 29621211.39 | ST79: 30213339.23 | SU79: 30817290.14 | SV79: 31433299.29 | SW79: =NPV($D$79,SW65:ATT65) -> 32061606.47 | SX79: 32702456.2 | SY79: 33356097.78 | SZ79: 34022785.38 | TA79: 34702778.16 | TB79: 35396340.35 | TC79: 36103741.33 | TD79: 36825255.74 | TE79: 37561163.59 | TF79: 38311750.3 | TG79: 39077306.88 | TH79: 39858129.97 | TI79: 40654521.97 | TJ79: 41466791.11 | TK79: 42295251.63 | TL79: 43140223.78 | TM79: 44002034.01 | TN79: 44881015.05 | TO79: 45777506.02 | TP79: 46691852.52 | TQ79: 47624406.79 | TR79: 48575527.77 | TS79: 49545581.25 | TT79: 50534939.96 | TU79: 51543983.7 | TV79: 52573099.46 | TW79: 53622681.52 | TX79: 54693131.56 | TY79: 55784858.82 | TZ79: 56898280.18 | UA79: 58033820.27 | UB79: 59191911.63 | UC79: 60372994.79 | UD79: 61577518.4 | UE79: 62805939.35 | UF79: 64058722.88 | UG79: 65336342.72 | UH79: 66639281.15 | UI79: 67968029.17 | UJ79: 69323086.58 | UK79: 70704962.1 | UL79: 72114173.48 | UM79: 73551247.59 | UN79: 75016720.55 | UO79: 76511137.79 | UP79: 78035054.18 | UQ79: 79589034.11 | UR79: 81173651.55 | US79: 82789490.19 | UT79: 84437143.46 | UU79: 86117214.63 | UV79: 87830316.85 | UW79: 89577073.22 | UX79: 91358116.85 | UY79: 93174090.87 | UZ79: 95025648.48 | VA79: 96913452.93 | VB79: 98838177.58 | VC79: 100800505.9 | VD79: 102801131.2 | VE79: 104840757.2 | VF79: 106920097.2 | VG79: 109039874.7 | VH79: 111200822.6 | VI79: =NPV($D$79,VI65:AWF65) -> 113403684 | VJ79: 115649211.1 | VK79: 117938165.8 | VL79: 120271319 | VM79: 122649450.9 | VN79: 125073350.1 | VO79: 127543813.9 | VP79: 130061647.9 | VQ79: 132627665.2 | VR79: 135242686.6 | VS79: 137907539.7 | VT79: 140623059 | VU79: 143390084.6 | VV79: 146209462.2 | VW79: 149082042.4 | VX79: 152008679.6 | VY79: 154990231.8 | VZ79: 158027559.2 | WA79: 161121523.9 | WB79: 164272988.1 | WC79: 167482814 | WD79: 170751861.6 | WE79: 174080988.2 | WF79: 177471046.7 | WG79: 180922884.1 | WH79: 184437339.7 | WI79: 188015243.8 | WJ79: 191657415.5 | WK79: 195364660.5 | WL79: 199137769.2 | WM79: 202977514.4 | WN79: 206884648 | WO79: 210859899.3 | WP79: 214903971.3 | WQ79: 219017537.5 | WR79: 223201238.9 | WS79: 227455679.9 | WT79: 231781424.6 | WU79: 236178992.4 | WV79: 240648853.3 | WW79: 245191423.4 | WX79: 249807059.2 | WY79: 254496052.2 | WZ79: 259258622.7 | XA79: 264094913.5 | XB79: 269004982.8 | XC79: 273988796.9 | XD79: 279046222.1 | XE79: 284177016.1 | XF79: 289380819.2 | XG79: 294657144.1 | XH79: 300005366 | XI79: 305424710.8 | XJ79: 310914243.4 | XK79: 316472855.2 | XL79: 322099250 | XM79: 327791929.6 | XN79: 333549178 | XO79: 339369045.1 | XP79: 345249328.3 | XQ79: 351187553.8 | XR79: 357180956.3 | XS79: 363226456.8 | XT79: 369320639.8 | XU79: =NPV($D$79,XU65:AYR65) -> 375459728.3 | XV79: 381639557.3 | XW79: 387855545.3 | XX79: 394102664.4 | XY79: 400375408 | XZ79: 406667755.9 | YA79: 412973138.1 | YB79: 419284395.1 | YC79: 425593736.3 | YD79: 431892694.9 | YE79: 438172080.6 | YF79: 444421928.6 | YG79: 450631444.7 | YH79: 456788948.1 | YI79: 462881809 | YJ79: 468896382.6 | YK79: 474817938.9 | YL79: 480630587.5 | YM79: 486317197.3 | YN79: 491859310.9 | YO79: 497237053.9 | YP79: 502429036.9 | YQ79: 507412252.4 | YR79: 512161963.5 | YS79: 516651586.5 | YT79: 520852564.4 | YU79: 524734233.1 | YV79: 528263677.8 | YW79: 531405580.6 | YX79: 534122057.8 | YY79: 536372485.9 | YZ79: 538113316.5 | ZA79: 539297879.1 | ZB79: 539876170.4 | ZC79: 539794630 | ZD79: 538995900.7 | ZE79: 537418573.9 | ZF79: 534996916.9 | ZG79: 531660583.2 | ZH79: 527334303 | ZI79: 521937553.8 | ZJ79: 515384208.4 | ZK79: 507582160.3 | ZL79: 498432924.3 | ZM79: 487831210.3 | ZN79: 475664469.3 | ZO79: 461812409.2 | ZP79: 446146478.8 | ZQ79: 428529317.3 | ZR79: 408814168.5 | ZS79: 386844254.8 | ZT79: 362452111.2 | ZU79: 335458874.6 | ZV79: 305673526.5 | ZW79: 272892085.7 | ZX79: 236896747.7 | ZY79: 197454967.5 | ZZ79: 154318481.4 | AAA79: 107222265 | AAB79: 55883422
